Workbook

Sheet Info
B3: Calculateur des centrales thermiques
B5: Guide de l'utilisateur
B7: Instructions
B9: 1. | C9: Si l'avertissement de sécurité apparaît, activez les macros en cliquant sur le bouton Activer les macros.
B19: 2. | C19: Activez le calcul itératif en suivant les étapes suivantes: Fichier → Options → Formules. Cocher la case: "Activer le calcul itératif" et entrez un nombre maximal d'itérations de 100.
B43: 3. | C43: Sélectionnez l'onglet Entrée de données.
B45: 4. | C45: Entrez les informations demandées, puis cliquer sur le bouton Étape suivante. Référez-vous à la section Définitions ci-bas.
B47: 5. | C47: Entrez les nouvelles informations demandées, puis cliquer sur le bouton Calculer les économies d'énergie. Référez-vous à la section Définitions ci-bas.
B49: 6. | C49: Sélectionnez les onglets Résultats - Bilan de matières, Résultats - Bilan de matières EE et Résultats - Mesures d'EE pour visualiser les résultats.
B51: 7. | C51: Si vous effectuez des changements dans l'onglet Entrée de données, veuillez de nouveau cliquer sur le bouton Calculer les économies d'énergie pour mettre à jour les résultats.
B53: Définitions des termes techniques
B55: 1. | C55: Centrale thermique : Une centrale qui produit de la vapeur à l’aide d’une ou plusieurs chaudières à vapeur.
B57: 2. | C57: Puissance installée du brûleur de la chaudière: Puissance du brûleur installé sur chacune des chaudières.
B59: 3. | C59: Capacité de production de vapeur de la chaudière : Quantité maximale (kg/h ou lb/h) de vapeur produite par la chaudière. La capacité de production prend en compte la vapeur utilisée et la vapeur perdue par l’évent du dégazeur.
B62: 4. | C62: Production moyenne de vapeur de la chaudière : Quantité moyenne de vapeur produite en opération standard de la chaudière. La production moyenne de vapeur prend en compte la vapeur utilisée et la vapeur perdue par l’évent du dégazeur.
B65: 5. | C65: Eau d'appoint : Eau de ville.
B67: 6. | C67: Eau d'alimentation : Eau alimentée à la chaudière. En général, l’eau d’alimentation est la somme du débit d’eau d’appoint et du débit d’eau de condensat.
B69: 7. | C69: Efficacité de combustion : Efficacité des brûleurs prenant en compte les pertes par les fumées de combustion du gaz naturel.
B71: 8. | C71: Efficacité de chauffe : Efficacité de la chaudière prenant en compte l’efficacité de combustion et les pertes par radiation.
B73: Hypothèses considérées
B75: 1. | C75: Toutes les chaudières de la centrale thermique opèrent à une même pression.
B77: 2. | C77: Les propriétés du condensat (température, % d’eau d’alimentation) sont les mêmes pour chacune des chaudières de la centrale thermique.
B79: 3. | C79: L'ajout de la micro-modulation modifie l’efficacité de combustion de la chaudière.
B81: 4. | C81: L'efficacité de combustion initiale de la chaudière a été déterminée en fonction de la température du gaz naturel, de la température des fumées et du pourcentage d’excès d’air, selon un calculateur développé par le CTGN.
B84: 5. | C84: Il est possible d’ajouter de la micro-modulation à chaque chaudière de la centrale thermique.
B86: 6. | C86: Il est possible de réduire le taux de purge de chaque chaudière de la centrale thermique.
B88: 7. | C88: Il est possible d’ajouter un économiseur à chaque chaudière de la centrale thermique.
B90: 8. | C90: L'énergie récupérée par l’ajout d’un économiseur non-condensant permet de préchauffer l’eau d’alimentation de la chaudière.
B92: 9. | C92: L'énergie récupérée par l’ajout d’un économiseur condensant permet de préchauffer l’eau d’appoint de la centrale.
B94: 10. | C94: La totalité de l’énergie récupérée par l’économiseur sert à préchauffer l’eau d’alimentation ou l’eau d’appoint selon le type d’économiseur.
B96: 11. | C96: La récupération de l’énergie contenue dans la purge ne s’applique qu’à la centrale thermique. Il n’est pas possible d’ajouter un récupérateur par chaudière.
B98: 12. | C98: L'énergie récupérée dans les purges permet de préchauffer l’eau d’appoint de la centrale thermique.
B100: 13. | C100: Il n’y a qu’un dégazeur pour l’ensemble de la centrale thermique. L’apport en vapeur au dégazeur est séparé équitablement entre le nombre de chaudières dans la centrale selon leur profil d’utilisation.
B103: 14. | C103: La récupération de l’énergie contenue dans l’évent du dégazeur ne s’applique qu’à la centrale thermique.
B105: 15. | C105: L'énergie récupérée dans l’évent du dégazeur permet de préchauffer l’eau d’appoint de la centrale thermique.
B107: 16. | C107: L'ensemble des chaudières de la centrale thermique sont alimentées avec la même eau d’appoint et à la même température.

Sheet Conversion unités
B2: Conversion des données
B4: Instructions : L'utilisateur peut utiliser les cellules ci-dessous pour effectuer la conversion des données sur les chaudières qui ne sont pas fournies en unités internationales ou dans l'unité désirée. 1- Entrer les données d'origine (Cellules foncées) 2- Sélectionner l'unité d'origine 3- Utiliser la valeur convertie dans l'onglet "Entrée de données" du calculateur.
C6: Valeur d'origine | D6: Sélection de l'unité d'origine | E6: Valeur convertie pour utilisation du calculateur
B7: Puissance (kW) | E7: =IF(C25=1,C7,IF(C25=2,C7*$C$27,IF(C25=3,C7*$C$28,"-"))) -> 0
B8: Puissance (BHP) | E8: =IF(E25=1,C8/C28*C26,IF(E25=2,C8/C28*C27,IF(E25=3,C8,"-"))) -> 0
B9: Pression (kPa) | E9: =IF(C30=1,C9,IF(C30=2,C9*$C$32,IF(C30=3,(C9+14.696)*$C$32,"-"))) -> 101.3259808
B10: Pression (psig) | E10: =IF(D30=1,C10/C32-14.696,IF(D30=2,C10-14.696,IF(D30=3,C10,"-"))) -> -14.696
B11: Température (°C) | E11: =IF(C35=1,C11,IF(C35=2,(C11-32)/1.8,"-")) -> 0
B12: Excès d'O2 (%) | E12: =IF(D39=1,200*C12/(852+9.52*C12),IF(D39=2,C12,"-")) -> 0
B13: Excès d'air (%) | E13: =IF(C39=1,C13,IF(C39=2,(852*C13)/(200-9.52*C13),"-")) -> 0
B15: Tableau de conversion
C16: Facteur de conversion
B17: De Millions de Btu/h à kW | C17: 293.07
B18: De BHP à kW | C18: 9.8095
B19: De psi à kPa | C19: 6.8948
B20: De °F à °C | C20: = (°F-32)/1,8
B21: De %O2 sec à % d'excès d'air
C25: 2 | D25: 2 | E25: 1
B26: kW | C26: 1 | D26: kW = 1 kW
B27: Millions de Btu/h | C27: 293.07 | D27: kW = 1 MMBTu/h
B28: BHP | C28: 9.8095 | D28: kW = 1 BHP
C30: 3 | D30: 1
B31: kPa | C31: 1 | D31: kPa = 1 kPa
B32: psi | C32: 6.8948 | D32: kPa= 1 psi
B33: psig | C33: psi + 14.696 | D33: kPa = 1 psig
C35: 1 | D35: 1 | E35: 1 | F35: 1 | G35: 2 | H35: 1
B36: ° C | C36: 1
B37: ° F
C39: 2 | D39: 1
B40: % d'excès d'air | C40: 1
B41: % d'O2 sec

Sheet Mise en forme- input (hidden)
B2: Lien entre les cases à cocher pour les mesures d'EE sélectionnées
B3: Micro-ondulation | C3: FALSE | J3: Tout faux | K3: =IF(AND(C3=FALSE,C4=FALSE,C5=FALSE,C6=FALSE,C7=FALSE),"X","") -> X
B4: Réduction de la purge | C4: FALSE | J4: Juste micro | K4: =IF(AND(C3=TRUE,C4=FALSE,C5=FALSE,C6=FALSE,C7=FALSE),"X","") -> 
B5: Économiseur | C5: FALSE | J5: Juste reduc purge | K5: =IF(AND(C3=FALSE,C4=TRUE,C5=FALSE,C6=FALSE,C7=FALSE),"X","") -> 
B6: Récupération d'énergie de la purge | C6: FALSE | J6: econo, reduc purge ou reduc event | K6: =IF(OR(C5=TRUE,C6=TRUE,C7=TRUE),"X","") -> 
B7: Récup évent dégazeur | C7: FALSE
B9: Lien entre les cases à cocher pour les chaudières avec la micro-ondulation | F9: nombre de chaudières sélectionnées:
B10: Chaudière 1 | C10: FALSE | F10: =COUNTIF(C10:C13,TRUE) -> 0
B11: Chaudière 2 | C11: FALSE
B12: Chaudière 3 | C12: FALSE
B13: Chaudière 4 | C13: FALSE
B15: Lien entre les cases à cocher pour les chaudières avec économiseurs | F15: nombre de chaudières sélectionnées: | J15: Économiseur condensant
B16: Chaudière 1 | C16: FALSE | F16: =COUNTIF(C16:C19,TRUE) -> 0 | J16: =IF('Entrée de données'!C111=2,TRUE,FALSE) -> FALSE
B17: Chaudière 2 | C17: FALSE | J17: =IF('Entrée de données'!D111=2,TRUE,FALSE) -> FALSE
B18: Chaudière 3 | C18: FALSE | J18: =IF('Entrée de données'!E111=2,TRUE,FALSE) -> FALSE
B19: Chaudière 4 | C19: FALSE | J19: =IF('Entrée de données'!F111=2,TRUE,FALSE) -> FALSE
B20: Cheminé commune | C20: FALSE | J20: Au moins un économiseur condensant: | K20: =IF(OR(J16=TRUE,J17=TRUE,J18=TRUE,J19=TRUE),TRUE,FALSE) -> FALSE
B22: Lien entre les cases à cocher pour les chaudières avec réduction purge | F22: nombre de chaudières sélectionnées:
B23: Chaudière 1 | C23: FALSE | F23: =COUNTIF(C23:C26,TRUE) -> 0
B24: Chaudière 2 | C24: FALSE
B25: Chaudière 3 | C25: FALSE
B26: Chaudière 4 | C26: FALSE

Sheet Macro1 (hidden)

Sheet Entrée de données
B2: Formulaire d'entrée de données | N2: Retour de condensat | O2: Caractéristique de la vapeur | P2: % d'excès d'air | Q2: % de purge | R2: Type de chaudière
Q3: 0
B4: Instructions : L'utilisateur doit avant tout saisir le nombre de chaudières qu'il souhaite analyser, puis il doit compléter les cases bleues correspondant à la chaudière étudiée, en utilisant les données nominales des équipements, ainsi que celles collectées lors de l'opération de la chaudière. L'utilisateur doit sélectionner certaines données à partir d'un menu déroulant. Pour les propriétés de la vapeur, il est nécessaire de saisir les données pour la vapeur saturée ou surchauffée, selon le cas. L'utilisateur doit ensuite entrer les données demandées associées aux mesures d'efficacité énergétique auxquelles il souhaite adhérer, une fois avoir cliqué sur le bouton « Section suivante ». L'utilisateur doit cliquer sur le bouton «Calculer les économies d'énergie » pour obtenir les résultats. Les résultats obtenus du bilan de matière avant l'ajout de mesures d'efficacité énergétique sont présentés dans l'onglet « Résultats - Bilan de matière». Ils incluent la quantité de vapeur utile pouvant être produite par chaque chaudière, ainsi que de l'efficacité de chauffe et de production de vapeur utile. Les résultats obtenus du bilan de matière après l'ajout de mesures d'efficacité énergétique sont présentés dans l'onglet « Résultats - Bilan de matière EE». Les économies d'énergies associées aux mesures d'efficacité énergétique sélectionnées sont présentées dans l'onglet « Résultats - Mesures d'EE ». Notez qu'il est possible d'utiliser l'onglet conversion pour convertir les données qui ne sont pas disponibles en unités internationales. | N4: Oui | O4: Vapeur saturée | P4: 0.01 | Q4: =Q3+0.01 -> 0.01 | R4: Tubes de fumées
B5: 2 | N5: Non | O5: Vapeur surchauffée | P5: =P4+0.01 -> 0.02 | Q5: =Q4+0.01 -> 0.02 | R5: Tubes d'eau
B6: 2 | I6: T in de l'eau : 60°C Eff chaudière: 80% | P6: =P5+0.01 -> 0.03 | Q6: =Q5+0.01 -> 0.03 | R6: A serpentin
B7: Nom de l'ingénieur | P7: 0.04 | Q7: 0.04 | R7: Sans tube
B8: Nom de la firme | P8: 0.05 | Q8: 0.05
P9: 0.06 | Q9: 0.06
B10: Informations sur le client | P10: 0.07 | Q10: 0.07
B11: Nom de la compagnie | P11: 0.08 | Q11: 0.08
B12: Site | P12: 0.09 | Q12: 0.09
B13: Adresse du site | P13: 0.1 | Q13: 0.1
B14: Personne-ressource | P14: 0.11 | Q14: 0.11
B15: Téléphone | P15: 0.12 | Q15: 0.12
B16: Date du rapport | P16: 0.13 | Q16: 0.13
P17: 0.14 | Q17: 0.14
P18: 0.15 | Q18: 0.15
B19: Informations sur la centrale thermique | P19: 0.16 | Q19: 0.16
P20: 0.17 | Q20: 0.17
B21: Nombre de chaudières dans la centrale thermique: | D21: =IF(OR(F21="",F21=0),"Veuillez inscrire le nombre de chaudières","") -> Veuillez inscrire le nombre de chaudières | P21: 0.18 | Q21: 0.18
C22: Chaudière 1 | D22: Chaudière 2 | E22: Chaudière 3 | F22: Chaudière 4 | P22: 0.19 | Q22: 0.19
P23: 0.2 | Q23: 0.2
B24: Efficacité des chaudières | P24: 0.21 | Q24: 0.21
B25: Type de chaudière: | C25: 1 | D25: 1 | E25: 1 | F25: 1 | P25: 0.22 | Q25: 0.22
C26: =IF(C25=2,"","Cette chaudière ne peut pas produire de vapeur surchauffée.") -> Cette chaudière ne peut pas produire de vapeur surchauffée. | D26: =IF(D25=2,"","Cette chaudière ne peut pas produire de vapeur surchauffée.") -> Cette chaudière ne peut pas produire de vapeur surchauffée. | E26: Cette chaudière ne peut pas produire de vapeur surchauffée. | F26: =IF(F21<4,"",IF(F25=2,"","Cette chaudière ne peut pas produire de vapeur surchauffée.")) ->  | P26: 0.23 | Q26: 0.23
B27: Puissance installée du brûleur de la chaudière (kW) | P27: 0.24 | Q27: 0.24
B28: Capacité de production de vapeur de la chaudière (BHP) | P28: 0.25 | Q28: 0.25
B29: (kW) | C29: =C28*'Conversion unités'!$C$18 -> 0 | D29: =D28*'Conversion unités'!$C$18 -> 0 | E29: =E28*'Conversion unités'!$C$18 -> 0 | F29: =F28*'Conversion unités'!$C$18 -> 0 | P29: 0.26 | Q29: 0.26
B30: Commentaire (ne pas compléter cette cellule) | C30: =IF(C29>C27,"La capacité de production de vapeur ne peut être supérieure à la puissance installée du brûleur de la chaudière. Veuillez entrer une autre valeur .","") ->  | D30: =IF(D29>D27,"La capacité de production de vapeur ne peut être supérieure à la puissance installée du brûleur de la chaudière. Veuillez entrer une autre valeur .","") ->  | P30: 0.27 | Q30: 0.27
B31: Production moyenne de vapeur de la chaudière (BHP) | P31: 0.28 | Q31: 0.28
B32: (kW) | C32: =C31*'Conversion unités'!$C$18 -> 0 | D32: =D31*'Conversion unités'!$C$18 -> 0 | E32: =E31*'Conversion unités'!$C$18 -> 0 | F32: =F31*'Conversion unités'!$C$18 -> 0 | P32: 0.29 | Q32: 0.29
B33: Commentaire (ne pas compléter cette cellule) | C33: =IF(C32>C29,"La production moyenne de vapeur ne peut être supérieure à la capacité de production de vapeur de la chaudière. Veuillez entrer une autre valeur .","") ->  | D33: =IF(D32>D29,"La production moyenne de vapeur ne peut être supérieure à la capacité de production de vapeur de la chaudière. Veuillez entrer une autre valeur .","") ->  | P33: 0.3 | Q33: 0.3
B34: Température des fumées (°C) | C34: 200 | D34: 200 | E34: 200 | F34: 200 | G34: Si pas de valeur disponible, prendre 200 °C. | K34: Efficacité de combustion des chaudières selon bilan de matière initial | P34: 0.31 | Q34: 0.31
B35: Température de l'air de combustion (°C) | C35: 20 | D35: 20 | E35: 20 | F35: 20 | G35: Si pas de valeur disponible, prendre 20 °C. | J35: Chaudière 1 | K35: =Comb_1!G2 -> 0.8275670996 | P35: 0.32 | Q35: 0.32
B36: % Excès d'air de combustion | C36: 30 | D36: 30 | E36: 30 | F36: 30 | G36: % molaire. Si pas de valeur disponible, prendre 30 %. | J36: Chaudière 2 | K36: =Comb_2!G2 -> 0.8275670996 | P36: 0.33 | Q36: 0.33
B37: Température du gaz naturel (°C) | C37: 20 | D37: 20 | E37: 20 | F37: 20 | G37: Utiliser 20 °C si aucune valeur n'est disponible ou la température de l'air de combustion | J37: Chaudière 3 | K37: =Comb_3!G2 -> 0.8275670996 | P37: 0.34 | Q37: 0.34
B38: Nombre d'heures d'opération annuelle | J38: Chaudière 4 | K38: =Comb_4!G2 -> 0.8275670996 | P38: 0.35 | Q38: 0.35
P39: 0.36 | Q39: 0.36
B40: Propriétés de la vapeur pour chaque chaudière | P40: 0.37 | Q40: 0.37
B41: Type de vapeur produite (ne pas compléter cette cellule) | C41: 1 | D41: 1 | E41: 1 | F41: 1 | P41: 0.38 | Q41: 0.38
C42: =IF(AND(OR(C25=1,C25=3,C25=4),C41=2),"Ce type de chaudière ne peut être utilisé pour la production de vapeur surchauffée. Veuillez effectuer une autre sélection.","") ->  | D42: =IF(AND(OR(D25=1,D25=3,D25=4),D41=2),"Ce type de chaudière ne peut être utilisé pour la production de vapeur surchauffée. Veuillez effectuer une autre sélection.","") ->  | E42: =IF(AND(OR(E25=1,E25=3,E25=4),E41=2),"Ce type de chaudière ne peut être utilisé pour la production de vapeur surchauffée. Veuillez effectuer une autre sélection.","") ->  | F42: =IF(AND(OR(F25=1,F25=3,F25=4),F41=2),"Ce type de chaudière ne peut être utilisé pour la production de vapeur surchauffée. Veuillez effectuer une autre sélection.","") ->  | P42: 0.39 | Q42: 0.39
B43: Pression manométrique (kPa) | D43: =C43 -> 0 | E43: =C43 -> 0 | F43: =C43 -> 0 | P43: 0.4 | Q43: 0.4
B44: Degré de surchauffe (°C) | C44: =IF(C41=1, "Non nécessaire", "Inscrire une valeur ci-dessous") -> Non nécessaire | D44: =IF(D41=1, "Non nécessaire", "Inscrire une valeur ci-dessous") -> Non nécessaire | E44: =IF(E41=1, "Non nécessaire", "Inscrire une valeur ci-dessous") -> Non nécessaire | F44: =IF(F41=1, "Non nécessaire", "Inscrire une valeur ci-dessous") -> Non nécessaire | P44: 0.41 | Q44: 0.41
P45: 0.42 | Q45: 0.42
P46: 0.43 | Q46: 0.43
B47: Autres données | P47: 0.44 | Q47: 0.44
B48: Température d'alimentation de l'eau d'appoint (°C) | D48: =IF($F$21<2,0,$C$48) -> 0 | E48: =IF($F$21<3,0,$C$48) -> 0 | F48: =IF($F$21<4,0,$C$48) -> 0 | P48: 0.45 | Q48: 0.45
B49: Retour de condensat disponible? | C49: 1 | D49: =IF(F21<2,0,$C$49) -> 0 | E49: =IF(F21<3,0,$C$49) -> 0 | F49: =IF(F21<4,0,$C$49) -> 0 | P49: 0.46 | Q49: 0.46
B50: % de condensat dans l'eau d'alimentation | D50: =IF($F$21<2,0,$C$50) -> 0 | E50: =IF($F$21<3,0,$C$50) -> 0 | F50: =IF($F$21<4,0,$C$50) -> 0 | G50: Inscrire 0 s'il n'y a pas de retour de condensat | P50: 0.47 | Q50: 0.47
B51: Température du retour de condensat (°C) | D51: =IF($F$21<2,100,$C$51) -> 100 | E51: =IF($F$21<3,100,$C$51) -> 100 | F51: =IF($F$21<4,100,$C$51) -> 100 | G51: Utiliser 100°C si aucune valeur n'est disponible. | P51: 0.48 | Q51: 0.48
B52: % de purge de la chaudière | C52: 1 | D52: 1 | E52: 1 | F52: 1 | G52: % de la quantité d'eau alimentée. Utiliser 6 % si pas de valeur disponible. | P52: 0.49 | Q52: 0.49
P53: 0.5 | Q53: 0.5
B54: Dégazeur | J54: Dégazeur | P54: 0.51 | Q54: 0.51
B55: Est-ce que la centrale thermique à un dégazeur? | C55: 1 | D55: =IF(C2="",IF(K4>C55,"L'efficacité après micro-modulation doit être supérieure à l'efficacité avant modulation",""),IF(C2>C55,"L'efficacité après micro-modulation doit être supérieure à l'efficacité avant modulation","")) ->  | J55: Oui | P55: 0.52 | Q55: 0.52
B56: Pression d'opération du dégazeur (psig) | J56: Non | P56: 0.53 | Q56: 0.53
P57: 0.54 | Q57: 0.54
P58: 0.55 | Q58: 0.55
B59: Informations sur les mesures d'efficacité énergétique sélectionnées | P59: 0.56 | Q59: 0.56
P60: 0.57 | Q60: 0.57
B61: Cochez les mesures d'efficacité énergétique auxquelles vous désirez appliquer: | F61: =IF(AND('Mise en forme- input'!C7=TRUE,'Entrée de données'!C55=2),"Vous ne pouvez pas appliquer pour la mesure d'efficacité énergétique de récupération de l'énergie évacuée par l'évent du dégazeur s'il n'y a pas de dégazeur dans la centrale thermique.","") ->  | P61: 0.58 | Q61: 0.58
P62: 0.59 | Q62: 0.59
P63: 0.6 | Q63: 0.6
P64: 0.61 | Q64: 0.61
P65: 0.62 | Q65: 0.62
B66: =IF('Mise en forme- input'!C3=TRUE,"Veuillez indiquer quelle(s) chaudière(s) est/sont contrôlée(s) par micro-ondulation:","Ignorez si la mesure d'efficacité énergétique sur la micro-ondulation n'est pas sélectionnée.") -> Ignorez si la mesure d'efficacité énergétique sur la micro-ondulation n'est pas sélectionnée. | D66: =IF(AND('Mise en forme- input'!C3=FALSE,OR('Mise en forme- input'!C10=TRUE,'Mise en forme- input'!C11=TRUE,'Mise en forme- input'!C12=TRUE,'Mise en forme- input'!C13=TRUE)),"Veuillez décocher les cases, car la mesure d'efficacité énergétique sur la micro-ondulation n'a pas été sélectionnée","") ->  | F66: =IF(AND('Mise en forme- input'!F10>'Entrée de données'!F21,D66=""),"Vous avez sélectionné trop de chaudières. Veuillez cocher un maximum de " &F21& " chaudière(s)",IF(AND(F21=1,OR('Mise en forme- input'!C11=TRUE,'Mise en forme- input'!C12=TRUE,'Mise en forme- input'!C13=TRUE)),"N'ayant sélectionné qu'une seule chaudière, vous ne pouvez que cocher la chaudière 1",IF(AND(F21=2,OR('Mise en forme- input'!C12=TRUE,'Mise en forme- input'!C13=TRUE)),"N'ayant sélectionné que deux chaudières, vous ne pouvez que cocher la chaudière 1 et la chaudière 2",IF(AND(F21=3,'Mise en forme- input'!C13=TRUE),"N'ayant sélectionné que trois chaudières, vous ne pouvez que cocher la chaudière 1, 2 ou 3","")))) ->  | P66: 0.63 | Q66: 0.63
P67: 0.64 | Q67: 0.64
P68: 0.65 | Q68: 0.65
P69: 0.66 | Q69: 0.66
B70: =IF('Mise en forme- input'!C4=TRUE,"Veuillez indiquer sur quelle(s) chaudière(s) vous souhaitez réduire le taux de purge:","Ignorez si la mesure d'efficacité énergétique sur la réduction de la purge n'est pas sélectionnée.") -> Ignorez si la mesure d'efficacité énergétique sur la réduction de la purge n'est pas sélectionnée. | D70: =IF(AND('Mise en forme- input'!C4=FALSE,OR('Mise en forme- input'!C4=TRUE,'Mise en forme- input'!C20=TRUE,'Mise en forme- input'!C22=TRUE,'Mise en forme- input'!C23=TRUE)),"Veuillez décocher les cases, car la mesure d'efficacité énergétique sur la réduction de la purge n'a pas été sélectionnée","") ->  | F70: =IF(AND('Mise en forme- input'!F23>'Entrée de données'!F21,D70=""),"Vous avez sélectionné trop de chaudières. Veuillez cocher un maximum de " &F21& " chaudière(s)",IF(AND(F21=1,OR('Mise en forme- input'!C24=TRUE,'Mise en forme- input'!C25=TRUE,'Mise en forme- input'!C26=TRUE)),"N'ayant sélectionné qu'une seule chaudière, vous ne pouvez que cocher la chaudière 1",IF(AND(F21=2,OR('Mise en forme- input'!C25=TRUE,'Mise en forme- input'!C26=TRUE)),"N'ayant sélectionné que deux chaudières, vous ne pouvez que cocher la chaudière 1 et la chaudière 2",IF(AND(F21=3,'Mise en forme- input'!C26=TRUE),"N'ayant sélectionné que trois chaudières, vous ne pouvez que cocher la chaudière 1, 2 ou 3","")))) ->  | P70: =P69+0.01 -> 0.67 | Q70: =Q69+0.01 -> 0.67
P71: 0.68 | Q71: 0.68
P72: 0.69 | Q72: 0.69
P73: 0.7 | Q73: 0.7
B74: =IF('Mise en forme- input'!C5=TRUE,"Veuillez indiquer sur quelle(s) chaudière(s) vous souhaitez installer un économiseur:","Ignorez si la mesure d'efficacité énergétique sur l'économiseur n'est pas sélectionnée.") -> Ignorez si la mesure d'efficacité énergétique sur l'économiseur n'est pas sélectionnée. | D74: =IF(AND('Mise en forme- input'!C5=FALSE,OR('Mise en forme- input'!C16=TRUE,'Mise en forme- input'!C17=TRUE,'Mise en forme- input'!C18=TRUE,'Mise en forme- input'!C19=TRUE,'Mise en forme- input'!C20=TRUE)),"Veuillez décocher les cases, car la mesure d'efficacité énergétique sur l'économiseur n'a pas été sélectionnée","") ->  | F74: =IF(AND('Mise en forme- input'!F16>F21,D74=""),"Vous avez sélectionné trop de chaudières. Veuillez cocher un maximum de " &F21& " chaudière(s)",IF(AND(F21=1,OR('Mise en forme- input'!C17=TRUE,'Mise en forme- input'!C18=TRUE,'Mise en forme- input'!C19=TRUE)),"N'ayant sélectionné qu'une seule chaudière, vous ne pouvez que cocher la chaudière 1",IF(AND(F21=2,OR('Mise en forme- input'!C18=TRUE,'Mise en forme- input'!C19=TRUE)),"N'ayant sélectionné que deux chaudières, vous ne pouvez que cocher la chaudière 1 et la chaudière 2",IF(AND(F21=3,'Mise en forme- input'!C19=TRUE),"N'ayant sélectionné que trois chaudières, vous ne pouvez que cocher la chaudière 1, 2 ou 3","")))) ->  | P74: 0.71 | Q74: 0.71
P75: 0.72 | Q75: 0.72
P76: 0.73 | Q76: 0.73
P77: 0.74 | Q77: 0.74
P78: 0.75 | Q78: 0.75
B79: =IF('Mise en forme- input'!C3=FALSE,"Puisque vous n'avez pas sélectionné la mesure sur la micro-modulation, vous pouvez passer à la section suivante qui se trouve à la ligne 94.","") -> Puisque vous n'avez pas sélectionné la mesure sur la micro-modulation, vous pouvez passer à la section suivante qui se trouve à la ligne 94. | P79: 0.76 | Q79: 0.76
B81: Données pour le calcul d'économie d'énergie associée à la micro-modulation | P81: =P79+0.01 -> 0.77 | Q81: =Q79+0.01 -> 0.77
P82: 0.78 | Q82: 0.78
B83: Objectif: Fournir un calculateur simplifié permettant d'estimer les économies d'énergie envisageables par la mise en place d'un système de micro-modulation de la chaudière. Le calculateur est essentiellement basé sur l'amélioration de l'efficacité de chauffe de la chaudière après implantation d'un système de micro-modulation. | P83: 0.79 | Q83: 0.79
B84: Instructions: L'utilisateur devra fournir les informations dans la section « Entrée de données » ci-dessous (cellules bleues), pour chaque chaudière sélectionnée. | P84: 0.8 | Q84: 0.8
B85: Entrée de données | J85: Température des fumées après micro-modulation | P85: 0.81 | Q85: 0.81
C86: Chaudière 1 | D86: Chaudière 2 | E86: Chaudière 3 | F86: Chaudière 4 | J86: Chaudière 1 | K86: ='Comb_1 (micro)'!T7 -> 238.0210122 | L86: °C | P86: 0.82 | Q86: 0.82
B87: Efficacité de combustion de la chaudière - Après micro-modulation (%) | J87: Chaudière 2 | K87: ='Comb_2 (micro)'!T7 -> 238.0210122 | L87: °C | P87: 0.83 | Q87: 0.83
C88: =IF(C87="","",IF(K35>C87,"L'efficacité après micro-modulation doit être supérieure à l'efficacité avant modulation","L'efficacité après micro-modulation est valide")) ->  | D88: =IF(D87="","",IF(K36>D87,"L'efficacité après micro-modulation doit être supérieure à l'efficacité avant modulation","L'efficacité après micro-modulation est valide")) ->  | E88: =IF(E87="","",IF(K37>E87,"L'efficacité après micro-modulation doit être supérieure à l'efficacité avant modulation","L'efficacité après micro-modulation est valide")) ->  | F88: =IF(F87="","",IF(K38>F87,"L'efficacité après micro-modulation doit être supérieure à l'efficacité avant modulation","L'efficacité après micro-modulation est valide")) ->  | J88: Chaudière 3 | K88: ='Comb_3 (micro)'!T7 -> 1973.064726 | L88: °C | P88: 0.84 | Q88: 0.84
B89: Pourcentage d'O2 dans les fumées après ajout de la micro-modulation (%) | C89: 0.03 | D89: 0.03 | E89: 0.03 | F89: 0.03 | G89: Si inconnu, inscrire 3%. | J89: Chaudière 4 | K89: ='Comb_4 (micro)'!T7 -> 1973.064726 | L89: °C | P89: 0.85 | Q89: 0.85
B90: Commentaire (ne pas compléter cette cellule) | C90: =IF(K86<100,"L'efficacité de combustion après micro-modulation semble trop élevé ou l'excès d'air semble trop faible","") ->  | D90: =IF(K87<100,"L'efficacité de combustion après micro-modulation semble trop élevée ou l'excès d'air semble trop faible","") ->  | E90: =IF(K88<100,"L'efficacité de combustion après micro-modulation semble trop élevée ou l'excès d'air semble trop faible","") ->  | F90: =IF(F89="","",IF(K89<100,"L'efficacité de combustion après micro-modulation semble trop élevée ou l'excès d'air semble trop faible","")) ->  | P90: 0.86 | Q90: 0.86
P91: 0.87 | Q91: 0.87
B92: =IF('Mise en forme- input'!C4=FALSE,"Puisque vous n'avez pas sélectionné la mesure sur la réduction du taux de purge, vous pouvez passer à la section suivante qui se trouve à la ligne 105.","") -> Puisque vous n'avez pas sélectionné la mesure sur la réduction du taux de purge, vous pouvez passer à la section suivante qui se trouve à la ligne 105. | P92: 0.88 | Q92: 0.88
B94: Données pour le calcul d'économie d'énergie associée à la réduction du taux de purge | P94: =P92+0.01 -> 0.89 | Q94: =Q92+0.01 -> 0.89
P95: 0.9 | Q95: 0.9
B96: Objectif: Fournir un calculateur simplifié permettant d'estimer les économies d'énergie envisageables par la mise en place d'un système de réduction de la quantité de purge extraite de la chaudière. | P96: 0.91 | Q96: 0.91
B97: Instructions: L'utilisateur devra fournir les informations dans la section « Entrée de données » ci-dessous (cellules bleues), pour chaque chaudière sélectionnée. L'utilisateur devra fournir le pourcentage de purge envisagé par l'implantation de la mesure d'économie d'énergie. | P97: 0.92 | Q97: 0.92
B98: Entrée de données | P98: 0.93 | Q98: 0.93
C99: Chaudière 1 | D99: Chaudière 2 | E99: Chaudière 3 | F99: Chaudière 4 | P99: 0.94 | Q99: 0.94
B100: % de purgeAprès réduction | P100: 0.95 | Q100: 0.95
B101: Validation du pourcentage de purge (ne pas compléter cette cellule) | C101: =IF(C100="","",IF(C100>'Réduction de la purge 1 à 4'!B8,"Le pourcentage de purge après la réduction est supérieur à celui avant la réduction (" &'Réduction de la purge 1 à 4'!B8*100&"%). Il n'est pas possible de calculer d'économies d'énergie","Le pourcentage de purge après réduction est valide")) ->  | D101: =IF(D100="","",IF(D100>'Réduction de la purge 1 à 4'!C8,"Le pourcentage de purge après la réduction est supérieur à celui avant la réduction (" &'Réduction de la purge 1 à 4'!C8*100&"%). Il n'est pas possible de calculer d'économies d'énergie","Le pourcentage de purge après réduction est valide")) ->  | E101: =IF(E100="","",IF(E100>'Réduction de la purge 1 à 4'!D8,"Le pourcentage de purge après la réduction est supérieur à celui avant la réduction (" &'Réduction de la purge 1 à 4'!D8*100&"%). Il n'est pas possible de calculer d'économies d'énergie","Le pourcentage de purge après réduction est valide")) ->  | F101: =IF(F100="","",IF(F100>'Réduction de la purge 1 à 4'!E8,"Le pourcentage de purge après la réduction est supérieur à celui avant la réduction (" &'Réduction de la purge 1 à 4'!E8*100&"%). Il n'est pas possible de calculer d'économies d'énergie","Le pourcentage de purge après réduction est valide")) ->  | J101: c1 | K101: =IF(C100>'Réduction de la purge 1 à 4'!B8,"Le pourcentage de purge après la réduction est supérieur à celui avant la réduction (" &'Réduction de la purge 1 à 4'!B8*100&"%). Il n'est pas possible de calculer d'économies d'énergie","Le pourcentage de purge après réduction est valide") -> Le pourcentage de purge après réduction est valide | P101: 0.96 | Q101: 0.96
J102: c2 | K102: =IF(D100>'Réduction de la purge 1 à 4'!C8,"Le pourcentage de purge après la réduction est supérieur à celui avant la réduction (" &'Réduction de la purge 1 à 4'!C8*100&"%). Il n'est pas possible de calculer d'économies d'énergie","Le pourcentage de purge après réduction est valide") -> Le pourcentage de purge après réduction est valide | P102: 0.97 | Q102: 0.97
B103: =IF('Mise en forme- input'!C5=FALSE,"Puisque vous n'avez pas sélectionné la mesure sur l'économiseur, vous pouvez passer à la section suivante qui se trouve à la ligne 117.","") -> Puisque vous n'avez pas sélectionné la mesure sur l'économiseur, vous pouvez passer à la section suivante qui se trouve à la ligne 117. | J103: c3 | K103: =IF(E100>'Réduction de la purge 1 à 4'!D8,"Le pourcentage de purge après la réduction est supérieur à celui avant la réduction (" &'Réduction de la purge 1 à 4'!D8*100&"%). Il n'est pas possible de calculer d'économies d'énergie","Le pourcentage de purge après réduction est valide") -> Le pourcentage de purge après réduction est valide | P103: =P102+0.01 -> 0.98 | Q103: 0.98
J104: c4 | K104: =IF(F100>'Réduction de la purge 1 à 4'!E8,"Le pourcentage de purge après la réduction est supérieur à celui avant la réduction (" &'Réduction de la purge 1 à 4'!E8*100&"%). Il n'est pas possible de calculer d'économies d'énergie","Le pourcentage de purge après réduction est valide") -> Le pourcentage de purge après réduction est valide | P104: 0.99 | Q104: 0.99
B105: Données pour le calcul d'économie d'énergie associée à l'ajout d'un économiseur | P105: 1 | Q105: 1
B107: Objectif: Fournir un calculateur simplifié permettant d'estimer les économies d'énergie envisageables par la mise en place d'un économiseur pour récupérer l'énergie perdue par les fumées de la chaudière. Le calculateur permet de calculer le potentiel de récupération d'énergie pour un économiseur à condensation ou non-condensant.
B108: Instructions: L'utilisateur doit fournir les informations dans la section « Entrée de données » ci-dessous (cellules bleues), pour chaque chaudière sélectionnée. Il est aussi nécessaire de sélectionner le type d'économiseur retenu pour l'estimation du potentiel de récupération de chaleur. Notez que pour les économiseurs non-condensant, la température de sortie ne peut être inférieure à 121 °C, tandis qu'elle doit être inférieure à cette valeur pour les économiseurs à condensation.
B109: Entrée de données
C110: Chaudière 1 | D110: Chaudière 2 | E110: Chaudière 3 | F110: Chaudière 4
B111: Sélectionner le type d'économiseur (Non-condensant/À condensation) | C111: 1 | D111: 1 | E111: 1 | F111: 1
B112: Température des fumées à la sortie de l'économiseur (°C)
B113: Validation de la température à la sortie de l'économiseur (ne pas compléter cette cellule) | C113: =IF(C112="","",IF(AND($C$111=1,C112<121),"La température à la sortie de l'économiseur non-condensant ne peut être inférieure à 121 °C",IF(AND($C$111=2,C112>120),"La température à la sortie de l'économiseur à condensation ne peut être supérieure à 120 °C","La température est valide"))) ->  | D113: =IF(D112="","",IF(AND($D$111=1,D112<121),"La température à la sortie de l'économiseur non-condensant ne peut être inférieure à 121 °C",IF(AND($D$111=2,D112>120),"La température à la sortie de l'économiseur à condensation ne peut être supérieure à 120 °C","La température est valide"))) ->  | E113: =IF(E112="","",IF(AND($E$111=1,E112<121),"La température à la sortie de l'économiseur non-condensant ne peut être inférieure à 121 °C",IF(AND($E$111=2,E112>120),"La température à la sortie de l'économiseur à condensation ne peut être supérieure à 120 °C","La température est valide"))) ->  | F113: =IF(F112="","",IF(AND($F$111=1,F112<121),"La température à la sortie de l'économiseur non-condensant ne peut être inférieure à 121 °C",IF(AND($F$111=2,F112>120),"La température à la sortie de l'économiseur à condensation ne peut être supérieure à 120 °C","La température est valide"))) ->  | I113: c1 | J113: =IF(AND($C$111=1,C112<121),"La température à la sortie de l'économiseur non-condensant ne peut être inférieure à 121 °C",IF(AND($C$111=2,C112>120),"La température à la sortie de l'économiseur à condensation ne peut être supérieure à 120 °C","La température est valide")) -> La température à la sortie de l'économiseur non-condensant ne peut être inférieure à 121 °C
I114: c2 | J114: =IF(AND($D$111=1,D112<121),"La température à la sortie de l'économiseur non-condensant ne peut être inférieure à 121 °C",IF(AND($D$111=2,D112>120),"La température à la sortie de l'économiseur à condensation ne peut être supérieure à 120 °C","La température est valide")) -> La température à la sortie de l'économiseur non-condensant ne peut être inférieure à 121 °C
I115: c3 | J115: =IF(AND($E$111=1,E112<121),"La température à la sortie de l'économiseur non-condensant ne peut être inférieure à 121 °C",IF(AND($E$111=2,E112>120),"La température à la sortie de l'économiseur à condensation ne peut être supérieure à 120 °C","La température est valide")) -> La température à la sortie de l'économiseur non-condensant ne peut être inférieure à 121 °C
B117: Données pour le calcul d'économie d'énergie associée à la récupération de l'énergie contenue dans la purge | I117: c4 | J117: =IF(AND($F$111=1,F112<121),"La température à la sortie de l'économiseur non-condensant ne peut être inférieure à 121 °C",IF(AND($F$111=2,F112>120),"La température à la sortie de l'économiseur à condensation ne peut être supérieure à 120 °C","La température est valide")) -> La température à la sortie de l'économiseur non-condensant ne peut être inférieure à 121 °C
B119: Objectif: Fournir un calculateur simplifié permettant d'estimer les économies d'énergie envisageables par la récupération de l'énergie contenue dans l'eau purgée hors de la chaudière.
B120: Instructions: L'utilisateur devra fournir les informations dans la section « Entrée de données » ci-dessous (cellules bleues), pour l'ensemble de la centrale thermique. Il devra établir la température cible pour l'eau purgée, après la récupération de chaleur, ainsi que la pression d'opération du ballon de détente, le cas échéant. Il s'agit de la température à laquelle cette eau pourra être évacuée au drain.
B121: Entrée de données
B122: Sélectionner le type de récupération envisagé | C122: 3
C123: Centrale thermique
B124: Pression manométrique du ballon de détente ("flash tank") (kPa) | D124: Si la centrale possède un dégazeur, la pression manométrique du ballon de détente est habituellement à la pression du dégazeur. Consultez l'onglet « Conversion unités » si vous avez besoin de convertir des pressions.
B125: =IF(C122<>1,"Température de l'eau purgée après récupération de l'énergie pour le préchauffage de l'eau d'appoint (°C)","") -> Température de l'eau purgée après récupération de l'énergie pour le préchauffage de l'eau d'appoint (°C)
B127: =IF('Mise en forme- input'!C7=FALSE,"Puisque vous n'avez pas sélectionné la mesure sur la récupération de l'énergie contenue dans l'évent du dégazeur, vous pouvez ignorer cette section.","") -> Puisque vous n'avez pas sélectionné la mesure sur la récupération de l'énergie contenue dans l'évent du dégazeur, vous pouvez ignorer cette section.
B129: Données pour le calcul d'économie d'énergie associée à la récupération d'énergie de l'évent du dégazeur
B131: Objectif: Fournir un calculateur simplifié permettant d'estimer les économies d'énergie envisageables par la mise en place d'un système de récupération de l'énergie contenue dans l'évent du dégazeur. Le calculateur est conçu pour évaluer le potentiel de récupération par la condensation de la vapeur et l'intégration du condensat dans le dégazeur.
B132: Instructions: L'utilisateur devra fournir les informations dans la section « Entrée de données » ci-dessous (cellules foncées), pour l'ensemble de la centrale thermique.
B133: Entrée de données
C134: Centrale thermique
B135: Température de l'eau alimentée au récupérateur de l'évent du dégazeur (°C) | C135: 75

Sheet Résultats - Bilan de matière
B2: — Résultats — Bilan d'énergie de la centrale thermique avant l'ajout des mesures d'efficacité énergétique | E2: Résultats - Bilan d'énergie de la centrale thermique
O3: Facteur de conversion
E4: Schéma de la centrale thermique
B5: Projet réalisé par | O5: De kW à Millions de Btu/h | P5: =1/293.07 -> 0.003412154093
B6: Nom de l'ingénieur | C6: =IF(ISBLANK('Entrée de données'!C7:E7),"",'Entrée de données'!C7:E7) ->  | O6: De kg/h à lb/h | P6: 2.20462 | Q6: Heat transfer 9eme édition
B7: Nom de la firme | C7: =IF(ISBLANK('Entrée de données'!C8:E8),"",'Entrée de données'!C8:E8) ->  | O7: m3/h à pi3/h | P7: 35.3134 | Q7: Heat transfer 9eme édition
F8: =C21 -> 0 | O8: m3/kg à pi3/lb | P8: =P7/P6 -> 16.01790785
B9: Informations sur le client | O9: kPa to psi | P9: =1/6.8948 -> 0.1450368394
B10: Nom de la compagnie | C10: =IF(ISBLANK('Entrée de données'!C11:E11),"",'Entrée de données'!C11:E11) ->  | J10: =C30 ->  | O10: kJ/kg to Btu/lb | P10: 0.42993
B11: Site | C11: =IF(ISBLANK('Entrée de données'!C12),"",'Entrée de données'!C12) -> 
B12: Adresse du site | C12: =IF(ISBLANK('Entrée de données'!C13),"",'Entrée de données'!C13) -> 
B13: Personne-ressource | C13: =IF(ISBLANK('Entrée de données'!C14),"",'Entrée de données'!C14) -> 
B14: Téléphone | C14: =IF(ISBLANK('Entrée de données'!C15),"",'Entrée de données'!C15) ->  | K14: =C39 -> 
B15: Date du rapport | C15: =IF(ISBLANK('Entrée de données'!C16),"",'Entrée de données'!C16) ->  | K15: =C38 -> 0 | N15: =C25 -> 0
B16: =IF(ISNUMBER(C19), "","Veuillez vérifier le nombre de chaudières saisi dans l'onglet entrée de données et vérifier que les données sont bien rentrées ") ->  | K16: Perte de vapeur | N16: Eau d'appoint
C17: Données en unités internationales | D17: Données en unités impériales
B18: Nombre de chaudières dans la centrale thermique | C18: =IF(OR('Entrée de données'!F21="",'Entrée de données'!F21=0),"Vous devez indiquer le nombres de chaudières dans l'onglet Entrée de données pour voir les résultats",'Entrée de données'!F21) -> Vous devez indiquer le nombres de chaudières dans l'onglet Entrée de données pour voir les résultats | D18: =C18 -> Vous devez indiquer le nombres de chaudières dans l'onglet Entrée de données pour voir les résultats
B19: Quantité totale d'énergie fournie aux brûleurs des chaudières | C19: =C49+C85+C121+C157 -> 0 | D19: =C19*P5 -> 0
B20: Alimentation totale en gaz naturel | C20: =C50+C86+C122+C158 -> 0 | D20: =C20*P7 -> 0 | I20: =C36 -> 0
B21: Quantité totale de vapeur fournie aux utilisateurs | C21: =C62+C98+C134+C170 -> 0 | D21: =C21*$P$6 -> 0
B22: Efficacité globale de production de vapeur utile de la centrale | C22: =IF(C19=0,"",(C49*C66+C85*C102+C121*C138+C157*C174)/C19) ->  | D22: =C22 ->  | M22: Retour total du condensat
B23: Ratio gaz naturel/vapeur | C23: =IF(OR(C20=0,C21=0),"",ROUND(C20/C21,5)) ->  | D23: =IF(C23="","",C23*$P$8) ->  | M23: =C26 -> 0
B24: Alimentation totale d'eau à la centrale thermique | C24: =C25+C26 -> 0 | D24: =C24*P6 -> 0
B25: Alimentation totale d'eau d'appoint | C25: =C55+C91+C127+C163 -> 0 | D25: =C25*P6 -> 0
B26: Alimentation totale d'eau de condensat | C26: =C56+C92+C128+C164 -> 0 | D26: =C26*P6 -> 0
B27: Efficacité globale de chauffe | C27: =IF(C19=0,"",(C49*C54+C85*C90+C121*C126+C157*C162)/C19) ->  | E27: =C32 -> 
B28: Efficacuté globable de combustion | C28: =IF(C19=0,"",(C49*C52+C85*C88+C121*C124+C157*C160)/C19) ->  | D28: =C28 -> 
B29: Totale des pertes par les fumées | C29: =IF(OR('Entrée de données'!F21=0,'Entrée de données'!F21=""),"",IF('Entrée de données'!F21=1,C51*C49,IF('Entrée de données'!F21=2,C51*C49+C85*C87,IF('Entrée de données'!F21=3,C51*C49+C85*C87+C121*C123,IF('Entrée de données'!F21=4,C51*C49+C85*C87+C121*C123+C157*C159))))) ->  | D29: =IF(C29="","",C29*P5) -> 
B30: Totale des pertes par les fumées | C30: =IF(C19=0,"",C29/C19) ->  | D30: =C30 -> 
B31: Totale des pertes par radiation et par convection | C31: =IF(OR('Entrée de données'!F21=0,'Entrée de données'!F21=""),"",IF('Entrée de données'!F21=1,C53*C49,IF('Entrée de données'!F21=2,C53*C49+C85*C89,IF('Entrée de données'!F21=3,C53*C49+C85*C89+C121*C125,IF('Entrée de données'!F21=4,C53*C49+C85*C89+C121*C125+C157*C161))))) ->  | D31: =IF(C31="","",C31*P5) ->  | I31: Gaz naturel
B32: Totale des pertes par radiation et par convection (% de l'énergie alimenté) | C32: =IF(C19=0,"",C31/C19) ->  | I32: =C20 -> 0
B33: Totale des pertes par la purge | C33: =IF(OR('Entrée de données'!F21=0,'Entrée de données'!F21=""),"",IF('Entrée de données'!F21=1,C65*C49,IF('Entrée de données'!F21=2,C65*C49+C85*C101,IF('Entrée de données'!F21=3,C65*C49+C85*C101+C121*C137,IF('Entrée de données'!F21=4,C65*C49+C85*C101+C121*C137+C157*C173))))) ->  | D33: =IF(C33="","",C33*P5) ->  | F33: =C34 -> 
B34: Totale des pertes par la purge | C34: =IF(OR('Entrée de données'!F21=0,'Entrée de données'!F21=""),"",IF('Entrée de données'!F21=1,C64,IF('Entrée de données'!F21=2,C64+C100,IF('Entrée de données'!F21=3,C64+C100+C136,IF('Entrée de données'!F21=4,C64+C100+C136+C172))))) ->  | D34: =IF(C34="","",C34*P6) ->  | F34: =C35 -> 
B35: Totale des pertes par la purge (% de l'énergie alimenté au brûleur) | C35: =IF(C19=0,"",C33/C19) -> 
B36: Quantité totale de vapeur fournie au dégazeur | C36: =Bilan_1!B95 -> 0 | D36: =IF(C36="","",C36*P6) -> 0
B37: Total des pertes par l'évent du dégazeur | C37: =Bilan_1!B99 -> 0 | D37: =IF(C37="","",C37*P5) -> 0
B38: Total des pertes par l'évent du dégazeur | C38: =Bilan_1!B98 -> 0 | D38: =IF(C37="","",C38*P6) -> 0
B39: Total des pertes par l'évent du dégazeur (% de l'énergie alimentée) | C39: =IF(C19=0,"",C37/C19) -> 
B40: Énergir ne peut être tenu responsable des dommages, qu’ils soient directs ou indirects découlant des résultats des outils de calculs. L’utilisateur demeure responsable de s’assurer de l’exactitude des données qu’il utilise. Les résultats se trouvant dans le chiffrier de calculs sont fournis au client à titre indicatif seulement et ne peuvent en aucun cas être interprétés comme une garantie d’efficacité ou une représentation en ce sens de Énergir. Énergir, ses employés, mandataires et représentants ne peuvent donc être tenus responsables advenant un écart entre cette estimation et la performance réelle de la centrale thermique du client. Version 2 - Novembre 2018
B42: Résultats — Chaudière 1 | E42: Résultats - Chaudière # 1
C45: Données en unités internationales | D45: Données en unités impériales
B46: Caractéristiques de la chaudière | F46: =C62 -> 0
B47: Type de chaudière | C47: =IF('Entrée de données'!$F$21<1,0,Bilan_1!$C$3) -> 0 | D47: =IF(C47=0,0,C47) -> 0
B48: Puissance maximale de production de vapeur de la chaudière | C48: =IF('Entrée de données'!$F$21<1,0,Bilan_1!$B$7) -> 0 | D48: =IF(C48=0,0,C48*$P$5) -> 0
B49: Puissance du brûleur de la chaudière en opération | C49: =IF('Entrée de données'!$F$21<1,0,Bilan_1!$B$29) -> 0 | D49: =IF(C49=0,0,C49*$P$5) -> 0 | J49: Pertes humides et sèches
B50: Alimentation en gaz naturel | C50: =IF('Entrée de données'!$F$21<1,0,Bilan_1!$B$31) -> 0 | D50: =IF(C50=0,0,C50*$P$7) -> 0 | J50: =C51 -> 0
B51: Pertes par les fumées (% de l'énergie au brûleur) | C51: =IF('Entrée de données'!$F$21<1,0,Bilan_1!$B$19) -> 0 | D51: =C51 -> 0
B52: Efficacité de combustion | C52: =IF('Entrée de données'!$F$21<1,0,'Entrée de données'!K35) -> 0 | D52: =IF(C52=0,0,C52) -> 0
B53: Pertes par radiation et par convection (% de l'énergie au brûleur) | C53: =IF('Entrée de données'!$F$21<1,0,Bilan_1!$B$23) -> 0 | D53: =IF(C53=0,0,C53) -> 0 | J53: Pertes de vapeur | M53: Eau d'appoint
B54: Efficacité de chauffe (% de l'énergie au brûleur) | C54: =IF('Entrée de données'!$F$21<1,0,Bilan_1!$B$26) -> 0 | D54: =IF(C54=0,0,C54) -> 0 | J54: =$C$38 -> 0 | M54: =$C$25 -> 0
B55: Alimentation d'eau d'appoint | C55: =IF('Entrée de données'!$F$21<1,0,Bilan_1!$B$70) -> 0 | D55: =IF(C55=0,0,C55*$P$6) -> 0
B56: Retour de condensat | C56: =IF('Entrée de données'!$F$21<1,0,Bilan_1!$B$72) -> 0 | D56: =IF(C56=0,0,C56*$P$6) -> 0
I57: =$C$36-H62 -> 0
B59: Pression manométrique de la vapeur produite | C59: =IF('Entrée de données'!$F$21<1,0,Bilan_1!$B$56) -> 0 | D59: =IF(C59=0,0,C59*$P$9) -> 0
B60: Type de vapeur produite | C60: =IF('Entrée de données'!$F$21<1,0,IF('Entrée de données'!$C$41=1,"Vapeur saturée","Vapeur surchauffée")) -> 0 | D60: =IF(C60=0,0,C60) -> 0
B61: Quantité totale de vapeur produite par la chaudière | C61: =IF('Entrée de données'!$F$21<1,0,C62+C63) -> 0 | D61: =IF(C61=0,0,C61*$P$6) -> 0 | K61: Retour de condensat
B62: Quantité de vapeur disponible pour utilisation | C62: =IF('Entrée de données'!$F$21<1,0,Bilan_1!$B$87) -> 0 | D62: =IF(C62=0,0,C62*$P$6) -> 0 | H62: =C63 -> 0 | K62: =$C$26 -> 0
B63: Quantité de vapeur alimentée au dégazeur | C63: =IF('Entrée de données'!$F$21<1,0,Bilan_1!$B$101) -> 0 | D63: =IF(C63=0,0,C63*$P$6) -> 0
B64: Pertes d'eau par la purge | C64: =IF('Entrée de données'!$F$21<1,0,Bilan_1!$B$77) -> 0 | D64: =IF(C64=0,0,C64*$P$6) -> 0
B65: Pertes d'énergie par la purge | C65: =IF('Entrée de données'!$F$21<1,0,Bilan_1!$B$82) -> 0 | D65: =IF(C65=0,0,C65) -> 0 | E65: =C53 -> 0
B66: Efficacité de génération de vapeur utile | C66: =IF('Entrée de données'!$F$21<1,0,Bilan_1!$B$116) -> 0 | D66: =IF(C66=0,0,C66) -> 0
B67: Ratio gaz naturel/vapeur | C67: =IF('Entrée de données'!$F$21<1,0,Bilan_1!$B$117) -> 0 | D67: =IF(C67=0,0,C67*$P$8) -> 0 | K67: Eau d'alimentation vers d'autres chaudières
B68: Autres données | H68: Gaz naturel | K68: =K62+M54-I72 -> 0
B69: Quantité de fumées sèches produite | C69: =IF('Entrée de données'!$F$21<1,0,Bilan_1!$E$41) -> 0 | D69: =IF(C69=0,0,C69*$P$6) -> 0 | F69: =C64 -> 0 | H69: =C50 -> 0
B70: Quantité de fumées humides produite | C70: =IF('Entrée de données'!$F$21<1,0,Bilan_1!$E$40) -> 0 | D70: =IF(C70=0,0,C70*$P$6) -> 0 | F70: =C65 -> 0
B71: Enthalpie de l'eau saturée - Purge | C71: =IF('Entrée de données'!$F$21<1,0,Bilan_1!$B$59) -> 0 | D71: =IF(C71=0,0,C71*$P$10) -> 0 | I71: Eau d'alimentation
B72: Enthalpie de la vapeur produite | C72: =IF('Entrée de données'!$F$21<1,0,Bilan_1!$B$58) -> 0 | D72: =IF(C72=0,0,C72*$P$10) -> 0 | I72: =C55+C56 -> 0
E74: Schéma adapté de GERIAP:
E75: http://www.energyefficiencyasia.org/docs/tools/training_materials/energy_equipment/Boilers%20and%20thermic%20fluid%20heaters.ppt
B78: Résultats — Chaudière 2 | E78: Résultats - Chaudière # 2
C81: Données en unités internationales | D81: Données en unités impériales
B82: Caractéristiques de la chaudière | F82: =C98 -> 0
B83: Type de chaudière | C83: =IF('Entrée de données'!$F$21<2,0,Bilan_2!$C$3) -> 0 | D83: =IF(C83=0,0,C83) -> 0
B84: Puissance maximale de production de vapeur de la chaudière | C84: =IF('Entrée de données'!$F$21<2,0,Bilan_2!$B$7) -> 0 | D84: =IF(C84=0,0,C84*$P$5) -> 0
B85: Puissance du brûleur de la chaudière en opération | C85: =IF('Entrée de données'!$F$21<2,0,Bilan_2!$B$29) -> 0 | D85: =IF(C85=0,0,C85*$P$5) -> 0 | J85: Pertes humides et sèches
B86: Alimentation en gaz naturel | C86: =IF('Entrée de données'!$F$21<2,0,Bilan_2!$B$31) -> 0 | D86: =IF(C86=0,0,C86*$P$7) -> 0 | J86: =C87 -> 0
B87: Pertes par les fumées (% de l'énergie au brûleur) | C87: =IF('Entrée de données'!$F$21<2,0,Bilan_2!$B$19) -> 0 | D87: =C87 -> 0
B88: Efficacité de combustion | C88: =IF('Entrée de données'!$F$21<2,0,'Entrée de données'!K36) -> 0 | D88: =IF(C88=0,0,C88) -> 0
B89: Pertes par radiation et par convection (% de l'énergie au brûleur) | C89: =IF('Entrée de données'!$F$21<2,0,Bilan_2!$B$23) -> 0 | D89: =IF(C89=0,0,C89) -> 0 | J89: Pertes de vapeur | M89: Eau d'appoint
B90: Efficacité de chauffe (% de l'énergie au brûleur) | C90: =IF('Entrée de données'!$F$21<2,0,Bilan_2!$B$26) -> 0 | D90: =IF(C90=0,0,C90) -> 0 | J90: =$C$38 -> 0 | M90: =$C$25 -> 0
B91: Alimentation d'eau d'appoint | C91: =IF('Entrée de données'!$F$21<2,0,Bilan_2!$B$70) -> 0 | D91: =IF(C91=0,0,C91*$P$6) -> 0
B92: Retour de condensat | C92: =IF('Entrée de données'!$F$21<2,0,Bilan_2!$B$72) -> 0 | D92: =IF(C92=0,0,C92*$P$6) -> 0
I93: =$C$36-H98 -> 0
B95: Pression manométrique de la vapeur produite | C95: =IF('Entrée de données'!$F$21<2,0,Bilan_2!$B$56) -> 0 | D95: =IF(C95=0,0,C95*$P$9) -> 0
B96: Type de vapeur produite | C96: =IF('Entrée de données'!$F$21<2,0,IF('Entrée de données'!$D$41=1,"Vapeur saturée","Vapeur surchauffée")) -> 0 | D96: =IF(C96=0,0,C96) -> 0
B97: Quantité totale de vapeur produite par la chaudière | C97: =IF('Entrée de données'!$F$21<2,0,C98+C99) -> 0 | D97: =IF(C97=0,0,C97*$P$6) -> 0 | K97: Retour de condensat
B98: Quantité de vapeur disponible pour utilisation | C98: =IF('Entrée de données'!$F$21<2,0,Bilan_2!$B$87) -> 0 | D98: =IF(C98=0,0,C98*$P$6) -> 0 | H98: =C99 -> 0 | K98: =$C$26 -> 0
B99: Quantité de vapeur alimentée au dégazeur | C99: =IF('Entrée de données'!$F$21<2,0,Bilan_2!$B$106) -> 0 | D99: =IF(C99=0,0,C99*$P$6) -> 0
B100: Pertes d'eau par la purge | C100: =IF('Entrée de données'!$F$21<2,0,Bilan_2!$B$77) -> 0 | D100: =IF(C100=0,0,C100*$P$6) -> 0
B101: Pertes d'énergie par la purge | C101: =IF('Entrée de données'!$F$21<2,0,Bilan_2!$B$82) -> 0 | D101: =IF(C101=0,0,C101) -> 0 | E101: =C89 -> 0
B102: Efficacité de génération de vapeur utile | C102: =IF('Entrée de données'!$F$21<2,0,Bilan_2!$B$118) -> 0 | D102: =IF(C102=0,0,C102) -> 0
B103: Ratio gaz naturel/vapeur | C103: =IF('Entrée de données'!$F$21<2,0,Bilan_2!$B$119) -> 0 | D103: =IF(C103=0,0,C103*$P$8) -> 0 | K103: Eau d'alimentation vers d'autres chaudières
B104: Autres données | H104: Gaz naturel | K104: =K98+M90-I108 -> 0
B105: Quantité de fumées sèches produite | C105: =IF('Entrée de données'!$F$21<2,0,Bilan_2!$E$41) -> 0 | D105: =IF(C105=0,0,C105*$P$6) -> 0 | F105: =C100 -> 0 | H105: =C86 -> 0
B106: Quantité de fumées humides produite | C106: =IF('Entrée de données'!$F$21<2,0,Bilan_2!$E$40) -> 0 | D106: =IF(C106=0,0,C106*$P$6) -> 0 | F106: =C101 -> 0
B107: Enthalpie de l'eau saturée - Purge | C107: =IF('Entrée de données'!$F$21<2,0,Bilan_2!$B$59) -> 0 | D107: =IF(C107=0,0,C107*$P$10) -> 0 | I107: Eau d'alimentation
B108: Enthalpie de la vapeur produite | C108: =IF('Entrée de données'!$F$21<2,0,Bilan_2!$B$58) -> 0 | D108: =IF(C108=0,0,C108*$P$10) -> 0 | I108: =C91+C92 -> 0
E110: Schéma adapté de GERIAP:
E111: http://www.energyefficiencyasia.org/docs/tools/training_materials/energy_equipment/Boilers%20and%20thermic%20fluid%20heaters.ppt
B114: Résultats — Chaudière 3 | E114: Résultats - Chaudière # 3
C117: Données en unités internationales | D117: Données en unités impériales
B118: Caractéristiques de la chaudière | F118: =C134 -> 0
B119: Type de chaudière | C119: =IF('Entrée de données'!$F$21<3,0,Bilan_3!$C$3) -> 0 | D119: =IF(C119=0,0,C119) -> 0
B120: Puissance maximale de production de vapeur de la chaudière | C120: =IF('Entrée de données'!$F$21<3,0,Bilan_3!$B$7) -> 0 | D120: =IF(C120=0,0,C120*$P$5) -> 0
B121: Puissance du brûleur de la chaudière en opération | C121: =IF('Entrée de données'!$F$21<3,0,Bilan_3!$B$29) -> 0 | D121: =IF(C121=0,0,C121*$P$5) -> 0 | J121: Pertes humides et sèches
B122: Alimentation en gaz naturel | C122: =IF('Entrée de données'!$F$21<3,0,Bilan_3!$B$31) -> 0 | D122: =IF(C122=0,0,C122*$P$7) -> 0 | J122: =C123 -> 0
B123: Pertes par les fumées (% de l'énergie au brûleur) | C123: =IF('Entrée de données'!$F$21<3,0,Bilan_3!$B$19) -> 0 | D123: =IF(C123=0,0,C123) -> 0
B124: Efficacité de combustion | C124: =IF('Entrée de données'!$F$21<3,0,'Entrée de données'!K37) -> 0 | D124: =C124 -> 0
B125: Pertes par radiation et par convection (% de l'énergie au brûleur) | C125: =IF('Entrée de données'!$F$21<3,0,Bilan_3!$B$23) -> 0 | D125: =IF(C125=0,0,C125) -> 0 | J125: Pertes de vapeur | M125: Eau d'appoint
B126: Efficacité de chauffe (% de l'énergie au brûleur) | C126: =IF('Entrée de données'!$F$21<3,0,Bilan_3!$B$26) -> 0 | D126: =IF(C126=0,0,C126) -> 0 | J126: =$C$38 -> 0 | M126: =$C$25 -> 0
B127: Alimentation d'eau d'appoint | C127: =IF('Entrée de données'!$F$21<3,0,Bilan_3!$B$70) -> 0 | D127: =IF(C127=0,0,C127*$P$6) -> 0
B128: Retour de condensat | C128: =IF('Entrée de données'!$F$21<3,0,Bilan_3!$B$72) -> 0 | D128: =IF(C128=0,0,C128*$P$6) -> 0
I129: =$C$36-H134 -> 0
B131: Pression manométrique de la vapeur produite | C131: =IF('Entrée de données'!$F$21<3,0,Bilan_3!$B$56) -> 0 | D131: =IF(C131=0,0,C131*$P$9) -> 0
B132: Type de vapeur produite | C132: =IF('Entrée de données'!$F$21<3,0,IF('Entrée de données'!$E$41=1,"Vapeur saturée","Vapeur surchauffée")) -> 0 | D132: =IF(C132=0,0,C132) -> 0
B133: Quantité totale de vapeur produite par la chaudière | C133: =IF('Entrée de données'!$F$21<3,0,C134+C135) -> 0 | D133: =IF(C133=0,0,C133*$P$6) -> 0 | K133: Retour de condensat
B134: Quantité de vapeur disponible pour utilisation | C134: =IF('Entrée de données'!$F$21<3,0,Bilan_3!$B$87) -> 0 | D134: =IF(C134=0,0,C134*$P$6) -> 0 | H134: =C135 -> 0 | K134: =$C$26 -> 0
B135: Quantité de vapeur alimentée au dégazeur | C135: =IF('Entrée de données'!$F$21<3,0,Bilan_3!$B$106) -> 0 | D135: =IF(C135=0,0,C135*$P$6) -> 0
B136: Pertes d'eau par la purge | C136: =IF('Entrée de données'!$F$21<3,0,Bilan_3!$B$77) -> 0 | D136: =IF(C136=0,0,C136*$P$6) -> 0
B137: Pertes d'énergie par la purge | C137: =IF('Entrée de données'!$F$21<3,0,Bilan_3!$B$82) -> 0 | D137: =IF(C137=0,0,C137) -> 0 | E137: =C125 -> 0
B138: Efficacité de génération de vapeur utile | C138: =IF('Entrée de données'!$F$21<3,0,Bilan_3!$B$118) -> 0 | D138: =IF(C138=0,0,C138) -> 0
B139: Ratio gaz naturel/vapeur | C139: =IF('Entrée de données'!$F$21<3,0,Bilan_3!$B$119) -> 0 | D139: =IF(C139=0,0,C139*$P$8) -> 0 | K139: Eau d'alimentation vers d'autres chaudières
B140: Autres données | H140: Gaz naturel | K140: =K134+M126-I144 -> 0
B141: Quantité de fumées sèches produite | C141: =IF('Entrée de données'!$F$21<3,0,Bilan_3!$E$41) -> 0 | D141: =IF(C141=0,0,C141*$P$6) -> 0 | F141: =C136 -> 0 | H141: =C122 -> 0
B142: Quantité de fumées humides produite | C142: =IF('Entrée de données'!$F$21<3,0,Bilan_3!$E$40) -> 0 | D142: =IF(C142=0,0,C142*$P$6) -> 0 | F142: =C137 -> 0
B143: Enthalpie de l'eau saturée - Purge | C143: =IF('Entrée de données'!$F$21<3,0,Bilan_3!$B$59) -> 0 | D143: =IF(C143=0,0,C143*$P$10) -> 0 | I143: Eau d'alimentation
B144: Enthalpie de la vapeur produite | C144: =IF('Entrée de données'!$F$21<3,0,Bilan_3!$B$58) -> 0 | D144: =IF(C144=0,0,C144*$P$10) -> 0 | I144: =C127+C128 -> 0
E146: Schéma adapté de GERIAP:
E147: http://www.energyefficiencyasia.org/docs/tools/training_materials/energy_equipment/Boilers%20and%20thermic%20fluid%20heaters.ppt
B150: Résultats — Chaudière 4 | E150: Résultats - Chaudière # 4
C153: Données en unités internationales | D153: Données en unités impériales
B154: Caractéristiques de la chaudière | F154: =C170 -> 0
B155: Type de chaudière | C155: =IF('Entrée de données'!$F$21<4,0,Bilan_4!$C$3) -> 0 | D155: =IF(C155=0,0,C155) -> 0
B156: Puissance maximale de production de vapeur de la chaudière | C156: =IF('Entrée de données'!$F$21<4,0,Bilan_4!$B$7) -> 0 | D156: =IF(C156=0,0,C156*$P$5) -> 0
B157: Puissance du brûleur de la chaudière en opération | C157: =IF('Entrée de données'!$F$21<4,0,Bilan_4!$B$29) -> 0 | D157: =IF(C157=0,0,C157*$P$5) -> 0 | J157: Pertes humides et sèches
B158: Alimentation en gaz naturel | C158: =IF('Entrée de données'!$F$21<4,0,Bilan_4!$B$31) -> 0 | D158: =IF(C158=0,0,C158*$P$7) -> 0 | J158: =C159 -> 0
B159: Pertes par les fumées (% de l'énergie au brûleur) | C159: =IF('Entrée de données'!$F$21<4,0,Bilan_4!$B$19) -> 0 | D159: =IF(C159=0,0,C159) -> 0
B160: Efficacité de combustion | C160: =IF('Entrée de données'!$F$21<4,0,'Entrée de données'!K38) -> 0 | D160: =C160 -> 0
B161: Pertes par radiation et par convection (% de l'énergie au brûleur) | C161: =IF('Entrée de données'!$F$21<4,0,Bilan_4!$B$23) -> 0 | D161: =IF(C161=0,0,C161) -> 0 | J161: Pertes de vapeur | M161: Eau d'appoint
B162: Efficacité de chauffe (% de l'énergie au brûleur) | C162: =IF('Entrée de données'!$F$21<4,0,Bilan_4!$B$26) -> 0 | D162: =IF(C162=0,0,C162) -> 0 | J162: =$C$38 -> 0 | M162: =$C$25 -> 0
B163: Alimentation d'eau d'appoint | C163: =IF('Entrée de données'!$F$21<4,0,Bilan_4!$B$70) -> 0 | D163: =IF(C163=0,0,C163*$P$6) -> 0
B164: Retour de condensat | C164: =IF('Entrée de données'!$F$21<4,0,Bilan_4!$B$72) -> 0 | D164: =IF(C164=0,0,C164*$P$6) -> 0
I165: =$C$36-H170 -> 0
B167: Pression manométrique de la vapeur produite | C167: =IF('Entrée de données'!$F$21<4,0,Bilan_4!$B$56) -> 0 | D167: =IF(C167=0,0,C167*$P$9) -> 0
B168: Type de vapeur produite | C168: =IF('Entrée de données'!$F$21<4,0,IF('Entrée de données'!$F$41=1,"Vapeur saturée","Vapeur surchauffée")) -> 0 | D168: =IF(C168=0,0,C168) -> 0
B169: Quantité totale de vapeur produite par la chaudière | C169: =IF('Entrée de données'!$F$21<4,0,C170+C171) -> 0 | D169: =IF(C169=0,0,C169*$P$6) -> 0 | K169: Retour de condensat
B170: Quantité de vapeur disponible pour utilisation | C170: =IF('Entrée de données'!$F$21<4,0,Bilan_4!$B$87) -> 0 | D170: =IF(C170=0,0,C170*$P$6) -> 0 | H170: =C171 -> 0 | K170: =$C$26 -> 0
B171: Quantité de vapeur alimentée au dégazeur | C171: =IF('Entrée de données'!$F$21<4,0,Bilan_4!$B$106) -> 0 | D171: =IF(C171=0,0,C171*$P$6) -> 0
B172: Pertes d'eau par la purge | C172: =IF('Entrée de données'!$F$21<4,0,Bilan_4!$B$77) -> 0 | D172: =IF(C172=0,0,C172*$P$6) -> 0
B173: Pertes d'énergie par la purge | C173: =IF('Entrée de données'!$F$21<4,0,Bilan_4!$B$82) -> 0 | D173: =IF(C173=0,0,C173) -> 0 | E173: =C161 -> 0
B174: Efficacité de génération de vapeur utile | C174: =IF('Entrée de données'!$F$21<4,0,Bilan_4!$B$118) -> 0 | D174: =IF(C174=0,0,C174) -> 0
B175: Ratio gaz naturel/vapeur | C175: =IF('Entrée de données'!$F$21<4,0,Bilan_4!$B$119) -> 0 | D175: =IF(C175=0,0,C175*$P$8) -> 0 | K175: Eau d'alimentation vers d'autres chaudières
B176: Autres données | H176: Gaz naturel | K176: =K170+M162-I180 -> 0
B177: Quantité de fumées sèches produite | C177: =IF('Entrée de données'!$F$21<4,0,Bilan_4!$E$41) -> 0 | D177: =IF(C177=0,0,C177*$P$6) -> 0 | F177: =C172 -> 0 | H177: =C158 -> 0
B178: Quantité de fumées humides produite | C178: =IF('Entrée de données'!$F$21<4,0,Bilan_4!$E$40) -> 0 | D178: =IF(C178=0,0,C178*$P$6) -> 0 | F178: =C173 -> 0
B179: Enthalpie de l'eau saturée - Purge | C179: =IF('Entrée de données'!$F$21<4,0,Bilan_4!$B$59) -> 0 | D179: =IF(C179=0,0,C179*$P$10) -> 0 | I179: Eau d'alimentation
B180: Enthalpie de la vapeur produite | C180: =IF('Entrée de données'!$F$21<4,0,Bilan_4!$B$58) -> 0 | D180: =IF(C180=0,0,C180*$P$10) -> 0 | I180: =C163+C164 -> 0
E182: Schéma adapté de GERIAP:
E183: http://www.energyefficiencyasia.org/docs/tools/training_materials/energy_equipment/Boilers%20and%20thermic%20fluid%20heaters.ppt

Sheet Résultats - Bilan de matière EE
B2: — Résultats — Bilan d'énergie de la centrale thermique après l'ajout des mesures d'efficacité énergétique | E2: Résultats - Bilan d'énergie de la centrale thermique
O3: Facteur de conversion
E4: Schéma de la centrale thermique
B5: Projet réalisé par | O5: De kW à Millions de Btu/h | P5: =1/293.07 -> 0.003412154093
B6: Nom de l'ingénieur | C6: =IF('Entrée de données'!C7:F7="","",'Entrée de données'!C7:F7) ->  | O6: De kg/h à lb/h | P6: 2.20462 | Q6: Heat transfer 9eme édition
B7: Nom de la firme | C7: =IF(ISBLANK('Entrée de données'!C8:E8),"",'Entrée de données'!C8:E8) ->  | O7: m3/h à pi3/h | P7: 35.3134 | Q7: Heat transfer 9eme édition
F8: =C21 -> 0 | O8: m3/kg à pi3/lb | P8: =P7/P6 -> 16.01790785
B9: Informations sur le client | O9: kPa to psi | P9: =1/6.8948 -> 0.1450368394
B10: Nom de la compagnie | C10: =IF(ISBLANK('Entrée de données'!C11:E11),"",'Entrée de données'!C11:E11) ->  | J10: =C30 ->  | O10: kJ/kg to Btu/lb | P10: 0.42993
B11: Site | C11: =IF(ISBLANK('Entrée de données'!C12),"",'Entrée de données'!C12) -> 
B12: Adresse du site | C12: =IF(ISBLANK('Entrée de données'!C13),"",'Entrée de données'!C13) -> 
B13: Personne-ressource | C13: =IF(ISBLANK('Entrée de données'!C14),"",'Entrée de données'!C14) -> 
B14: Téléphone | C14: =IF(ISBLANK('Entrée de données'!C15),"",'Entrée de données'!C15) ->  | K14: =C39 -> 
B15: Date du rapport | C15: =IF(ISBLANK('Entrée de données'!C16),"",'Entrée de données'!C16) ->  | K15: =C38 -> 0 | N15: =C25 -> 0
B16: =IF(ISNUMBER(C19), "","Veuillez vérifier le nombre de chaudières saisi dans l'onglet entrée de données et vérifier que les données sont bien rentrées ") ->  | K16: Perte de vapeur | N16: Eau d'appoint
C17: Données en unités internationales | D17: Données en unités impériales
B18: Nombre de chaudières dans la centrale thermique | C18: =IF(OR('Entrée de données'!F21="",'Entrée de données'!F21=0),"Vous devez indiquer le nombres de chaudières dans l'onglet Entrée de données pour voir les résultats",'Entrée de données'!F21) -> Vous devez indiquer le nombres de chaudières dans l'onglet Entrée de données pour voir les résultats | D18: =C18 -> Vous devez indiquer le nombres de chaudières dans l'onglet Entrée de données pour voir les résultats
B19: Quantité totale d'énergie fournie aux brûleurs des chaudières | C19: =C49+C85+C121+C157 -> 0 | D19: =C19*P5 -> 0
B20: Alimentation totale en gaz naturel | C20: =C50+C86+C122+C158 -> 0 | D20: =C20*P7 -> 0 | I20: =C36 -> 0
B21: Quantité totale de vapeur fournie aux utilisateurs | C21: =C62+C98+C134+C170 -> 0 | D21: =C21*$P$6 -> 0
B22: Efficacité globale de production de vapeur utile de la centrale | C22: =IF(C19=0,"",(C49*C66+C85*C102+C121*C138+C157*C174)/C19) ->  | D22: =C22 ->  | M22: Retour total du condensat
B23: Ratio gaz naturel/vapeur | C23: =IF(OR(C20=0,C21=0),"",ROUND(C20/C21,5)) ->  | D23: =IF(C23="","",C23*$P$8) ->  | M23: =C26 -> 0
B24: Alimentation totale d'eau à la centrale thermique | C24: =C25+C26 -> 0 | D24: =C24*P6 -> 0
B25: Alimentation totale d'eau d'appoint | C25: =C55+C91+C127+C163 -> 0 | D25: =C25*P6 -> 0
B26: Alimentation totale d'eau de condensat | C26: =C56+C92+C128+C164 -> 0 | D26: =C26*P6 -> 0
B27: Efficacité globale de chauffe | C27: =IF(C19=0,"",(C49*C54+C85*C90+C121*C126+C157*C162)/C19) ->  | E27: =C32 -> 
B28: Efficacité globable de combustion | C28: =IF(C19=0,"",(C49*C52+C85*C88+C121*C124+C157*C160)/C19) ->  | D28: =C28 -> 
B29: Totale des pertes par les fumées | C29: =IF(OR('Entrée de données'!F21=0,'Entrée de données'!F21=""),"",IF('Entrée de données'!F21=1,C51*C49,IF('Entrée de données'!F21=2,C51*C49+C85*C87,IF('Entrée de données'!F21=3,C51*C49+C85*C87+C121*C123,IF('Entrée de données'!F21=4,C51*C49+C85*C87+C121*C123+C157*C159))))) ->  | D29: =IF(C29="","",C29*P5) -> 
B30: Totale des pertes par les fumées | C30: =IF(C19=0,"",C29/C19) ->  | D30: =C30 -> 
B31: Totale des pertes par radiation et par convection | C31: =IF(OR('Entrée de données'!F21=0,'Entrée de données'!F21=""),"",IF('Entrée de données'!F21=1,C53*C49,IF('Entrée de données'!F21=2,C53*C49+C85*C89,IF('Entrée de données'!F21=3,C53*C49+C85*C89+C121*C125,IF('Entrée de données'!F21=4,C53*C49+C85*C89+C121*C125+C157*C161))))) ->  | D31: =IF(C31="","",C31*P5) ->  | I31: Gaz naturel
B32: Totale des pertes par radiation et par convection (% de l'énergie alimenté) | C32: =IF(C19=0,"",C31/C19) ->  | I32: =C20 -> 0
B33: Totale des pertes par la purge | C33: =IF(OR('Entrée de données'!F21=0,'Entrée de données'!F21=""),"",IF('Entrée de données'!F21=1,C65*C49,IF('Entrée de données'!F21=2,C65*C49+C85*C101,IF('Entrée de données'!F21=3,C65*C49+C85*C101+C121*C137,IF('Entrée de données'!F21=4,C65*C49+C85*C101+C121*C137+C157*C173))))) ->  | D33: =IF(C33="","",C33*P5) ->  | F33: =C34 -> 
B34: Totale des pertes par la purge | C34: =IF(OR('Entrée de données'!F21=0,'Entrée de données'!F21=""),"",IF('Entrée de données'!F21=1,C64,IF('Entrée de données'!F21=2,C64+C100,IF('Entrée de données'!F21=3,C64+C100+C136,IF('Entrée de données'!F21=4,C64+C100+C136+C172))))) ->  | D34: =IF(C34="","",C34*P6) ->  | F34: =C35 -> 
B35: Totale des pertes par la purge (% de l'énergie alimenté au brûleur) | C35: =IF(C19=0,"",C33/C19) -> 
B36: Quantité totale de vapeur fournie au dégazeur | C36: ='Bilan_1 EE'!B95 -> 0 | D36: =IF(C36="","",C36*P6) -> 0
B37: Total des pertes par l'évent du dégazeur | C37: ='Bilan_1 EE'!B99 -> 0 | D37: =IF(C37="","",C37*P5) -> 0
B38: Total des pertes par l'évent du dégazeur | C38: ='Bilan_1 EE'!B98 -> 0 | D38: =IF(C37="","",C38*P6) -> 0
B39: Total des pertes par l'évent du dégazeur (% de l'énergie alimentée) | C39: =IF(C19=0,"",C37/C19) -> 
B40: Énergir ne peut être tenu responsable des dommages, qu’ils soient directs ou indirects découlant des résultats des outils de calculs. L’utilisateur demeure responsable de s’assurer de l’exactitude des données qu’il utilise. Les résultats se trouvant dans le chiffrier de calculs sont fournis au client à titre indicatif seulement et ne peuvent en aucun cas être interprétés comme une garantie d’efficacité ou une représentation en ce sens de Énergir. Énergir, ses employés, mandataires et représentants ne peuvent donc être tenus responsables advenant un écart entre cette estimation et la performance réelle de la centrale thermique du client. Version 2 - Novembre 2018
B42: Résultats — Chaudière 1 | E42: Résultats - Chaudière # 1
C45: Données en unités internationales | D45: Données en unités impériales
B46: Caractéristiques de la chaudière | F46: =C62 -> 0
B47: Type de chaudière | C47: =IF('Entrée de données'!$F$21<1,0,'Bilan_1 EE'!$C$3) -> 0 | D47: =IF(C47=0,0,C47) -> 0
B48: Puissance maximale de production de vapeur de la chaudière | C48: =IF('Entrée de données'!$F$21<1,0,'Bilan_1 EE'!$B$7) -> 0 | D48: =IF(C48=0,0,C48*$P$5) -> 0
B49: Puissance du brûleur de la chaudière en opération | C49: =IF('Entrée de données'!$F$21<1,0,'Bilan_1 EE'!$B$29) -> 0 | D49: =IF(C49=0,0,C49*$P$5) -> 0 | J49: Pertes humides et sèches
B50: Alimentation en gaz naturel | C50: =IF('Entrée de données'!$F$21<1,0,'Bilan_1 EE'!$B$31) -> 0 | D50: =IF(C50=0,0,C50*$P$7) -> 0 | J50: =C51 -> 0
B51: Pertes par les fumées (% de l'énergie au brûleur) | C51: =IF('Entrée de données'!$F$21<1,0,'Bilan_1 EE'!$B$19) -> 0 | D51: =IF(C51=0,0,C51) -> 0
B52: Efficacité de combustion | C52: =IF('Entrée de données'!$F$21<1,0,C54+C53) -> 0 | D52: =C52 -> 0
B53: Pertes par radiation et par convection (% de l'énergie au brûleur) | C53: =IF('Entrée de données'!$F$21<1,0,'Bilan_1 EE'!$B$23) -> 0 | D53: =IF(C53=0,0,C53) -> 0 | J53: Pertes de vapeur | M53: Eau d'appoint
B54: Efficacité de chauffe (% de l'énergie au brûleur) | C54: =IF('Entrée de données'!$F$21<1,0,'Bilan_1 EE'!$B$26) -> 0 | D54: =IF(C54=0,0,C54) -> 0 | J54: =$C$38 -> 0 | M54: =$C$25 -> 0
B55: Alimentation d'eau d'appoint | C55: =IF('Entrée de données'!$F$21<1,0,'Bilan_1 EE'!$B$70) -> 0 | D55: =IF(C55=0,0,C55*$P$6) -> 0
B56: Retour de condensat | C56: =IF('Entrée de données'!$F$21<1,0,'Bilan_1 EE'!$B$72) -> 0 | D56: =IF(C56=0,0,C56*$P$6) -> 0
I57: =$C$36-H62 -> 0
B59: Pression manométrique de la vapeur produite | C59: =IF('Entrée de données'!$F$21<1,0,'Bilan_1 EE'!$B$56) -> 0 | D59: =IF(C59=0,0,C59*$P$9) -> 0
B60: Type de vapeur produite | C60: =IF('Entrée de données'!$F$21<1,0,IF('Entrée de données'!$C$41=1,"Vapeur saturée","Vapeur surchauffée")) -> 0 | D60: =IF(C60=0,0,C60) -> 0
B61: Quantité totale de vapeur produite par la chaudière | C61: =IF('Entrée de données'!$F$21<1,0,C62+C63) -> 0 | D61: =IF(C61=0,0,C61*$P$6) -> 0 | K61: Retour de condensat
B62: Quantité de vapeur disponible pour utilisation | C62: =IF('Entrée de données'!$F$21<1,0,'Bilan_1 EE'!$B$87) -> 0 | D62: =IF(C62=0,0,C62*$P$6) -> 0 | H62: =C63 -> 0 | K62: =$C$26 -> 0
B63: Quantité de vapeur alimentée au dégazeur | C63: =IF('Entrée de données'!$F$21<1,0,'Bilan_1 EE'!$B$101) -> 0 | D63: =IF(C63=0,0,C63*$P$6) -> 0
B64: Pertes d'eau par la purge | C64: =IF('Entrée de données'!$F$21<1,0,'Bilan_1 EE'!$B$77) -> 0 | D64: =IF(C64=0,0,C64*$P$6) -> 0
B65: Pertes d'énergie par la purge | C65: =IF('Entrée de données'!$F$21<1,0,'Bilan_1 EE'!$B$82) -> 0 | D65: =IF(C65=0,0,C65) -> 0 | E65: =C53 -> 0
B66: Efficacité de génération de vapeur utile | C66: =IF('Entrée de données'!$F$21<1,0,'Bilan_1 EE'!$B$117) -> 0 | D66: =IF(C66=0,0,C66) -> 0
B67: Ratio gaz naturel/vapeur | C67: =IF('Entrée de données'!$F$21<1,0,'Bilan_1 EE'!$B$118) -> 0 | D67: =IF(C67=0,0,C67*$P$8) -> 0 | K67: Eau d'alimentation vers d'autres chaudières
B68: Autres données | H68: Gaz naturel | K68: =K62+M54-I72 -> 0
B69: Quantité de fumées sèches produite | C69: =IF('Entrée de données'!$F$21<1,0,'Bilan_1 EE'!$E$41) -> 0 | D69: =IF(C69=0,0,C69*$P$6) -> 0 | F69: =C64 -> 0 | H69: =C50 -> 0
B70: Quantité de fumées humides produite | C70: =IF('Entrée de données'!$F$21<1,0,'Bilan_1 EE'!$E$40) -> 0 | D70: =IF(C70=0,0,C70*$P$6) -> 0 | F70: =C65 -> 0
B71: Enthalpie de l'eau saturée - Purge | C71: =IF('Entrée de données'!$F$21<1,0,'Bilan_1 EE'!$B$59) -> 0 | D71: =IF(C71=0,0,C71*$P$10) -> 0 | I71: Eau d'alimentation
B72: Enthalpie de la vapeur produite | C72: =IF('Entrée de données'!$F$21<1,0,'Bilan_1 EE'!$B$58) -> 0 | D72: =IF(C72=0,0,C72*$P$10) -> 0 | I72: =C55+C56 -> 0
E74: Schéma adapté de GERIAP:
E75: http://www.energyefficiencyasia.org/docs/tools/training_materials/energy_equipment/Boilers%20and%20thermic%20fluid%20heaters.ppt
B78: Résultats — Chaudière 2 | E78: Résultats - Chaudière # 2
C81: Données en unités internationales | D81: Données en unités impériales
B82: Caractéristiques de la chaudière | F82: =C98 -> 0
B83: Type de chaudière | C83: =IF('Entrée de données'!$F$21<2,0,'Bilan_2 EE'!$C$3) -> 0 | D83: =IF(C83=0,0,C83) -> 0
B84: Puissance maximale de production de vapeur de la chaudière | C84: =IF('Entrée de données'!$F$21<2,0,'Bilan_2 EE'!$B$7) -> 0 | D84: =IF(C84=0,0,C84*$P$5) -> 0
B85: Puissance du brûleur de la chaudière en opération | C85: =IF('Entrée de données'!$F$21<2,0,'Bilan_2 EE'!$B$29) -> 0 | D85: =IF(C85=0,0,C85*$P$5) -> 0 | J85: Pertes humides et sèches
B86: Alimentation en gaz naturel | C86: =IF('Entrée de données'!$F$21<2,0,'Bilan_2 EE'!$B$31) -> 0 | D86: =IF(C86=0,0,C86*$P$7) -> 0 | J86: =C87 -> 0
B87: Pertes par les fumées (% de l'énergie au brûleur) | C87: =IF('Entrée de données'!$F$21<2,0,'Bilan_2 EE'!$B$19) -> 0 | D87: =IF(C87=0,0,C87) -> 0
B88: Efficacité de combustion | C88: =IF('Entrée de données'!$F$21<2,0,C90+C89) -> 0 | D88: =C88 -> 0
B89: Pertes par radiation et par convection (% de l'énergie au brûleur) | C89: =IF('Entrée de données'!$F$21<2,0,'Bilan_2 EE'!$B$23) -> 0 | D89: =IF(C89=0,0,C89) -> 0 | J89: Pertes de vapeur | M89: Eau d'appoint
B90: Efficacité de chauffe (% de l'énergie au brûleur) | C90: =IF('Entrée de données'!$F$21<2,0,'Bilan_2 EE'!$B$26) -> 0 | D90: =IF(C90=0,0,C90) -> 0 | J90: =$C$38 -> 0 | M90: =$C$25 -> 0
B91: Alimentation d'eau d'appoint | C91: =IF('Entrée de données'!$F$21<2,0,'Bilan_2 EE'!$B$70) -> 0 | D91: =IF(C91=0,0,C91*$P$6) -> 0
B92: Retour de condensat | C92: =IF('Entrée de données'!$F$21<2,0,'Bilan_2 EE'!$B$72) -> 0 | D92: =IF(C92=0,0,C92*$P$6) -> 0
I93: =$C$36-H98 -> 0
B95: Pression manométrique de la vapeur produite | C95: =IF('Entrée de données'!$F$21<2,0,'Bilan_2 EE'!$B$56) -> 0 | D95: =IF(C95=0,0,C95*$P$9) -> 0
B96: Type de vapeur produite | C96: =IF('Entrée de données'!$F$21<2,0,IF('Entrée de données'!$D$41=1,"Vapeur saturée","Vapeur surchauffée")) -> 0 | D96: =IF(C96=0,0,C96) -> 0
B97: Quantité totale de vapeur produite par la chaudière | C97: =IF('Entrée de données'!$F$21<2,0,C98+C99) -> 0 | D97: =IF(C97=0,0,C97*$P$6) -> 0 | K97: Retour de condensat
B98: Quantité de vapeur disponible pour utilisation | C98: =IF('Entrée de données'!$F$21<2,0,'Bilan_2 EE'!$B$87) -> 0 | D98: =IF(C98=0,0,C98*$P$6) -> 0 | H98: =C99 -> 0 | K98: =$C$26 -> 0
B99: Quantité de vapeur alimentée au dégazeur | C99: =IF('Entrée de données'!$F$21<2,0,'Bilan_2 EE'!$B$106) -> 0 | D99: =IF(C99=0,0,C99*$P$6) -> 0
B100: Pertes d'eau par la purge | C100: =IF('Entrée de données'!$F$21<2,0,'Bilan_2 EE'!$B$77) -> 0 | D100: =IF(C100=0,0,C100*$P$6) -> 0
B101: Pertes d'énergie par la purge | C101: =IF('Entrée de données'!$F$21<2,0,'Bilan_2 EE'!$B$82) -> 0 | D101: =IF(C101=0,0,C101) -> 0 | E101: =C89 -> 0
B102: Efficacité de génération de vapeur utile | C102: =IF('Entrée de données'!$F$21<2,0,'Bilan_2 EE'!$B$118) -> 0 | D102: =IF(C102=0,0,C102) -> 0
B103: Ratio gaz naturel/vapeur | C103: =IF('Entrée de données'!$F$21<2,0,'Bilan_2 EE'!$B$119) -> 0 | D103: =IF(C103=0,0,C103*$P$8) -> 0 | K103: Eau d'alimentation vers d'autres chaudières
B104: Autres données | H104: Gaz naturel | K104: =K98+M90-I108 -> 0
B105: Quantité de fumées sèches produite | C105: =IF('Entrée de données'!$F$21<2,0,'Bilan_2 EE'!$E$41) -> 0 | D105: =IF(C105=0,0,C105*$P$6) -> 0 | F105: =C100 -> 0 | H105: =C86 -> 0
B106: Quantité de fumées humides produite | C106: =IF('Entrée de données'!$F$21<2,0,'Bilan_2 EE'!$E$40) -> 0 | D106: =IF(C106=0,0,C106*$P$6) -> 0 | F106: =C101 -> 0
B107: Enthalpie de l'eau saturée - Purge | C107: =IF('Entrée de données'!$F$21<2,0,'Bilan_2 EE'!$B$59) -> 0 | D107: =IF(C107=0,0,C107*$P$10) -> 0 | I107: Eau d'alimentation
B108: Enthalpie de la vapeur produite | C108: =IF('Entrée de données'!$F$21<2,0,'Bilan_2 EE'!$B$58) -> 0 | D108: =IF(C108=0,0,C108*$P$10) -> 0 | I108: =C91+C92 -> 0
E110: Schéma adapté de GERIAP:
E111: http://www.energyefficiencyasia.org/docs/tools/training_materials/energy_equipment/Boilers%20and%20thermic%20fluid%20heaters.ppt
B114: Résultats — Chaudière 3 | E114: Résultats - Chaudière # 3
C117: Données en unités internationales | D117: Données en unités impériales
B118: Caractéristiques de la chaudière | F118: =C134 -> 0
B119: Type de chaudière | C119: =IF('Entrée de données'!$F$21<3,0,'Bilan_3 EE'!$C$3) -> 0 | D119: =IF(C119=0,0,C119) -> 0
B120: Puissance maximale de production de vapeur de la chaudière | C120: =IF('Entrée de données'!$F$21<3,0,'Bilan_3 EE'!$B$7) -> 0 | D120: =IF(C120=0,0,C120*$P$5) -> 0
B121: Puissance du brûleur de la chaudière en opération | C121: =IF('Entrée de données'!$F$21<3,0,'Bilan_3 EE'!$B$29) -> 0 | D121: =IF(C121=0,0,C121*$P$5) -> 0 | J121: Pertes humides et sèches
B122: Alimentation en gaz naturel | C122: =IF('Entrée de données'!$F$21<3,0,'Bilan_3 EE'!$B$31) -> 0 | D122: =IF(C122=0,0,C122*$P$7) -> 0 | J122: =C123 -> 0
B123: Pertes par les fumées (% de l'énergie au brûleur) | C123: =IF('Entrée de données'!$F$21<3,0,'Bilan_3 EE'!$B$19) -> 0 | D123: =IF(C123=0,0,C123) -> 0
B124: Efficacité de combustion | C124: =IF('Entrée de données'!$F$21<3,0,C126+C125) -> 0 | D124: =C124 -> 0
B125: Pertes par radiation et par convection (% de l'énergie au brûleur) | C125: =IF('Entrée de données'!$F$21<3,0,'Bilan_3 EE'!$B$23) -> 0 | D125: =IF(C125=0,0,C125) -> 0 | J125: Pertes de vapeur | M125: Eau d'appoint
B126: Efficacité de chauffe (% de l'énergie au brûleur) | C126: =IF('Entrée de données'!$F$21<3,0,'Bilan_3 EE'!$B$26) -> 0 | D126: =IF(C126=0,0,C126) -> 0 | J126: =$C$38 -> 0 | M126: =$C$25 -> 0
B127: Alimentation d'eau d'appoint | C127: =IF('Entrée de données'!$F$21<3,0,'Bilan_3 EE'!$B$70) -> 0 | D127: =IF(C127=0,0,C127*$P$6) -> 0
B128: Retour de condensat | C128: =IF('Entrée de données'!$F$21<3,0,'Bilan_3 EE'!$B$72) -> 0 | D128: =IF(C128=0,0,C128*$P$6) -> 0
I129: =$C$36-H134 -> 0
B131: Pression manométrique de la vapeur produite | C131: =IF('Entrée de données'!$F$21<3,0,'Bilan_3 EE'!$B$56) -> 0 | D131: =IF(C131=0,0,C131*$P$9) -> 0
B132: Type de vapeur produite | C132: =IF('Entrée de données'!$F$21<3,0,IF('Entrée de données'!$E$41=1,"Vapeur saturée","Vapeur surchauffée")) -> 0 | D132: =IF(C132=0,0,C132) -> 0
B133: Quantité totale de vapeur produite par la chaudière | C133: =IF('Entrée de données'!$F$21<3,0,C134+C135) -> 0 | D133: =IF(C133=0,0,C133*$P$6) -> 0 | K133: Retour de condensat
B134: Quantité de vapeur disponible pour utilisation | C134: =IF('Entrée de données'!$F$21<3,0,'Bilan_3 EE'!$B$87) -> 0 | D134: =IF(C134=0,0,C134*$P$6) -> 0 | H134: =C135 -> 0 | K134: =$C$26 -> 0
B135: Quantité de vapeur alimentée au dégazeur | C135: =IF('Entrée de données'!$F$21<3,0,'Bilan_3 EE'!$B$106) -> 0 | D135: =IF(C135=0,0,C135*$P$6) -> 0
B136: Pertes d'eau par la purge | C136: =IF('Entrée de données'!$F$21<3,0,'Bilan_3 EE'!$B$77) -> 0 | D136: =IF(C136=0,0,C136*$P$6) -> 0
B137: Pertes d'énergie par la purge | C137: =IF('Entrée de données'!$F$21<3,0,'Bilan_3 EE'!$B$82) -> 0 | D137: =IF(C137=0,0,C137) -> 0 | E137: =C125 -> 0
B138: Efficacité de génération de vapeur utile | C138: =IF('Entrée de données'!$F$21<3,0,'Bilan_3 EE'!$B$118) -> 0 | D138: =IF(C138=0,0,C138) -> 0
B139: Ratio gaz naturel/vapeur | C139: =IF('Entrée de données'!$F$21<3,0,'Bilan_3 EE'!$B$119) -> 0 | D139: =IF(C139=0,0,C139*$P$8) -> 0 | K139: Eau d'alimentation vers d'autres chaudières
B140: Autres données | H140: Gaz naturel | K140: =K134+M126-I144 -> 0
B141: Quantité de fumées sèches produite | C141: =IF('Entrée de données'!$F$21<3,0,'Bilan_3 EE'!$E$41) -> 0 | D141: =IF(C141=0,0,C141*$P$6) -> 0 | F141: =C136 -> 0 | H141: =C122 -> 0
B142: Quantité de fumées humides produite | C142: =IF('Entrée de données'!$F$21<3,0,'Bilan_3 EE'!$E$40) -> 0 | D142: =IF(C142=0,0,C142*$P$6) -> 0 | F142: =C137 -> 0
B143: Enthalpie de l'eau saturée - Purge | C143: =IF('Entrée de données'!$F$21<3,0,'Bilan_3 EE'!$B$59) -> 0 | D143: =IF(C143=0,0,C143*$P$10) -> 0 | I143: Eau d'alimentation
B144: Enthalpie de la vapeur produite | C144: =IF('Entrée de données'!$F$21<3,0,'Bilan_3 EE'!$B$58) -> 0 | D144: =IF(C144=0,0,C144*$P$10) -> 0 | I144: =C127+C128 -> 0
E146: Schéma adapté de GERIAP:
E147: http://www.energyefficiencyasia.org/docs/tools/training_materials/energy_equipment/Boilers%20and%20thermic%20fluid%20heaters.ppt
B150: Résultats — Chaudière 4 | E150: Résultats - Chaudière # 4
C153: Données en unités internationales | D153: Données en unités impériales
B154: Caractéristiques de la chaudière | F154: =C170 -> 0
B155: Type de chaudière | C155: =IF('Entrée de données'!$F$21<4,0,'Bilan_4 EE'!$C$3) -> 0 | D155: =IF(C155=0,0,C155) -> 0
B156: Puissance maximale de production de vapeur de la chaudière | C156: =IF('Entrée de données'!$F$21<4,0,'Bilan_4 EE'!$B$7) -> 0 | D156: =IF(C156=0,0,C156*$P$5) -> 0
B157: Puissance du brûleur de la chaudière en opération | C157: =IF('Entrée de données'!$F$21<4,0,'Bilan_4 EE'!$B$29) -> 0 | D157: =IF(C157=0,0,C157*$P$5) -> 0 | J157: Pertes humides et sèches
B158: Alimentation en gaz naturel | C158: =IF('Entrée de données'!$F$21<4,0,'Bilan_4 EE'!$B$31) -> 0 | D158: =IF(C158=0,0,C158*$P$7) -> 0 | J158: =C159 -> 0
B159: Pertes par les fumées (% de l'énergie au brûleur) | C159: =IF('Entrée de données'!$F$21<4,0,'Bilan_4 EE'!$B$19) -> 0 | D159: =IF(C159=0,0,C159) -> 0
B160: Efficacité de combustion | C160: =IF('Entrée de données'!$F$21<4,0,C162+C161) -> 0 | D160: =C160 -> 0
B161: Pertes par radiation et par convection (% de l'énergie au brûleur) | C161: =IF('Entrée de données'!$F$21<4,0,'Bilan_4 EE'!$B$23) -> 0 | D161: =IF(C161=0,0,C161) -> 0 | J161: Pertes de vapeur | M161: Eau d'appoint
B162: Efficacité de chauffe (% de l'énergie au brûleur) | C162: =IF('Entrée de données'!$F$21<4,0,'Bilan_4 EE'!$B$26) -> 0 | D162: =IF(C162=0,0,C162) -> 0 | J162: =$C$38 -> 0 | M162: =$C$25 -> 0
B163: Alimentation d'eau d'appoint | C163: =IF('Entrée de données'!$F$21<4,0,'Bilan_4 EE'!$B$70) -> 0 | D163: =IF(C163=0,0,C163*$P$6) -> 0
B164: Retour de condensat | C164: =IF('Entrée de données'!$F$21<4,0,'Bilan_4 EE'!$B$72) -> 0 | D164: =IF(C164=0,0,C164*$P$6) -> 0
I165: =$C$36-H170 -> 0
B167: Pression manométrique de la vapeur produite | C167: =IF('Entrée de données'!$F$21<4,0,'Bilan_4 EE'!$B$56) -> 0 | D167: =IF(C167=0,0,C167*$P$9) -> 0
B168: Type de vapeur produite | C168: =IF('Entrée de données'!$F$21<4,0,IF('Entrée de données'!$F$41=1,"Vapeur saturée","Vapeur surchauffée")) -> 0 | D168: =IF(C168=0,0,C168) -> 0
B169: Quantité totale de vapeur produite par la chaudière | C169: =IF('Entrée de données'!$F$21<4,0,C170+C171) -> 0 | D169: =IF(C169=0,0,C169*$P$6) -> 0 | K169: Retour de condensat
B170: Quantité de vapeur disponible pour utilisation | C170: =IF('Entrée de données'!$F$21<4,0,'Bilan_4 EE'!$B$87) -> 0 | D170: =IF(C170=0,0,C170*$P$6) -> 0 | H170: =C171 -> 0 | K170: =$C$26 -> 0
B171: Quantité de vapeur alimentée au dégazeur | C171: =IF('Entrée de données'!$F$21<4,0,'Bilan_4 EE'!$B$106) -> 0 | D171: =IF(C171=0,0,C171*$P$6) -> 0
B172: Pertes d'eau par la purge | C172: =IF('Entrée de données'!$F$21<4,0,'Bilan_4 EE'!$B$77) -> 0 | D172: =IF(C172=0,0,C172*$P$6) -> 0
B173: Pertes d'énergie par la purge | C173: =IF('Entrée de données'!$F$21<4,0,'Bilan_4 EE'!$B$82) -> 0 | D173: =IF(C173=0,0,C173) -> 0 | E173: =C161 -> 0
B174: Efficacité de génération de vapeur utile | C174: =IF('Entrée de données'!$F$21<4,0,'Bilan_4 EE'!$B$118) -> 0 | D174: =IF(C174=0,0,C174) -> 0
B175: Ratio gaz naturel/vapeur | C175: =IF('Entrée de données'!$F$21<4,0,'Bilan_4 EE'!$B$119) -> 0 | D175: =IF(C175=0,0,C175*$P$8) -> 0 | K175: Eau d'alimentation vers d'autres chaudières
B176: Autres données | H176: Gaz naturel | K176: =K170+M162-I180 -> 0
B177: Quantité de fumées sèches produite | C177: =IF('Entrée de données'!$F$21<4,0,'Bilan_4 EE'!$E$41) -> 0 | D177: =IF(C177=0,0,C177*$P$6) -> 0 | F177: =C172 -> 0 | H177: =C158 -> 0
B178: Quantité de fumées humides produite | C178: =IF('Entrée de données'!$F$21<4,0,'Bilan_4 EE'!$E$40) -> 0 | D178: =IF(C178=0,0,C178*$P$6) -> 0 | F178: =C173 -> 0
B179: Enthalpie de l'eau saturée - Purge | C179: =IF('Entrée de données'!$F$21<4,0,'Bilan_4 EE'!$B$59) -> 0 | D179: =IF(C179=0,0,C179*$P$10) -> 0 | I179: Eau d'alimentation
B180: Enthalpie de la vapeur produite | C180: =IF('Entrée de données'!$F$21<4,0,'Bilan_4 EE'!$B$58) -> 0 | D180: =IF(C180=0,0,C180*$P$10) -> 0 | I180: =C163+C164 -> 0
E182: Schéma adapté de GERIAP:
E183: http://www.energyefficiencyasia.org/docs/tools/training_materials/energy_equipment/Boilers%20and%20thermic%20fluid%20heaters.ppt

Sheet Résultats- Mesures d'EE
B2: — Résultats — Économies d'énergie suite à l'application des mesures d'efficacité énergétique
B5: Note: Les résultats présentés dans cette section reflètent l'interaction des mesures d'efficacité énergétique sélectionnées.
B6: Projet réalisé par
B7: Nom de l'ingénieur | C7: =IF(ISBLANK('Entrée de données'!C7:E7),"",'Entrée de données'!C7:E7) -> 
B8: Nom de la firme | C8: =IF(ISBLANK('Entrée de données'!C8:E8),"",'Entrée de données'!C8:E8) -> 
B10: Informations sur le client
B11: Nom de la compagnie | C11: =IF(ISBLANK('Entrée de données'!C11:E11),"",'Entrée de données'!C11:E11) -> 
B12: Site | C12: =IF(ISBLANK('Entrée de données'!C12),"",'Entrée de données'!C12) -> 
B13: Adresse du site | C13: =IF(ISBLANK('Entrée de données'!C13),"",'Entrée de données'!C13) -> 
B14: Personne-ressource | C14: =IF(ISBLANK('Entrée de données'!C14),"",'Entrée de données'!C14) -> 
B15: Téléphone | C15: =IF(ISBLANK('Entrée de données'!C15),"",'Entrée de données'!C15) -> 
B16: Date du rapport | C16: =IF(ISBLANK('Entrée de données'!C16),"",'Entrée de données'!C16) -> 
B19: Consommation initiale
C20: Chaudière 1 | D20: Chaudière 2 | E20: Chaudière 3 | F20: Chaudière 4
B21: Consommation d'énergie initiale (kWh) | C21: =IF('Entrée de données'!F21<1,"",Bilan_1!B29*'Entrée de données'!C38) ->  | D21: =IF('Entrée de données'!F21<2,"",Bilan_2!B29*'Entrée de données'!D38) ->  | E21: =IF('Entrée de données'!F21<3,"",Bilan_3!B29*'Entrée de données'!E38) ->  | F21: =IF('Entrée de données'!F21<4,"",Bilan_4!B29*'Entrée de données'!F38) -> 
B22: Consommation initiale annuelle de gaz naturel (m3/an) | C22: =IF('Entrée de données'!F21<1,"",Bilan_1!B31*'Entrée de données'!C38) ->  | D22: =IF('Entrée de données'!F21<2,"",Bilan_2!B31*'Entrée de données'!D38) ->  | E22: =IF('Entrée de données'!F21<3,"",Bilan_3!B31*'Entrée de données'!E38) ->  | F22: =IF('Entrée de données'!F21<4,"",Bilan_4!B31*'Entrée de données'!F38) -> 
B23: =IF('Mise en forme- input'!K3="X", "Veuillez sélectionner au moins une mesure d'efficacité énergétique pour obtenir des économies d'énergie","") -> Veuillez sélectionner au moins une mesure d'efficacité énergétique pour obtenir des économies d'énergie
B25: Micro-modulation
B26: Nombre de chaudière(s) avec de la micro-modulation | C26: ='Mise en forme- input'!F10 -> 0
C27: Chaudière 1 | D27: Chaudière 2 | E27: Chaudière 3 | F27: Chaudière 4
B28: Potentiel d'économie d'énergie (kW) | C28: =IF('Mise en forme- input'!$C$10=TRUE,'Micro-modulation1 à 4'!B14,"") ->  | D28: =IF('Mise en forme- input'!$C$11=TRUE,'Micro-modulation1 à 4'!C14,"") ->  | E28: =IF('Mise en forme- input'!$C$12=TRUE,'Micro-modulation1 à 4'!D14,"") ->  | F28: =IF('Mise en forme- input'!$C$13=TRUE,'Micro-modulation1 à 4'!E14,"") -> 
B29: Potentiel annuel de récupération d'énergie (kWh) | C29: =IF('Mise en forme- input'!$C$10=TRUE,'Micro-modulation1 à 4'!B15,"") ->  | D29: =IF('Mise en forme- input'!C11=TRUE,'Micro-modulation1 à 4'!C15,"") ->  | E29: =IF('Mise en forme- input'!C12=TRUE,'Micro-modulation1 à 4'!D15,"") ->  | F29: =IF('Mise en forme- input'!C13=TRUE,'Micro-modulation1 à 4'!E15,"") -> 
B30: Potentiel d'économie annuelle de gaz naturel (m3/an) | C30: =IF('Mise en forme- input'!$C$10=TRUE,'Micro-modulation1 à 4'!B16,"") ->  | D30: =IF('Mise en forme- input'!C11=TRUE,'Micro-modulation1 à 4'!C16,"") ->  | E30: =IF('Mise en forme- input'!C12=TRUE,'Micro-modulation1 à 4'!D16,"") ->  | F30: =IF('Mise en forme- input'!C13=TRUE,'Micro-modulation1 à 4'!E16,"") -> 
B31: Potentiel total annuel
B32: Économie d'énergie - kWh | C32: =SUM(C29:F29) -> 0
B33: % d'économie d'énergie | C33: =C32/SUM($C$21:$F$21) -> 
B34: Économie de gaz naturel (m3/an) | C34: =SUM(C30:F30) -> 0
B35: % de récupération de gaz naturel | C35: =C34/SUM($C$22:$F$22) -> 
B38: Réduction du taux de purge
B39: Nombre de chaudière(s) avec une réduction du taux de purge | C39: ='Mise en forme- input'!F23 -> 0
C40: Chaudière 1 | D40: Chaudière 2 | E40: Chaudière 3 | F40: Chaudière 4
B41: Potentiel d'économie d'énergie (kW) | C41: =IF('Mise en forme- input'!C23=TRUE,'Réduction de la purge 1 à 4'!B19,"") ->  | D41: =IF('Mise en forme- input'!C24=TRUE,'Réduction de la purge 1 à 4'!C19,"") ->  | E41: =IF('Mise en forme- input'!C25=TRUE,'Réduction de la purge 1 à 4'!D19,"") ->  | F41: =IF('Mise en forme- input'!C26=TRUE,'Réduction de la purge 1 à 4'!E19,"") -> 
B42: Potentiel annuel d'économie d'énergie pour chaque cadence d'opération (kWh) | C42: =IF('Mise en forme- input'!C23=TRUE,'Réduction de la purge 1 à 4'!B20,"") ->  | D42: =IF('Mise en forme- input'!C24=TRUE,'Réduction de la purge 1 à 4'!C20,"") ->  | E42: =IF('Mise en forme- input'!C25=TRUE,'Réduction de la purge 1 à 4'!D20,"") ->  | F42: =IF('Mise en forme- input'!C26=TRUE,'Réduction de la purge 1 à 4'!E20,"") -> 
B43: Potentiel d'économie annuelle de gaz naturel pour chaque cadence d'opération (m3/an) | C43: =IF('Mise en forme- input'!C23=TRUE,'Réduction de la purge 1 à 4'!B21,"") ->  | D43: =IF('Mise en forme- input'!C24=TRUE,'Réduction de la purge 1 à 4'!C21,"") ->  | E43: =IF('Mise en forme- input'!C25=TRUE,'Réduction de la purge 1 à 4'!D21,"") ->  | F43: =IF('Mise en forme- input'!C26=TRUE,'Réduction de la purge 1 à 4'!E21,"") -> 
B44: Potentiel total annuel
B45: Économie d'énergie - kWh | C45: =SUM(C42:F42) -> 0
B46: % d'économie d'énergie | C46: =C45/SUM($C$21:$F$21) -> 
B47: Économie de gaz naturel (m3) | C47: =SUM(C43:F43) -> 0
B48: % de récupération de gaz naturel | C48: =C47/SUM($C$22:$F$22) -> 
B51: Économiseur
B52: Nombre de chaudière(s) avec un économiseur | C52: ='Mise en forme- input'!F16 -> 0
C53: Chaudière 1 | D53: Chaudière 2 | E53: Chaudière 3 | F53: Chaudière 4
B54: Potentiel de récupération d'énergie (kW) | C54: =IF('Mise en forme- input'!C16=TRUE,'Économiseurs 1 à 4 '!B21,"") ->  | D54: =IF('Mise en forme- input'!C17=TRUE,'Économiseurs 1 à 4 '!C21,"") ->  | E54: =IF('Mise en forme- input'!C18=TRUE,'Économiseurs 1 à 4 '!D21,"") ->  | F54: =IF('Mise en forme- input'!C19=TRUE,'Économiseurs 1 à 4 '!E21,"") -> 
B55: Potentiel annuel de récupération d'énergie pour chaque cadence d'opération (kWh) | C55: =IF('Mise en forme- input'!C16=TRUE,'Économiseurs 1 à 4 '!B22,"") ->  | D55: =IF('Mise en forme- input'!C17=TRUE,'Économiseurs 1 à 4 '!C22,"") ->  | E55: =IF('Mise en forme- input'!C18=TRUE,'Économiseurs 1 à 4 '!D22,"") ->  | F55: =IF('Mise en forme- input'!C19=TRUE,'Économiseurs 1 à 4 '!E22,"") -> 
B56: Potentiel d'économie annuelle de gaz naturel pour chaque modulation d'opération (m3/an) | C56: =IF('Mise en forme- input'!C16=TRUE,'Économiseurs 1 à 4 '!B23,"") ->  | D56: =IF('Mise en forme- input'!C17=TRUE,'Économiseurs 1 à 4 '!C23,"") ->  | E56: =IF('Mise en forme- input'!C18=TRUE,'Économiseurs 1 à 4 '!D23,"") ->  | F56: =IF('Mise en forme- input'!C19=TRUE,'Économiseurs 1 à 4 '!E23,"") -> 
B57: Potentiel total annuel
B58: Récupération d'énergie (kWh) | C58: =SUM(C55:F55) -> 0
B59: % de récupération d'énergie | C59: =C58/SUM($C$21:$F$21) -> 
B60: Économie de gaz naturel (m3/an) | C60: =SUM(C56:F56) -> 0
B61: % de récupération de gaz naturel | C61: =C60/SUM($C$22:$F$22) -> 
B64: Récupération de l'énergie contenue dans les purges
B65: Nombre de chaudière(s) | C65: ='Entrée de données'!F21 -> 0
B66: Type de récupération | C66: =IF('Entrée de données'!C122=1,"Production de vapeur instantannée",IF('Entrée de données'!C122=2,"Préchauffage de l'eau","Production de vapeur instantannée et préchauffage de l'eau")) -> Production de vapeur instantannée et préchauffage de l'eau
C67: Chaudière 1 | D67: Chaudière 2 | E67: Chaudière 3 | F67: Chaudière 4
B68: Potentiel de récupération d'énergie (kW) | C68: =IF('Mise en forme- input'!C6=FALSE,"",'Récupération de la purge'!B18+'Récupération de la purge'!B22) ->  | D68: =IF('Mise en forme- input'!C6=FALSE,"",IF(AND('Mise en forme- input'!C6=TRUE,C65<2),"N/A",'Récupération de la purge'!C18+'Récupération de la purge'!B22)) ->  | E68: =IF('Mise en forme- input'!C6=FALSE,"",IF(AND('Mise en forme- input'!C6=TRUE,C65<3),"N/A",'Récupération de la purge'!D18+'Récupération de la purge'!B22)) ->  | F68: =IF('Mise en forme- input'!C6=FALSE,"",IF(AND('Mise en forme- input'!C6=TRUE,C65<4),"N/A",'Récupération de la purge'!E18+'Récupération de la purge'!B22)) -> 
B69: Potentiel annuel de récupération d'énergie pour chaque cadence d'opération (kWh) | C69: =IF('Mise en forme- input'!$C$6=FALSE,"",'Récupération de la purge'!B19+'Récupération de la purge'!B23) ->  | D69: =IF('Mise en forme- input'!$C$6=FALSE,"",IF(AND('Mise en forme- input'!$C$6=TRUE,$C$65<2),"N/A",'Récupération de la purge'!C19+'Récupération de la purge'!B23)) ->  | E69: =IF('Mise en forme- input'!$C$6=FALSE,"",IF(AND('Mise en forme- input'!$C$6=TRUE,$C$65<3),"N/A",'Récupération de la purge'!D19+'Récupération de la purge'!B23)) ->  | F69: =IF('Mise en forme- input'!$C$6=FALSE,"",IF(AND('Mise en forme- input'!$C$6=TRUE,$C$65<4),"N/A",'Récupération de la purge'!E19+'Récupération de la purge'!B23)) -> 
B70: Potentiel d'économie annuelle de gaz naturel pour chaque modulation d'opération (m3/an) | C70: =IF('Mise en forme- input'!$C$6=FALSE,"",'Récupération de la purge'!B20+'Récupération de la purge'!B24) ->  | D70: =IF('Mise en forme- input'!$C$6=FALSE,"",IF(AND('Mise en forme- input'!$C$6=TRUE,$C$65<2),"N/A",'Récupération de la purge'!C20+'Récupération de la purge'!B24)) ->  | E70: =IF('Mise en forme- input'!$C$6=FALSE,"",IF(AND('Mise en forme- input'!$C$6=TRUE,$C$65<3),"N/A",'Récupération de la purge'!D20+'Récupération de la purge'!B24)) ->  | F70: =IF('Mise en forme- input'!$C$6=FALSE,"",IF(AND('Mise en forme- input'!$C$6=TRUE,$C$65<4),"N/A",'Récupération de la purge'!E20+'Récupération de la purge'!B24)) -> 
B71: Potentiel total annuel
B72: Récupération d'énergie (kWh) | C72: =SUM(C69:F69) -> 0
B73: % de récupération d'énergie | C73: =C72/SUM($C$21:$F$21) -> 
B74: Économie de gaz naturel (m3/an) | C74: =SUM(C70:F70) -> 0
B75: % de récupération de gaz naturel | C75: =C74/SUM($C$22:$F$22) -> 
B78: Récupération de l'énergie de l'évent du dégazeur
B79: Nombre de chaudière(s) | C79: ='Entrée de données'!F21 -> 0
C80: Chaudière 1 | D80: Chaudière 2 | E80: Chaudière 3 | F80: Chaudière 4
B81: Potentiel de récupération d'énergie (kW) | C81: =IF('Mise en forme- input'!$C$7=FALSE,"",'Récup. évent dégazeur 1 à 4'!B16) ->  | D81: =IF('Mise en forme- input'!$C$7=FALSE,"",IF(AND('Mise en forme- input'!$C$7=TRUE,$C$79<2),"N/A",'Récup. évent dégazeur 1 à 4'!C16)) ->  | E81: =IF('Mise en forme- input'!$C$7=FALSE,"",IF(AND('Mise en forme- input'!$C$7=TRUE,$C$79<3),"N/A",'Récup. évent dégazeur 1 à 4'!D16)) ->  | F81: =IF('Mise en forme- input'!$C$7=FALSE,"",IF(AND('Mise en forme- input'!$C$7=TRUE,$C$79<4),"N/A",'Récup. évent dégazeur 1 à 4'!E16)) -> 
B82: Potentiel annuel de récupération d'énergie pour chaque cadence d'opération (kWh) | C82: =IF('Mise en forme- input'!$C$7=FALSE,"",'Récup. évent dégazeur 1 à 4'!B17) ->  | D82: =IF('Mise en forme- input'!$C$7=FALSE,"",IF(AND('Mise en forme- input'!$C$7=TRUE,$C$79<2),"N/A",'Récup. évent dégazeur 1 à 4'!C17)) ->  | E82: =IF('Mise en forme- input'!$C$7=FALSE,"",IF(AND('Mise en forme- input'!$C$7=TRUE,$C$79<3),"N/A",'Récup. évent dégazeur 1 à 4'!D17)) ->  | F82: =IF('Mise en forme- input'!$C$7=FALSE,"",IF(AND('Mise en forme- input'!$C$7=TRUE,$C$79<4),"N/A",'Récup. évent dégazeur 1 à 4'!E17)) -> 
B83: Potentiel d'économie annuelle de gaz naturel pour chaque modulation d'opération (m3/an) | C83: =IF('Mise en forme- input'!$C$7=FALSE,"",'Récup. évent dégazeur 1 à 4'!B18) ->  | D83: =IF('Mise en forme- input'!$C$7=FALSE,"",IF(AND('Mise en forme- input'!$C$7=TRUE,$C$79<2),"N/A",'Récup. évent dégazeur 1 à 4'!C18)) ->  | E83: =IF('Mise en forme- input'!$C$7=FALSE,"",IF(AND('Mise en forme- input'!$C$7=TRUE,$C$79<3),"N/A",'Récup. évent dégazeur 1 à 4'!D18)) ->  | F83: =IF('Mise en forme- input'!$C$7=FALSE,"",IF(AND('Mise en forme- input'!$C$7=TRUE,$C$79<4),"N/A",'Récup. évent dégazeur 1 à 4'!E18)) -> 
B84: Potentiel total annuel
B85: Récupération d'énergie (kWh) | C85: =SUM(C82:F82) -> 0
B86: % de récupération d'énergie | C86: =C85/SUM($C$21:$F$21) -> 
B87: Économie de gaz naturel (m3/an) | C87: =SUM(C83:F83) -> 0
B88: % de récupération de gaz naturel | C88: =C87/SUM($C$22:$F$22) -> 
B90: Énergir ne peut être tenu responsable des dommages, qu’ils soient directs ou indirects découlant des résultats des outils de calculs. L’utilisateur demeure responsable de s’assurer de l’exactitude des données qu’il utilise. Les résultats se trouvant dans le chiffrier de calculs sont fournis au client à titre indicatif seulement et ne peuvent en aucun cas être interprétés comme une garantie d’efficacité ou une représentation en ce sens de Énergir. Énergir, ses employés, mandataires et représentants ne peuvent donc être tenus responsables advenant un écart entre cette estimation et la performance réelle de la centrale thermique du client. Version 2 - Novembre 2018

Sheet Micro-modulation1 à 4 (hidden)
A1: Calculateur d'économie d'énergie par la mise en place d'un système de micro-modulation (Calculateur 1)
A2: Objectif: Fournir un calculateur simplifié permettant d'estimer les économies d'énergie envisageables par la mise en place d'un système de micro-modulation de la chaudière. Le calculateur est essentiellement basé sur l'amélioration de l'efficacité de chauffe de la chaudière après implantation d'un système de micro-modulation.
A3: Instructions: L'utilisateur devra fournir les informations dans la section Entrée de données (cellules foncées), pour chaque cadence d'opération de la chaudière.
A4: Entrée de données
A5: Données de procédé
B6: Chaudière 1 | C6: Chaudière 2 | D6: Chaudière 3 | E6: Chaudière 4
A7: Puissance du brûleur de la chaudière en opération (kW) | B7: ='Bilan_1 EE'!B29 ->  | C7: ='Bilan_2 EE'!B29 ->  | D7: ='Bilan_3 EE'!B29 ->  | E7: ='Bilan_4 EE'!B29 -> 
A8: Efficacité de combustion (TE) de la chaudière - Avant micro-modulation (%) | B8: =Comb_1!G2 -> 0.8275670996 | C8: =Comb_2!G2 -> 0.8275670996 | D8: =Comb_3!G2 -> 0.8275670996 | E8: =Comb_4!G2 -> 0.8275670996
A9: Efficacité de combustion de la chaudière - Après micro-modulation (%) | B9: =IF('Mise en forme- input'!C10=FALSE,B8,'Entrée de données'!C87) -> 0.8275670996 | C9: =IF('Mise en forme- input'!C11=FALSE,C8,'Entrée de données'!D87) -> 0.8275670996 | D9: =IF('Mise en forme- input'!C12=FALSE,D8,'Entrée de données'!E87) -> 0.8275670996 | E9: =IF('Mise en forme- input'!C13=FALSE,E8,'Entrée de données'!F87) -> 0.8275670996
A10: Nombre d'heures d'opération annuelles | B10: ='Entrée de données'!C38 -> 0 | C10: ='Entrée de données'!D38 -> 0 | D10: ='Entrée de données'!E38 -> 0 | E10: ='Entrée de données'!F38 -> 0
A11: Résultats - Potentiel d'économie d'énergie
B13: Cadence d'opération 1 | C13: Cadence d'opération 2 | D13: Cadence d'opération 3 | E13: Cadence d'opération 4
A14: Potentiel d'économie d'énergie (kW) | B14: =ROUND(B7*(1-B8/B9),2) ->  | C14: =ROUND(C7*(1-C8/C9),2) ->  | D14: =ROUND(D7*(1-D8/D9),2) ->  | E14: =ROUND(E7*(1-E8/E9),2) -> 
A15: Potentiel annuel de récupération d'énergie (kWh) | B15: =B14*B10 ->  | C15: =C14*C10 ->  | D15: =D14*D10 ->  | E15: =E14*E10 -> 
A16: Potentiel d'économie annuelle de gaz naturel (m3/an) | B16: =ROUND(B14*B10*3600/(1000*37.89),0) ->  | C16: =ROUND(C14*C10*3600/(1000*37.89),0) -> 
A22: Gaz Métro ne peut être tenu responsable des dommages, qu’ils soient directs ou indirects découlant des résultats des outilsde calculs. L’utilisateur demeure responsable de s’assurer de l’exactitude des données qu’il utilise. Les résultats se trouvant dans le chiffrier de calculs sont fournis au client à titre indicatif seulement et ne peuvent en aucun cas être interprétés comme une garantie d’efficacité ou une représentation en ce sens de Gaz Métro. Gaz Métro, ses employés, mandataires et représentants ne peuvent donc être tenus responsables advenant un écart entre cette estimation et la performance réelle de la chaufferie du client. Version 1 - Septembre 2014

Sheet Réduction de la purge 1 à 4 (hidden)
A1: Calculateur d'économie d'énergie par la mise en place d'un système de réduction de la purge (Calculateur 2)
A2: Objectif: Fournir un calculateur simplifié permettant d'estimer les économies d'énergie envisageables par la mise en place d'un système de réduction de la quantité de purge extraite de la chaudière. | J2: Chaudière 1 | K2: Chaudière 2 | L2: Chaudière 3 | M2: Chaudière 4
A3: Instructions: L'utilisateur devra fournir les informations dans la section Entrée de données (cellules bleues), pour chaque cadence d'opération de la chaudière. Le calculateur de bilan d'énergie peut être utilisé pour obtenir la quantité de vapeur produite, et l'enthalpie de l'eau saturée, en plus de l'efficacité de chauffe. L'utilisateur devra toutefois déterminer le pourcentage de purge envisagé par l'implantation de la mesure d'économie d'énergie et la température de l'eau d'appoint alimentée à la chaudière. | I3: Économie d'eau (kg/h) | J3: =B7/(1-B8)-B7/(1-B9) -> 0 | K3: =C7/(1-C8)-C7/(1-C9) -> 0 | L3: =D7/(1-D8)-D7/(1-D9) -> 0 | M3: 0
A4: Entrée de données
A5: Données de procédé
B6: Chaudière 1 | C6: Chaudière 2 | D6: Chaudière 3 | E6: Chaudière 4
A7: Quantité totale de vapeur produite par la chaudière (kg/h) | B7: =Bilan_1!B87 -> 0 | C7: =Bilan_2!B87 -> 0 | D7: =Bilan_3!B87 -> 0 | E7: =Bilan_4!B87 -> 0
A8: % de purgeAvant réduction | B8: =('Entrée de données'!$C$52-1)/100 -> 0 | C8: =('Entrée de données'!$D$52-1)/100 -> 0 | D8: =('Entrée de données'!$E$52-1)/100 -> 0 | E8: =('Entrée de données'!$F$52-1)/100 -> 0
A9: % de purgeAprès réduction | B9: =IF('Mise en forme- input'!C23=FALSE,B8,'Entrée de données'!C100) -> 0 | C9: =IF('Mise en forme- input'!C24=FALSE,C8,'Entrée de données'!D100) -> 0 | D9: =IF('Mise en forme- input'!C25=FALSE,D8,'Entrée de données'!E100) -> 0 | E9: =IF('Mise en forme- input'!C26=FALSE,E8,'Entrée de données'!F100) -> 0
A10: Enthalpie eau saturée (à la purge) (kJ/kg) | B10: =Bilan_1!B59 -> 418.88358 | C10: =Bilan_2!B59 -> 418.88358 | D10: =Bilan_3!B59 -> 418.88358 | E10: =Bilan_4!B59 -> 418.88358
A11: Température de l'eau d'appoint alimentée à la chaudière (°C) | B11: ='Entrée de données'!C48 -> 0 | C11: ='Entrée de données'!D48 -> 0 | D11: ='Entrée de données'!E48 -> 0 | E11: ='Entrée de données'!F48 -> 0
A12: Validation du pourcentage de purge (ne pas compléter cette cellule) | B12: =IF(B9>B8,"Le pourcentage de purge après la réduction est supérieur à celui avant la réduction. Il n'est pas possible de calculer d'économies d'énergie","Le pourcentage de purge après réduction est valide") -> Le pourcentage de purge après réduction est valide | C12: =IF(C9>C8,"Le pourcentage de purge après la réduction est supérieur à celui avant la réduction. Il n'est pas possible de calculer d'économies d'énergie","Le pourcentage de purge après réduction est valide") -> Le pourcentage de purge après réduction est valide | D12: Le pourcentage de purge après réduction est valide | E12: Le pourcentage de purge après réduction est valide
A13: Nombre d'heures d'opération annuelles | B13: ='Entrée de données'!C38 -> 0 | C13: ='Entrée de données'!D38 -> 0 | D13: ='Entrée de données'!E38 -> 0 | E13: ='Entrée de données'!F38 -> 0
A14: Puissance du brûleur de la chaudière en opération (kW) | B14: ='Bilan_1 EE'!B29 ->  | C14: ='Bilan_2 EE'!B29 ->  | D14: ='Bilan_3 EE'!B29 ->  | E14: ='Bilan_4 EE'!B29 -> 
A15: Efficacité de chauffe de la chaudière (%) | B15: ='Bilan_1 EE'!B26 ->  | C15: ='Bilan_2 EE'!B26 ->  | D15: ='Bilan_3 EE'!B26 ->  | E15: ='Bilan_4 EE'!B26 -> 
A16: Résultats - Potentiel d'économie d'énergie
B18: Chaudière 1 | C18: Chaudière 2 | D18: Chaudière 3 | E18: Chaudière 4
A19: Potentiel d'économie d'énergie (kW) | B19: =ROUND(J3*(B10-4.18*B11)/3600,2) -> 0 | C19: =ROUND(K3*(C10-4.18*C11)/3600,2) -> 0 | D19: =ROUND(L3*(D10-4.18*D11)/3600,2) -> 0 | E19: =ROUND(M3*(E10-4.18*E11)/3600,2) -> 0
A20: Potentiel annuel d'économie d'énergie pour chaque cadence d'opération (kWh) | B20: =IF(B19="Erreur","Erreur",B19*B13) -> 0 | C20: =IF(C19="Erreur","Erreur",C19*C13) -> 0 | D20: 0 | E20: 0
A21: Potentiel d'économie annuelle de gaz naturel pour chaque cadence d'opération (m3/an) | B21: =IF(B19="Erreur","Erreur",ROUND(B19*B13*3600/(1000*37.89*B15),0)) ->  | C21: =IF(C19="Erreur","Erreur",ROUND(C19*C13*3600/(1000*37.89*C15),0)) ->  | D21: =IF(D19="Erreur","Erreur",ROUND(D19*D13*3600/(1000*37.89*D15),0)) -> 
A27: Gaz Métro ne peut être tenu responsable des dommages, qu’ils soient directs ou indirects découlant des résultats des outilsde calculs. L’utilisateur demeure responsable de s’assurer de l’exactitude des données qu’il utilise. Les résultats se trouvant dans le chiffrier de calculs sont fournis au client à titre indicatif seulement et ne peuvent en aucun cas être interprétés comme une garantie d’efficacité ou une représentation en ce sens de Gaz Métro. Gaz Métro, ses employés, mandataires et représentants ne peuvent donc être tenus responsables advenant un écart entre cette estimation et la performance réelle de la chaufferie du client. Version 1 - Septembre 2014

Sheet Économiseurs 1 à 4 (hidden)
A1: Calculateur d'économie d'énergie par la mise en place d'un économiseur (Calculateur 3)
A2: Objectif: Fournir un calculateur simplifié permettant d'estimer les économies d'énergie envisageables par la mise en place d'un économiseur pour récupérer l'énergie perdue par les fumées de la chaudière. Le calculateur permet de calculer le potentiel de récupération d'énergie pour un économiseur à condensation ou non-condensant. | H2: Energie non condensant
A3: Instructions: L'utilisateur devra fournir les informations dans la section Entrée de données (cellules bleues), pour chaque cadence d'opération de la chaudière. Il est aussi nécessaire de sélectionner le type d'économiseur retenu pour l'estimation du potentiel de récupération de chaleur. La plupart des données peuvent être obtenues partir du calculateur de bilan d'énergie. Pour les économiseurs non-condensant, la température de sortie ne peut être inférieure à 121 °C, tandis qu'elle doit ête inférieure à cette valeur pour les économiseurs à condensation. Ce critère doit être respecté pour chaque cadence d'opération. | H3: Energir condansant
A4: Entrée de données | J4: Cadence d'opération 1 | K4: Cadence d'opération 2 | L4: Cadence d'opération 3 | M4: Cadence d'opération 4 | R4: Type d'économiseur | S4: Non-condensant
A5: Données de procédé | I5: mVapeur d'eau_sortie chaudière (kg/h) | J5: =B9-B8 ->  | K5: =C9-C8 ->  | S5: À condensation
B6: Chaudière 1 | C6: Chaudière 2 | D6: Chaudière 3 | E6: Chaudière 4 | I6: mVapeur d'eau_après condensation (kg/h) | J6: =J5*(1-0.35) ->  | K6: =K5*(1-0.35) -> 
A7: Sélectionner le type d'économiseur (Non-condensant/À condensation) | B7: ='Entrée de données'!C111 -> 1 | C7: ='Entrée de données'!D111 -> 1 | D7: ='Entrée de données'!E111 -> 1 | E7: ='Entrée de données'!F111 -> 1 | I7: mair humide_après condensation (kg/h) | J7: =B8+J6 ->  | K7: =C8+K6 ->  | L7: =D8+L6 ->  | M7: =E8+M6 -> 
A8: Quantité de fumées sèches (kg/h) | B8: ='Bilan_1 EE'!E41 ->  | C8: ='Bilan_2 EE'!E41 ->  | D8: ='Bilan_3 EE'!E41 ->  | E8: ='Bilan_4 EE'!E41 ->  | I8: Ratio vapeur d'eau/air sec - fumées, x (kg/kg) | J8: =J5/B8 ->  | K8: =K5/C8 ->  | L8: =L5/D8 ->  | M8: =M5/E8 -> 
A9: Quantité de fumées humides (kg/h) | B9: ='Bilan_1 EE'!E40 ->  | C9: ='Bilan_2 EE'!E40 ->  | D9: ='Bilan_3 EE'!E40 ->  | E9: ='Bilan_4 EE'!E40 ->  | I9: Ratio vapeur d'eau/air sec - fumées asséchées après condensation, x (kg/kg) | J9: =J6/B8 ->  | K9: =K6/C8 ->  | L9: =L6/D8 ->  | M9: =M6/E8 -> 
A10: Validation de la quantité de fumées sèches par rapport à celle de fumées humides (ne pas compléter cette cellule) | B10: =IF(B8<B9,"Les quantités de fumées indiquées sont valides","La quantité de fumées sèches ne peut être supérieure ou égale à la quantité de fumées humides") ->  | C10: =IF(C8<C9,"Les quantités de fumées indiquées sont valides","La quantité de fumées sèches ne peut être supérieure ou égale à la quantité de fumées humides") ->  | I10: Enthalpie spécifique air sec, Cpairsec (kJ/kg.°C) | J10: 1.005 | K10: 1.005 | L10: 1.005 | M10: 1.005
A11: T° des fumées à la sortie de la chaudière (°C) | B11: =IF('Mise en forme- input'!C3=TRUE,'Comb_1 (micro)'!T7,'Entrée de données'!C34) -> 200 | C11: =IF('Mise en forme- input'!C11=TRUE,'Comb_2 (micro)'!T7,'Entrée de données'!D34) -> 200 | D11: =IF('Mise en forme- input'!C12=TRUE,'Comb_3 (micro)'!T7,'Entrée de données'!E34) -> 200 | E11: =IF('Mise en forme- input'!C13=TRUE,'Comb_4 (micro)'!T7,'Entrée de données'!F34) -> 200 | I11: Enthalpie de l'air humide à la sortie de la chaudière (kJ/kg) | J11: =IF(B11<99.63,1.005*B11+J8*(1.84*B11+2501),J10*B11+J8*$P$22) ->  | K11: =IF(C11<99.63,K10*C11+K8*(1.84*C11+2501),K10*C11+K8*$P$42) ->  | L11: =IF(D11<99.63,L10*D11+L8*(1.84*D11+2501),L10*D11+L8*$P$53) ->  | M11: =IF(E11<99.63,M10*E11+M8*(1.84*E11+2501),M10*E11+M8*$P$64) ->  | N11: Source: Engineering Toolbox http://www.engineeringtoolbox.com/enthalpy-moist-air-d_683.html
A12: T° des fumées à la sortie de l'économiseur (°C) | B12: =IF('Mise en forme- input'!C16=FALSE,B11,'Entrée de données'!C112) -> 200 | C12: =IF('Mise en forme- input'!C17=FALSE,C11,'Entrée de données'!D112) -> 200 | D12: =IF('Mise en forme- input'!C18=FALSE,D11,'Entrée de données'!E112) -> 200 | E12: =IF('Mise en forme- input'!C19=FALSE,E11,'Entrée de données'!F112) -> 200 | I12: Enthalpie de l'air humide à la température de condensation soit 121°C (kJ/kg) | J12: =J10*121+J8*2707.707 ->  | K12: =K10*121+K8*2707.707 -> 
A13: Validation de la température à la sortie de l'économiseur (ne pas compléter cette cellule) | B13: =IF(AND($B$7=1,B12<121),"La température à la sortie de l'économiseur non-condensant ne peut être inférieure à 121 °C",IF(AND($B$7=2,B12>120),"La température à la sortie de l'économiseur à condensation ne peut être supérieure à 120 °C","La température est valide")) -> La température est valide | C13: =IF(AND($B$7=1,C12<121),"La température à la sortie de l'économiseur non-condensant ne peut être inférieure à 121 °C",IF(AND($B$7=2,C12>120),"La température à la sortie de l'économiseur à condensation ne peut être supérieure à 120 °C","La température est valide")) -> La température est valide | D13: =IF(AND($B$7=1,D12<121),"La température à la sortie de l'économiseur non-condensant ne peut être inférieure à 121 °C",IF(AND($B$7=2,D12>120),"La température à la sortie de l'économiseur à condensation ne peut être supérieure à 120 °C","La température est valide")) -> La température est valide | E13: =IF(AND($B$7=1,E12<121),"La température à la sortie de l'économiseur non-condensant ne peut être inférieure à 121 °C",IF(AND($B$7=2,E12>120),"La température à la sortie de l'économiseur à condensation ne peut être supérieure à 120 °C","La température est valide")) -> La température est valide | I13: Enthalpie de l'air asséché à la température de condensation soit 121°C (kJ/kg) | J13: =J10*121+J9*2707.707 ->  | K13: =K10*121+K9*2707.707 -> 
A14: Nombre d'heures d'opération annuelles | B14: ='Entrée de données'!C38 -> 0 | C14: ='Entrée de données'!D38 -> 0 | D14: ='Entrée de données'!E38 -> 0 | E14: ='Entrée de données'!F38 -> 0 | I14: Enthalpie de l'air asséché à la sortie de l'économiseur (kJ/kg) | J14: =IF($B$7=1,IF(B12<99.63,J10*B12+J8*(1.84*B12+2501),J10*B12+J8*$P$36),IF(B12<99.63,J10*B12+J9*(1.84*B12+2501),J10*B12+J9*$P$36)) ->  | K14: =IF($B$7=1,IF(C12<99.63,1.005*C12+K8*(1.84*C12+2501),K10*C12+K8*$P$47),IF(C12<99.63,K10*C12+K9*(1.84*C12+2501),K10*C12+K9*$P$47)) ->  | L14: =IF($B$7=1,IF(D12<99.63,1.005*D12+L8*(1.84*D12+2501),L10*D12+L8*$P$58),IF(D12<99.63,L10*D12+L9*(1.84*D12+2501),L10*D12+L9*$P$58)) ->  | M14: =IF($B$7=1,IF(E12<99.63,1.005*E12+M8*(1.84*E12+2501),M10*E12+M8*$P$69),IF(E12<99.63,M10*E12+M9*(1.84*E12+2501),M10*E12+M9*$P$69)) -> 
A15: Puissance du brûleur de la chaudière en opération (kW) | B15: ='Bilan_1 EE'!B29 ->  | C15: ='Bilan_2 EE'!B29 ->  | D15: ='Bilan_3 EE'!B29 ->  | E15: ='Bilan_4 EE'!B29 ->  | I15: Enthalpie évaporation eau à 121°C (kJ/kg) | J15: 2199.735 | K15: 2199.735 | L15: 2199.735 | M15: 2199.735
A16: Efficacité de chauffe de la chaudière (%) | B16: ='Bilan_1 EE'!B26 ->  | C16: ='Bilan_2 EE'!B26 ->  | D16: ='Bilan_3 EE'!B26 ->  | E16: ='Bilan_4 EE'!B26 -> 
A17: Résultats - Potentiel de récupération d'énergie | I17: Cadence d'opération 1
I18: Interpolation de l'enthalpie de la vapeur - T° sortie de la chaudière (valable si T>=99,63 °C) | M18: T en °C | N18: Liquide saturé (kJ/kg) | O18: Enthalpie de vaporisation (kJ/kg) | P18: Vapeur saturée (kJ/kg)
B19: Chaudière 1 | C19: Chaudière 2 | D19: Chaudière 3 | E19: Chaudière 4 | I19: Température en dessous de la valeur entrée par l'utilisateur | M19: =LOOKUP(B11,'Données vapeur'!B5:B60) -> 198.32 | N19: =VLOOKUP(M19,'Données vapeur'!$B$5:$E$60,2,FALSE) -> 844.89 | O19: =VLOOKUP(M19,'Données vapeur'!$B$5:$E$60,3,FALSE) -> 1947.3 | P19: =VLOOKUP(M19,'Données vapeur'!$B$5:$E$60,4,FALSE) -> 2792.19
A20: TOTAL
A21: Potentiel de récupération d'énergie (kW) | B21: =IF('Mise en forme- input'!C16=FALSE,0,ROUND(IF($B$7=1,B9/3600*(J11-J14),B9/3600*(J11-J12)+0.35*J5/3600*J15+J7/3600*(J13-J14)),2)) -> 0 | C21: =IF('Mise en forme- input'!C17=FALSE,0,ROUND(IF($B$7=1,C9/3600*(K11-K14),C9/3600*(K11-K12)+0.35*K5/3600*K15+K7/3600*(K13-K14)),2)) -> 0 | D21: =IF('Mise en forme- input'!C18=FALSE,0,ROUND(IF($B$7=1,D9/3600*(L11-L14),D9/3600*(L11-L12)+0.35*L5/3600*L15+L7/3600*(L13-L14)),2)) -> 0 | E21: =IF('Mise en forme- input'!C19=FALSE,0,ROUND(IF($B$7=1,E9/3600*(M11-M14),E9/3600*(M11-M12)+0.35*M5/3600*M15+M7/3600*(M13-M14)),2)) -> 0 | I21: Température au dessus de la valeur entrée par l'utilisateur | M21: =IF((M19-B11)=0,B11,INDEX('Données vapeur'!B5:B60,RANK(LOOKUP(B11,'Données vapeur'!B5:B60),'Données vapeur'!B5:B60,1)+1)) -> 205.76 | N21: =VLOOKUP(M21,'Données vapeur'!$B$5:$E$60,2,FALSE) -> 878.5 | O21: =VLOOKUP(M21,'Données vapeur'!$B$5:$E$60,3,FALSE) -> 1917.9 | P21: =VLOOKUP(M21,'Données vapeur'!$B$5:$E$60,4,FALSE) -> 2796.4
A22: Potentiel annuel de récupération d'énergie pour chaque cadence d'opération (kWh) | B22: =IF(B21="Erreur","Erreur",B21*B14) -> 0 | C22: =IF(C21="Erreur","Erreur",C21*C14) -> 0 | D22: =IF(D21="Erreur","Erreur",D21*D14) -> 0 | E22: =IF(E21="Erreur","Erreur",E21*E14) -> 0 | I22: Valeur pour interpolation | M22: =B11 -> 200 | N22: =IF(M19=M21,N19,FORECAST(M22,N19:N21,M19:M21)) -> 852.4793548 | O22: =IF(M19=M21,O19,FORECAST(M22,O19:O21,M19:M21)) -> 1940.66129 | P22: =IF(M19=M21,P19,FORECAST(M22,P19:P21,M19:M21)) -> 2793.140645
A23: Potentiel d'économie annuelle de gaz naturel pour chaque modulation d'opération (m3/an) | B23: =IF(B21="Erreur", "Erreur",ROUND(B21*B14*3600/(1000*37.89*B16),0)) ->  | C23: =IF(C21="Erreur", "Erreur",ROUND(C21*C14*3600/(1000*37.89*C16),0)) ->  | D23: =IF(D21="Erreur", "Erreur",ROUND(D21*D14*3600/(1000*37.89*D16),0)) ->  | E23: =IF(E21="Erreur", "Erreur",ROUND(E21*E14*3600/(1000*37.89*E16),0)) -> 
A24: NON-CONDENSANT (pour eau d'alimentation)
A25: Potentiel de récupération d'énergie (kW) | B25: =IF('Mise en forme- input'!C16=FALSE,0,ROUND(IF($B$7=1,B9/3600*(J11-J14),B9/3600*(J11-J12)+J7/3600*(J13-J14)),2)) -> 0 | C25: =IF('Mise en forme- input'!C17=FALSE,0,ROUND(IF($B$7=1,C9/3600*(K11-K14),C9/3600*(K11-K12)+K7/3600*(K13-K14)),2)) -> 0 | D25: =IF('Mise en forme- input'!C18=FALSE,0,ROUND(IF($B$7=1,D9/3600*(L11-L14),D9/3600*(L11-L12)+L7/3600*(L13-L14)),2)) -> 0 | E25: =IF('Mise en forme- input'!C19=FALSE,0,ROUND(IF($B$7=1,E9/3600*(M11-M14),E9/3600*(M11-M12)+M7/3600*(M13-M14)),2)) -> 0
A26: Potentiel annuel de récupération d'énergie pour chaque cadence d'opération (kWh) | B26: =IF(B25="Erreur","Erreur",B25*B14) -> 0 | C26: =IF(C25="Erreur","Erreur",C25*C14) -> 0 | D26: =IF(D25="Erreur","Erreur",D25*D14) -> 0 | E26: =IF(E25="Erreur","Erreur",D25*E14) -> 0
A27: Potentiel d'économie annuelle de gaz naturel pour chaque modulation d'opération (m3/an) | B27: =IF(B25="Erreur", "Erreur",ROUND(B25*B14*3600/(1000*37.89*B16),0)) ->  | C27: =IF(C25="Erreur", "Erreur",ROUND(C25*C14*3600/(1000*37.89*C16),0)) -> 
A28: CONDENSANT (pour eau d'appoint)
A29: Potentiel de récupération d'énergie (kW) | B29: =IF('Mise en forme- input'!C16=FALSE,0,ROUND(IF($B$7=1,0,0.35*J5/3600*J15),2)) -> 0 | C29: =IF('Mise en forme- input'!C17=FALSE,0,ROUND(IF($B$7=1,0,0.35*K5/3600*K15),2)) -> 0 | D29: =IF('Mise en forme- input'!C18=FALSE,0,ROUND(IF($B$7=1,0,0.35*L5/3600*L15),2)) -> 0 | E29: =IF('Mise en forme- input'!C19=FALSE,0,ROUND(IF($B$7=1,0,0.35*M5/3600*M15),2)) -> 0 | F29: =SUM(B29:E29) -> 0
A30: Potentiel annuel de récupération d'énergie pour chaque cadence d'opération (kWh) | B30: =IF(B29="Erreur","Erreur",B29*B14) -> 0 | C30: =IF(C29="Erreur","Erreur",C29*C14) -> 0 | D30: 0 | E30: =IF(E29="Erreur","Erreur",E29*E14) -> 0
A31: Potentiel d'économie annuelle de gaz naturel pour chaque modulation d'opération (m3/an) | B31: =IF(B29="Erreur", "Erreur",ROUND(B29*B14*3600/(1000*37.89*B16),0)) ->  | C31: =IF(C29="Erreur", "Erreur",ROUND(C29*C14*3600/(1000*37.89*C16),0)) -> 
I32: Interpolation de l'enthalpie de la vapeur - T° sortie de l'économiseur (valable si T>=99,63 °C) | M32: T en °C | N32: Liquide saturé (kJ/kg) | O32: Enthalpie de vaporisation (kJ/kg) | P32: Vapeur saturée (kJ/kg)
I34: Température en dessous de la valeur entrée par l'utilisateur | M34: =LOOKUP(B12,'Données vapeur'!$B$5:$B$60) -> 198.32 | N34: =VLOOKUP(M34,'Données vapeur'!$B$5:$E$60,2,FALSE) -> 844.89 | O34: =VLOOKUP(M34,'Données vapeur'!$B$5:$E$60,3,FALSE) -> 1947.3 | P34: =VLOOKUP(M34,'Données vapeur'!$B$5:$E$60,4,FALSE) -> 2792.19
I35: Température au dessus de la valeur entrée par l'utilisateur | M35: =IF((M34-B12)=0,B12,INDEX('Données vapeur'!$B$5:$B$60,RANK(LOOKUP(B12,'Données vapeur'!$B$5:$B$60),'Données vapeur'!$B$5:$B$60,1)+1)) -> 205.76 | N35: =VLOOKUP(M35,'Données vapeur'!$B$5:$E$60,2,FALSE) -> 878.5 | O35: =VLOOKUP(M35,'Données vapeur'!$B$5:$E$60,3,FALSE) -> 1917.9 | P35: =VLOOKUP(M35,'Données vapeur'!$B$5:$E$60,4,FALSE) -> 2796.4
I36: Valeur pour interpolation | M36: =B12 -> 200 | N36: =IF(M34=M35,N34,FORECAST(M36,N34:N35,M34:M35)) -> 852.4793548 | O36: =IF(M34=M35,O34,FORECAST(M36,O34:O35,M34:M35)) -> 1940.66129 | P36: =IF(M34=M35,P34,FORECAST(M36,P34:P35,M34:M35)) -> 2793.140645
A37: Gaz Métro ne peut être tenu responsable des dommages, qu’ils soient directs ou indirects découlant des résultats des outilsde calculs. L’utilisateur demeure responsable de s’assurer de l’exactitude des données qu’il utilise. Les résultats se trouvant dans le chiffrier de calculs sont fournis au client à titre indicatif seulement et ne peuvent en aucun cas être interprétés comme une garantie d’efficacité ou une représentation en ce sens de Gaz Métro. Gaz Métro, ses employés, mandataires et représentants ne peuvent donc être tenus responsables advenant un écart entre cette estimation et la performance réelle de la chaufferie du client. Version 1 - Septembre 2014
I38: Cadence d'opération 2
A39: Si l'énergie récupéré par l'économiseur condensant, la récup purge et la récup dégazeur est/sont utilisés pour préchauffer l'eau d'appoint à la chaudière | I39: Interpolation de l'enthalpie de la vapeur - T° sortie de la chaudière (valable si T>=99,63 °C) | M39: T en °C | N39: Liquide saturé (kJ/kg) | O39: Enthalpie de vaporisation (kJ/kg) | P39: Vapeur saturée (kJ/kg)
A40: Énergie récupérée (kW) | B40: =IF(AND('Mise en forme- input'!C5=FALSE,'Mise en forme- input'!C6=FALSE,'Mise en forme- input'!C7=FALSE),0,IF(AND('Mise en forme- input'!K20=TRUE,'Mise en forme- input'!C6=FALSE,'Mise en forme- input'!C7=FALSE),'Économiseurs 1 à 4 '!F29,IF(AND('Mise en forme- input'!K20=TRUE,'Mise en forme- input'!C6=TRUE,'Mise en forme- input'!C7=FALSE),'Économiseurs 1 à 4 '!F29+'Récupération de la purge'!F18,IF(AND('Mise en forme- input'!K20=TRUE,'Mise en forme- input'!C6=TRUE,'Mise en forme- input'!C7=TRUE),'Économiseurs 1 à 4 '!F29+'Récupération de la purge'!F18+'Récup. évent dégazeur 1 à 4'!F16,IF(AND('Mise en forme- input'!K20=FALSE,'Mise en forme- input'!C6=TRUE,'Mise en forme- input'!C7=TRUE),'Récupération de la purge'!F18+'Récup. évent dégazeur 1 à 4'!F16,IF(AND('Mise en forme- input'!K20=FALSE,'Mise en forme- input'!C6=TRUE,'Mise en forme- input'!C7=FALSE),'Récupération de la purge'!F18,IF(AND('Mise en forme- input'!K20=TRUE,'Mise en forme- input'!C6=FALSE,'Mise en forme- input'!C7=TRUE),F29+'Récup. évent dégazeur 1 à 4'!F16,'Récup. évent dégazeur 1 à 4'!F16))))))) -> 0 | I40: Température en dessous de la valeur entrée par l'utilisateur | M40: =LOOKUP(C11,'Données vapeur'!$B$5:$B$60) -> 198.32 | N40: =VLOOKUP(M40,'Données vapeur'!$B$5:$E$60,2,FALSE) -> 844.89 | O40: =VLOOKUP(M40,'Données vapeur'!$B$5:$E$60,3,FALSE) -> 1947.3 | P40: =VLOOKUP(M40,'Données vapeur'!$B$5:$E$60,4,FALSE) -> 2792.19
A41: Température de l'eau d'appoint (avant l'ajout de la récup d'énergie par l'économiseur et ou la récup E de la purge et ou la récup degazeur) (°C) | B41: ='Entrée de données'!C48 -> 0 | I41: Température au dessus de la valeur entrée par l'utilisateur | M41: =IF((M40-C11)=0,C11,INDEX('Données vapeur'!$B$5:$B$60,RANK(LOOKUP(C11,'Données vapeur'!$B$5:$B$60),'Données vapeur'!$B$5:$B$60,1)+1)) -> 205.76 | N41: =VLOOKUP(M41,'Données vapeur'!$B$5:$E$60,2,FALSE) -> 878.5 | O41: =VLOOKUP(M41,'Données vapeur'!$B$5:$E$60,3,FALSE) -> 1917.9 | P41: =VLOOKUP(M41,'Données vapeur'!$B$5:$E$60,4,FALSE) -> 2796.4
A42: Débit d'eau d'appoint (kg/h) | B42: =SUM(B56:E56) -> 0 | I42: Valeur pour interpolation | M42: =C11 -> 200 | N42: =IF(M40=M41,N40,FORECAST(M42,N40:N41,M40:M41)) -> 852.4793548 | O42: =IF(M40=M41,O40,FORECAST(M42,O40:O41,M40:M41)) -> 1940.66129 | P42: =IF(M40=M41,P40,FORECAST(M42,P40:P41,M40:M41)) -> 2793.140645
A43: Enthalpie de l'eau alimentée (kJ/kg /°C) | B43: =4.18 -> 4.18
A44: Nouvelle température d'eau d'appoint (°C) | B44: =IF(B40=0,B41,B40/(B42*B43)*3600+B41) -> 0 | I44: Interpolation de l'enthalpie de la vapeur - T° sortie de l'économiseur (valable si T>=99,63 °C) | M44: T en °C | N44: Liquide saturé (kJ/kg) | O44: Enthalpie de vaporisation (kJ/kg) | P44: Vapeur saturée (kJ/kg)
E45: =IF(B40=0,B41,IF(B40/(B42*B43)*3600+B41>100,80,B40/(B42*B43)*3600+B41)) -> 0 | I45: Température en dessous de la valeur entrée par l'utilisateur | M45: =LOOKUP(C12,'Données vapeur'!$B$5:$B$60) -> 198.32 | N45: =VLOOKUP(M45,'Données vapeur'!$B$5:$E$60,2,FALSE) -> 844.89 | O45: =VLOOKUP(M45,'Données vapeur'!$B$5:$E$60,3,FALSE) -> 1947.3 | P45: =VLOOKUP(M45,'Données vapeur'!$B$5:$E$60,4,FALSE) -> 2792.19
A46: Si l'énergie récupéré par l'économiseur non-condensant est utilisée pour préchauffer l'eau d'alimentation à la chaudière | I46: Température au dessus de la valeur entrée par l'utilisateur | M46: =IF((M45-C12)=0,C12,INDEX('Données vapeur'!$B$5:$B$60,RANK(LOOKUP(C12,'Données vapeur'!$B$5:$B$60),'Données vapeur'!$B$5:$B$60,1)+1)) -> 205.76 | N46: =VLOOKUP(M46,'Données vapeur'!$B$5:$E$60,2,FALSE) -> 878.5 | O46: =VLOOKUP(M46,'Données vapeur'!$B$5:$E$60,3,FALSE) -> 1917.9 | P46: =VLOOKUP(M46,'Données vapeur'!$B$5:$E$60,4,FALSE) -> 2796.4
B47: Chaudière 1 | C47: Chaudière 2 | D47: Chaudière 3 | E47: Chaudière 4 | I47: Valeur pour interpolation | M47: =C12 -> 200 | N47: =IF(M45=M46,N45,FORECAST(M47,N45:N46,M45:M46)) -> 852.4793548 | O47: =IF(M45=M46,O45,FORECAST(M47,O45:O46,M45:M46)) -> 1940.66129 | P47: =IF(M45=M46,P45,FORECAST(M47,P45:P46,M45:M46)) -> 2793.140645
A48: Énergie récupérée à l'économiseur (kW) | B48: =IF(AND('Mise en forme- input'!C5=TRUE,'Économiseurs 1 à 4 '!B7=1),'Économiseurs 1 à 4 '!B25,0) -> 0 | C48: =IF(AND('Mise en forme- input'!C17=TRUE,'Économiseurs 1 à 4 '!C7=1),'Économiseurs 1 à 4 '!C25,0) -> 0 | D48: =IF(AND('Mise en forme- input'!C18=TRUE,'Économiseurs 1 à 4 '!D7=1),'Économiseurs 1 à 4 '!D25,0) -> 0 | E48: =IF(AND('Mise en forme- input'!C19=TRUE,'Économiseurs 1 à 4 '!E7=1),'Économiseurs 1 à 4 '!E25,0) -> 0
A49: Température de l'eau alimenté (avant l'ajout de la récup d'énergie par l'économiseur non-condensant) (°C) | B49: =IF('Entrée de données'!C49=1,'Entrée de données'!C50*'Entrée de données'!C51+(1-'Entrée de données'!C50)*'Bilan_1 EE'!B16,'Bilan_1 EE'!B16) -> 0 | C49: =IF('Entrée de données'!D49=1,'Entrée de données'!D50*'Entrée de données'!D51+(1-'Entrée de données'!D50)*'Bilan_2 EE'!B16,'Bilan_2 EE'!B16) -> 0 | D49: =IF('Entrée de données'!E49=1,'Entrée de données'!E50*'Entrée de données'!E51+(1-'Entrée de données'!E50)*'Bilan_3 EE'!B16,'Bilan_3 EE'!B16) -> 0 | E49: =IF('Entrée de données'!F49=1,'Entrée de données'!F50*'Entrée de données'!F51+(1-'Entrée de données'!F50)*'Bilan_4 EE'!B16,'Bilan_4 EE'!B16) -> 0 | I49: Cadence d'opération 3
A50: Débit d'eau d'alimentation(kg/h) | B50: ='Bilan_1 EE'!B68 -> 0 | C50: ='Bilan_2 EE'!B68 -> 0 | D50: ='Bilan_3 EE'!B68 -> 0 | E50: ='Bilan_4 EE'!B68 -> 0 | I50: Interpolation de l'enthalpie de la vapeur - T° sortie de la chaudière (valable si T>=99,63 °C) | M50: T en °C | N50: Liquide saturé (kJ/kg) | O50: Enthalpie de vaporisation (kJ/kg) | P50: Vapeur saturée (kJ/kg)
A51: Enthalpie de l'eau alimentée (kJ/kg /°C) | B51: 4.18 | C51: 4.18 | D51: 4.18 | E51: 4.18 | I51: Température en dessous de la valeur entrée par l'utilisateur | M51: =LOOKUP(D11,'Données vapeur'!$B$5:$B$60) -> 198.32 | N51: =VLOOKUP(M51,'Données vapeur'!$B$5:$E$60,2,FALSE) -> 844.89 | O51: =VLOOKUP(M51,'Données vapeur'!$B$5:$E$60,3,FALSE) -> 1947.3 | P51: =VLOOKUP(M51,'Données vapeur'!$B$5:$E$60,4,FALSE) -> 2792.19
A52: Nouvelle température d'alimentation (°C) | B52: =IF(B48=0,B49,B48/(B50*B51)*3600+B49) -> 0 | C52: =IF(C48=0,C49,C48/(C50*C51)*3600+C49) -> 0 | D52: =IF(D48=0,D49,D48/(D50*D51)*3600+D49) -> 0 | E52: 0 | I52: Température au dessus de la valeur entrée par l'utilisateur | M52: =IF((M51-D11)=0,D11,INDEX('Données vapeur'!$B$5:$B$60,RANK(LOOKUP(B11,'Données vapeur'!$B$5:$B$60),'Données vapeur'!$B$5:$B$60,1)+1)) -> 205.76 | N52: =VLOOKUP(M52,'Données vapeur'!$B$5:$E$60,2,FALSE) -> 878.5 | O52: =VLOOKUP(M52,'Données vapeur'!$B$5:$E$60,3,FALSE) -> 1917.9 | P52: =VLOOKUP(M52,'Données vapeur'!$B$5:$E$60,4,FALSE) -> 2796.4
I53: Valeur pour interpolation | M53: =D11 -> 200 | N53: =IF(M51=M52,N51,FORECAST(M53,N51:N52,M51:M52)) -> 852.4793548 | O53: =IF(M51=M52,O51,FORECAST(M53,O51:O52,M51:M52)) -> 1940.66129 | P53: =IF(M51=M52,P51,FORECAST(M53,P51:P52,M51:M52)) -> 2793.140645
B55: Ch1 | C55: Ch2 | D55: Ch3 | E55: Ch4 | I55: Interpolation de l'enthalpie de la vapeur - T° sortie de l'économiseur (valable si T>=99,63 °C) | M55: T en °C | N55: Liquide saturé (kJ/kg) | O55: Enthalpie de vaporisation (kJ/kg) | P55: Vapeur saturée (kJ/kg)
A56: Débit eau appoint | B56: =IF('Entrée de données'!F21>0,'Bilan_1 EE'!B70,0) -> 0 | C56: =IF('Entrée de données'!F21>1,'Bilan_2 EE'!B70,0) -> 0 | D56: =IF('Entrée de données'!F21>2,'Bilan_3 EE'!B70,0) -> 0 | E56: =IF('Entrée de données'!F21>3,'Bilan_4 EE'!B70,0) -> 0 | I56: Température en dessous de la valeur entrée par l'utilisateur | M56: =LOOKUP(D12,'Données vapeur'!$B$5:$B$60) -> 198.32 | N56: =VLOOKUP(M56,'Données vapeur'!$B$5:$E$60,2,FALSE) -> 844.89 | O56: =VLOOKUP(M56,'Données vapeur'!$B$5:$E$60,3,FALSE) -> 1947.3 | P56: =VLOOKUP(M56,'Données vapeur'!$B$5:$E$60,4,FALSE) -> 2792.19
I57: Température au dessus de la valeur entrée par l'utilisateur | M57: =IF((M56-D12)=0,#REF!,INDEX('Données vapeur'!$B$5:$B$60,RANK(LOOKUP(D12,'Données vapeur'!$B$5:$B$60),'Données vapeur'!$B$5:$B$60,1)+1)) -> 205.76 | N57: =VLOOKUP(M57,'Données vapeur'!$B$5:$E$60,2,FALSE) -> 878.5 | O57: =VLOOKUP(M57,'Données vapeur'!$B$5:$E$60,3,FALSE) -> 1917.9 | P57: =VLOOKUP(M57,'Données vapeur'!$B$5:$E$60,4,FALSE) -> 2796.4
I58: Valeur pour interpolation | M58: =D12 -> 200 | N58: =IF(M56=M57,N56,FORECAST(M58,N56:N57,M56:M57)) -> 852.4793548 | O58: =IF(M56=M57,O56,FORECAST(M58,O56:O57,M56:M57)) -> 1940.66129 | P58: =IF(M56=M57,P56,FORECAST(M58,P56:P57,M56:M57)) -> 2793.140645
I60: Cadence d'opération 4
I61: Interpolation de l'enthalpie de la vapeur - T° sortie de la chaudière (valable si T>=99,63 °C) | M61: T en °C | N61: Liquide saturé (kJ/kg) | O61: Enthalpie de vaporisation (kJ/kg) | P61: Vapeur saturée (kJ/kg)
I62: Température en dessous de la valeur entrée par l'utilisateur | M62: =LOOKUP(E11,'Données vapeur'!$B$5:$B$60) -> 198.32 | N62: =VLOOKUP(M62,'Données vapeur'!$B$5:$E$60,2,FALSE) -> 844.89 | O62: =VLOOKUP(M62,'Données vapeur'!$B$5:$E$60,3,FALSE) -> 1947.3 | P62: =VLOOKUP(M62,'Données vapeur'!$B$5:$E$60,4,FALSE) -> 2792.19
I63: Température au dessus de la valeur entrée par l'utilisateur | M63: =IF((M62-E11)=0,E11,INDEX('Données vapeur'!$B$5:$B$60,RANK(LOOKUP(E11,'Données vapeur'!$B$5:$B$60),'Données vapeur'!$B$5:$B$60,1)+1)) -> 205.76 | N63: =VLOOKUP(M63,'Données vapeur'!$B$5:$E$60,2,FALSE) -> 878.5 | O63: =VLOOKUP(M63,'Données vapeur'!$B$5:$E$60,3,FALSE) -> 1917.9 | P63: =VLOOKUP(M63,'Données vapeur'!$B$5:$E$60,4,FALSE) -> 2796.4
I64: Valeur pour interpolation | M64: =E11 -> 200 | N64: =IF(M62=M63,N62,FORECAST(M64,N62:N63,M62:M63)) -> 852.4793548 | O64: =IF(M62=M63,O62,FORECAST(M64,O62:O63,M62:M63)) -> 1940.66129 | P64: =IF(M62=M63,P62,FORECAST(M64,P62:P63,M62:M63)) -> 2793.140645
I66: Interpolation de l'enthalpie de la vapeur - T° sortie de l'économiseur (valable si T>=99,63 °C) | M66: T en °C | N66: Liquide saturé (kJ/kg) | O66: Enthalpie de vaporisation (kJ/kg) | P66: Vapeur saturée (kJ/kg)
I67: Température en dessous de la valeur entrée par l'utilisateur | M67: =LOOKUP(E12,'Données vapeur'!$B$5:$B$60) -> 198.32 | N67: =VLOOKUP(M67,'Données vapeur'!$B$5:$E$60,2,FALSE) -> 844.89 | O67: =VLOOKUP(M67,'Données vapeur'!$B$5:$E$60,3,FALSE) -> 1947.3 | P67: =VLOOKUP(M67,'Données vapeur'!$B$5:$E$60,4,FALSE) -> 2792.19
I68: Température au dessus de la valeur entrée par l'utilisateur | M68: =IF((M67-E12)=0,E12,INDEX('Données vapeur'!$B$5:$B$60,RANK(LOOKUP(E12,'Données vapeur'!$B$5:$B$60),'Données vapeur'!$B$5:$B$60,1)+1)) -> 205.76 | N68: =VLOOKUP(M68,'Données vapeur'!$B$5:$E$60,2,FALSE) -> 878.5 | O68: =VLOOKUP(M68,'Données vapeur'!$B$5:$E$60,3,FALSE) -> 1917.9 | P68: =VLOOKUP(M68,'Données vapeur'!$B$5:$E$60,4,FALSE) -> 2796.4
I69: Valeur pour interpolation | M69: =E12 -> 200 | N69: =IF(M67=M68,N67,FORECAST(M69,N67:N68,M67:M68)) -> 852.4793548 | O69: =IF(M67=M68,O67,FORECAST(M69,O67:O68,M67:M68)) -> 1940.66129 | P69: =IF(M67=M68,P67,FORECAST(M69,P67:P68,M67:M68)) -> 2793.140645

Sheet Récupération de la purge (hidden)
A1: Calculateur d'économie d'énergie par la récupération de l'énergie contenue dans la purge (Calculateur 4)
A2: Objectif: Fournir un calculateur simplifié permettant d'estimer les économies d'énergie envisageables par la récupération de l'énergie contenue dans l'eau purgée hors de la chaudière. | P2: Type de récupération | Q2: Numéro correspondant
A3: Instructions: L'utilisateur devra fournir les informations dans la section Entrée de données (cellules bleues), pour chaque cadence d'opération de la chaudière. Il devra établir la température cible pour l'eau purgée, après la récupération de chaleur, ainsi que la pression d'opératioin du ballon de détente, le cas échéant. Il s'agit de la température à laquelle cette eau pourra être évacuée au drain. La plupart des autres données peuvent être obtenues partir du calculateur de l'onglet Résultats Chaufferie du calcualteur de bilan d'énergie. | P3: Production de vapeur instantannée | Q3: 1
A4: Entrée de données | J4: Cadence d'opération 1 | K4: Cadence d'opération 2 | L4: Cadence d'opération 3 | M4: Cadence d'opération 4 | P4: Préchauffage de l'eau d'appoint | Q4: 2
A5: Sélectionner le type de récupération envisagé | B5: ='Entrée de données'!C122 -> 3 | P5: Production de vapeur instantannée et préchauffage d'eau | Q5: 3
A6: Données de procédé | I6: Quantité de vapeur instantannée produite (kg/h) | J6: =B8*(B9-J8)/J9 -> 0 | K6: =C8*(C9-K8)/K9 -> 0 | L6: =D8*(D9-L8)/L9 -> 0 | M6: =E8*(E9-M8)/M9 -> 0
B7: Chaudière 1 | C7: Chaudière 2 | D7: Chaudière 3 | E7: Chaudière 4 | I7: Enthalpie vapeur instantannée - à la pression du ballon de détente (kJ/kg) | J7: =Q18 -> 2675.98258 | K7: =Q25 -> 2675.98258 | L7: =Q31 -> 2675.98258 | M7: =Q37 -> 2675.98258
A8: Débit de purge (kg/h) | B8: ='Bilan_1 EE'!B77 -> 0 | C8: ='Bilan_2 EE'!B77 -> 0 | D8: ='Bilan_3 EE'!B77 -> 0 | E8: ='Bilan_4 EE'!B77 -> 0 | I8: Enthalpie Eau saturée - à la pression du ballon de détente (kJ/kg) | J8: =O18 -> 418.88358 | K8: =O25 -> 418.88358 | L8: =O31 -> 418.88358 | M8: =O37 -> 418.88358
A9: Enthalpie de l'eau saturée de la chaudière (kJ/kg) | B9: ='Bilan_1 EE'!B59 -> 418.88358 | C9: ='Bilan_2 EE'!B59 -> 418.88358 | D9: ='Bilan_3 EE'!B59 -> 418.88358 | E9: ='Bilan_4 EE'!B59 -> 418.88358 | I9: Enthalpie d'évaporation à la pression du ballon de détente (kJ/kg) | J9: =P18 -> 2257.099 | K9: =P25 -> 2257.099 | L9: =P31 -> 2257.099 | M9: =P37 -> 2257.099
A10: Pression manométrique du ballon de détente (kPa) | B10: ='Entrée de données'!$C$124 -> 0 | C10: ='Entrée de données'!$C$124 -> 0 | D10: ='Entrée de données'!$C$124 -> 0 | E10: ='Entrée de données'!$C$124 -> 0 | I10: Débit d'eau à la sortie du ballon de détente, après production de vapeur instantannée (kgh) | J10: =B8-J6 -> 0 | K10: =C8-K6 -> 0 | L10: 0 | M10: 0
A11: T° de l'eau purgée après récupération de l'énergie pour le préchauffage de l'eau d'appoint (°C) | B11: ='Entrée de données'!$C$125 -> 0 | C11: ='Entrée de données'!$C$125 -> 0 | D11: ='Entrée de données'!$C$125 -> 0 | E11: ='Entrée de données'!$C$125 -> 0
A12: Nombre d'heures d'opération annuelles | B12: ='Entrée de données'!C38 -> 0 | C12: ='Entrée de données'!D38 -> 0 | D12: ='Entrée de données'!E38 -> 0 | E12: ='Entrée de données'!F38 -> 0
A13: Puissance du brûleur de la chaudière en opération (kW) | B13: ='Bilan_1 EE'!B29 ->  | C13: ='Bilan_2 EE'!B29 ->  | D13: ='Bilan_3 EE'!B29 ->  | E13: ='Bilan_4 EE'!B29 -> 
A14: Efficacité de chauffe de la chaudière (%) | B14: ='Bilan_1 EE'!B26 ->  | C14: ='Bilan_2 EE'!B26 ->  | D14: ='Bilan_3 EE'!B26 ->  | E14: ='Bilan_4 EE'!B26 ->  | I14: Cadence d'opération 1
I15: Interpolation de l'enthalpie de la vapeur - P manométrique fournie par l'utilisateur | M15: Pression (kPa) | N15: Température équivalente (°C) | O15: Liquide saturé (kJ/kg) | P15: Enthalpie d'évaporation (kJ/kg) | Q15: Vapeur saturée (kJ/kg)
I16: Pression en dessous de la valeur entrée par l'utilisateur | M16: =LOOKUP(B10,'Données vapeur'!$A$5:$A$60) -> -1.325 | N16: =VLOOKUP(M16,'Données vapeur'!$A$5:$E$60,2,FALSE) -> 99.63 | O16: =VLOOKUP(M16,'Données vapeur'!$A$5:$E$60,3,FALSE) -> 417.46 | P16: =VLOOKUP(M16,'Données vapeur'!$A$5:$E$60,4,FALSE) -> 2258 | Q16: =VLOOKUP(M16,'Données vapeur'!$A$5:$E$60,5,FALSE) -> 2675.46
A17: PRÉCHAUFFAGE DE L'EAU D'APPOINT: | B17: Chaufferie | I17: Pression au dessus de la valeur entrée par l'utilisateur | M17: =IF((M16-M18)=0,M18,INDEX('Données vapeur'!A5:A60,RANK(LOOKUP(M18,'Données vapeur'!A5:A60),'Données vapeur'!A5:A60,1)+1)) -> 23.675 | N17: =VLOOKUP(M17,'Données vapeur'!$A$5:$E$60,2,FALSE) -> 105.99 | O17: =VLOOKUP(M17,'Données vapeur'!$A$5:$E$60,3,FALSE) -> 444.32 | P17: =VLOOKUP(M17,'Données vapeur'!$A$5:$E$60,4,FALSE) -> 2241 | Q17: =VLOOKUP(M17,'Données vapeur'!$A$5:$E$60,5,FALSE) -> 2685.32
A18: Potentiel de récupération d'énergie (kW) | B18: =IF('Mise en forme- input'!$C$6=FALSE,0,ROUND(IF($B$5=1,0,IF($B$5=2,B8/3600*(B9-4.18*B11),J10/3600*(J8-4.18*B11))),2)) -> 0 | C18: =IF(OR('Mise en forme- input'!$C$6=FALSE,'Entrée de données'!F21<2),0,ROUND(IF($B$5=1,0,IF($B$5=2,C8/3600*(C9-4.18*C11),K10/3600*(K8-4.18*C11))),2)) -> 0 | D18: =IF(OR('Mise en forme- input'!$C$6=FALSE,'Entrée de données'!F21<3),0,ROUND(IF($B$5=1,0,IF($B$5=2,D8/3600*(D9-4.18*D11),L10/3600*(L8-4.18*D11))),2)) -> 0 | E18: =IF(OR('Mise en forme- input'!$C$6=FALSE,'Entrée de données'!F21<4),0,ROUND(IF($B$5=1,0,IF($B$5=2,E8/3600*(E9-4.18*E11),M10/3600*(M8-4.18*E11))),2)) -> 0 | F18: =IF(OR(B5=3,B5=2),SUM(B18:E18),0) -> 0 | I18: Valeur pour interpolation | M18: =B10 -> 0 | N18: =IF(M16=M17,N16,FORECAST(M18,N16:N17,M16:M17)) -> 99.96708 | O18: =IF(M16=M17,O16,FORECAST(M18,O16:O17,M16:M17)) -> 418.88358 | P18: =IF(M16=M17,P16,FORECAST(M18,P16:P17,M16:M17)) -> 2257.099 | Q18: =IF(M16=M17,Q16,FORECAST(M18,Q16:Q17,M16:M17)) -> 2675.98258
A19: Potentiel annuel de récupération d'énergie pour chaque cadence d'opération (kWh) | B19: =B18*B12 -> 0 | C19: =C18*C12 -> 0 | D19: =D18*D12 -> 0 | E19: =E18*E12 -> 0
A20: Potentiel d'économie annuelle de gaz naturel pour chaque cadence d'opération (m3/an) | B20: =ROUND(B18*B12*3600/(1000*37.89*B14),0) ->  | C20: =ROUND(C18*C12*3600/(1000*37.89*C14),0) ->  | D20: =ROUND(D18*D12*3600/(1000*37.89*D14),0) ->  | E20: =ROUND(E18*E12*3600/(1000*37.89*E14),0) ->  | I20: Cadence d'opération 2
A21: VAPEUR INSTANTANNÉE: | I21: Interpolation de l'enthalpie de la vapeur - P manométrique fournie par l'utilisateur | M21: Pression (kPa) | N21: Température équivalente (°C) | O21: Liquide saturé (kJ/kg) | P21: Enthalpie d'évaporation (kJ/kg) | Q21: Vapeur saturée (kJ/kg)
A22: Énergie récup si seulement la vapeur produite est utilisée (kW) | B22: =IF('Mise en forme- input'!$C$6=FALSE,0,ROUND(IF(OR($B$5=1,B5=3),J6/3600*J7,0),2)) -> 0 | C22: =IF(OR('Mise en forme- input'!$C$6=FALSE,'Entrée de données'!F21<2),0,ROUND(IF(OR($B$5=1,$B$5=3),K6/3600*K7,0),2)) -> 0 | D22: =IF(OR('Mise en forme- input'!$C$6=FALSE,'Entrée de données'!F21<3),0,ROUND(IF(OR($B$5=1,$B$5=3),L6/3600*L7,0),2)) -> 0 | E22: =IF(OR('Mise en forme- input'!$C$6=FALSE,'Entrée de données'!F21<4),0,ROUND(IF(OR($B$5=1,$B$5=3),M6/3600*M7,0),2)) -> 0
A23: Potentiel annuel de récupération d'énergie pour chaque cadence d'opération (kWh) | B23: =B22*B12 -> 0 | C23: =C22*C12 -> 0 | D23: =D22*D12 -> 0 | E23: =E22*E12 -> 0 | I23: Pression en dessous de la valeur entrée par l'utilisateur | M23: =LOOKUP(C10,'Données vapeur'!$A$5:$A$60) -> -1.325 | N23: =VLOOKUP(M23,'Données vapeur'!$A$5:$E$60,2,FALSE) -> 99.63 | O23: =VLOOKUP(M23,'Données vapeur'!$A$5:$E$60,3,FALSE) -> 417.46 | P23: =VLOOKUP(M23,'Données vapeur'!$A$5:$E$60,4,FALSE) -> 2258 | Q23: =VLOOKUP(M23,'Données vapeur'!$A$5:$E$60,5,FALSE) -> 2675.46
A24: Potentiel d'économie annuelle de gaz naturel pour chaque cadence d'opération (m3/an) | B24: =ROUND(B22*B12*3600/(1000*37.89*B14),0) ->  | C24: =ROUND(C22*C12*3600/(1000*37.89*C14),0) ->  | D24: =ROUND(D22*D12*3600/(1000*37.89*D14),0) ->  | I24: Pression au dessus de la valeur entrée par l'utilisateur | M24: =IF((M23-M25)=0,M25,INDEX('Données vapeur'!A5:A60,RANK(LOOKUP(M25,'Données vapeur'!A5:A60),'Données vapeur'!A5:A60,1)+1)) -> 23.675 | N24: =VLOOKUP(M24,'Données vapeur'!$A$5:$E$60,2,FALSE) -> 105.99 | O24: =VLOOKUP(M24,'Données vapeur'!$A$5:$E$60,3,FALSE) -> 444.32 | P24: =VLOOKUP(M24,'Données vapeur'!$A$5:$E$60,4,FALSE) -> 2241 | Q24: =VLOOKUP(M24,'Données vapeur'!$A$5:$E$60,5,FALSE) -> 2685.32
I25: Valeur pour interpolation | M25: =C10 -> 0 | N25: =IF(M23=M24,N23,FORECAST(M25,N23:N24,M23:M24)) -> 99.96708 | O25: =IF(M23=M24,O23,FORECAST(M25,O23:O24,M23:M24)) -> 418.88358 | P25: =IF(M23=M24,P23,FORECAST(M25,P23:P24,M23:M24)) -> 2257.099 | Q25: =IF(M23=M24,Q23,FORECAST(M25,Q23:Q24,M23:M24)) -> 2675.98258
A26: Gaz Métro ne peut être tenu responsable des dommages, qu’ils soient directs ou indirects découlant des résultats des outilsde calculs. L’utilisateur demeure responsable de s’assurer de l’exactitude des données qu’il utilise. Les résultats se trouvant dans le chiffrier de calculs sont fournis au client à titre indicatif seulement et ne peuvent en aucun cas être interprétés comme une garantie d’efficacité ou une représentation en ce sens de Gaz Métro. Gaz Métro, ses employés, mandataires et représentants ne peuvent donc être tenus responsables advenant un écart entre cette estimation et la performance réelle de la chaufferie du client. Version 1 - Septembre 2014
I27: Cadence d'opération 3
I28: Interpolation de l'enthalpie de la vapeur - P manométrique fournie par l'utilisateur | M28: Pression (kPa) | N28: Température équivalente (°C) | O28: Liquide saturé (kJ/kg) | P28: Enthalpie d'évaporation (kJ/kg) | Q28: Vapeur saturée (kJ/kg)
I29: Pression en dessous de la valeur entrée par l'utilisateur | M29: =LOOKUP(D10,'Données vapeur'!$A$5:$A$60) -> -1.325 | N29: =VLOOKUP(M29,'Données vapeur'!$A$5:$E$60,2,FALSE) -> 99.63 | O29: =VLOOKUP(M29,'Données vapeur'!$A$5:$E$60,3,FALSE) -> 417.46 | P29: =VLOOKUP(M29,'Données vapeur'!$A$5:$E$60,4,FALSE) -> 2258 | Q29: =VLOOKUP(M29,'Données vapeur'!$A$5:$E$60,5,FALSE) -> 2675.46
I30: Pression au dessus de la valeur entrée par l'utilisateur | M30: =IF((M29-M31)=0,M31,INDEX('Données vapeur'!A5:A60,RANK(LOOKUP(M31,'Données vapeur'!A5:A60),'Données vapeur'!A5:A60,1)+1)) -> 23.675 | N30: =VLOOKUP(M30,'Données vapeur'!$A$5:$E$60,2,FALSE) -> 105.99 | O30: =VLOOKUP(M30,'Données vapeur'!$A$5:$E$60,3,FALSE) -> 444.32 | P30: =VLOOKUP(M30,'Données vapeur'!$A$5:$E$60,4,FALSE) -> 2241 | Q30: =VLOOKUP(M30,'Données vapeur'!$A$5:$E$60,5,FALSE) -> 2685.32
I31: Valeur pour interpolation | M31: =D10 -> 0 | N31: =IF(M29=M30,N29,FORECAST(M31,N29:N30,M29:M30)) -> 99.96708 | O31: =IF(M29=M30,O29,FORECAST(M31,O29:O30,M29:M30)) -> 418.88358 | P31: =IF(M29=M30,P29,FORECAST(M31,P29:P30,M29:M30)) -> 2257.099 | Q31: =IF(M29=M30,Q29,FORECAST(M31,Q29:Q30,M29:M30)) -> 2675.98258
I33: Cadence d'opération 4
I34: Interpolation de l'enthalpie de la vapeur - P manométrique fournie par l'utilisateur | M34: Pression (kPa) | N34: Température équivalente (°C) | O34: Liquide saturé (kJ/kg) | P34: Enthalpie d'évaporation (kJ/kg) | Q34: Vapeur saturée (kJ/kg)
I35: Pression en dessous de la valeur entrée par l'utilisateur | M35: =LOOKUP(E10,'Données vapeur'!$A$5:$A$60) -> -1.325 | N35: =VLOOKUP(M35,'Données vapeur'!$A$5:$E$60,2,FALSE) -> 99.63 | O35: =VLOOKUP(M35,'Données vapeur'!$A$5:$E$60,3,FALSE) -> 417.46 | P35: =VLOOKUP(M35,'Données vapeur'!$A$5:$E$60,4,FALSE) -> 2258 | Q35: =VLOOKUP(M35,'Données vapeur'!$A$5:$E$60,5,FALSE) -> 2675.46
I36: Pression au dessus de la valeur entrée par l'utilisateur | M36: =IF((M35-M37)=0,M37,INDEX('Données vapeur'!A5:A60,RANK(LOOKUP(M37,'Données vapeur'!A5:A60),'Données vapeur'!A5:A60,1)+1)) -> 23.675 | N36: =VLOOKUP(M36,'Données vapeur'!$A$5:$E$60,2,FALSE) -> 105.99 | O36: =VLOOKUP(M36,'Données vapeur'!$A$5:$E$60,3,FALSE) -> 444.32 | P36: =VLOOKUP(M36,'Données vapeur'!$A$5:$E$60,4,FALSE) -> 2241 | Q36: =VLOOKUP(M36,'Données vapeur'!$A$5:$E$60,5,FALSE) -> 2685.32
I37: Valeur pour interpolation | M37: =E10 -> 0 | N37: =IF(M35=M36,N35,FORECAST(M37,N35:N36,M35:M36)) -> 99.96708 | O37: =IF(M35=M36,O35,FORECAST(M37,O35:O36,M35:M36)) -> 418.88358 | P37: =IF(M35=M36,P35,FORECAST(M37,P35:P36,M35:M36)) -> 2257.099 | Q37: =IF(M35=M36,Q35,FORECAST(M37,Q35:Q36,M35:M36)) -> 2675.98258

Sheet Récup. évent dégazeur 1 à 4 (hidden)
A1: Calculateur d'économie d'énergie par la mise en place d'un système de récupération de l'évent du dégazeur (Calculateur 5)
A2: Objectif: Fournir un calculateur simplifié permettant d'estimer les économies d'énergie envisageables par la mise en place d'un système de récupération de l'énergie contenue dans l'évent de la purge du dégazeur. Le calculateur est conçu pour évaluer le potentiel de récupération par la condensation de la vapeur et l'intégration du condensat dans le dégazeur.
A3: Instructions: L'utilisateur devra fournir les informations dans la section Entrée de données (cellules foncées), pour chaque cadence d'opération de la chaudière. Toutes les données d'opération peuvent être obtenues partir du calculateur de bilan d'énergie.
A4: Entrée de données
A5: Données de procédé
B6: Chaudière 1 | C6: Chaudière 2 | D6: Chaudière 3 | E6: Chaudière 4
A7: Quantité de vapeur perdue par l'évent du dégazeur (kg/h) | B7: ='Bilan_1 EE'!B103 -> 0 | C7: ='Bilan_2 EE'!B108 -> 0 | D7: ='Bilan_3 EE'!B108 -> 0 | E7: ='Bilan_4 EE'!B108 -> 0
A8: Enthalpie de la vapeur produite par la chaudière (kJ/kg) | B8: 2326 | C8: 2326 | D8: 2326 | E8: 2326
A9: Température de l'eau d'appoint alimentée au récupérateur de l'évent du dégazeur | B9: ='Bilan_1 EE'!B16 -> 0 | C9: ='Bilan_2 EE'!B16 -> 0 | D9: ='Bilan_3 EE'!B16 -> 0 | E9: ='Bilan_4 EE'!B16 -> 0
A10: Nombre d'heures d'opération annuelles | B10: ='Entrée de données'!C38 -> 0 | C10: ='Entrée de données'!D38 -> 0 | D10: ='Entrée de données'!E38 -> 0 | E10: ='Entrée de données'!F38 -> 0
A11: Puissance du brûleur de la chaudière en opération (kW) | B11: ='Bilan_1 EE'!B29 ->  | C11: ='Bilan_2 EE'!B29 ->  | D11: ='Bilan_3 EE'!B29 ->  | E11: ='Bilan_4 EE'!B29 -> 
A12: Efficacité de chauffe de la chaudière (%) | B12: ='Bilan_1 EE'!B26 ->  | C12: ='Bilan_2 EE'!B26 ->  | D12: ='Bilan_3 EE'!B26 ->  | E12: ='Bilan_4 EE'!B26 -> 
A13: Résultats - Potentiel de récupération d'énergie
B15: Chaudière 1 | C15: Chaudière 2 | D15: Chaudière 3 | E15: Chaudière 4
A16: Potentiel de récupération d'énergie (kW) | B16: =IF('Mise en forme- input'!$C$7=FALSE,0,B7/3600*(B8-4.18*B9)) -> 0 | C16: =IF(OR('Mise en forme- input'!$C$7=FALSE,'Entrée de données'!F21<2),0,C7/3600*(C8-4.18*C9)) -> 0 | D16: =IF(OR('Mise en forme- input'!$C$7=FALSE,'Entrée de données'!F21<3),0,D7/3600*(D8-4.18*D9)) -> 0 | E16: =IF(OR('Mise en forme- input'!$C$7=FALSE,'Entrée de données'!F21<4),0,E7/3600*(E8-4.18*E9)) -> 0 | F16: =SUM(B16:E16) -> 0
A17: Potentiel annuel de récupération d'énergie pour chaque cadence d'opération (kWh) | B17: =B16*B10 -> 0 | C17: =C16*C10 -> 0 | D17: 0 | E17: 0
A18: Économie annuelle de gaz naturel pour chaque cadence d'opération (m3/an) | B18: =ROUND(B16*B10*3600/(1000*37.89*B12),0) ->  | C18: =ROUND(C16*C10*3600/(1000*37.89*C12),0) ->  | D18: =ROUND(D16*D10*3600/(1000*37.89*D12),0) ->  | E18: =ROUND(E16*E10*3600/(1000*37.89*E12),0) -> 
A24: Gaz Métro ne peut être tenu responsable des dommages, qu’ils soient directs ou indirects découlant des résultats des outilsde calculs. L’utilisateur demeure responsable de s’assurer de l’exactitude des données qu’il utilise. Les résultats se trouvant dans le chiffrier de calculs sont fournis au client à titre indicatif seulement et ne peuvent en aucun cas être interprétés comme une garantie d’efficacité ou une représentation en ce sens de Gaz Métro. Gaz Métro, ses employés, mandataires et représentants ne peuvent donc être tenus responsables advenant un écart entre cette estimation et la performance réelle de la chaufferie du client. Version 1 - Septembre 2014

Sheet Comb_1 (hidden)
E2: EFFICACITE | F2: % | G2: =1-(G4/(G5+ABS(L28))) -> 0.8275670996
E4: Hout | F4: J / mol gaz | G4: =U28 -> 152567.3137
A5: BILAN THERMIQUE | E5: Hin | F5: J / mol gaz | G5: =O28+R28 -> -822.9332428 | J5: PROPRIÉTÉ DU GAZ | M5: CALCUL ÉNERGIE
J6: GAZ **** | M6: GAZ | P6: AIR | S6: FUMEE
C7: Masse | D7: * Enthalpie (J / mol) | F7: * Chaleur Spécifique (J / mol oC) | J7: M | K7: Densité | L7: PCS ou | M7: T (oC) = | N7: ='Entrée de données'!C37 -> 20 | P7: T (oC) = | Q7: ='Entrée de données'!C35 -> 20 | S7: T (oC) = | T7: ='Entrée de données'!C34 -> 200
C8: Molaire | D8: Formation | E8: Combustion | F8: Cp = a + bTx102 + cT2105 + dT3*109 | J8: Mélange | K8: Mélange | L8: HHV | M8: Débit | N8: Cpmoy | O8: H | P8: Débit | Q8: Cpmoy | R8: H | S8: Débit | T8: Cpmoy | U8: H
A9: État gazeux sauf si indication | C9: g / mol | F9: a | G9: b | H9: c | I9: d | J9: g / mol | K9: kg / m3 | L9: J / mol gaz | M9: mol / mol gaz | N9: J / mol oC | O9: J / mol gaz | P9: mol / mol gaz | Q9: J / mol oC | R9: J / mol gaz | S9: mol / mol gaz | T9: J / mol oC | U9: J / mol gaz
A10: Oxygène | B10: O2 | C10: 32 | D10: 0 | E10: 0 | F10: 29.1 | G10: 1.158 | H10: -0.6076 | I10: 1.311 | J10: =M10*C10 -> 0 | K10: =(101325*(C10/1000))/(8.3144*288.7056)*M10 -> 0 | L10: =M10*E10 -> 0 | M10: =C55/100 -> 0 | N10: =AVERAGE($F10+$G10/100*N$7+$H10/100000*N$7^2+$I10/1000000000*N$7^3,$F10+$G10/100*$B$29+$H10/100000*$B$29^2+$I10/1000000000*$B$29^3) -> 29.35745154 | O10: =M10*N10*(N$7-$B$29) -> 0 | P10: =CD92 -> 0 | Q10: =AVERAGE($F10+$G10/100*Q$7+$H10/100000*Q$7^2+$I10/1000000000*Q$7^3,$F10+$G10/100*$B$29+$H10/100000*$B$29^2+$I10/1000000000*$B$29^3) -> 29.35745154 | R10: =P10*Q10*(Q$7-$B$29) -> 0 | S10: =Comb_1!L84 -> 0.596784 | T10: =AVERAGE($F10+$G10/100*T$7+$H10/100000*T$7^2+$I10/1000000000*T$7^3,$F10+$G10/100*$B$29+$H10/100000*$B$29^2+$I10/1000000000*$B$29^3) -> 30.28458549 | U10: =S10*T10*(T$7-$B$29) -> 3162.837312
A11: Monoxide de carbone | B11: CO | C11: 28.011 | D11: -110520 | E11: -282990 | F11: 28.95 | G11: 0.411 | H11: 0.3548 | I11: -2.22 | J11: 0 | K11: 0 | L11: 0 | M11: =C56/100 -> 0 | N11: =AVERAGE($F11+$G11/100*N$7+$H11/100000*N$7^2+$I11/1000000000*N$7^3,$F11+$G11/100*$B$29+$H11/100000*$B$29^2+$I11/1000000000*$B$29^3) -> 29.04426713 | O11: =M11*N11*(N$7-$B$29) -> 0 | Q11: =AVERAGE($F11+$G11/100*Q$7+$H11/100000*Q$7^2+$I11/1000000000*Q$7^3,$F11+$G11/100*$B$29+$H11/100000*$B$29^2+$I11/1000000000*$B$29^3) -> 29.04426713 | R11: =P11*Q11*(Q$7-$B$29) -> 0 | T11: 29.47554641 | U11: =S11*T11*(T$7-$B$29) -> 0
A12: Dioxide de carbone | B12: CO2 | C12: 44.011 | D12: -393500 | E12: 0 | F12: 36.11 | G12: 4.233 | H12: -2.887 | I12: 7.464 | J12: 0.1496374 | K12: 0.006316414819 | L12: 0 | M12: =C57/100 -> 0.0034 | N12: 37.04771729 | O12: =M12*N12*(N$7-$B$29) -> -0.629811194 | Q12: 37.04771729 | R12: =P12*Q12*(Q$7-$B$29) -> 0 | S12: =Comb_1!L82 -> 1.00386 | T12: 40.31561744 | U12: =S12*T12*(T$7-$B$29) -> 7082.466251
A13: Hydrogène | B13: H2 | C13: 2.016 | D13: 0 | E13: -285840 | F13: 28.84 | G13: 0.00765 | H13: 0.3288 | I13: -0.8698 | J13: 0 | K13: 0 | L13: 0 | M13: =C58/100 -> 0 | N13: 28.84339608 | O13: =M13*N13*(N$7-$B$29) -> 0 | Q13: 28.84339608 | R13: =P13*Q13*(Q$7-$B$29) -> 0 | T13: 28.91190775 | U13: =S13*T13*(T$7-$B$29) -> 0
A14: Eau (v) | B14: H20 (v) | C14: 18.015 | D14: -241830 | E14: 0 | F14: 33.46 | G14: 0.688 | H14: 0.7604 | I14: -3.593 | J14: 0 | K14: 0 | L14: 0 | M14: =C59/100 -> 0 | N14: 33.61865461 | O14: =M14*(V14+N14*(N$7-$B$29)) -> 0 | P14: =D93 -> 0.01093934868 | Q14: 33.61865461 | R14: =P14*(V14+Q14*(Q$7-$B$29)) -> 442.9113289 | S14: =Comb_1!L86-S15 -> 1.988579349 | T14: 34.37405618 | U14: =((S14-G93)*$V$14)+(S14*T14*(T$7-$B$29)) -> 92365.15103 | V14: 40656 | W14: Enthalpie vaporisation (J/mol)
A15: Eau (l) | B15: H2O (l) | C15: 18.015 | D15: -285840 | E15: 0 | F15: 75.4 | G15: 0 | H15: 0 | I15: 0 | J15: 0 | K15: 0 | L15: 0 | M15: 0 | N15: 75.4 | O15: =M15*N15*(N$7-$B$29) -> 0 | Q15: 75.4 | R15: =P15*Q15*(Q$7-$B$29) -> 0 | S15: =Comb_1!L96 -> 0 | T15: 75.4 | U15: =S15*T15*(T$7-$B$29) -> 0
A16: Sulfure d'hydrogène | B16: H2S | C16: 34.076 | D16: -19960 | E16: -562590 | F16: 33.51 | G16: 1.547 | H16: 0.3012 | I16: -3.292 | J16: 0 | K16: 0 | L16: 0 | M16: =C60/100 -> 0 | N16: 33.85957976 | O16: 0 | Q16: 33.85957976 | R16: 0 | T16: 35.29836253 | U16: 0
A17: Méthane | B17: CH4 | C17: 16.043 | D17: -74850 | E17: -890360 | F17: 34.31 | G17: 5.469 | H17: 0.3661 | I17: -11 | J17: 15.32539661 | K17: 0.6469075395 | L17: -850534.1972 | M17: 0.95527 | N17: 35.54227133 | O17: -169.7623276 | Q17: 35.54227133 | R17: 0 | T17: 40.49290312 | U17: 0
A18: Éthane | B18: C2H6 | C18: 30.07 | D18: -84670 | E18: -1559900 | F18: 49.37 | G18: 13.92 | H18: -5.816 | I18: 7.28 | J18: 0.6206448 | K18: 0.02619833018 | L18: -32196.336 | M18: 0.02064 | N18: 52.47227899 | O18: -5.415139192 | Q18: 52.47227899 | R18: 0 | T18: 63.87780187 | U18: 0
A19: Propane | B19: C3H8 | C19: 44.097 | D19: -103800 | E19: -2220000 | F19: 68.032 | G19: 22.59 | H19: -13.11 | I19: 31.71 | J19: 0.05159349 | K19: 0.002177837124 | L19: -2597.4 | M19: 0.00117 | N19: 73.04793582 | O19: -0.4273304246 | Q19: 73.04793582 | R19: 0 | T19: 90.90986898 | U19: 0
A20: Butane | B20: C4H10 | C20: 58.124 | D20: -134500 | E20: -2868800 | F20: 89.46 | G20: 30.13 | H20: -18.91 | I20: 49.87 | J20: 0 | K20: 0 | L20: 0 | M20: 0 | N20: 96.14292534 | O20: 0 | Q20: 96.14292534 | R20: 0 | T20: 119.7150259 | U20: 0
A21: ** i-Butane | B21: C4H10 | C21: 58.124 | D21: =D20 -> -134500 | E21: =E20 -> -2868800 | F21: 89.46 | G21: 30.13 | H21: -18.91 | I21: 49.87 | J21: 0.0029062 | K21: 0.000122674978 | L21: -143.44 | M21: 5e-05 | N21: 96.14292534 | O21: -0.02403573133 | Q21: 96.14292534 | R21: 0 | T21: 119.7150259 | U21: 0
A22: n-Butane | B22: C4H10 | C22: 58.124 | D22: -124700 | E22: -2878500 | F22: 92.3 | G22: 27.88 | H22: -15.47 | I22: 34.98 | J22: 0.0029062 | K22: 0.000122674978 | L22: -143.925 | M22: 5e-05 | N22: 98.49412945 | O22: -0.02462353236 | Q22: 98.49412945 | R22: 0 | T22: 120.6628495 | U22: 0
A23: Pentane | B23: C5H12 | C23: 72.15 | D23: -152000 | E23: -35292000 | F23: 114.8 | G23: 34.09 | H23: -18.99 | I23: 42.26 | J23: 0 | K23: 0 | L23: 0 | M23: =CC67/100 -> 0 | N23: 122.3734254 | O23: 0 | Q23: 122.3734254 | R23: 0 | T23: 149.4632764 | U23: 0
A24: Octane | B24: C8H18 | C24: 114.23 | D24: -208400 | E24: -5512200 | F24: -5.8307 | G24: 4.4541 | H24: -0.4208 | I24: 1.263 | J24: 0 | K24: 0 | L24: 0 | M24: =C68/100 -> 0 | N24: -4.830669181 | O24: 0 | Q24: -4.830669181 | R24: 0 | T24: -0.9002506328 | U24: 0
A25: *** iso-Octane | B25: Ch8H18i | C25: 114.23 | D25: =D24 -> -208400 | E25: =E24 -> -5512200 | F25: -5.8307 | G25: 4.4541 | H25: -0.4208 | I25: 1.263 | J25: 0 | K25: 0 | L25: 0 | M25: =C69/100 -> 0 | N25: -4.830669181 | O25: 0 | Q25: -4.830669181 | R25: 0 | T25: -0.9002506328 | U25: 0
A26: Azote | B26: N2 | C26: 28.013 | D26: 0 | E26: 0 | F26: 29 | G26: 0.2199 | H26: 0.5723 | I26: -2.871 | J26: 0.54401246 | K26: 0.02296356636 | L26: 0 | M26: =C70/100 -> 0.01942 | N26: 29.05237662 | O26: =M26*N26*(N$7-$B$29) -> -2.82098577 | P26: =D91 -> 7.481249003 | Q26: 29.05237662 | R26: -1086.740318 | S26: =Comb_1!L81 -> 9.725623704 | T26: 29.35212951 | U26: =S26*T26*(T$7-$B$29) -> 49956.85914
A27: Hélium | B27: He | C27: 4.00206 | D27: 0 | E27: 0 | F27: 20.8 | G27: 0 | H27: 0 | I27: 0 | J27: 0 | K27: 0 | L27: 0 | M27: =CC71/100 -> 0 | N27: 20.8 | O27: 0 | Q27: 20.8 | R27: 0 | T27: 20.8 | U27: 0
I28: SOMME | J28: =SUM(J10:J27) -> 16.69709716 | K28: =SUM(K10:K27) -> 0.704809038 | L28: =SUM(L10:L27) -> -885615.2982 | M28: =SUM(M10:M27) -> 1 | O28: =SUM(O10:O27) -> -179.1042535 | P28: =SUM(P10:P27) -> 7.492188351 | R28: =SUM(R10:R27) -> -643.8289893 | S28: =SUM(S10:S27) -> 13.31484705 | U28: =SUM(U10:U27) -> 152567.3137
A29: * Référence. Patm, T = | B29: 25 | C29: oC
A30: ** Hyp. Même propriétés que Butane | J30: Pouvoir Calorifique Supérieur
A31: *** Hyp. Même que Octane | K31: =ABS(L28/1000) -> 885.6152982 | L31: kJ / mol
A32: **** À Patm et T = 15.6 oC (14.7 psi et 60 F) | K32: =K31/(J28/1000) -> 53040.07575 | L32: kJ / kg
K33: =(K32/1000)*K28 -> 37.38312476 | L33: MJ / m3
A34: Référence
A35: Elementary Principles of Chemical Processes | K35: =(K33*1000)/1.055*0.02832 -> 1003.497719 | L35: BTU / ft3
A36: Wiley Series in Chemical Engineering, Second Edition | K36: =(K32/1.055)*0.4536 -> 22804.71883 | L36: BTU / lbm
A37: R M Felder et R W Rousseau | K37: =K35/7.4814 -> 134.1323441 | L37: BTU / gal
F42: Constitution de l'air sec
E43: Azote | F43: 0.7899504875
E44: Oxygène | F44: =1-F43 -> 0.2100495125
A45: BILAN MASSIQUE | E45: Autres | F45: 0
A48: CALCUL DE LA COMBUSTION STOÉCHIOMÉTRIQUE | L48: Masse H2 par livre de combustible
C50: COMPOSITION | D50: GAZ DE COMBUSTION STOÉCHIOMÉTRIQUE | M50: Masse d'hydrogène dans une livre de combustible (lb/lb) | Q50: =(4*N53+6*N55+8*N56+10*N57+10*N58)/(N53*O53+N54*O54+N55*O55+N56*O56+N57*O57+N58*O58+N59*O59) -> 0.2368842897
C51: (mol / 100 mol gaz) | D51: CO2 | E51: H2O | F51: SO2 | G51: He | H51: N2 | I51: TOTAL | J51: O2 requis
A52: GAZ (ÉTAT GAZEUX) | M52: Compo | N52: % mol | O52: masse molaire
B53: TOTAL | C53: =SUM(C55:C71) -> 100 | D53: =SUM(D55:D71) -> 1.00386 | E53: 1.97764 | F53: 0 | G53: 0 | H53: 0.01942 | I53: 3.00092 | J53: 1.98928 | M53: CH4 | N53: =C61 -> 95.527 | O53: =C17 -> 16.043
M54: CO2 | N54: =C57 -> 0.34 | O54: =C12 -> 44.011
A55: Oxygène | B55: O2 | C55: 0 | I55: =SUM(D55:H55) -> 0 | J55: =-C55/100 -> 0 | M55: C2H6 | N55: =C62 -> 2.064 | O55: =C18 -> 30.07
A56: Monoxide de carbone | B56: CO | C56: 0 | D56: =C56/100 -> 0 | I56: 0 | J56: =D56+E56/2+F56 -> 0 | M56: C3H8 | N56: =C63 -> 0.117 | O56: =C19 -> 44.097
A57: Dioxide de carbone | B57: CO2 | C57: 0.34 | D57: =C57/100 -> 0.0034 | I57: 0.0034 | J57: 0 | M57: C4H10 | N57: =C65 -> 0.005 | O57: =C21 -> 58.124
A58: Hydrogène | B58: H2 | C58: 0 | E58: =C58/100 -> 0 | I58: 0 | J58: =D58+E58/2+F58 -> 0 | M58: C4H10 | N58: =C66 -> 0.005 | O58: =C22 -> 58.124
A59: Eau (l) | B59: H2O (l) | C59: 0 | E59: =C59/100 -> 0 | I59: 0 | J59: 0 | M59: N2 | N59: =C70 -> 1.942 | O59: =C26 -> 28.013
A60: Sulfure d'hydrogène | B60: H2S | C60: 0 | E60: =C60/100 -> 0 | F60: =C60/100 -> 0 | I60: 0 | J60: 0
A61: Méthane | B61: CH4 | C61: 95.527 | D61: =C61/100 -> 0.95527 | E61: =C61/100*2 -> 1.91054 | I61: 2.86581 | J61: 1.91054
A62: Éthane | B62: C2H6 | C62: 2.064 | D62: =C62*2/100 -> 0.04128 | E62: =C62/100*3 -> 0.06192 | I62: 0.1032 | J62: 0.07224
A63: Propane | B63: C3H8 | C63: 0.117 | D63: =C63*3/100 -> 0.00351 | E63: =C63/100*4 -> 0.00468 | I63: 0.00819 | J63: 0.00585
A64: Butane | B64: C4H10 | C64: 0 | D64: =C64*4/100 -> 0 | E64: =C64/100*5 -> 0 | I64: 0 | J64: 0
A65: ** i-Butane | B65: C4H10 | C65: 0.005 | D65: =C65*4/100 -> 0.0002 | E65: =C65/100*5 -> 0.00025 | I65: 0.00045 | J65: 0.000325
A66: n-Butane | B66: C4H10 | C66: 0.005 | D66: =C66*4/100 -> 0.0002 | E66: =C66/100*5 -> 0.00025 | I66: 0.00045 | J66: 0.000325
A67: Pentane | B67: C5H12 | C67: 0 | D67: =C67*5/100 -> 0 | E67: =C67/100*6 -> 0 | I67: 0 | J67: 0
A68: Octane | B68: C8H18 | C68: 0 | D68: =C68*8/100 -> 0 | E68: =C68/100*9 -> 0 | I68: 0 | J68: 0
A69: *** iso-Octane | B69: Ch8H18i | C69: 0 | D69: =C69*8/100 -> 0 | E69: =C69/100*9 -> 0 | I69: 0 | J69: 0
A70: Azote | B70: N2 | C70: 1.942 | H70: =C70/100 -> 0.01942 | I70: 0.01942 | J70: 0
A71: Hélium | B71: He | C71: 0 | G71: =C71/100 -> 0 | I71: 0 | J71: 0
A74: AIR DE COMBUSTION | I74: FUMÉES
D75: MASSIQUE | L75: MASSIQUE
D76: % O2 | E76: % EA | F76: % CO2 | G76: RÉSULTATS | M76: Proportion (%)
D77: FALSE | E77: TRUE | F77: FALSE | L77: (mol / mol gaz) | M77: Base Hum | N77: Base Sec
D78: =IF(D77,1,"-") -> - | E78: =IF(E77,2,"-") -> 2 | F78: =IF(F77,3,"-") -> - | G78: =AVERAGE(D78:F78) -> 2
A79: Calcul de l'excès d'air (base sèche) | D79: =D87/D84 -> 0 | E79: =Bilan_1!B13 -> 0.3 | F79: =F86/F83 ->  | G79: =INDEX(D79:F79,G$78) -> 0.3 | I79: TOTAL | K79: mol / mol gas | L79: =SUM(L81:L86) -> 13.31484705 | M79: =SUM(M81:M86) -> 1 | N79: =SUM(N81:N86) -> 1
A80: Oxygène dans les fumées (base sèche) | D80: 0 | E80: =E86/(E83*($F$43/$F$44)+I53-E53+E86/$F$44) -> 0.05260007287 | F80: =F86/(F83*($F$43/$F$44)+I53-E53+F86/$F$44) ->  | G80: =INDEX(D80:F80,G$78) -> 0.05260007287
A81: Dioxide de carbone dans les fumées | D81: =$N$82 -> 0.08863113837 | E81: =N82 -> 0.08863113837 | F81: 0 | G81: =INDEX(D81:F81,G$78) -> 0.08863113837 | I81: Azote | K81: mol / mol gas | L81: =G91 -> 9.725623704 | M81: =L81/$L$79 -> 0.7304345041 | N81: =L81/($L$79-$L$86) -> 0.8586786008
I82: Dioxide de carbone | K82: mol / mol gas | L82: =D53 -> 1.00386 | M82: 0.07539403164 | N82: =L82/($L$79-$L$86) -> 0.08863113837
A83: Oxygène stoéchiométrique | C83: mol / mol gas | D83: =$J$53 -> 1.98928 | E83: =$J$53 -> 1.98928 | F83: =$J$53 -> 1.98928 | G83: =INDEX(D83:F83,G$78) -> 1.98928 | I83: Dioxide de soufre | K83: mol / mol gas | L83: =F53 -> 0 | M83: 0 | N83: =L83/($L$79-$L$86) -> 0
A84: Air stoéchiométrique | C84: mol / mol gas | D84: =D83/$F$44 -> 9.470529003 | E84: =E83/$F$44 -> 9.470529003 | F84: =F83/$F$44 -> 9.470529003 | G84: =INDEX(D84:F84,G$78) -> 9.470529003 | I84: Oxygène | K84: mol / mol gas | L84: =G86 -> 0.596784 | M84: 0.04482094294 | N84: =L84/($L$79-$L$86) -> 0.05269026087
I85: Hélium | K85: mol / mol gas | L85: =G53 -> 0 | M85: 0 | N85: =L85/($L$79-$L$86) -> 0
A86: Excès oxygène | C86: mol / mol gas | D86: =D80/(1-D80/$F$44)*(($I$53-$E$53)+D83*$F$43/$F$44) -> 0 | E86: =E83*$E$79 -> 0.596784 | F86: =(D53/F81-(I53-E53)-F83*(F43/F44))/(1+F43/F44) ->  | G86: =INDEX(D86:F86,G$78) -> 0.596784 | I86: Eau (liquide et vapeur) | K86: mol / mol gas | L86: =G93+E53 -> 1.988579349 | M86: 0.1493505213 | N86: 0
A87: Excès air | C87: mol / mol gas | D87: =D86/F44 -> 0 | E87: =E84*$E$79 -> 2.841158701 | F87: =F86/F44 ->  | G87: =INDEX(D87:F87,G$78) -> 2.841158701 | I87: Condensation (liquide) | K87: mol / mol gas | L87: =L96 -> 0 | M87: 0 | N87: 1
I88: Molecular weight | K88: g/mol | M88: =M81*28+M82*44+M83*64+M84*32+M86*18 -> 27.89208306
A89: Air de combustion | C89: mol / mol gas | D89: =SUM(D91:D93) -> 9.481468351 | E89: =SUM(E91:E93) -> 12.32262705 | F89: =SUM(F91:F93) ->  | G89: =INDEX(D89:F89,G$78) -> 12.32262705 | I89: Condensation des fumées | L89: =IF(L91<L92,"VRAI","FAUX") -> FAUX
I90: Humidité (sans condensation) | K90: mol / mol fumées | L90: =E53+G93 -> 1.988579349
A91: Azote | C91: mol / mol gas | D91: =D92*($F$43/$F$44) -> 7.481249003 | E91: =E92*($F$43/$F$44) -> 9.725623704 | F91: =F92*($F$43/$F$44) ->  | G91: =INDEX(D91:F91,G$78) -> 9.725623704 | I91: Température des fumées | K91: oC | L91: =T7 -> 200
A92: Oxygène | C92: mol / mol gas | D92: =D83+D86 -> 1.98928 | E92: =E83+E86 -> 2.586064 | F92: =F83+F86 ->  | G92: =INDEX(D92:F92,G$78) -> 2.586064 | I92: Point de rosée | K92: oC | L92: =E135 -> 54.10935499
A93: Vapeur d'eau | C93: mol / mol gas | D93: =E114*Comb_1!D84 -> 0.01093934868 | E93: =E114*Comb_1!E84 -> 0.01093934868 | F93: =E114*Comb_1!F84 -> 0.01093934868 | G93: =INDEX(D93:F93,G$78) -> 0.01093934868 | I93: Flue gas density | K93: lb/cu ft
I94: Saturation (Tfumées) | K94: mol / mol fumées | L94: =E128 -> 0.1755723422 | M94: Fumées sèches
A95: Humidité | I95: Condensation | K95: mol / mol fumées | L95: =E139 -> 0
A96: Humidité relative | D96: 0.05 | K96: mol / mol gas | L96: =E140 -> 0
A97: Point de rosée | C97: oC | D97: =IF(D96<>0,E118,"-") -> 
C102: PRESSION ATMOSPHÉRIQUE | H102: TABLE VAPEUR SATURÉE
C103: Altitude | D103: FASL | E103: 200 | F103: Mtl = 200 | H103: Tsat (oC) | I103: Psat (Pa) | J103: Tsat (oC)
C104: Pression barométrique | D104: po Hg | E104: =29.9269-0.001020817*E103+0.000000011*E103^2-0.0000000000005118678*E103^3 -> 29.72317251 | H104: 0 | I104: 610.4832696 | J104: =H104 -> 0
C105: Pression barométrique | D105: Pa | E105: 101312.5 | F105: =E104*3370 -> 100167.0913 | H105: 2 | I105: 705.8087856 | J105: 2
H106: 4 | I106: 813.3999624 | J106: 4
C107: AIR DE COMBUSTION | H107: 6 | I107: 934.9899912 | J107: 6
C108: Température | D108: oC | E108: =N7 -> 20 | H108: 8 | I108: 1072.578708 | J108: 8
C109: Humidité relative | E109: 0.05 | H109: 10 | I109: 1227.765982 | J109: 10
H110: 12 | I110: 1402.285003 | J110: 12
C111: Pression saturation | D111: Pa | E111: =IF(E108<0,0.09*6895,I196) -> 2337.808284 | H111: 14 | I111: 1598.135609 | J111: 14
C112: Pression vapeur eau | D112: Pa | E112: =E109*E111 -> 116.8904142 | H112: 16 | I112: 1817.717602 | J112: 16
H113: 18 | I113: 2063.430785 | J113: 18
C114: H2O / Air sec | D114: mol / mol | E114: =E112/(E105-E112) -> 0.001155093731 | H114: 20 | I114: 2337.808284 | J114: 20
C115: H2O / Air sec | D115: lb / lb | E115: =E114*18.02/28.95 -> 0.0007189909854 | H115: 22 | I115: 2643.383225 | J115: 22
H116: 24 | I116: 2983.355345 | J116: 24
C117: H2O / Air humide | D117: mol / mol | E117: =E112/E105 -> 0.001153761029 | H117: 26 | I117: 3360.924382 | J117: 26
C118: Température de rosée | D118: oC | E118: =H202 ->  | H118: 28 | I118: 3779.556718 | J118: 28
H119: 30 | I119: 4242.852058 | J119: 30
C120: FUMÉES | H120: 32 | I120: 4754.676751 | J120: 32
C121: Température | D121: oC | E121: =T7 -> 200 | H121: 34 | I121: 5319.297115 | J121: 34
H122: 36 | I122: 5941.246111 | J122: 36
C123: Fumées totales | D123: mol / mol gaz | E123: =L79 -> 13.31484705 | H123: 38 | I123: 6625.056701 | J123: 38
C124: Humidité (H2O) | D124: mol / mol gaz | E124: =L90 -> 1.988579349 | F124: sans condensation | H124: 40 | I124: 7375.928458 | J124: 40
H125: 42 | I125: 8199.3276 | J125: 42
C126: Pression vapeur | D126: Pa | E126: =E131*E105 -> 15131.07469 | H126: 44 | I126: 9100.587024 | J126: 44
H127: 46 | I127: 10085.83956 | J127: 46
C128: H2O / Air sec | D128: mol / mol | E128: =E124/(E123-E124) -> 0.1755723422 | F128: Mair | H128: 48 | I128: 11160.4181 | J128: 48
C129: H2O / Air sec | D129: lb / lb | E129: =E128*18.02/F129 -> 0.112217204 | F129: =(M81*28+M82*48+M83*64+M84*32+M85*4+M86*18) -> 28.19365919 | H129: 50 | I129: 12333.65522 | J129: 50
H130: 55 | I130: 15737.3761 | J130: 55
C131: H2O / Air humide | D131: mol / mol | E131: =E124/E123 -> 0.1493505213 | H131: 60 | I131: 19915.70011 | J131: 60
C132: H2O / mol gas | D132: mol / mol | E132: =E131*E123 -> 1.988579349 | H132: 65 | I132: 25003.2829 | J132: 65
H133: 70 | I133: 31157.44488 | J133: 70
C134: Condensation | E134: =IF(E135>E121,"VRAI","FAUX") -> FAUX | H134: 75 | I134: 38543.50584 | J134: 75
C135: Point de rosée | D135: oC | E135: =H208 -> 54.10935499 | H135: 80 | I135: 47342.78424 | J135: 80
H136: 85 | I136: 57808.59264 | J136: =H136 -> 85
C137: Pression saturation | D137: Pa | E137: =I214 -> 1553800 | H137: 90 | I137: 70095.58502 | J137: 90
C138: Contenu H2O à saturation | D138: mol / mol fumées | E138: =IF(E134="VRAI",E137/E105,"-") -> - | H138: 91 | I138: 72800.69652 | J138: 91
C139: Condensation | D139: mol / mol fumées | E139: =IF(E134="VRAI",E131-E138,0) -> 0 | H139: 92 | I139: 75592.46758 | J139: 92
C140: Condensation | D140: mol / mol gaz | E140: =IF(E134="VRAI",E139*E123,0) -> 0 | H140: 93 | I140: 78473.56464 | J140: 93
C141: Condensation | D141: g / mol gaz | E141: =IF(E134="VRAI",E140*18,0) -> 0 | H141: 94 | I141: 81446.65416 | J141: 94
H142: 95 | I142: 84513.06936 | J142: 95
C143: Humidité Relative des Fumées | E143: =IF(E134="VRAI",1,IF(E121<100,E126/E137,"N / A")) -> N / A | H143: 96 | I143: 87675.47669 | J143: 96
H144: 97 | I144: 90935.20937 | J144: 97
H145: 98 | I145: 94294.93385 | J145: 98
H146: 99 | I146: 97757.31658 | J146: 99
H147: 100 | I147: 101325.024 | J147: 100
H148: 105 | I148: 120820 | J148: 105
H149: 110 | I149: 143270 | J149: 110
H150: 115 | I150: 169060 | J150: 115
H151: 120 | I151: 198530 | J151: 120
H152: 125 | I152: 232100 | J152: 125
H153: 130 | I153: 270100 | J153: 130
H154: 135 | I154: 313000 | J154: 135
H155: 140 | I155: 361300 | J155: 140
H156: 145 | I156: 415400 | J156: 145
H157: 150 | I157: 475800 | J157: 150
H158: 155 | I158: 543100 | J158: 155
H159: 160 | I159: 617800 | J159: 160
H160: 165 | I160: 700500 | J160: 165
H161: 170 | I161: 791700 | J161: 170
H162: 175 | I162: 892000 | J162: 175
H163: 180 | I163: 1002100 | J163: 180
H164: 185 | I164: 1122700 | J164: 185
H165: 190 | I165: 1254400 | J165: 190
H166: 195 | I166: 1397800 | J166: 195
H167: 200 | I167: 1553800 | J167: 200
H168: 205 | I168: 1723000 | J168: =H168 -> 205
H169: 210 | I169: 1906200 | J169: 210
H170: 215 | I170: 2104000 | J170: 215
H171: 220 | I171: 2318000 | J171: 220
H172: 225 | I172: 2548000 | J172: 225
H173: 230 | I173: 2795000 | J173: 230
H174: 235 | I174: 3060000 | J174: 235
H175: 240 | I175: 3344000 | J175: 240
H176: 245 | I176: 3648000 | J176: 245
H177: 250 | I177: 3973000 | J177: 250
H178: 255 | I178: 4319000 | J178: 255
H179: 260 | I179: 4688000 | J179: 260
H180: 265 | I180: 5081000 | J180: 265
H181: 270 | I181: 5499000 | J181: 270
H182: 275 | I182: 5942000 | J182: 275
H183: 280 | I183: 6412000 | J183: 280
H184: 285 | I184: 6909000 | J184: 285
H185: 290 | I185: 7436000 | J185: 290
H186: 295 | I186: 7993000 | J186: 295
H187: 300 | I187: 8581000 | J187: 300
H188: 320 | I188: 11274000 | J188: 320
H189: 340 | I189: 14586000 | J189: 340
H190: 360 | I190: 18651000 | J190: 360
H191: 374.14 | I191: 22090000 | J191: 374.14
H193: Psat AIR COMBUSTION
H194: T | I194: Psat
H195: =VLOOKUP(E108,H104:I191,1) -> 20 | I195: =VLOOKUP(H195,$H$104:$I$191,2) -> 2337.808284 | J195: =MATCH(H195,H104:H191,1) -> 11
H196: =E108 -> 20 | I196: =I195+((H196-H195)/(H197-H195))*(I197-I195) -> 2337.808284
H197: =INDEX(H104:H191,J197) -> 22 | I197: =VLOOKUP(H197,$H$104:$I$191,2) -> 2643.383225 | J197: =J195+1 -> 12
H199: CALCUL ROSÉE AIR COMB
H200: T | I200: Psat
H201: =VLOOKUP(I201,$I$104:$J$191,2) ->  | I201: =VLOOKUP(I202,I104:J191,1) ->  | J201: =MATCH(H201,H104:H191,1) -> 
H202: =H201+(I202-I201)/(I203-I201)*(H203-H201) ->  | I202: =E117*E105 -> 116.8904142
H203: =INDEX(H104:H191,J203) ->  | I203: =VLOOKUP(H203,H104:I191,2) ->  | J203: =J201+1 -> 
H205: TEMP. CONDENSATION FUMÉE
H206: T | I206: Psat
H207: =VLOOKUP(I207,$I$104:$J$191,2) -> 50 | I207: =VLOOKUP(E126,I104:J191,1) -> 12333.65522 | J207: =MATCH(H207,H104:H191,1) -> 26
H208: =H207+(I208-I207)/(I209-I207)*(H209-H207) -> 54.10935499 | I208: =E126 -> 15131.07469
H209: =INDEX(H104:H191,J209) -> 55 | I209: =VLOOKUP(H209,H104:I191,2) -> 15737.3761 | J209: =J207+1 -> 27
H211: CALCUL FUMÉES
H212: T | I212: Psat
H213: =VLOOKUP(H214,H104:I191,1) -> 200 | I213: =VLOOKUP(H213,$H$104:$I$191,2) -> 1553800 | J213: =MATCH(H213,H104:H191,1) -> 64
H214: =E121 -> 200 | I214: =I213+((H214-H213)/(H215-H213))*(I215-I213) -> 1553800
H215: =INDEX(H104:H191,J215) -> 205 | I215: =VLOOKUP(H215,$H$104:$I$191,2) -> 1723000 | J215: =J213+1 -> 65

Sheet Bilan_1 (hidden)
A1: Formulaire de calcul | N1: Unités et paramètres de calculs | Y1: Quantité de purge | Z1: Excès d'air
U2: Numéro correspondant à sélection dans entrée de données | Y2: ='Entrée de données'!C52 -> 1 | Z2: ='Entrée de données'!C36 -> 30 | AA2: ='Entrée de données'!C25 -> 1
B3: Type de chaudière: | C3: =VLOOKUP(AA2,X4:AA7,4) -> Tubes de fumées | O3: Conversion | X3: Numéro | Y3: % Purge | Z3: % Exces d'air | AA3: Type de chaudière
O4: 1kW = | P4: =1000000/293.07 -> 3412.154093 | Q4: Btu/h | X4: 1 | Y4: 0 | Z4: 0.01 | AA4: Tubes de fumées
A5: OUTPUT: | O5: 1 Btu/h = | P5: 0.00029307 | Q5: kW | X5: =X4+1 -> 2 | Y5: 0.01 | Z5: =Z4+0.01 -> 0.02 | AA5: Tubes d'eau
A6: Puissance maximale du brûleur | B6: ='Entrée de données'!C27 -> 0 | C6: kW | D6: Donnée d'entrée | O6: 1 kJ/kg= | P6: 0.42993 | Q6: Btu/lb | X6: =X5+1 -> 3 | Y6: 0.02 | Z6: =Z5+0.01 -> 0.03 | AA6: À serpentin
A7: Puissance maximale de production de vapeur de la chaudière | B7: ='Entrée de données'!C29 -> 0 | C7: kW | D7: Donnée d'entrée | O7: 1 Btu = | P7: 0.001055 | Q7: MJ | X7: =X6+1 -> 4 | Y7: 0.03 | Z7: 0.04 | AA7: Sans tube
A8: Puissance maximale de production de vapeur de la chaudière | B8: =ROUND(B7*P4/1000000,2) -> 0 | C8: millions Btu/h | D8: Simple calcul de conversion des kw en btu/h | O8: 1 MJ = | P8: =1/P7 -> 947.8672986 | Q8: Btu | X8: =X7+1 -> 5 | Y8: 0.04 | Z8: 0.05
A9: Puissance moyenne de production de vapeur de la chaudière en opération | B9: ='Entrée de données'!C32 -> 0 | C9: kW | D9: Donnée d'entrée | E9: ATTENTION: Ce n'est pas juste pour la vapeur dispo. C'est aussi de l'énergie qui sera perdu par les purges. | O9: 1 lb = | P9: 0.45359237 | Q9: kg | X9: 6 | Y9: 0.05 | Z9: 0.06
A10: Puissance moyenne de production de vapeur de la chaudière en opération | B10: =ROUND(B9*P4/1000000,2) -> 0 | C10: millions Btu/h | D10: Données entrée converti en btu/h | O10: 1 kg = | P10: =1/P9 -> 2.204622622 | Q10: lb | X10: 7 | Y10: 0.06 | Z10: 0.07
X11: 8 | Y11: 0.07 | Z11: 0.08
A12: INFO POUR CALCUL DE L'EFFICACITÉ | X12: 9 | Y12: 0.08 | Z12: 0.09
A13: Excès d'air | B13: =VLOOKUP(Z2,X4:Z105,3) -> 0.3 | D13: Donnée d'entrée | X13: 10 | Y13: 0.09 | Z13: 0.1
A14: Température des fumées (°F) | B14: =ROUND(('Entrée de données'!C34)*1.8+32,1) -> 392 | C14: °F | D14: Donnée entrée convertie en °F au lieu de °C | S14: Pertes par radiation et convection | X14: 11 | Y14: 0.1 | Z14: 0.11
A15: Température de l'air de combustion (°F) | B15: =ROUND(('Entrée de données'!C35*1.8+32),1) -> 68 | C15: °F | D15: Donnée entrée convertie en °F au lieu de °C | S15: Puissance maximale kW | T15: Puissance maximale millions Btu/h | U15: % de Pertes | V15: à 100% de la charge | X15: 12 | Y15: 0.11 | Z15: 0.12
A16: Température de l'eau d'appoint (°C) | B16: ='Entrée de données'!C48 -> 0 | C16: °C | D16: Donnée d'entrée | X16: 13 | Y16: 0.12 | Z16: 0.13
R17: Inférieure à 5 millions Btu/h | S17: Inférieure à 1465 | T17: =IF(B8<5,B8, "") -> 0 | U17: =IF($B$8<5,$V$88/($B$10/#REF!),"") ->  | V17: =IF($B$8<5,$V$89,"") -> 0 | X17: 14 | Y17: 0.13 | Z17: 0.14
A18: CALCUL DE L'EFFICACITÉ DE CHAUFFE : 100%-perte fumée - perte radiation | S18: =T18*$P$5*1000000 -> 1465.35 | T18: 5 | U18: =V18/($B$10/T18) ->  | V18: 0.026 | X18: 15 | Y18: 0.14 | Z18: 0.15
A19: 1. Perte par les fumée | B19: =1-Comb_1!G2 -> 0.1724329004 | S19: =T19*$P$5*1000000 -> 2930.7 | T19: 10 | V19: 0.016 | X19: 16 | Y19: 0.15 | Z19: 0.16
A20: 2. Perte par radiation: | S20: 5861.4 | T20: 20 | V20: 0.0105 | X20: 17 | Y20: 0.16 | Z20: 0.17
A21: Pertes par radiation et convection | D21: Interpolation des pertes par radiation et convection | H21: Puissance (millions Btuh) | I21: Pertes à 100% | S21: 8792.1 | T21: 30 | V21: 0.0084 | X21: 18 | Y21: 0.17 | Z21: 0.18
A22: Pertes calculées pour une chaudière de | B22: =IF(B8<T18,T17,B8) -> 0 | C22: millions Btu/h | D22: Puissance en dessous | H22: =IF(B8<5,B8,LOOKUP(B8,T18:T42)) -> 0 | I22: =ROUND(IF(H22<5,V17, VLOOKUP(H24,T18:V42,3,TRUE)),4) -> 0 | S22: 11722.8 | T22: 40 | V22: 0.0073 | X22: 19 | Y22: 0.18 | Z22: 0.19
B23: =I24/(B9/B7) ->  | D23: Puissance au dessus | H23: =IF(B8<T18,B8,INDEX(T18:T42,RANK(LOOKUP(B8,T18:T42),T18:T42,1)+1)) -> 0 | I23: =ROUND(IF(H23<5,V17, VLOOKUP(H23,T18:V42,3,TRUE)),4) -> 0 | S23: 14653.5 | T23: 50 | V23: 0.0066 | X23: 20 | Y23: 0.19 | Z23: 0.2
D24: Valeur pour interpolation | H24: =B8 -> 0 | I24: =ROUND(IF(H22=H23,AVERAGE(I22,I23),FORECAST(H24,I22:I23,H22:H23)),4) -> 0 | S24: 17584.2 | T24: 60 | V24: 0.0062 | X24: 21 | Y24: 0.2 | Z24: 0.21
S25: 20514.9 | T25: 70 | V25: 0.0059 | X25: 22 | Y25: 0.21 | Z25: 0.22
A26: Efficacité de chauffe | B26: =1-B19-B23 ->  | S26: 23445.6 | T26: 80 | V26: 0.0056 | X26: 23 | Y26: 0.22 | Z26: 0.23
S27: 26376.3 | T27: 90 | V27: 0.0054 | X27: 24 | Y27: 0.23 | Z27: 0.24
A28: INPUT | S28: 29307 | T28: 100 | V28: 0.0052 | X28: 25 | Y28: 0.24 | Z28: 0.25
A29: Puissance du brûleur en opération | B29: =B30*1000000*P5 ->  | C29: kW | D29: Convertion de B30 en kw | S29: 35168.4 | T29: 120 | V29: 0.0048 | X29: 26 | Y29: 0.25 | Z29: 0.26
A30: Puissance du brûleur en opération | B30: =B10/B26 ->  | C30: millions Btu/h | D30: Puissance moyenne production vapeur / efficacité | S30: 41029.8 | T30: 140 | V30: 0.0045 | X30: 27 | Y30: 0.26 | Z30: 0.27
A31: Volume de gaz naturel alimenté | B31: =ROUND(B30*10^6/J37,2) ->  | C31: m3/h | D31: Convertion de la puissance en opération du bruleur de kw en m3 de gaz | S31: 46891.2 | T31: 160 | V31: 0.0043 | X31: 28 | Y31: 0.27 | Z31: 0.28
A32: Nombre de moles totales pour le volume de gaz | B32: =ROUND(B31/(8.31451*(273.15+'Entrée de données'!C37)/101325),1) ->  | C32: mol/h | D32: PV=nRT => n=PV/RT | S32: 52752.6 | T32: 180 | V32: 0.004 | X32: 29 | Y32: 0.28 | Z32: 0.29
S33: 58614 | T33: 200 | V33: 0.0038 | X33: 30 | Y33: 0.29 | Z33: 0.3
A34: Quantité de fumées produites | S34: 87921 | T34: 300 | V34: 0.0034 | X34: 31 | Y34: 0.3 | Z34: 0.31
B35: masse molaire (g/mol) | C35: mol | D35: masse(lb/h) | E35: masse (kg/h) | G35: Masse d'hydrogène dans une livre de combustible (lb/lb) | J35: =Comb_1!Q50 -> 0.2368842897 | S35: 117228 | T35: 400 | V35: 0.003 | X35: 32 | Y35: 0.31 | Z35: 0.32
A36: CO2 | B36: =Comb_1!C12 -> 44.011 | C36: =Comb_1!L82*B32 ->  | D36: =ROUND(C36*B36/($P$9*1000),1) ->  | E36: =ROUND(C36*B36/1000,1) ->  | G36: 1m3 gaz naturel (MJ) | J36: 37.89 | S36: 146535 | T36: 500 | V36: 0.0028 | X36: 33 | Y36: 0.32 | Z36: 0.33
A37: H2O | B37: =Comb_1!C14 -> 18.015 | C37: =Comb_1!L86*B32 ->  | D37: =ROUND(C37*B37/($P$9*1000),1) ->  | E37: =ROUND(C37*B37/1000,1) ->  | G37: 1m3 gaz naturel (btu) | J37: =J36*P8 -> 35914.69194 | S37: 293070 | T37: 1000 | V37: 0.0023 | X37: 34 | Y37: 0.33 | Z37: 0.34
A38: O2 | B38: =Comb_1!C10 -> 32 | C38: =Comb_1!L84*Bilan_1!B32 ->  | S38: 586140 | T38: 2000 | V38: 0.00195 | X38: 35 | Y38: 0.34 | Z38: 0.35
A39: N2 | B39: =Comb_1!C26 -> 28.013 | C39: =Comb_1!L81*B32 ->  | S39: 1172280 | T39: 4000 | V39: 0.00175 | X39: 36 | Y39: 0.35 | Z39: 0.36
A40: Total (humide) | C40: =SUM(C36:C39) ->  | D40: =SUM(D36:D39) ->  | E40: =SUM(E36:E39) ->  | S40: 1758420 | T40: 6000 | V40: 0.0016 | X40: 37 | Y40: 0.36 | Z40: 0.37
A41: Total (sec) | C41: =SUM(C36,C38:C39) ->  | D41: =D40-D37 ->  | E41: =SUM(E36,E38:E39) ->  | S41: 2930700 | T41: 10000 | V41: 0.0015 | X41: 38 | Y41: 0.37 | Z41: 0.38
S42: 5861400 | T42: 20000 | V42: 0.0015 | X42: 39 | Y42: 0.38 | Z42: 0.39
A43: CONDENSAT | X43: 40 | Y43: 0.39 | Z43: 0.4
A44: Enthalpie de l'eau d'appoint (kJ/kg) | B44: =ROUND(4.18*(B16),3) -> 0 | C44: kJ/kg | D44: Cp*DT | X44: 41 | Y44: 0.4 | Z44: 0.41
A45: Température du condensat (°C) | B45: =IF(('Entrée de données'!C49=2),"0",('Entrée de données'!C51)) -> 0 | C45: °C | D45: Donnée d'entrée | X45: 42 | Y45: 0.41 | Z45: 0.42
A46: Enthalpie du condensat (kJ/kg) | B46: =IF('Entrée de données'!C49=2,"0",4.18*(B45)) -> 0 | C46: kJ/kg | D46: Cp*DT | X46: 43 | Y46: 0.42 | Z46: 0.43
A47: % de condensat dans l'eau d'alimentation | B47: =IF('Entrée de données'!C49=1,'Entrée de données'!C50,0) -> 0 | D47: Donnée d'entrée | X47: 44 | Y47: 0.43 | Z47: 0.44
A48: T°de l'eau alimentée à la chaudière (°C) | B48: =IF('Entrée de données'!C49=1,(B47*B45+(1-B47)*B16),B16) -> 0 | C48: °C | D48: si retour de condensat: [% condensat * T° du condensat] + [(1-% condensat) * T°de l'eau d'appoint]. Sinon, c'est égale à la T° d'eau d'appoint | X48: 45 | Y48: 0.44 | Z48: 0.45
X49: 46 | Y49: 0.45 | Z49: 0.46
D50: Interpolation des enthalpies | I50: Pression (kPa) | J50: Liquide saturé (kJ/kg) | K50: Enthalpie de vaporisation (kJ/kg) | L50: Vapeur saturée (kJ/kg) | X50: 47 | Y50: 0.46 | Z50: 0.47
D51: Pression en dessous de la valeur entrée par l'utilisateur | I51: =LOOKUP(B56,'Données vapeur'!A5:A60) -> -1.325 | J51: =VLOOKUP(I51,'Données vapeur'!A5:E60,3,FALSE) -> 417.46 | K51: =VLOOKUP(I51,'Données vapeur'!A5:E60,4,FALSE) -> 2258 | L51: =VLOOKUP(I51,'Données vapeur'!A5:E60,5,FALSE) -> 2675.46 | X51: 48 | Y51: 0.47 | Z51: 0.48
D52: Pression au dessus de la valeur entrée par l'utilisateur | I52: =IF((I51-B56)=0,B56,INDEX('Données vapeur'!A5:A60,RANK(LOOKUP(Bilan_1!B56,'Données vapeur'!A5:A60),'Données vapeur'!A5:A60,1)+1)) -> 23.675 | J52: =VLOOKUP(I52,'Données vapeur'!A5:E60,3,FALSE) -> 444.32 | K52: =VLOOKUP(I52,'Données vapeur'!A5:E60,4,FALSE) -> 2241 | L52: =VLOOKUP(I52,'Données vapeur'!A5:E60,5,FALSE) -> 2685.32 | X52: 49 | Y52: 0.48 | Z52: 0.49
D53: Valeur pour interpolation | I53: =B56 -> 0 | J53: =IF(I51=I52,J51,FORECAST(I53,J51:J52,I51:I52)) -> 418.88358 | K53: =IF(I51=I52,K51,FORECAST(I53,K51:K52,I51:I52)) -> 2257.099 | L53: =IF(I51=I52,L51,FORECAST(I53,L51:L52,I51:I52)) -> 2675.98258 | X53: 50 | Y53: 0.49 | Z53: 0.5
A54: ENTHALPIE | X54: 51 | Y54: 0.5 | Z54: 0.51
A55: Enthalpie de l'eau alimentée à la chaudière (kJ/kg) | B55: =ROUND(IF('Entrée de données'!C49=1,(B47*B46+(1-B47)*B44),B44),3) -> 0 | C55: kJ/kg | D55: si retour de condensat: [% condensat * DH du condensat] + [(1-% condensat) * DH de l'eau d'appoint]. Sinon, c'est égale à la DH d'eau d'appoint | X55: 52 | Y55: 0.51 | Z55: 0.52
A56: Pression de la vapeur produite (kPa) | B56: ='Entrée de données'!C43 -> 0 | C56: kPa | D56: Donnée d'entrée | I56: Interpolation de l'enthalpie surchauffée | M56: Pression (kPa) Données saturées | N56: Vapeur surchauffée (kJ/kg) | X56: 53 | Y56: 0.52 | Z56: 0.53
A57: Degré de surchauffe | B57: =IF('Entrée de données'!C44="Non nécessaire",0,'Entrée de données'!C45) -> 0 | C57: °C | D57: Donnée d'entrée | I57: Pression en dessous de la valeur entrée par l'utilisateur | M57: =LOOKUP(B56,'Données vapeur'!$H$6:$H$31) -> -1.325 | N57: =VLOOKUP(M57,'Données vapeur'!$H$6:$M$33,3,FALSE) -> 2679.181185
A58: Enthalpie de la vapeur saturée/surchauffée (kJ/kg) | B58: =IF(B57=0,L53,N59) -> 2675.98258 | C58: kJ/kg | D58: Recherche de h en fonction de la pression | I58: Pression au dessus de la valeur entrée par l'utilisateur | M58: =IF((M57-B56)=0,B56,INDEX('Données vapeur'!$H$6:$H$31,RANK(LOOKUP(B56,'Données vapeur'!$H$6:$H$31),'Données vapeur'!$H$6:$H$31,1)+1)) -> 98.675 | N58: =VLOOKUP(M58,'Données vapeur'!$H$6:$M$33,3,FALSE) -> 2713.09642 | X58: =X56+1 -> 54 | Y58: 0.53 | Z58: =Z56+0.01 -> 0.54
A59: Enthalpie de l'eau saturée (purge) (kJ/kg) | B59: =J53 -> 418.88358 | C59: kJ/kg | I59: Valeur pour interpolation | M59: =B56 -> 0 | N59: =IF(M57=M58,N57,FORECAST(M59,N57:N58,M57:M58)) -> 2679.630562 | X59: 55 | Y59: 0.54 | Z59: 0.55
A60: Enthalpie de vaporisation (kJ/kg) | B60: =K53 -> 2257.099 | C60: kJ/kg | X60: 56 | Y60: 0.55 | Z60: 0.56
A61: Purge - % de l'eau alimentée à la chaudière | B61: =VLOOKUP(Y2,X4:Y105,2) -> 0 | D61: Donnée d'entrée | X61: =X60+1 -> 57 | Y61: 0.56 | Z61: =Z60+0.01 -> 0.57
X62: 58 | Y62: 0.57 | Z62: 0.58
D63: Q vapeur produite = mvap*Dhvap + mpurge * DH purge | X63: 59 | Y63: 0.58 | Z63: 0.59
D64: Q vapeur produite = m_eau_alimenté *(1 - %Purge) * (hV,sat - hL) + m_eau_alimenté * %Purge * (hL,sat - hL) | X64: 60 | Y64: 0.59 | Z64: 0.6
A65: Production de vapeur | D65: <=> m_eau_alimenté = Q vapeur produite / [(1-%Purge)*(hV,sat - hL) + %Purge *(hL,sat - hL)] | X65: 61 | Y65: 0.6 | Z65: 0.61
A66: Eau alimentée à la chaudière | X66: 62 | Y66: 0.61 | Z66: 0.62
A67: Quantité d'eau alimentée (lb/h) | B67: =ROUND(B68/P9,2) -> 0 | C67: Convertion de la ligne du dessous de kg en lb | X67: 63 | Y67: 0.62 | Z67: 0.63
A68: Quantité d'eau alimentée (kg/h) | B68: =ROUND(B9*3600/((1-B61)*(B58-B55)+B61*(B59-B55)),2) -> 0 | X68: 64 | Y68: 0.63 | Z68: 0.64
A69: Eau d'appoint (lb/h) | B69: =B67*(1-B47) -> 0 | C69: = eau_alimenté*(1-%condensat) | X69: 65 | Y69: 0.64 | Z69: 0.65
A70: Eau d'appoint (kg/h) | B70: =B68*(1-B47) -> 0 | C70: Convertion | X70: 66 | Y70: 0.65 | Z70: 0.66
A71: Retour de condensat (lb/h) | B71: =B67*B47 -> 0 | C71: = eau_alimenté * % condensat | X71: 67 | Y71: 0.66 | Z71: =Z70+0.01 -> 0.67
A72: Retour de condensat (kg/h) | B72: =B68*B47 -> 0 | C72: Convertion | X72: =X71+1 -> 68 | Y72: 0.67 | Z72: 0.68
A73: Énergie dans l'eau alimentée (Btu/h) | B73: =ROUND(B74*P4,0) -> 0 | C73: Convertion de la ligne du dessous de kW en Btu/h | X73: 69 | Y73: 0.68 | Z73: 0.69
A74: Énergie dans l'eau alimentée (kW) | B74: =ROUND(B68*B55/3600,0) -> 0 | C74: masse d'eau alimenté * entalpie de l'eau alimenté (à 20°C en générale) | X74: =X73+1 -> 70 | Y74: 0.69 | Z74: 0.7
A75: PURGE | X75: 71 | Y75: 0.7 | Z75: 0.71
A76: Quantité d'eau prélevée (lb/h) | B76: =ROUND(B67*B61,2) -> 0 | C76: eau alimenté *%purge | X76: 72 | Y76: 0.71 | Z76: 0.72
A77: Quantité d'eau (kg/h) | B77: =ROUND(B76*P9,2) -> 0 | C77: Convertion | X77: 73 | Y77: 0.72 | Z77: 0.73
A78: Énergie perdue dans la purge (Btu/h) | B78: =ROUND(B79*P4,2) -> 0 | C78: Convertion de la ligne du dessous de kW en Btu/h | X78: 74 | Y78: 0.73 | Z78: 0.74
A79: Énergie perdue dans la purge (kW) | B79: =ROUND(B77*(B59)/3600,2) -> 0 | C79: m_eau_purge * entalpie de l'eau de la purge (soit l'enthalpie de l'eau saturée) | X79: 75 | Y79: 0.74 | Z79: 0.75
A80: Potentiel de récupération (Btu/h) | B80: =B78*0.9 -> 0 | C80: énergie perdue dans la purge * 90% de récupé | H80: 90% de récupération | X80: 76 | Y80: 0.75 | Z80: 0.76
A81: Potentiel de récupération (KW) | B81: =B79*0.9 -> 0 | C81: Convertion | X81: 77 | Y81: 0.76 | Z81: 0.77
A82: % de l'énergie alimentée à la chaudière | B82: =ROUND(B78/(B30*1000000),4) ->  | C82: Énergie perdue par la purge / puissance d'opération bruleur | H82: Équation 3.21.1 - Spirax Sarco | X82: 78 | Y82: 0.77 | Z82: 0.78
A83: Vapeur utile | X83: 79 | Y83: 0.78 | Z83: 0.79
A84: Quantité produite - incluant évent dégazeur(lb/h) | B84: =ROUND(B67-B76,2) -> 0 | C84: quantité d'eau alimenté - quantité d'eau prélevé (soit le % de purge) | X84: 80 | Y84: 0.79 | Z84: 0.8
A85: Quantité produite - incluant évent dégazeur(kg/h) | B85: =ROUND(B68-B77,2) -> 0 | C85: Convertion | X85: 81 | Y85: 0.8 | Z85: 0.81
A86: Quantité disponible pour les utilisateurs (lb/h) | B86: =B84-B102 -> 0 | C86: Les quantités perdues à l'évent du désaérateur sont soustraites | F86: Valeur qui restera fixe pour tout le calculateur | X86: 82 | Y86: 0.81 | Z86: 0.82
A87: Quantité disponible pour les utilisateurs (kg/h) | B87: =B85-B103 -> 0 | C87: Convertion | F87: Valeur qui restera fixe pour tout le calculateur | X87: 83 | Y87: 0.82 | Z87: 0.83
A88: Énergie dans la vapeur utile (Btu/h) | B88: =ROUND(B89*P4,2) -> 0 | C88: Convertion de la ligne du dessous de kW en Btu/h | F88: Valeur qui restera fixe pour tout le calculateur | X88: 84 | Y88: 0.83 | Z88: 0.84
A89: Énergie dans la vapeur utile (kW) | B89: =ROUND(B87*B58/3600,0) -> 0 | C89: quantité dispo de vap *entalpie de la vapeur | F89: Valeur qui restera fixe pour tout le calculateur | X89: 85 | Y89: 0.84 | Z89: 0.85
A91: DEGAZEUR de la centrale! | B91: Un dégazeur est un dispositif destiné à éliminer l'oxygène ou d'autres gaz dissous dans l'eau remplissant les circuits des chaudières | X91: =X89+1 -> 86 | Y91: 0.85 | Z91: =Z89+0.01 -> 0.86
A92: Pression d'opération du dégazeur (kPa) | B92: =('Entrée de données'!C56+14.73)*101.235/14.696 -> 101.4692127 | X92: 87 | Y92: 0.86 | Z92: 0.87
A93: Enthalpie de l'eau à la pression du dégazeur (kJ/kg) | B93: =L96 -> 506.4905315 | I93: Interpolation des enthalpies | K93: Pression (kPa) | L93: Liquide saturé (kJ/kg) | M93: Enthalpie de vaporisation (kJ/kg) | N93: Vapeur saturée (kJ/kg) | X93: 88 | Y93: 0.87 | Z93: 0.88
A94: Apport total en vapeur au dégazeur (lb/h) | B94: =ROUND(B95*P10,2) -> 0 | C94: Convertion de la ligne du dessous de kg en lb | G94: Inclus les pertes par l'évent | I94: Pression en dessous de la valeur entrée par l'utilisateur | K94: =LOOKUP(B92,'Données vapeur'!A5:A60) -> 98.675 | L94: =VLOOKUP(K94,'Données vapeur'!$A$5:$E$60,3,FALSE) -> 504.7 | M94: =VLOOKUP(K94,'Données vapeur'!$A$5:$E$60,4,FALSE) -> 2201.9 | N94: =VLOOKUP(K94,'Données vapeur'!$A$5:$E$60,5,FALSE) -> 2706.6 | X94: 89 | Y94: 0.88 | Z94: 0.89
A95: Apport total en vapeur au dégazeur (kg/h) | B95: =IF('Entrée de données'!C55=2,0,SUM(I113:I116)) -> 0 | C95: m_eau alim * [( h_dégazeur - heau_alim ) / (hv,sat - h_dégazeur) ] /(1-%perte) /!\ Si c'est de la vapeur surchauffé, il faut utiliser hv_surchauffe au lieu de hv,sat | G95: Inclus les pertes par l'évent | I95: Pression au dessus de la valeur entrée par l'utilisateur | K95: =IF((K94-B92)=0,B92,INDEX('Données vapeur'!A5:A60,RANK(LOOKUP(Bilan_1!B92,'Données vapeur'!A5:A60),'Données vapeur'!A5:A60,1)+1)) -> 123.675 | L95: =VLOOKUP(K95,'Données vapeur'!$A$5:$E$60,3,FALSE) -> 520.72 | M95: =VLOOKUP(K95,'Données vapeur'!$A$5:$E$60,4,FALSE) -> 2191.3 | N95: =VLOOKUP(K95,'Données vapeur'!$A$5:$E$60,5,FALSE) -> 2712.02 | X95: 90 | Y95: 0.89 | Z95: 0.9
A96: % Pertes par l'évent (% de la vapeur alimentée) | B96: 0.095 | C96: Moyenne des données de l'USDOE | I96: Valeur pour interpolation | K96: =B92 -> 101.4692127 | L96: =IF(K94=K95,L94,FORECAST(K96,L94:L95,K94:K95)) -> 506.4905315 | M96: =IF(K94=K95,M94,FORECAST(K96,M94:M95,K94:K95)) -> 2200.715254 | N96: =IF(K94=K95,N94,FORECAST(K96,N94:N95,K94:K95)) -> 2707.205785 | X96: 91 | Y96: 0.9 | Z96: 0.91
A97: Pertes total de vapeur par l'évent (lb/h) | B97: =B98*P10 -> 0 | C97: Convertion | X97: =#REF!+1 ->  | Y97: 0.94 | Z97: =#REF!+0.01 -> 
A98: Pertes de vapeur par l'évent (kg/h) | B98: =ROUND(B95*B96,2) -> 0 | C98: Total apport en vapeur *%perte | Y98: 0.95
A99: Perte de vapeur par l'évent (kW) | B99: =B98*B58/3600 -> 0
A100: Apport total en vapeur de la chaudière 1 (lb/h) | B100: =B101*P10 -> 0
A101: Apport total en vapeur de la chaudière 1 (kg/h) | B101: =IF('Entrée de données'!C55=2,0,IF('Entrée de données'!F21=1,J113,IF('Entrée de données'!F21=2,J114,IF('Entrée de données'!F21=3,J115,IF('Entrée de données'!F21=4,J116,0))))) -> 0
A102: Perte de vapeur par l'évent pour la chaudière 1 (lb/h) | B102: =B100*B96 -> 0 | X102: =X98+1 ->  | Y102: 0.96 | Z102: =Z98+0.01 -> 
A103: Perte de vapeur par l'évent pour la chaudière (kg/h) | B103: =B101*B96 -> 0 | Y103: 0.97
A104: Pertes de vapeur par l'évent pour la chaudière 1 (%) | B104: =(B103*B58/3600)/B29 ->  | C104: Énergie perdue par event / puissance du bruleur en op = masse de vapeur perdue par l'évent * hv,sat / puissance du bruleur en op | Y104: 0.98
A105: Besoins en vapeur du dégazeur en % de la vapeur produite pour la chaudière 1 | B105: =B101/B85 ->  | C105: Besoin en vap / quantité de vapeur utile produite | I105: Ch1 | J105: Ch2 | K105: Ch3 | L105: Ch4 | M105: TOTAL | Y105: 0.99
H106: m_eau_alim (kg/h) | I106: =B68 -> 0 | J106: =IF('Entrée de données'!F21<2,0,Bilan_2!B68) -> 0 | K106: =IF('Entrée de données'!F21<3,0,Bilan_3!B68) -> 0 | L106: =IF('Entrée de données'!F21<4,0,Bilan_4!B68) -> 0 | M106: =SUM(I106:L106) -> 0
H107: h_eau_alim (kJ/kg) | I107: =B55 -> 0 | J107: =IF('Entrée de données'!F21<2,0,Bilan_2!B55) -> 0 | K107: =IF('Entrée de données'!F21<3,0,Bilan_3!B55) -> 0 | L107: =IF('Entrée de données'!F21<4,0,Bilan_4!B55) -> 0
H108: h_vapeur (kJ/kg) | I108: =B58 -> 2675.98258 | J108: =IF('Entrée de données'!F21<2,0,Bilan_2!B58) -> 0 | K108: =IF('Entrée de données'!F21<3,0,Bilan_3!B58) -> 0 | L108: =IF('Entrée de données'!F21<4,0,Bilan_4!B58) -> 0
A110: Vapeur disponible pour les utilisateurs | H110: Apport total en vapeur pour le dégazeur:
A111: Quantité de vapeur disponible (lb/h) | B111: =B86 -> 0 | I111: Pour le dégazeur (kg/h) | J111: Apport par chaudière (kg/h)
A112: Quantité de vapeur disponible (kg/h) | B112: =B87 -> 0 | D112: exclus les pertes par l'évent | J112: ch1 | K112: ch2 | L112: ch3 | M112: ch4
H113: si une seule chaudière | I113: =IF('Entrée de données'!F21=1,(Bilan_1!I106*(Bilan_1!B93-Bilan_1!B55)/(Bilan_1!I108-Bilan_1!B93))/(1-B96),0) -> 0 | J113: =IF('Entrée de données'!F21=1,B95,0) -> 0
H114: si 2 chaudières | I114: =IF('Entrée de données'!F21=2,(2*(I106*(B93-I107)+J106*(B93-J107))/((I108-B93)+(J108-B93)))/(1-B96),0) -> 0 | J114: =IF('Entrée de données'!F21=2,B95/2,0) -> 0 | K114: =IF('Entrée de données'!F21=2,B95/2,0) -> 0
H115: si 3 chaudières | I115: =IF('Entrée de données'!F21=3,(3*(I106*(B93-I107)+J106*(B93-J107)+K106*(B93-K107))/((I108-B93)+(J108-B93)+(K108-B93)))/(1-B96),0) -> 0 | J115: =IF('Entrée de données'!F21=3,B95/3,0) -> 0 | K115: =IF('Entrée de données'!F21=3,B95/3,0) -> 0 | L115: =IF('Entrée de données'!F21=3,B95/3,0) -> 0
A116: Efficacité de génération de vapeur utile | B116: =ROUND((B112/3600)*(B58-B55)/B29,5) ->  | H116: si 4 chaudières | I116: =IF('Entrée de données'!F21=4,(4*(I106*(B93-I107)+J106*(B93-J107)+K106*(B93-K107)+L106*(B93-L107))/((I108-B93)+(J108-B93)+(K108-B93)+(L108-B93)))/(1-B96),0) -> 0 | J116: =IF('Entrée de données'!F21=4,B95/4,0) -> 0 | K116: =IF('Entrée de données'!F21=4,B95/4,0) -> 0 | L116: =IF('Entrée de données'!F21=4,B95/4,0) -> 0 | M116: =IF('Entrée de données'!F21=4,B95/4,0) -> 0
A117: Consommation de gaz naturel par kg/h de vapeur, en m3/(kg/h) | B117: =ROUND(B31/B112,5) ->  | C117: m3 de gaz alimenté / masse de vapeur utile produite
B120: =ROUND((B112)*(B58-B55)/(0.03789*B31*1000000),5) -> 
B121: =0.03789*B31*1000000/3600 ->  | D121: Efficacité = énergie dispo dans vapeur / puissance du bruleur en oper
D122: Efficacité = masse vapeur dispo * DH / puissance du bruleur en oper
D123: Efficacité = masse vapeur dispo * (hV,sat - hL) / puissance du bruleur en oper

Sheet Comb_1 (micro) (hidden)
E2: EFFICACITE | F2: % | G2: =1-(G4/(G5+ABS(L28))) -> 0.8194655165 | I2: Valeur cible d'eff:
I3: ='Entrée de données'!C87 -> 0
E4: Hout | F4: J / mol gaz | G4: =U28 -> 159645.5731
A5: BILAN THERMIQUE | E5: Hin | F5: J / mol gaz | G5: =O28+R28 -> -1321.228918 | J5: PROPRIÉTÉ DU GAZ | M5: CALCUL ÉNERGIE
J6: GAZ **** | M6: GAZ | P6: AIR | S6: FUMEE
C7: Masse | D7: * Enthalpie (J / mol) | F7: * Chaleur Spécifique (J / mol oC) | J7: M | K7: Densité | L7: PCS ou | M7: T (oC) = | N7: ='Entrée de données'!C37 -> 20 | P7: T (oC) = | Q7: ='Entrée de données'!C35 -> 20 | S7: T (oC) = | T7: 238.0210122 | U7: =ROUND(T7*1.8+32,1) -> 460.4
C8: Molaire | D8: Formation | E8: Combustion | F8: Cp = a + bTx102 + cT2105 + dT3*109 | J8: Mélange | K8: Mélange | L8: HHV | M8: Débit | N8: Cpmoy | O8: H | P8: Débit | Q8: Cpmoy | R8: H | S8: Débit | T8: Cpmoy | U8: H
A9: État gazeux sauf si indication | C9: g / mol | F9: a | G9: b | H9: c | I9: d | J9: g / mol | K9: kg / m3 | L9: J / mol gaz | M9: mol / mol gaz | N9: J / mol oC | O9: J / mol gaz | P9: mol / mol gaz | Q9: J / mol oC | R9: J / mol gaz | S9: mol / mol gaz | T9: J / mol oC | U9: J / mol gaz
A10: Oxygène | B10: O2 | C10: 32 | D10: 0 | E10: 0 | F10: 29.1 | G10: 1.158 | H10: -0.6076 | I10: 1.311 | J10: =M10*C10 -> 0 | K10: =(101325*(C10/1000))/(8.3144*288.7056)*M10 -> 0 | L10: =M10*E10 -> 0 | M10: ='Comb_1 (micro)'!C55/100 -> 0 | N10: =AVERAGE($F10+$G10/100*N$7+$H10/100000*N$7^2+$I10/1000000000*N$7^3,$F10+$G10/100*$B$29+$H10/100000*$B$29^2+$I10/1000000000*$B$29^3) -> 29.35745154 | O10: =M10*N10*(N$7-$B$29) -> 0 | P10: ='Comb_1 (micro)'!D92 -> 2.286926822 | Q10: =AVERAGE($F10+$G10/100*Q$7+$H10/100000*Q$7^2+$I10/1000000000*Q$7^3,$F10+$G10/100*$B$29+$H10/100000*$B$29^2+$I10/1000000000*$B$29^3) -> 29.35745154 | R10: =P10*Q10*(Q$7-$B$29) -> -335.6917167 | S10: ='Comb_1 (micro)'!L84 -> 0.2976468216 | T10: =AVERAGE($F10+$G10/100*T$7+$H10/100000*T$7^2+$I10/1000000000*T$7^3,$F10+$G10/100*$B$29+$H10/100000*$B$29^2+$I10/1000000000*$B$29^3) -> 30.45772761 | U10: =S10*T10*(T$7-$B$29) -> 1931.173048
A11: Monoxide de carbone | B11: CO | C11: 28.011 | D11: -110520 | E11: -282990 | F11: 28.95 | G11: 0.411 | H11: 0.3548 | I11: -2.22 | J11: 0 | K11: 0 | L11: 0 | M11: ='Comb_1 (micro)'!C56/100 -> 0 | N11: =AVERAGE($F11+$G11/100*N$7+$H11/100000*N$7^2+$I11/1000000000*N$7^3,$F11+$G11/100*$B$29+$H11/100000*$B$29^2+$I11/1000000000*$B$29^3) -> 29.04426713 | O11: =M11*N11*(N$7-$B$29) -> 0 | Q11: =AVERAGE($F11+$G11/100*Q$7+$H11/100000*Q$7^2+$I11/1000000000*Q$7^3,$F11+$G11/100*$B$29+$H11/100000*$B$29^2+$I11/1000000000*$B$29^3) -> 29.04426713 | R11: =P11*Q11*(Q$7-$B$29) -> 0 | T11: 29.57713561 | U11: =S11*T11*(T$7-$B$29) -> 0
A12: Dioxide de carbone | B12: CO2 | C12: 44.011 | D12: -393500 | E12: 0 | F12: 36.11 | G12: 4.233 | H12: -2.887 | I12: 7.464 | J12: 0.1496374 | K12: 0.006316414819 | L12: 0 | M12: ='Comb_1 (micro)'!C57/100 -> 0.0034 | N12: 37.04771729 | O12: =M12*N12*(N$7-$B$29) -> -0.629811194 | Q12: 37.04771729 | R12: =P12*Q12*(Q$7-$B$29) -> 0 | S12: ='Comb_1 (micro)'!L82 -> 1.00386 | T12: 40.90040107 | U12: =S12*T12*(T$7-$B$29) -> 8746.275646
A13: Hydrogène | B13: H2 | C13: 2.016 | D13: 0 | E13: -285840 | F13: 28.84 | G13: 0.00765 | H13: 0.3288 | I13: -0.8698 | J13: 0 | K13: 0 | L13: 0 | M13: ='Comb_1 (micro)'!C58/100 -> 0 | N13: 28.84339608 | O13: =M13*N13*(N$7-$B$29) -> 0 | Q13: 28.84339608 | R13: =P13*Q13*(Q$7-$B$29) -> 0 | T13: 28.93835588 | U13: =S13*T13*(T$7-$B$29) -> 0
A14: Eau (v) | B14: H20 (v) | C14: 18.015 | D14: -241830 | E14: 0 | F14: 33.46 | G14: 0.688 | H14: 0.7604 | I14: -3.593 | J14: 0 | K14: 0 | L14: 0 | M14: ='Comb_1 (micro)'!C59/100 -> 0 | N14: 33.61865461 | O14: =M14*(V14+N14*(N$7-$B$29)) -> 0 | P14: ='Comb_1 (micro)'!D93 -> 0.01093934868 | Q14: 33.61865461 | R14: =P14*(V14+Q14*(Q$7-$B$29)) -> 442.9113289 | S14: ='Comb_1 (micro)'!L86-S15 -> 1.988579349 | T14: 34.55831346 | U14: =((S14-G93)*$V$14)+(S14*T14*(T$7-$B$29)) -> 95042.15086 | V14: 40656 | W14: Enthalpie vaporisation (J/mol)
A15: Eau (l) | B15: H2O (l) | C15: 18.015 | D15: -285840 | E15: 0 | F15: 75.4 | G15: 0 | H15: 0 | I15: 0 | J15: 0 | K15: 0 | L15: 0 | M15: 0 | N15: 75.4 | O15: =M15*N15*(N$7-$B$29) -> 0 | Q15: 75.4 | R15: =P15*Q15*(Q$7-$B$29) -> 0 | S15: ='Comb_1 (micro)'!L96 -> 0 | T15: 75.4 | U15: =S15*T15*(T$7-$B$29) -> 0
A16: Sulfure d'hydrogène | B16: H2S | C16: 34.076 | D16: -19960 | E16: -562590 | F16: 33.51 | G16: 1.547 | H16: 0.3012 | I16: -3.292 | J16: 0 | K16: 0 | L16: 0 | M16: ='Comb_1 (micro)'!C60/100 -> 0 | N16: 33.85957976 | O16: 0 | Q16: 33.85957976 | R16: 0 | T16: 35.60850794 | U16: 0
A17: Méthane | B17: CH4 | C17: 16.043 | D17: -74850 | E17: -890360 | F17: 34.31 | G17: 5.469 | H17: 0.3661 | I17: -11 | J17: 15.32539661 | K17: 0.6469075395 | L17: -850534.1972 | M17: ='Comb_1 (micro)'!C61/100 -> 0.95527 | N17: 35.54227133 | O17: -169.7623276 | Q17: 35.54227133 | R17: 0 | T17: 41.53290622 | U17: 0
A18: Éthane | B18: C2H6 | C18: 30.07 | D18: -84670 | E18: -1559900 | F18: 49.37 | G18: 13.92 | H18: -5.816 | I18: 7.28 | J18: 0.6206448 | K18: 0.02619833018 | L18: -32196.336 | M18: ='Comb_1 (micro)'!C62/100 -> 0.02064 | N18: 52.47227899 | O18: -5.415139192 | Q18: 52.47227899 | R18: 0 | T18: 66.05973077 | U18: 0
A19: Propane | B19: C3H8 | C19: 44.097 | D19: -103800 | E19: -2220000 | F19: 68.032 | G19: 22.59 | H19: -13.11 | I19: 31.71 | J19: 0.05159349 | K19: 0.002177837124 | L19: -2597.4 | M19: ='Comb_1 (micro)'!C63/100 -> 0.00117 | N19: 73.04793582 | O19: -0.4273304246 | Q19: 73.04793582 | R19: 0 | T19: 94.19963465 | U19: 0
A20: Butane | B20: C4H10 | C20: 58.124 | D20: -134500 | E20: -2868800 | F20: 89.46 | G20: 30.13 | H20: -18.91 | I20: 49.87 | J20: 0 | K20: 0 | L20: 0 | M20: ='Comb_1 (micro)'!C64/100 -> 0 | N20: 96.14292534 | O20: 0 | Q20: 96.14292534 | R20: 0 | T20: 124.00502 | U20: 0
A21: ** i-Butane | B21: C4H10 | C21: 58.124 | D21: =D20 -> -134500 | E21: =E20 -> -2868800 | F21: 89.46 | G21: 30.13 | H21: -18.91 | I21: 49.87 | J21: 0.0029062 | K21: 0.000122674978 | L21: -143.44 | M21: ='Comb_1 (micro)'!C65/100 -> 5e-05 | N21: 96.14292534 | O21: -0.02403573133 | Q21: 96.14292534 | R21: 0 | T21: 124.00502 | U21: 0
A22: n-Butane | B22: C4H10 | C22: 58.124 | D22: -124700 | E22: -2878500 | F22: 92.3 | G22: 27.88 | H22: -15.47 | I22: 34.98 | J22: 0.0029062 | K22: 0.000122674978 | L22: -143.925 | M22: ='Comb_1 (micro)'!C66/100 -> 5e-05 | N22: 98.49412945 | O22: -0.02462353236 | Q22: 98.49412945 | R22: 0 | T22: 124.7707215 | U22: 0
A23: Pentane | B23: C5H12 | C23: 72.15 | D23: -152000 | E23: -35292000 | F23: 114.8 | G23: 34.09 | H23: -18.99 | I23: 42.26 | J23: 0 | K23: 0 | L23: 0 | M23: ='Comb_1 (micro)'!C67/100 -> 0 | N23: 122.3734254 | O23: 0 | Q23: 122.3734254 | R23: 0 | T23: 154.4785552 | U23: 0
A24: Octane | B24: C8H18 | C24: 114.23 | D24: -208400 | E24: -5512200 | F24: -5.8307 | G24: 4.4541 | H24: -0.4208 | I24: 1.263 | J24: 0 | K24: 0 | L24: 0 | M24: ='Comb_1 (micro)'!C68/100 -> 0 | N24: -4.830669181 | O24: 0 | Q24: -4.830669181 | R24: 0 | T24: -0.08508002238 | U24: 0
A25: *** iso-Octane | B25: Ch8H18i | C25: 114.23 | D25: =D24 -> -208400 | E25: =E24 -> -5512200 | F25: -5.8307 | G25: 4.4541 | H25: -0.4208 | I25: 1.263 | J25: 0 | K25: 0 | L25: 0 | M25: ='Comb_1 (micro)'!C69/100 -> 0 | N25: -4.830669181 | O25: 0 | Q25: -4.830669181 | R25: 0 | T25: -0.08508002238 | U25: 0
A26: Azote | B26: N2 | C26: 28.013 | D26: 0 | E26: 0 | F26: 29 | G26: 0.2199 | H26: 0.5723 | I26: -2.871 | J26: 0.54401246 | K26: 0.02296356636 | L26: 0 | M26: ='Comb_1 (micro)'!C70/100 -> 0.01942 | N26: 29.05237662 | O26: =M26*N26*(N$7-$B$29) -> -2.82098577 | P26: ='Comb_1 (micro)'!D91 -> 8.6006339 | Q26: 29.05237662 | R26: -1249.344276 | S26: ='Comb_1 (micro)'!L81 -> 8.6006339 | T26: 29.43371555 | U26: =S26*T26*(T$7-$B$29) -> 53925.97351
A27: Hélium | B27: He | C27: 4.00206 | D27: 0 | E27: 0 | F27: 20.8 | G27: 0 | H27: 0 | I27: 0 | J27: 0 | K27: 0 | L27: 0 | M27: ='Comb_1 (micro)'!C71/100 -> 0 | N27: 20.8 | O27: 0 | Q27: 20.8 | R27: 0 | T27: 20.8 | U27: 0
I28: SOMME | J28: =SUM(J10:J27) -> 16.69709716 | K28: =SUM(K10:K27) -> 0.704809038 | L28: =SUM(L10:L27) -> -885615.2982 | M28: =SUM(M10:M27) -> 1 | O28: =SUM(O10:O27) -> -179.1042535 | P28: =SUM(P10:P27) -> 10.89850007 | R28: =SUM(R10:R27) -> -1142.124664 | S28: =SUM(S10:S27) -> 11.89072007 | U28: =SUM(U10:U27) -> 159645.5731
A29: * Référence. Patm, T = | B29: 25 | C29: oC
A30: ** Hyp. Même propriétés que Butane | J30: Pouvoir Calorifique Supérieur
A31: *** Hyp. Même que Octane | K31: =ABS(L28/1000) -> 885.6152982 | L31: kJ / mol
A32: **** À Patm et T = 15.6 oC (14.7 psi et 60 F) | K32: =K31/(J28/1000) -> 53040.07575 | L32: kJ / kg
K33: =(K32/1000)*K28 -> 37.38312476 | L33: MJ / m3
A34: Référence
A35: Elementary Principles of Chemical Processes | K35: =(K33*1000)/1.055*0.02832 -> 1003.497719 | L35: BTU / ft3
A36: Wiley Series in Chemical Engineering, Second Edition | K36: =(K32/1.055)*0.4536 -> 22804.71883 | L36: BTU / lbm
A37: R M Felder et R W Rousseau | K37: =K35/7.4814 -> 134.1323441 | L37: BTU / gal
F42: Constitution de l'air sec
E43: Azote | F43: 0.7899504875
E44: Oxygène | F44: =1-F43 -> 0.2100495125
A45: BILAN MASSIQUE | E45: Autres | F45: 0
A48: CALCUL DE LA COMBUSTION STOÉCHIOMÉTRIQUE | L48: Masse H2 par livre de combustible
C50: COMPOSITION | D50: GAZ DE COMBUSTION STOÉCHIOMÉTRIQUE | M50: Masse d'hydrogène dans une livre de combustible (lb/lb) | Q50: =(4*N53+6*N55+8*N56+10*N57+10*N58)/(N53*O53+N54*O54+N55*O55+N56*O56+N57*O57+N58*O58+N59*O59) -> 0.2368842897
C51: (mol / 100 mol gaz) | D51: CO2 | E51: H2O | F51: SO2 | G51: He | H51: N2 | I51: TOTAL | J51: O2 requis
A52: GAZ (ÉTAT GAZEUX) | M52: Compo | N52: % mol | O52: masse molaire
B53: TOTAL | C53: =SUM(C55:C71) -> 100 | D53: 1.00386 | E53: 1.97764 | F53: 0 | G53: 0 | H53: 0.01942 | I53: 3.00092 | J53: 1.98928 | M53: CH4 | N53: =C61 -> 95.527 | O53: =C17 -> 16.043
M54: CO2 | N54: =C57 -> 0.34 | O54: =C12 -> 44.011
A55: Oxygène | B55: O2 | C55: 0 | I55: =SUM(D55:H55) -> 0 | J55: =-C55/100 -> 0 | M55: C2H6 | N55: =C62 -> 2.064 | O55: =C18 -> 30.07
A56: Monoxide de carbone | B56: CO | C56: 0 | D56: =C56/100 -> 0 | I56: 0 | J56: =D56+E56/2+F56 -> 0 | M56: C3H8 | N56: =C63 -> 0.117 | O56: =C19 -> 44.097
A57: Dioxide de carbone | B57: CO2 | C57: 0.34 | D57: =C57/100 -> 0.0034 | I57: 0.0034 | J57: 0 | M57: C4H10 | N57: =C65 -> 0.005 | O57: =C21 -> 58.124
A58: Hydrogène | B58: H2 | C58: 0 | E58: =C58/100 -> 0 | I58: 0 | J58: =D58+E58/2+F58 -> 0 | M58: C4H10 | N58: =C66 -> 0.005 | O58: =C22 -> 58.124
A59: Eau (l) | B59: H2O (l) | C59: 0 | E59: =C59/100 -> 0 | I59: 0 | J59: 0 | M59: N2 | N59: =C70 -> 1.942 | O59: =C26 -> 28.013
A60: Sulfure d'hydrogène | B60: H2S | C60: 0 | E60: =C60/100 -> 0 | F60: =C60/100 -> 0 | I60: 0 | J60: 0
A61: Méthane | B61: CH4 | C61: 95.527 | D61: =C61/100 -> 0.95527 | E61: =C61/100*2 -> 1.91054 | I61: 2.86581 | J61: 1.91054
A62: Éthane | B62: C2H6 | C62: 2.064 | D62: =C62*2/100 -> 0.04128 | E62: =C62/100*3 -> 0.06192 | I62: 0.1032 | J62: 0.07224
A63: Propane | B63: C3H8 | C63: 0.117 | D63: =C63*3/100 -> 0.00351 | E63: =C63/100*4 -> 0.00468 | I63: 0.00819 | J63: 0.00585
A64: Butane | B64: C4H10 | C64: 0 | D64: =C64*4/100 -> 0 | E64: =C64/100*5 -> 0 | I64: 0 | J64: 0
A65: ** i-Butane | B65: C4H10 | C65: 0.005 | D65: =C65*4/100 -> 0.0002 | E65: =C65/100*5 -> 0.00025 | I65: 0.00045 | J65: 0.000325
A66: n-Butane | B66: C4H10 | C66: 0.005 | D66: =C66*4/100 -> 0.0002 | E66: =C66/100*5 -> 0.00025 | I66: 0.00045 | J66: 0.000325
A67: Pentane | B67: C5H12 | C67: 0 | D67: =C67*5/100 -> 0 | E67: =C67/100*6 -> 0 | I67: 0 | J67: 0
A68: Octane | B68: C8H18 | C68: 0 | D68: =C68*8/100 -> 0 | E68: =C68/100*9 -> 0 | I68: 0 | J68: 0
A69: *** iso-Octane | B69: Ch8H18i | C69: 0 | D69: =C69*8/100 -> 0 | E69: =C69/100*9 -> 0 | I69: 0 | J69: 0
A70: Azote | B70: N2 | C70: 1.942 | H70: =C70/100 -> 0.01942 | I70: 0.01942 | J70: 0
A71: Hélium | B71: He | C71: 0 | G71: =C71/100 -> 0 | I71: 0 | J71: 0
A74: AIR DE COMBUSTION | I74: FUMÉES
D75: MASSIQUE | L75: MASSIQUE
D76: % O2 | E76: % EA | F76: % CO2 | G76: RÉSULTATS | M76: Proportion (%)
D77: =TRUE() -> TRUE | E77: =FALSE() -> FALSE | F77: FALSE | L77: (mol / mol gaz) | M77: Base Hum | N77: Base Sec
D78: =IF(D77,1,"-") -> 1 | E78: =IF(E77,2,"-") -> - | F78: =IF(F77,3,"-") -> - | G78: =AVERAGE(D78:F78) -> 1
A79: Calcul de l'excès d'air (base sèche) | D79: =D87/D84 -> 0.149625403 | F79: =F86/F83 ->  | G79: =INDEX(D79:F79,G$78) -> 0.149625403 | I79: TOTAL | K79: mol / mol gas | L79: =SUM(L81:L86) -> 11.89072007 | M79: =SUM(M81:M86) -> 1 | N79: =SUM(N81:N86) -> 1
A80: Oxygène dans les fumées (base sèche) | D80: ='Entrée de données'!C89 -> 0.03 | E80: =E86/(E83*($F$43/$F$44)+I53-E53+E86/$F$44) -> 0 | F80: =F86/(F83*($F$43/$F$44)+I53-E53+F86/$F$44) ->  | G80: =INDEX(D80:F80,G$78) -> 0.03
A81: Dioxide de carbone dans les fumées | D81: =$N$82 -> 0.1013780786 | E81: =N82 -> 0.1013780786 | G81: =INDEX(D81:F81,G$78) -> 0.1013780786 | I81: Azote | K81: mol / mol gas | L81: =G91 -> 8.6006339 | M81: =L81/$L$79 -> 0.7233063977 | N81: =L81/($L$79-$L$86) -> 0.8685630857
I82: Dioxide de carbone | K82: mol / mol gas | L82: =D53 -> 1.00386 | M82: 0.08442381909 | N82: =L82/($L$79-$L$86) -> 0.1013780786
A83: Oxygène stoéchiométrique | C83: mol / mol gas | D83: =$J$53 -> 1.98928 | E83: =$J$53 -> 1.98928 | F83: =$J$53 -> 1.98928 | G83: =INDEX(D83:F83,G$78) -> 1.98928 | I83: Dioxide de soufre | K83: mol / mol gas | L83: =F53 -> 0 | M83: 0 | N83: =L83/($L$79-$L$86) -> 0
A84: Air stoéchiométrique | C84: mol / mol gas | D84: =D83/$F$44 -> 9.470529003 | E84: =E83/$F$44 -> 9.470529003 | F84: =F83/$F$44 -> 9.470529003 | G84: =INDEX(D84:F84,G$78) -> 9.470529003 | I84: Oxygène | K84: mol / mol gas | L84: =G86 -> 0.2976468216 | M84: 0.02503185845 | N84: =L84/($L$79-$L$86) -> 0.03005883576
I85: Hélium | K85: mol / mol gas | L85: =G53 -> 0 | M85: 0 | N85: =L85/($L$79-$L$86) -> 0
A86: Excès oxygène | C86: mol / mol gas | D86: =D80/(1-D80/$F$44)*(($I$53-$E$53)+D83*$F$43/$F$44) -> 0.2976468216 | E86: =E83*$E$79 -> 0 | F86: =(D53/F81-(I53-E53)-F83*(F43/F44))/(1+F43/F44) ->  | G86: =INDEX(D86:F86,G$78) -> 0.2976468216 | I86: Eau (liquide et vapeur) | K86: mol / mol gas | L86: =G93+E53 -> 1.988579349 | M86: 0.1672379248 | N86: 0
A87: Excès air | C87: mol / mol gas | D87: =D86/F44 -> 1.417031718 | E87: =E84*$E$79 -> 0 | F87: =F86/F44 ->  | G87: =INDEX(D87:F87,G$78) -> 1.417031718 | I87: Condensation (liquide) | K87: mol / mol gas | L87: =L96 -> 0 | M87: 0 | N87: 1
I88: Molecular weight | K88: g/mol | M88: =M81*28+M82*44+M83*64+M84*32+M86*18 -> 27.77852929
A89: Air de combustion | C89: mol / mol gas | D89: =SUM(D91:D93) -> 10.89850007 | E89: =SUM(E91:E93) -> 9.481468351 | F89: =SUM(F91:F93) ->  | G89: =INDEX(D89:F89,G$78) -> 10.89850007 | I89: Condensation des fumées | L89: =IF(L91<L92,"VRAI","FAUX") -> FAUX
I90: Humidité (sans condensation) | K90: mol / mol fumées | L90: =E53+G93 -> 1.988579349
A91: Azote | C91: mol / mol gas | D91: =D92*($F$43/$F$44) -> 8.6006339 | E91: =E92*($F$43/$F$44) -> 7.481249003 | F91: =F92*($F$43/$F$44) ->  | G91: =INDEX(D91:F91,G$78) -> 8.6006339 | I91: Température des fumées | K91: oC | L91: =T7 -> 238.0210122
A92: Oxygène | C92: mol / mol gas | D92: =D83+D86 -> 2.286926822 | E92: =E83+E86 -> 1.98928 | F92: =F83+F86 ->  | G92: =INDEX(D92:F92,G$78) -> 2.286926822 | I92: Point de rosée | K92: oC | L92: =E135 -> 56.44306204
A93: Vapeur d'eau | C93: mol / mol gas | D93: =E114*'Comb_1 (micro)'!D84 -> 0.01093934868 | E93: =E114*'Comb_1 (micro)'!E84 -> 0.01093934868 | F93: =E114*'Comb_1 (micro)'!F84 -> 0.01093934868 | G93: =INDEX(D93:F93,G$78) -> 0.01093934868 | I93: Flue gas density | K93: lb/cu ft
I94: Saturation (Tfumées) | K94: mol / mol fumées | L94: =E128 -> 0.200823176 | M94: Fumées sèches
A95: Humidité | I95: Condensation | K95: mol / mol fumées | L95: =E139 -> 0
A96: Humidité relative | D96: 0.05 | K96: mol / mol gas | L96: =E140 -> 0
A97: Point de rosée | C97: oC | D97: =IF(D96<>0,E118,"-") -> 
C102: PRESSION ATMOSPHÉRIQUE | H102: TABLE VAPEUR SATURÉE
C103: Altitude | D103: FASL | E103: 200 | F103: Mtl = 200 | H103: Tsat (oC) | I103: Psat (Pa) | J103: Tsat (oC)
C104: Pression barométrique | D104: po Hg | E104: =29.9269-0.001020817*E103+0.000000011*E103^2-0.0000000000005118678*E103^3 -> 29.72317251 | H104: 0 | I104: 610.4832696 | J104: =H104 -> 0
C105: Pression barométrique | D105: Pa | E105: 101312.5 | F105: =E104*3370 -> 100167.0913 | H105: 2 | I105: 705.8087856 | J105: 2
H106: 4 | I106: 813.3999624 | J106: 4
C107: AIR DE COMBUSTION | H107: 6 | I107: 934.9899912 | J107: 6
C108: Température | D108: oC | E108: =N7 -> 20 | H108: 8 | I108: 1072.578708 | J108: 8
C109: Humidité relative | E109: 0.05 | H109: 10 | I109: 1227.765982 | J109: 10
H110: 12 | I110: 1402.285003 | J110: 12
C111: Pression saturation | D111: Pa | E111: =IF(E108<0,0.09*6895,I196) -> 2337.808284 | H111: 14 | I111: 1598.135609 | J111: 14
C112: Pression vapeur eau | D112: Pa | E112: =E109*E111 -> 116.8904142 | H112: 16 | I112: 1817.717602 | J112: 16
H113: 18 | I113: 2063.430785 | J113: 18
C114: H2O / Air sec | D114: mol / mol | E114: =E112/(E105-E112) -> 0.001155093731 | H114: 20 | I114: 2337.808284 | J114: 20
C115: H2O / Air sec | D115: lb / lb | E115: =E114*18.02/28.95 -> 0.0007189909854 | H115: 22 | I115: 2643.383225 | J115: 22
H116: 24 | I116: 2983.355345 | J116: 24
C117: H2O / Air humide | D117: mol / mol | E117: =E112/E105 -> 0.001153761029 | H117: 26 | I117: 3360.924382 | J117: 26
C118: Température de rosée | D118: oC | E118: =H202 ->  | H118: 28 | I118: 3779.556718 | J118: 28
H119: 30 | I119: 4242.852058 | J119: 30
C120: FUMÉES | H120: 32 | I120: 4754.676751 | J120: 32
C121: Température | D121: oC | E121: =T7 -> 238.0210122 | H121: 34 | I121: 5319.297115 | J121: 34
H122: 36 | I122: 5941.246111 | J122: 36
C123: Fumées totales | D123: mol / mol gaz | E123: =L79 -> 11.89072007 | H123: 38 | I123: 6625.056701 | J123: 38
C124: Humidité (H2O) | D124: mol / mol gaz | E124: =L90 -> 1.988579349 | F124: sans condensation | H124: 40 | I124: 7375.928458 | J124: 40
H125: 42 | I125: 8199.3276 | J125: 42
C126: Pression vapeur | D126: Pa | E126: =E131*E105 -> 16943.29225 | H126: 44 | I126: 9100.587024 | J126: 44
H127: 46 | I127: 10085.83956 | J127: 46
C128: H2O / Air sec | D128: mol / mol | E128: =E124/(E123-E124) -> 0.200823176 | F128: Mair | H128: 48 | I128: 11160.4181 | J128: 48
C129: H2O / Air sec | D129: lb / lb | E129: =E128*18.02/F129 -> 0.1287097997 | F129: =(M81*28+M82*48+M83*64+M84*32+M85*4+M86*18) -> 28.11622457 | H129: 50 | I129: 12333.65522 | J129: 50
H130: 55 | I130: 15737.3761 | J130: 55
C131: H2O / Air humide | D131: mol / mol | E131: =E124/E123 -> 0.1672379248 | H131: 60 | I131: 19915.70011 | J131: 60
C132: H2O / mol gas | D132: mol / mol | E132: =E131*E123 -> 1.988579349 | H132: 65 | I132: 25003.2829 | J132: 65
H133: 70 | I133: 31157.44488 | J133: 70
C134: Condensation | E134: =IF(E135>E121,"VRAI","FAUX") -> FAUX | H134: 75 | I134: 38543.50584 | J134: 75
C135: Point de rosée | D135: oC | E135: =H208 -> 56.44306204 | H135: 80 | I135: 47342.78424 | J135: 80
H136: 85 | I136: 57808.59264 | J136: 85
C137: Pression saturation | D137: Pa | E137: =I214 -> 3231593.495 | H137: 90 | I137: 70095.58502 | J137: 90
C138: Contenu H2O à saturation | D138: mol / mol fumées | E138: =IF(E134="VRAI",E137/E105,"-") -> - | H138: 91 | I138: 72800.69652 | J138: 91
C139: Condensation | D139: mol / mol fumées | E139: =IF(E134="VRAI",E131-E138,0) -> 0 | H139: 92 | I139: 75592.46758 | J139: 92
C140: Condensation | D140: mol / mol gaz | E140: =IF(E134="VRAI",E139*E123,0) -> 0 | H140: 93 | I140: 78473.56464 | J140: 93
C141: Condensation | D141: g / mol gaz | E141: =IF(E134="VRAI",E140*18,0) -> 0 | H141: 94 | I141: 81446.65416 | J141: 94
H142: 95 | I142: 84513.06936 | J142: 95
C143: Humidité Relative des Fumées | E143: =IF(E134="VRAI",1,IF(E121<100,E126/E137,"N / A")) -> N / A | H143: 96 | I143: 87675.47669 | J143: 96
H144: 97 | I144: 90935.20937 | J144: 97
H145: 98 | I145: 94294.93385 | J145: 98
H146: 99 | I146: 97757.31658 | J146: 99
H147: 100 | I147: 101325.024 | J147: 100
H148: 105 | I148: 120820 | J148: 105
H149: 110 | I149: 143270 | J149: 110
H150: 115 | I150: 169060 | J150: 115
H151: 120 | I151: 198530 | J151: 120
H152: 125 | I152: 232100 | J152: 125
H153: 130 | I153: 270100 | J153: 130
H154: 135 | I154: 313000 | J154: 135
H155: 140 | I155: 361300 | J155: 140
H156: 145 | I156: 415400 | J156: 145
H157: 150 | I157: 475800 | J157: 150
H158: 155 | I158: 543100 | J158: 155
H159: 160 | I159: 617800 | J159: 160
H160: 165 | I160: 700500 | J160: 165
H161: 170 | I161: 791700 | J161: 170
H162: 175 | I162: 892000 | J162: 175
H163: 180 | I163: 1002100 | J163: 180
H164: 185 | I164: 1122700 | J164: 185
H165: 190 | I165: 1254400 | J165: 190
H166: 195 | I166: 1397800 | J166: 195
H167: 200 | I167: 1553800 | J167: 200
H168: 205 | I168: 1723000 | J168: =H168 -> 205
H169: 210 | I169: 1906200 | J169: 210
H170: 215 | I170: 2104000 | J170: 215
H171: 220 | I171: 2318000 | J171: 220
H172: 225 | I172: 2548000 | J172: 225
H173: 230 | I173: 2795000 | J173: 230
H174: 235 | I174: 3060000 | J174: 235
H175: 240 | I175: 3344000 | J175: 240
H176: 245 | I176: 3648000 | J176: 245
H177: 250 | I177: 3973000 | J177: 250
H178: 255 | I178: 4319000 | J178: 255
H179: 260 | I179: 4688000 | J179: 260
H180: 265 | I180: 5081000 | J180: 265
H181: 270 | I181: 5499000 | J181: 270
H182: 275 | I182: 5942000 | J182: 275
H183: 280 | I183: 6412000 | J183: 280
H184: 285 | I184: 6909000 | J184: 285
H185: 290 | I185: 7436000 | J185: 290
H186: 295 | I186: 7993000 | J186: 295
H187: 300 | I187: 8581000 | J187: 300
H188: 320 | I188: 11274000 | J188: 320
H189: 340 | I189: 14586000 | J189: 340
H190: 360 | I190: 18651000 | J190: 360
H191: 374.14 | I191: 22090000 | J191: 374.14
H193: Psat AIR COMBUSTION
H194: T | I194: Psat
H195: =VLOOKUP(E108,H104:I191,1) -> 20 | I195: =VLOOKUP(H195,$H$104:$I$191,2) -> 2337.808284 | J195: =MATCH(H195,H104:H191,1) -> 11
H196: =E108 -> 20 | I196: =I195+((H196-H195)/(H197-H195))*(I197-I195) -> 2337.808284
H197: =INDEX(H104:H191,J197) -> 22 | I197: =VLOOKUP(H197,$H$104:$I$191,2) -> 2643.383225 | J197: =J195+1 -> 12
H199: CALCUL ROSÉE AIR COMB
H200: T | I200: Psat
H201: =VLOOKUP(I201,$I$104:$J$191,2) ->  | I201: =VLOOKUP(I202,I104:J191,1) ->  | J201: =MATCH(H201,H104:H191,1) -> 
H202: =H201+(I202-I201)/(I203-I201)*(H203-H201) ->  | I202: =E117*E105 -> 116.8904142
H203: =INDEX(H104:H191,J203) ->  | I203: =VLOOKUP(H203,H104:I191,2) ->  | J203: =J201+1 -> 
H205: TEMP. CONDENSATION FUMÉE
H206: T | I206: Psat
H207: =VLOOKUP(I207,$I$104:$J$191,2) -> 55 | I207: =VLOOKUP(E126,I104:J191,1) -> 15737.3761 | J207: =MATCH(H207,H104:H191,1) -> 27
H208: =H207+(I208-I207)/(I209-I207)*(H209-H207) -> 56.44306204 | I208: =E126 -> 16943.29225
H209: =INDEX(H104:H191,J209) -> 60 | I209: =VLOOKUP(H209,H104:I191,2) -> 19915.70011 | J209: =J207+1 -> 28
H211: CALCUL FUMÉES
H212: T | I212: Psat
H213: =VLOOKUP(H214,H104:I191,1) -> 235 | I213: =VLOOKUP(H213,$H$104:$I$191,2) -> 3060000 | J213: =MATCH(H213,H104:H191,1) -> 71
H214: =E121 -> 238.0210122 | I214: =I213+((H214-H213)/(H215-H213))*(I215-I213) -> 3231593.495
H215: =INDEX(H104:H191,J215) -> 240 | I215: =VLOOKUP(H215,$H$104:$I$191,2) -> 3344000 | J215: =J213+1 -> 72

Sheet Bilan_1 EE (hidden)
A1: Formulaire de calcul | N1: Unités et paramètres de calculs | Y1: Quantité de purge | Z1: Excès d'air
U2: Numéro correspondant à sélection dans entrée de données | Y2: ='Entrée de données'!C52 -> 1 | Z2: ='Entrée de données'!C36 -> 30 | AA2: ='Entrée de données'!C25 -> 1
B3: Type de chaudière: | C3: =VLOOKUP(AA2,X4:AA7,4) -> Tubes de fumées | O3: Conversion | X3: Numéro | Y3: % Purge | Z3: % Exces d'air | AA3: Type de chaudière
O4: 1kW = | P4: =1000000/293.07 -> 3412.154093 | Q4: Btu/h | X4: 1 | Y4: 0 | Z4: 0.01 | AA4: Tubes de fumées
A5: OUTPUT: | O5: 1 Btu/h = | P5: 0.00029307 | Q5: kW | X5: =X4+1 -> 2 | Y5: 0.01 | Z5: =Z4+0.01 -> 0.02 | AA5: Tubes d'eau
A6: Puissance maximale du brûleur | B6: ='Entrée de données'!C27 -> 0 | C6: kW | D6: Donnée d'entrée | O6: 1 kJ/kg= | P6: 0.42993 | Q6: Btu/lb | X6: =X5+1 -> 3 | Y6: 0.02 | Z6: =Z5+0.01 -> 0.03 | AA6: À serpentin
A7: Puissance maximale de production de vapeur de la chaudière | B7: ='Entrée de données'!C29 -> 0 | C7: kW | D7: Donnée d'entrée | O7: 1 Btu = | P7: 0.001055 | Q7: MJ | X7: =X6+1 -> 4 | Y7: 0.03 | Z7: 0.04 | AA7: Sans tube
A8: Puissance maximale de production de vapeur de la chaudière | B8: =ROUND(B7*P4/1000000,2) -> 0 | C8: millions Btu/h | D8: Simple calcul de conversion des kw en btu/h | O8: 1 MJ = | P8: =1/P7 -> 947.8672986 | Q8: Btu | X8: =X7+1 -> 5 | Y8: 0.04 | Z8: 0.05
A9: Puissance moyenne de production de vapeur de la chaudière en opération | B9: =B89+B108+B79-B74 -> 0 | C9: kW | D9: Q = Qvap dispo + Q évent + Q purge - Qeau alimenté | F9: ATTENTION: Ce n'est pas juste pour la vapeur dispo. C'est aussi de l'énergie qui sera perdu par les purges | O9: 1 lb = | P9: 0.45359237 | Q9: kg | X9: 6 | Y9: 0.05 | Z9: 0.06
A10: Puissance moyenne de production de vapeur de la chaudière en opération | B10: =ROUND(B9*P4/1000000,2) -> 0 | C10: millions Btu/h | D10: Données entrée converti en btu/h | O10: 1 kg = | P10: =1/P9 -> 2.204622622 | Q10: lb | X10: 7 | Y10: 0.06 | Z10: 0.07
X11: 8 | Y11: 0.07 | Z11: 0.08
A12: INFO POUR CALCUL DE L'EFFICACITÉ | X12: 9 | Y12: 0.08 | Z12: 0.09
A13: Excès d'air | B13: =IF('Mise en forme- input'!C3=FALSE,Bilan_1!B13,'Entrée de données'!C89) -> 0.3 | D13: Donnée d'entrée | X13: 10 | Y13: 0.09 | Z13: 0.1
A14: Température des fumées (°F) | B14: =IF('Mise en forme- input'!C3=FALSE,Bilan_1!B14,'Comb_1 (micro)'!U7) -> 392 | C14: °F | D14: Donnée entrée convertie en °F au lieu de °C | S14: Pertes par radiation et convection | X14: 11 | Y14: 0.1 | Z14: 0.11
A15: Température de l'air de combustion (°F) | B15: =ROUND(('Entrée de données'!C35*1.8+32),1) -> 68 | C15: °F | D15: Donnée entrée convertie en °F au lieu de °C | S15: Puissance maximale kW | T15: Puissance maximale millions Btu/h | U15: % de Pertes | V15: à 100% de la charge | X15: 12 | Y15: 0.11 | Z15: 0.12
A16: Température de l'eau d'appoint (°C) | B16: =IF(OR(AND('Mise en forme- input'!C5=TRUE,'Économiseurs 1 à 4 '!B7=2),'Mise en forme- input'!C6=TRUE,'Mise en forme- input'!C7=TRUE),'Économiseurs 1 à 4 '!B44,'Entrée de données'!C48) -> 0 | C16: °C | D16: Donnée d'entrée | F16: =SI(OU(ET('Mise en forme- input'!C5=VRAI;'Économiseurs 1 à 4 '!B6=2);'Mise en forme- input'!C6=VRAI;'Mise en forme- input'!C7=VRAI);'Économiseurs 1 à 4 '!B35;'Entrée de données'!C48) | X16: 13 | Y16: 0.12 | Z16: 0.13
R17: Inférieure à 5 millions Btu/h | S17: Inférieure à 1465 | T17: =IF(B8<5,B8, "") -> 0 | U17: =IF($B$8<5,$V$88/($B$10/#REF!),"") ->  | V17: =IF($B$8<5,$V$89,"") -> 0 | X17: 14 | Y17: 0.13 | Z17: 0.14
A18: CALCUL DE L'EFFICACITÉ DE CHAUFFE : 100%-perte fumée - perte radiation | S18: =T18*$P$5*1000000 -> 1465.35 | T18: 5 | U18: =V18/($B$10/T18) ->  | V18: 0.026 | X18: 15 | Y18: 0.14 | Z18: 0.15
A19: 1. Perte par les fumée | B19: =IF('Mise en forme- input'!C3=FALSE,Bilan_1!B19,1-'Entrée de données'!C87) -> 0.1724329004 | S19: =T19*$P$5*1000000 -> 2930.7 | T19: 10 | V19: 0.016 | X19: 16 | Y19: 0.15 | Z19: 0.16
A20: 2. Perte par radiation: | S20: 5861.4 | T20: 20 | V20: 0.0105 | X20: 17 | Y20: 0.16 | Z20: 0.17
A21: Pertes par radiation et convection | D21: Interpolation des pertes par radiation et convection | H21: Puissance (millions Btuh) | I21: Pertes à 100% | S21: 8792.1 | T21: 30 | V21: 0.0084 | X21: 18 | Y21: 0.17 | Z21: 0.18
A22: Pertes calculées pour une chaudière de | B22: =IF(B8<T18,T17,B8) -> 0 | C22: millions Btu/h | D22: Puissance en dessous | H22: =IF(B8<5,B8,LOOKUP(B8,T18:T42)) -> 0 | I22: =ROUND(IF(H22<5,V17, VLOOKUP(H24,T18:V42,3,TRUE)),4) -> 0 | S22: 11722.8 | T22: 40 | V22: 0.0073 | X22: 19 | Y22: 0.18 | Z22: 0.19
B23: =I24/(B9/B7) ->  | D23: Puissance au dessus | H23: =IF(B8<T18,B8,INDEX(T18:T42,RANK(LOOKUP(B8,T18:T42),T18:T42,1)+1)) -> 0 | I23: =ROUND(IF(H23<5,V17, VLOOKUP(H23,T18:V42,3,TRUE)),4) -> 0 | S23: 14653.5 | T23: 50 | V23: 0.0066 | X23: 20 | Y23: 0.19 | Z23: 0.2
D24: Valeur pour interpolation | H24: =B8 -> 0 | I24: =ROUND(IF(H22=H23,AVERAGE(I22,I23),FORECAST(H24,I22:I23,H22:H23)),4) -> 0 | S24: 17584.2 | T24: 60 | V24: 0.0062 | X24: 21 | Y24: 0.2 | Z24: 0.21
S25: 20514.9 | T25: 70 | V25: 0.0059 | X25: 22 | Y25: 0.21 | Z25: 0.22
A26: Efficacité de chauffe | B26: =IF('Mise en forme- input'!C3=FALSE,Bilan_1!B26,'Entrée de données'!C87-B23) ->  | C26: Nouvelle valeur: efficacité données par le particpant - % perte par radiation | S26: 23445.6 | T26: 80 | V26: 0.0056 | X26: 23 | Y26: 0.22 | Z26: 0.23
S27: 26376.3 | T27: 90 | V27: 0.0054 | X27: 24 | Y27: 0.23 | Z27: 0.24
A28: INPUT | S28: 29307 | T28: 100 | V28: 0.0052 | X28: 25 | Y28: 0.24 | Z28: 0.25
A29: Puissance du brûleur en opération | B29: =B30*1000000*P5 ->  | C29: kW | D29: Convertion de B30 en kw | S29: 35168.4 | T29: 120 | V29: 0.0048 | X29: 26 | Y29: 0.25 | Z29: 0.26
A30: Puissance du brûleur en opération | B30: =B10/B26 ->  | C30: millions Btu/h | D30: Puissance moyenne production vapeur / efficacité | S30: 41029.8 | T30: 140 | V30: 0.0045 | X30: 27 | Y30: 0.26 | Z30: 0.27
A31: Volume de gaz naturel alimenté | B31: =ROUND(B29/(J36*1000)*3600,2) ->  | C31: m3/h | D31: Convertion de la puissance en opération du bruleur de kw en m3 de gaz | S31: 46891.2 | T31: 160 | V31: 0.0043 | X31: 28 | Y31: 0.27 | Z31: 0.28
A32: Nombre de moles totales pour le volume de gaz | B32: =ROUND(B31/(8.31451*(273.15+'Entrée de données'!C37)/101325),1) ->  | C32: mol/h | D32: PV=nRT => n=PV/RT | S32: 52752.6 | T32: 180 | V32: 0.004 | X32: 29 | Y32: 0.28 | Z32: 0.29
S33: 58614 | T33: 200 | V33: 0.0038 | X33: 30 | Y33: 0.29 | Z33: 0.3
A34: Quantité de fumées produites | S34: 87921 | T34: 300 | V34: 0.0034 | X34: 31 | Y34: 0.3 | Z34: 0.31
B35: masse molaire (g/mol) | C35: mol | D35: masse(lb/h) | E35: masse (kg/h) | G35: Masse d'hydrogène dans une livre de combustible (lb/lb) | J35: =Comb_1!Q50 -> 0.2368842897 | S35: 117228 | T35: 400 | V35: 0.003 | X35: 32 | Y35: 0.31 | Z35: 0.32
A36: CO2 | B36: =Comb_1!C12 -> 44.011 | C36: =IF('Mise en forme- input'!C3=FALSE,Comb_1!L82*B32,'Comb_1 (micro)'!L82*B32) ->  | D36: =ROUND(C36*B36/($P$9*1000),1) ->  | E36: =ROUND(C36*B36/1000,1) ->  | G36: 1m3 gaz naturel (MJ) | J36: 37.89 | S36: 146535 | T36: 500 | V36: 0.0028 | X36: 33 | Y36: 0.32 | Z36: 0.33
A37: H2O | B37: =Comb_1!C14 -> 18.015 | C37: =IF('Mise en forme- input'!C3=FALSE,Comb_1!L86*B32,'Comb_1 (micro)'!L86*B32) ->  | D37: =ROUND(C37*B37/($P$9*1000),1) ->  | E37: =ROUND(C37*B37/1000,1) ->  | G37: 1m3 gaz naturel (btu) | J37: =J36*P8 -> 35914.69194 | S37: 293070 | T37: 1000 | V37: 0.0023 | X37: 34 | Y37: 0.33 | Z37: 0.34
A38: O2 | B38: =Comb_1!C10 -> 32 | C38: =IF('Mise en forme- input'!C3=FALSE,Comb_1!L84*B32,'Comb_1 (micro)'!L84*B32) ->  | E38: =ROUND(C38*B38/1000,1) ->  | S38: 586140 | T38: 2000 | V38: 0.00195 | X38: 35 | Y38: 0.34 | Z38: 0.35
A39: N2 | B39: =Comb_1!C26 -> 28.013 | C39: =IF('Mise en forme- input'!C3=FALSE,Comb_1!L81*B32,'Comb_1 (micro)'!L81*B32) ->  | E39: =ROUND(C39*B39/1000,1) ->  | S39: 1172280 | T39: 4000 | V39: 0.00175 | X39: 36 | Y39: 0.35 | Z39: 0.36
A40: Total (humide) | C40: =SUM(C36:C39) ->  | D40: =SUM(D36:D39) ->  | E40: =SUM(E36:E39) ->  | S40: 1758420 | T40: 6000 | V40: 0.0016 | X40: 37 | Y40: 0.36 | Z40: 0.37
A41: Total (sec) | C41: =SUM(C36,C38:C39) ->  | D41: =D40-D37 ->  | E41: =SUM(E36,E38:E39) ->  | S41: 2930700 | T41: 10000 | V41: 0.0015 | X41: 38 | Y41: 0.37 | Z41: 0.38
S42: 5861400 | T42: 20000 | V42: 0.0015 | X42: 39 | Y42: 0.38 | Z42: 0.39
A43: CONDENSAT | X43: 40 | Y43: 0.39 | Z43: 0.4
A44: Enthalpie de l'eau d'appoint (kJ/kg) | B44: =ROUND(4.18*(B16),3) -> 0 | C44: kJ/kg | D44: Cp*DT | X44: 41 | Y44: 0.4 | Z44: 0.41
A45: Température du condensat (°C) | B45: =IF(('Entrée de données'!C49=2),"0",('Entrée de données'!C51)) -> 0 | C45: °C | D45: Donnée d'entrée | X45: 42 | Y45: 0.41 | Z45: 0.42
A46: Enthalpie du condensat (kJ/kg) | B46: =IF('Entrée de données'!C49=2,"0",4.18*(B45)) -> 0 | C46: kJ/kg | D46: Cp*DT | X46: 43 | Y46: 0.42 | Z46: 0.43
A47: % de condensat | B47: =IF('Entrée de données'!C49=1,'Entrée de données'!C50,0) -> 0 | D47: Donnée d'entrée | X47: 44 | Y47: 0.43 | Z47: 0.44
A48: T°de l'eau alimentée à la chaudière (°C) | B48: =IF(AND('Mise en forme- input'!C5=TRUE,'Économiseurs 1 à 4 '!B7=1),'Économiseurs 1 à 4 '!B52,IF('Entrée de données'!C49=1,(B47*B45+(1-B47)*B16),B16)) -> 0 | C48: °C | D48: si retour de condensat: [% condensat * T° du condensat] + [(1-% condensat) * T°de l'eau d'appoint]. Sinon, c'est égale à la T° d'eau d'appoint | X48: 45 | Y48: 0.44 | Z48: 0.45
X49: 46 | Y49: 0.45 | Z49: 0.46
D50: Interpolation des enthalpies | I50: Pression (kPa) | J50: Liquide saturé (kJ/kg) | K50: Enthalpie de vaporisation (kJ/kg) | L50: Vapeur saturée (kJ/kg) | X50: 47 | Y50: 0.46 | Z50: 0.47
D51: Pression en dessous de la valeur entrée par l'utilisateur | I51: =LOOKUP(B56,'Données vapeur'!A5:A60) -> -1.325 | J51: =VLOOKUP(I51,'Données vapeur'!A5:E60,3,FALSE) -> 417.46 | K51: =VLOOKUP(I51,'Données vapeur'!A5:E60,4,FALSE) -> 2258 | L51: =VLOOKUP(I51,'Données vapeur'!A5:E60,5,FALSE) -> 2675.46 | X51: 48 | Y51: 0.47 | Z51: 0.48
D52: Pression au dessus de la valeur entrée par l'utilisateur | I52: =IF((I51-B56)=0,B56,INDEX('Données vapeur'!A5:A60,RANK(LOOKUP('Bilan_1 EE'!B56,'Données vapeur'!A5:A60),'Données vapeur'!A5:A60,1)+1)) -> 23.675 | J52: =VLOOKUP(I52,'Données vapeur'!A5:E60,3,FALSE) -> 444.32 | K52: =VLOOKUP(I52,'Données vapeur'!A5:E60,4,FALSE) -> 2241 | L52: =VLOOKUP(I52,'Données vapeur'!A5:E60,5,FALSE) -> 2685.32 | X52: 49 | Y52: 0.48 | Z52: 0.49
D53: Valeur pour interpolation | I53: =B56 -> 0 | J53: =IF(I51=I52,J51,FORECAST(I53,J51:J52,I51:I52)) -> 418.88358 | K53: =IF(I51=I52,K51,FORECAST(I53,K51:K52,I51:I52)) -> 2257.099 | L53: =IF(I51=I52,L51,FORECAST(I53,L51:L52,I51:I52)) -> 2675.98258 | X53: 50 | Y53: 0.49 | Z53: 0.5
A54: ENTHALPIE | X54: 51 | Y54: 0.5 | Z54: 0.51
A55: Enthalpie de l'eau alimentée à la chaudière (kJ/kg) | B55: =ROUND(IF(AND('Mise en forme- input'!C5=TRUE,'Économiseurs 1 à 4 '!B7=1),B48*4.18,IF('Entrée de données'!C49=1,(B47*B46+(1-B47)*B44),B44)),3) -> 0 | C55: kJ/kg | D55: si retour de condensat: [% condensat * DH du condensat] + [(1-% condensat) * DH de l'eau d'appoint]. Sinon, c'est égale à la DH d'eau d'appoint | X55: 52 | Y55: 0.51 | Z55: 0.52
A56: Pression de la vapeur produite (kPa) | B56: ='Entrée de données'!C43 -> 0 | C56: kPa | D56: Donnée d'entrée | I56: Interpolation de l'enthalpie surchauffée | M56: Pression (kPa) Données saturées | N56: Vapeur surchauffée (kJ/kg) | X56: 53 | Y56: 0.52 | Z56: 0.53
A57: Degré de surchauffe | B57: =IF('Entrée de données'!C44="Non nécessaire",0,'Entrée de données'!C45) -> 0 | C57: °C | I57: Pression en dessous de la valeur entrée par l'utilisateur | M57: =LOOKUP(B56,'Données vapeur'!$H$6:$H$31) -> -1.325 | N57: =VLOOKUP(M57,'Données vapeur'!$H$6:$M$33,3,FALSE) -> 2679.181185
A58: Enthalpie de la vapeur saturée/surchauffée (kJ/kg) | B58: =IF(B57=0,L53,N59) -> 2675.98258 | C58: kJ/kg | D58: Recherche de h en fonction de la pression | I58: Pression au dessus de la valeur entrée par l'utilisateur | M58: =IF((M57-B56)=0,B56,INDEX('Données vapeur'!$H$6:$H$31,RANK(LOOKUP(B56,'Données vapeur'!$H$6:$H$31),'Données vapeur'!$H$6:$H$31,1)+1)) -> 98.675 | N58: =VLOOKUP(M58,'Données vapeur'!$H$6:$M$33,3,FALSE) -> 2713.09642 | X58: =X56+1 -> 54 | Y58: 0.53 | Z58: =Z56+0.01 -> 0.54
A59: Enthalpie de l'eau saturée (purge) (kJ/kg) | B59: =J53 -> 418.88358 | C59: kJ/kg | I59: Valeur pour interpolation | M59: =B56 -> 0 | N59: =IF(M57=M58,N57,FORECAST(M59,N57:N58,M57:M58)) -> 2679.630562 | X59: 55 | Y59: 0.54 | Z59: 0.55
A60: Enthalpie de vaporisation (kJ/kg) | B60: =K53 -> 2257.099 | C60: kJ/kg | X60: 56 | Y60: 0.55 | Z60: 0.56
A61: Purge - % de l'eau alimentée à la chaudière | B61: =IF('Mise en forme- input'!C4=TRUE,'Entrée de données'!C100,('Entrée de données'!C52-1)/100) -> 0 | D61: Donnée d'entrée | X61: 57 | Y61: 0.56 | Z61: 0.57
X62: 58 | Y62: 0.57 | Z62: 0.58
X63: 59 | Y63: 0.58 | Z63: 0.59
X64: 60 | Y64: 0.59 | Z64: 0.6
A65: Production de vapeur | X65: 61 | Y65: 0.6 | Z65: 0.61
A66: Eau alimentée à la chaudière | X66: 62 | Y66: 0.61 | Z66: 0.62
A67: Quantité d'eau alimentée (lb/h) | B67: =ROUND(B68/P9,2) -> 0 | C67: Convertion de la ligne du dessous de kg en lb | X67: 63 | Y67: 0.62 | Z67: 0.63
A68: Quantité d'eau alimentée (kg/h) | B68: =B87/(1-B61) -> 0 | X68: 64 | Y68: 0.63 | Z68: 0.64
A69: Eau d'appoint (lb/h) | B69: =B67*(1-B47) -> 0 | C69: = eau_alimenté*(1-%condensat) | X69: 65 | Y69: 0.64 | Z69: 0.65
A70: Eau d'appoint (kg/h) | B70: =B68*(1-B47) -> 0 | C70: Convertion | X70: 66 | Y70: 0.65 | Z70: 0.66
A71: Retour de condensat (lb/h) | B71: =B67*B47 -> 0 | C71: = eau_alimenté * % condensat | X71: 67 | Y71: 0.66 | Z71: =Z70+0.01 -> 0.67
A72: Retour de condensat (kg/h) | B72: =B68*B47 -> 0 | C72: Convertion | X72: =X71+1 -> 68 | Y72: 0.67 | Z72: 0.68
A73: Énergie dans l'eau alimentée (Btu/h) | B73: =ROUND(B74*P4,0) -> 0 | C73: Convertion de la ligne du dessous de kW en Btu/h | X73: =X72+1 -> 69 | Y73: 0.68 | Z73: 0.69
A74: Énergie dans l'eau alimentée (kW) | B74: =ROUND(B68*B55/3600,0) -> 0 | C74: masse d'eau alimenté * entalpie de l'eau alimenté | X74: 70 | Y74: 0.69 | Z74: 0.7
A75: PURGE | X75: 71 | Y75: 0.7 | Z75: 0.71
A76: Quantité d'eau prélevée (lb/h) | B76: =ROUND(B67*B61,2) -> 0 | C76: eau alimenté *%purge | X76: 72 | Y76: 0.71 | Z76: 0.72
A77: Quantité d'eau (kg/h) | B77: =ROUND(B76*P9,2) -> 0 | C77: Convertion | X77: 73 | Y77: 0.72 | Z77: 0.73
A78: Énergie perdue dans la purge (Btu/h) | B78: =ROUND(B79*P4,2) -> 0 | C78: Convertion de la ligne du dessous de kW en Btu/h | X78: 74 | Y78: 0.73 | Z78: 0.74
A79: Énergie perdue dans la purge (kW) | B79: =ROUND(B77*(B59)/3600,2) -> 0 | C79: m_eau_purge * entalpie de l'eau de la purge (soit l'enthalpie de l'eau saturée) | X79: 75 | Y79: 0.74 | Z79: 0.75
A80: Potentiel de récupération (Btu/h) | B80: =B78*0.9 -> 0 | C80: énergie perdue dans la purge * 90% de récupé | H80: 90% de récupération | X80: 76 | Y80: 0.75 | Z80: 0.76
A81: Potentiel de récupération (KW) | B81: =B79*0.9 -> 0 | C81: Convertion | X81: 77 | Y81: 0.76 | Z81: 0.77
A82: % de l'énergie alimentée à la chaudière | B82: =ROUND(B78/(B30*1000000),4) ->  | C82: Énergie perdue par la purge / puissance d'opération bruleur | H82: Équation 3.21.1 - Spirax Sarco | X82: 78 | Y82: 0.77 | Z82: 0.78
A83: Vapeur utile | X83: 79 | Y83: 0.78 | Z83: 0.79
A84: Quantité produite - incluant évent dégazeur(lb/h) | B84: =ROUND(B67-B76,2) -> 0 | C84: quantité d'eau alimenté - quantité d'eau prélevé (soit le % de purge) | X84: 80 | Y84: 0.79 | Z84: 0.8
A85: Quantité produite - incluant évent dégazeur(kg/h) | B85: =ROUND(B68-B77,2) -> 0 | C85: Convertion | X85: 81 | Y85: 0.8 | Z85: 0.81
A86: Quantité disponible pour les utilisateurs (lb/h) | B86: =Bilan_1!B86 -> 0 | C86: Les quantités perdues à l'évent du désaérateur sont soustraites | G86: Valeur qui restera fixe pour tout le calculateur | X86: 82 | Y86: 0.81 | Z86: 0.82
A87: Quantité disponible pour les utilisateurs (kg/h) | B87: =Bilan_1!B87 -> 0 | C87: Convertion | G87: Valeur qui restera fixe pour tout le calculateur | X87: 83 | Y87: 0.82 | Z87: 0.83
A88: Énergie dans la vapeur utile (Btu/h) | B88: =Bilan_1!B88 -> 0 | C88: Convertion de la ligne du dessous de kW en Btu/h | G88: Valeur qui restera fixe pour tout le calculateur | X88: 84 | Y88: 0.83 | Z88: 0.84
A89: Énergie dans la vapeur utile (kW) | B89: =Bilan_1!B89 -> 0 | C89: valeur fixe qui doit tjs resté idem peut importe la mesure | G89: Valeur qui restera fixe pour tout le calculateur | X89: 85 | Y89: 0.84 | Z89: 0.85
A91: DÉGAZEUR | X91: =X89+1 -> 86 | Y91: 0.85 | Z91: =Z89+0.01 -> 0.86
A92: Pression d'opération du dégazeur (kPa) | B92: =('Entrée de données'!C56+14.73)*101.235/14.696 -> 101.4692127 | X92: 87 | Y92: 0.86 | Z92: 0.87
A93: Enthalpie de l'eau a la pression du dégazeur (kJ/kg) | B93: =T96 -> 506.4905315 | N93: Interpolation des enthalpies | S93: Pression (kPa) | T93: Liquide saturé (kJ/kg) | U93: Enthalpie de vaporisation (kJ/kg) | V93: Vapeur saturée (kJ/kg) | X93: 88 | Y93: 0.87 | Z93: 0.88
A94: Apport total en vapeur au dégazeur (lb/h) | B94: =ROUND(B95*P10,2) -> 0 | C94: Convertion de la ligne du dessous de kg en lb | G94: Inclus les pertes par l'évent | N94: Pression en dessous de la valeur entrée par l'utilisateur | S94: =LOOKUP(B92,'Données vapeur'!A5:A60) -> 98.675 | T94: =VLOOKUP(S94,'Données vapeur'!$A$5:$E$60,3,FALSE) -> 504.7 | U94: =VLOOKUP(S94,'Données vapeur'!$A$5:$E$60,4,FALSE) -> 2201.9 | V94: =VLOOKUP(S94,'Données vapeur'!$A$5:$E$60,5,FALSE) -> 2706.6 | X94: 89 | Y94: 0.88 | Z94: 0.89
A95: Apport total en vapeur au dégazeur (kg/h) | B95: =IF('Entrée de données'!C55=2,0,SUM(M112:M115)) -> 0 | G95: Inclus les pertes par l'évent | N95: Pression au dessus de la valeur entrée par l'utilisateur | S95: =IF((S94-B92)=0,B92,INDEX('Données vapeur'!A5:A60,RANK(LOOKUP('Bilan_1 EE'!B92,'Données vapeur'!A5:A60),'Données vapeur'!A5:A60,1)+1)) -> 123.675 | T95: =VLOOKUP(S95,'Données vapeur'!$A$5:$E$60,3,FALSE) -> 520.72 | U95: =VLOOKUP(S95,'Données vapeur'!$A$5:$E$60,4,FALSE) -> 2191.3 | V95: =VLOOKUP(S95,'Données vapeur'!$A$5:$E$60,5,FALSE) -> 2712.02 | X95: 90 | Y95: 0.89 | Z95: 0.9
A96: % Pertes par l'évent (% de la vapeur alimentée) | B96: 0.095 | C96: Moyenne des données de l'USDOE | N96: Valeur pour interpolation | S96: =B92 -> 101.4692127 | T96: =IF(S94=S95,T94,FORECAST(S96,T94:T95,S94:S95)) -> 506.4905315 | U96: =IF(S94=S95,U94,FORECAST(S96,U94:U95,S94:S95)) -> 2200.715254 | V96: =IF(S94=S95,V94,FORECAST(S96,V94:V95,S94:S95)) -> 2707.205785 | X96: 91 | Y96: 0.9 | Z96: 0.91
A97: Pertes total de vapeur par l'évent (lb/h) | B97: =B98*P10 -> 0 | C97: Convertion | X97: =X96+1 -> 92 | Y97: 0.91 | Z97: =Z96+0.01 -> 0.92
A98: Pertes de vapeur par l'évent (kg/h) | B98: =ROUND(B95*B96,2) -> 0 | C98: Total apport en vapeur *%perte | X98: 93 | Y98: 0.92 | Z98: 0.93
A99: Perte de vapeur par l'évent (kW) | B99: =B98*B58/3600 -> 0
A100: Apport total en vapeur de la chaudière 1 (lb/h) | B100: =B101*P10 -> 0 | G100: quantité de vapeur qui reste | X100: =X98+1 -> 94 | Y100: 0.93 | Z100: =Z98+0.01 -> 0.94
A101: Apport total en vapeur de la chaudière 1 (kg/h) | B101: =IF('Entrée de données'!C55=2,0,IF('Entrée de données'!F21=1,N112,IF('Entrée de données'!F21=2,N113,IF('Entrée de données'!F21=3,N114,IF('Entrée de données'!F21=4,N115,0))))) -> 0 | X101: 95 | Y101: 0.94 | Z101: 0.95
A102: Perte de vapeur par l'évent pour la chaudière 1 (lb/h) | B102: =B100*B96 -> 0 | G102: quantité de vapeur qui s'échappe de dégazeur | X102: 96 | Y102: 0.95 | Z102: 0.96
A103: Perte de vapeur par l'évent pour la chaudière (kg/h) | B103: =B101*B96 -> 0 | X103: 97 | Y103: 0.96 | Z103: 0.97
A104: Pertes de vapeur par l'évent pour la chaudière 1 (%) | B104: =(B103*B58/3600)/B29 ->  | C104: Énergie perdue par event / puissance du bruleur en op = masse de vapeur perdue par l'évent * hv,sat / puissance du bruleur en op | M104: Ch1 | N104: Ch2 | O104: Ch3 | P104: Ch4 | Q104: TOTAL | X104: 98 | Y104: 0.97 | Z104: 0.98
A105: Besoins en vapeur du dégazeur en % de la vapeur produite pour la chaudière 1 | B105: =B101/B85 ->  | C105: Besoin en vap / quantité de vapeur utile produite | L105: m_eau_alim (kg/h) | M105: =B68 -> 0 | N105: =IF('Entrée de données'!F21<2,0,'Bilan_2 EE'!B68) -> 0 | O105: =IF('Entrée de données'!F21<3,0,'Bilan_3 EE'!B68) -> 0 | P105: =IF('Entrée de données'!F21<4,0,'Bilan_4 EE'!B68) -> 0 | Q105: =SUM(M105:P105) -> 0 | X105: 99 | Y105: 0.98 | Z105: 0.99
L106: h_eau_alim (kJ/kg) | M106: =B55 -> 0 | N106: =IF('Entrée de données'!F21<2,0,'Bilan_2 EE'!B55) -> 0 | O106: =IF('Entrée de données'!F21<3,0,'Bilan_3 EE'!B55) -> 0 | P106: =IF('Entrée de données'!F21<4,0,'Bilan_4 EE'!B55) -> 0 | X106: 100 | Y106: 0.99 | Z106: 1
L107: h_vapeur (kJ/kg) | M107: =B58 -> 2675.98258 | N107: =IF('Entrée de données'!F21<2,0,'Bilan_2 EE'!B58) -> 0 | O107: =IF('Entrée de données'!F21<3,0,'Bilan_3 EE'!B58) -> 0 | P107: =IF('Entrée de données'!F21<4,0,'Bilan_4 EE'!B58) -> 0
A108: Énergie contenue dans l'évent du dégazeur pour la chaudière 1(kW) | B108: =2326*B103/3600 -> 0
L109: Apport total en vapeur pour le dégazeur:
M110: Pour le dégazeur (kg/h) | N110: Apport par chaudière (kg/h)
A111: Vapeur disponible pour les utilisateurs | N111: ch1 | O111: ch2 | P111: ch3 | Q111: ch4
A112: Quantité de vapeur disponible (lb/h) | B112: =B86 -> 0 | L112: si une seule chaudière | M112: =IF('Entrée de données'!F21=1,(M105*(B93-B55)/(M107-B93))/(1-B96),0) -> 0 | N112: =IF('Entrée de données'!F21=1,B95,0) -> 0
A113: Quantité de vapeur disponible (kg/h) | B113: =B87 -> 0 | D113: exclus les pertes par l'évent | L113: si 2 chaudière | M113: =IF('Entrée de données'!F21=2,(2*(M105*(B93-M106)+N105*(B93-N106))/((M107-B93)+(N107-B93)))/(1-B96),0) -> 0 | N113: =IF('Entrée de données'!F21=2,B95/2,0) -> 0 | O113: =IF('Entrée de données'!F21=2,B95/2,0) -> 0
L114: si 3 chaudière | M114: =IF('Entrée de données'!F21=3,(3*(M105*(B93-M106)+N105*(B93-N106)+O105*(B93-O106))/((M107-B93)+(N107-B93)+(O107-B93)))/(1-B96),0) -> 0 | N114: =IF('Entrée de données'!F21=3,B95/3,0) -> 0 | O114: =IF('Entrée de données'!F21=3,B95/3,0) -> 0 | P114: =IF('Entrée de données'!F21=3,B95/3,0) -> 0
L115: si 4 chaudière | M115: =IF('Entrée de données'!F21=4,(4*(M105*(B93-M106)+N105*(B93-N106)+O105*(B93-O106)+P105*(B93-P106))/((M107-B93)+(N107-B93)+(O107-B93)+(P107-B93)))/(1-B96),0) -> 0 | N115: =IF('Entrée de données'!F21=4,B95/4,0) -> 0 | O115: =IF('Entrée de données'!F21=4,B95/4,0) -> 0 | P115: =IF('Entrée de données'!F21=4,B95/4,0) -> 0 | Q115: =IF('Entrée de données'!F21=4,B95/4,0) -> 0
A117: Efficacité de génération de vapeur utile | B117: =ROUND((B113/3600)*(B58-B55)/B29,5) -> 
A118: Consommation de gaz naturel par kg/h de vapeur, en m3/(kg/h) | B118: =ROUND(B31/B113,5) ->  | C118: m3 de gaz alimenté / masse de vapeur utile produite
D122: Efficacité = énergie dispo dans vapeur / puissance du bruleur en oper
D123: Efficacité = masse vapeur dispo * DH / puissance du bruleur en oper
D124: Efficacité = masse vapeur dispo * (hV,sat - hL) / puissance du bruleur en oper

Sheet Radiation_Convection_a_jour (hidden)
A1: Données de l'ABMA par lecture
A3: En considérant 4 murs refroidis comme l'OEE
A4: De 10 millions à 200 millions: données de l'OEE
A5: http://oee.rncan.gc.ca/industriel/info-technique/outils/chaudieres/5875
B9: Capacité maximale kW | C9: Capacité maximale millions Btu/h
B11: 1465 | C11: 5 | D11: 0.026
B12: 2930 | C12: 10 | D12: 0.016
B13: 5860 | C13: 20 | D13: 0.0105
B14: 8790 | C14: 30 | D14: 0.0084
B15: 11720 | C15: 40 | D15: 0.0073
B16: 14650 | C16: 50 | D16: 0.0066
B17: 17580 | C17: 60 | D17: 0.0062
B18: 20510 | C18: 70 | D18: 0.0059
B19: 23440 | C19: 80 | D19: 0.0056
B20: 26370 | C20: 90 | D20: 0.0054
B21: 29300 | C21: 100 | D21: 0.0052
B22: 35160 | C22: 120 | D22: 0.0048
B23: 41020 | C23: 140 | D23: 0.0045
B24: 46880 | C24: 160 | D24: 0.0043
B25: 52740 | C25: 180 | D25: 0.004
B26: 58600 | C26: 200 | D26: 0.0038
B27: 87900 | C27: 300 | D27: 0.0034
B28: 117200 | C28: 400 | D28: 0.003
B29: 146500 | C29: 500 | D29: 0.0028
B30: 293000 | C30: 1000 | D30: 0.0023
B31: 586000 | C31: 2000 | D31: 0.00195
B32: 1172000 | C32: 4000 | D32: 0.00175
B33: 1758000 | C33: 6000 | D33: 0.0016
B34: 2930000 | C34: 10000 | D34: 0.0015
B35: 5860000 | C35: 20000 | D35: 0.0015

Sheet Radition_Convection_Equations (hidden)
A1: Pertes par radiation et par convection
A2: Équations établies à partir de points obtenus du graphe de l'ABMA
A4: Équations
B5: Équation
A6: Chaudières 20000 millions Btu/h | B6: 29,654*(Capacité Utilisée)^-0,958
A7: Chaudières 10000 millions Btu/h | B7: 13,693*(Capacité Utilisée)^-0,945
A8: Chaudières 6000 millions Btu/h | B8: 8,1891*(Capacité Utilisée)^-0,943
A9: Chaudières 4000 millions Btu/h | B9: 7,5945*(Capacité Utilisée)^-0,979
A10: Chaudières 2000 millions Btu/h | B10: 4,182*(Capacité Utilisée)^-0,972
A11: Chaudières 1000 millions Btu/h | B11: 3*(Capacité Utilisée)^-1
A12: Chaudières 500 millions Btu/h | B12: 1,8802*(Capacité Utilisée)^-1,006
A13: Chaudières 400 millions Btu/h | B13: 1,415*(Capacité Utilisée)^-0,976
A14: Chaudières 300 millions Btu/h | B14: 1,0016*(Capacité Utilisée)^-0,95
A15: Chaudières 200 millions Btu/h | B15: 0,8103*(Capacité Utilisée)^-0,946
A16: Chaudières 100 millions Btu/h | B16: 0,614*(Capacité Utilisée)^-0,974
A17: Chaudières 80 millions Btu/h | B17: 0,5271*(Capacité Utilisée)^-0,962
A18: Chaudières 60 millions Btu/h | B18: 0,492*(Capacité Utilisée)^-0,976
A19: Chaudières 50 millions Btu/h | B19: 0,3864*(Capacité Utilisée)^-0,954
A20: Chaudières 40 millions Btu/h | B20: 0,3425*(Capacité Utilisée)^-0,953
A21: Chaudières 30 millions Btu/h | B21: 0,3118*(Capacité Utilisée)^-0,968
A22: Chaudières 20 millions Btu/h | B22: 0,2802*(Capacité Utilisée)^-0,995
A23: Chaudières 10 millions Btu/h | B23: 0,1998*(Capacité Utilisée)^-0,963
A24: Chaudières 5 millions Btu/h | B24: 0,1636*(Capacité Utilisée)^-0,919
A27: Données
A29: Chaudière 20 000 millions Btu/h | C29: =20000000000*0.000293 -> 5860000 | D29: kW
A30: Capacité utilisée (millions de Btu/h) | B30: % de pertes
A31: 20000 | B31: 0.0022
A32: 15000 | B32: 0.0029
A33: 10000 | B33: 0.0043
A34: 7500 | B34: 0.0065
A35: 6000 | B35: 0.007
A36: 5000 | B36: 0.0085
A37: 4000 | B37: 0.0105
A38: 3000 | B38: 0.014
A39: 2500 | B39: 0.016
A40: 2000 | B40: 0.02
A41: 1000 | B41: 0.04
A42: 750
A43: 500
A44: 400
A45: 300
A46: 200
A47: 100
A53: Chaudière 10 000 millions Btu/h | C53: =10000000000*0.000293 -> 2930000 | D53: kW
A54: Capacité utilisée (millions de Btu/h) | B54: % de pertes
A57: 10000 | B57: 0.0022
A58: 7500 | B58: 0.0029
A59: 6000 | B59: 0.0037
A60: 5000 | B60: 0.0048
A61: 4000 | B61: 0.0053
A62: 3000 | B62: 0.007
A63: 2500 | B63: 0.0085
A64: 2000 | B64: 0.0105
A65: 1000 | B65: 0.02
A66: 750 | B66: 0.026
A67: 500 | B67: 0.038
A68: 400 | B68: 0.048
A69: 300
A70: 200
A71: 100
A75: Chaudière 6 000 millions Btu/h | C75: =6000000000*0.000293 -> 1758000 | D75: kW
A76: Capacité utilisée (millions de Btu/h) | B76: % de pertes
A81: 6000 | B81: 0.0022
A82: 5000 | B82: 0.0026
A83: 4000 | B83: 0.0033
A84: 3000 | B84: 0.0045
A85: 2500 | B85: 0.0051
A86: 2000 | B86: 0.0063
A87: 1000 | B87: 0.0122
A88: 750 | B88: 0.016
A89: 500 | B89: 0.024
A90: 400 | B90: 0.029
A91: 300 | B91: 0.0375
A92: 200 | B92: 0.055
A93: 100 | B93: 0.105
A98: Chaudière 4 000 millions Btu/h | C98: =4000000000*0.000293 -> 1172000 | D98: kW
A99: Capacité utilisée (millions de Btu/h) | B99: % de pertes
A106: 4000 | B106: 0.0023
A107: 3000 | B107: 0.003
A108: 2500 | B108: 0.0035
A109: 2000 | B109: 0.0045
A110: 1000 | B110: 0.009
A111: 750 | B111: 0.0115
A112: 500 | B112: 0.0165
A113: 400 | B113: 0.021
A114: 300 | B114: 0.028
A115: 200 | B115: 0.048
A116: 100 | B116: 0.08
A120: Chaudière 2 000 millions Btu/h | C120: =2000000000*0.000293 -> 586000 | D120: kW
A121: Capacité utilisée (millions de Btu/h) | B121: % de pertes
A131: 2000 | B131: 0.0026
A132: 1000 | B132: 0.005
A133: 750 | B133: 0.0068
A134: 500 | B134: 0.01
A135: 400 | B135: 0.012
A136: 300 | B136: 0.0165
A137: 200 | B137: 0.024
A138: 100 | B138: 0.048
A143: Chaudière 1 000 millions Btu/h | C143: =1000000000*0.000293 -> 293000 | D143: kW
A144: Capacité utilisée (millions de Btu/h) | B144: % de pertes
A155: 1000 | B155: 0.003
A156: 750 | B156: 0.004
A157: 500 | B157: 0.006
A158: 400 | B158: 0.0075
A159: 300 | B159: 0.01
A160: 200 | B160: 0.015
A161: 100 | B161: 0.03
A166: Chaudière 500 millions Btu/h | C166: =500000000*0.000293 -> 146500 | D166: kW
A167: Capacité utilisée (millions de Btu/h) | B167: % de pertes
A179: 500 | B179: 0.0035
A180: 400 | B180: 0.0042
A181: 300 | B181: 0.0068
A182: 200 | B182: 0.0095
A183: 100 | B183: 0.018
A184: 50 | B184: 0.036
A188: Chaudière 400 millions Btu/h | C188: =400000000*0.000293 -> 117200 | D188: kW
A189: Capacité utilisée (millions de Btu/h) | B189: % de pertes
A190: 400 | B190: 0.004
A191: 300 | B191: 0.0055
A192: 200 | B192: 0.008
A193: 100 | B193: 0.016
A194: 80 | B194: 0.02
A195: 60 | B195: 0.026
A196: 50 | B196: 0.031
A197: 40 | B197: 0.038
A198: 30
A199: 20
A200: 10
A201: 5
A205: Chaudière 300 millions Btu/h | C205: =300000000*0.000293 -> 87900 | D205: kW
A206: Capacité utilisée (millions de Btu/h) | B206: % de pertes
A207: 400
A208: 300 | B208: 0.0045
A209: 200 | B209: 0.0065
A210: 100 | B210: 0.0122
A211: 80 | B211: 0.0155
A212: 60 | B212: 0.021
A213: 50 | B213: 0.024
A214: 40 | B214: 0.03
A215: 30 | B215: 0.04
A216: 20
A217: 10
A218: 5
A223: Chaudière 200 millions Btu/h | C223: =200000000*0.000293 -> 58600 | D223: kW
A224: Capacité utilisée (millions de Btu/h) | B224: % de pertes
A225: 400
A226: 300
A227: 200 | B227: 0.0055
A228: 100 | B228: 0.01
A229: 80 | B229: 0.013
A230: 60 | B230: 0.017
A231: 50 | B231: 0.02
A232: 40 | B232: 0.024
A233: 30 | B233: 0.033
A234: 20 | B234: 0.048
A235: 10
A236: 5
A241: Chaudière 100 millions Btu/h | C241: =100000000*0.000293 -> 29300 | D241: kW
A242: Capacité utilisée (millions de Btu/h) | B242: % de pertes
A243: 400
A244: 300
A245: 200
A246: 100 | B246: 0.0068
A247: 80 | B247: 0.0085
A248: 60 | B248: 0.0115
A249: 50 | B249: 0.014
A250: 40 | B250: 0.017
A251: 30 | B251: 0.022
A252: 20 | B252: 0.033
A253: 10 | B253: 0.065
A254: 5
A258: Chaudière 80 millions Btu/h | C258: =80000000*0.000293 -> 23440 | D258: kW
A259: Capacité utilisée (millions de Btu/h) | B259: % de pertes
A260: 400
A261: 300
A262: 200
A263: 100
A264: 80 | B264: 0.0075
A265: 60 | B265: 0.01
A266: 50 | B266: 0.012
A267: 40 | B267: 0.017
A268: 30 | B268: 0.02
A269: 20 | B269: 0.029
A270: 10 | B270: 0.058
A271: 5 | B271: 0.11
A275: Chaudière 60 millions Btu/h | C275: =60000000*0.000293 -> 17580 | D275: kW
A276: Capacité utilisée (millions de Btu/h) | B276: % de pertes
A277: 400
A278: 300
A279: 200
A280: 100
A281: 80
A282: 60 | B282: 0.0085
A283: 50 | B283: 0.01
A284: 40 | B284: 0.013
A285: 30 | B285: 0.018
A286: 20 | B286: 0.0362
A287: 10 | B287: 0.048
A288: 5 | B288: 0.095
A293: Chaudière 50 millions Btu/h | C293: =50000000*0.000293 -> 14650 | D293: kW
... 74 more rows

Sheet Données vapeur surchauffée (hidden)
AI1: Pas utilisé
A4: Pression absolue (Mpa) | B4: Pression relative (Mpa) | C4: Pression relative (kpa) | G4: P=0,1 MPa | H4: P=0,2 MPa | I4: P=0,3 MPa | J4: P=0,4 MPa | K4: P=0,5 MPa | L4: P=0,6 MPa | M4: P=0,8 MPa | N4: P=1 MPa | O4: P=1,2 MPa | P4: P=1,4 MPa | Q4: P=1,6 MPa | R4: P=1,8 MPa | S4: P=2 MPa | T4: P=2,5 MPa | U4: P=3 MPa | V4: P=3,5 MPa | W4: P=4 MPa | X4: P=4,5 MPa | Y4: P=5MPa | Z4: P=6MPa | AA4: P=7MPa | AB4: P=8MPa | AC4: P=9MPa | AD4: P=10MPa | AE4: P=12,5MPa | AF4: P=15 MPa | AG4: P=17,5 MPa | AH4: P=20 MPa | AI4: P=25 MPa
F5: kPa-relativ | G5: -1.325 | H5: 98.675 | I5: 198.675 | J5: 298.675 | K5: 398.675 | L5: 498.675 | M5: 698.675 | N5: 898.675 | O5: 1098.675 | P5: 1298.675 | Q5: 1498.675 | R5: 1698.675 | S5: 1898.675 | T5: 2398.675 | U5: 2898.675 | V5: 3398.675 | W5: 3898.675 | X5: 4398.675 | Y5: 4898.675 | Z5: 5898.675 | AA5: 6898.675 | AB5: 7898.675 | AC5: 8898.675 | AD5: 9898.675 | AE5: 12398.675 | AF5: 14898.675 | AG5: 17398.675 | AH5: 19898.675 | AI5: 24898.675
E6: Enthalpie à la température de surchaute (=T°sat +° surchauffe) | G6: =0.0003*(#REF!+G9)^2+1.8237*(#REF!+G9)+2495.8 ->  | H6: =0.0003*(#REF!+H9)^2 + 1.8428*(#REF!+H9) + 2487.2 ->  | I6: =2.2725*(#REF!+I9) + 2383.6 ->  | J6: =2.2785*(#REF!+J9) + 2377.5 ->  | K6: =2.2922*(#REF!+K9) + 2364.2 ->  | L6: =2.2968*(#REF!+L9) + 2359.4 ->  | M6: =2.3056*(#REF!+M9) +2350.1 ->  | N6: =2.3142*(#REF!+N9) + 2341 ->  | O6: =2.3228*(#REF!+O9)+2331.9 ->  | P6: =2.3313*(#REF!+P9)+ 2322.8 ->  | Q6: =2.3381*(#REF!+Q9) + 2315.3 ->  | R6: =2.3454*(#REF!+R9) + 2307.3 ->  | S6: =2.3541*(#REF!+S9)+ 2298 ->  | T6: =2.3758*(#REF!+T9)+2275.9 ->  | U6: =2.3903*(#REF!+U9)+2258.7 ->  | V6: =0.00008*(#REF!+V9)^2 +2.2841*(#REF!+V9) + 2274.9 ->  | W6: =0.00007*(#REF!+W9)^2 +2.3123*(#REF!+W9) + 2256.3 ->  | X6: =4*10^-5*(#REF!+X9)^2+2.3769*(#REF!+X9) + 2228.2 ->  | Y6: =3*10^-7*(#REF!+Y9)^2 +2.4548*(#REF!+Y9)+2186.6 ->  | Z6: =-5*10^-5*(#REF!+Z9)^2 + 2.5508*(#REF!+Z9) + 2137.8 ->  | AA6: =-5*10^-5*(#REF!+AA9)^2 + 2.568*(#REF!+AA9) + 2118 ->  | AB6: =-0.0002*(#REF!+AB9)^2 + 2.8524*(#REF!+AB9) + 1991.1 ->  | AC6: =-0.0002*(#REF!+AC9)^2+2.9162*(#REF!+AC9)+1952.8 ->  | AD6: =-0.0003*(#REF!+AD9)^2 + 3.074*(#REF!+AD9) + 1875.7 ->  | AE6: =-0.0005*(#REF!+AE9)^2+3.3698*(#REF!+AE9)+1722.7 ->  | AF6: =-0.0007*(#REF!+AF9)^2+3.8402*(#REF!+AF9)+1495.3 ->  | AG6: =0.000003*(#REF!+AG9)^3 -0.0071*(#REF!+AG9)^2 + 8.8286*(#REF!+AG9) +278.47 ->  | AH6: =0.000003*(#REF!+AH9)^3-0.0092*(#REF!+AH9)^2+10.813*(#REF!+AH9)-323.93 ->  | AI6: y = -0,0015x2 + 8,2228x + 1298,5
A7: 0.1 | B7: =A7-0.101325 -> -0.001325 | C7: -1.325 | F7: erreur pr Hsat | G7: =G6/G10-1 ->  | H7: =H6/H10-1 ->  | I7: =I6/I10-1 ->  | J7: =J6/J10-1 ->  | K7: =K6/K10-1 ->  | L7: =L6/L10-1 ->  | M7: =M6/M10-1 ->  | N7: =N6/N10-1 ->  | O7: =O6/O10-1 ->  | P7: =P6/P10-1 ->  | Q7: =Q6/Q10-1 ->  | R7: =R6/R10-1 ->  | S7: =S6/S10-1 ->  | T7: =T6/T10-1 ->  | U7: =U6/U10-1 ->  | V7: =V6/V10-1 ->  | W7: =W6/W10-1 ->  | X7: =X6/X10-1 ->  | Y7: =Y6/Y10-1 ->  | Z7: =Z6/Z10-1 ->  | AA7: =AA6/AA10-1 ->  | AB7: =AB6/AB10-1 ->  | AC7: =AC6/AC10-1 ->  | AD7: =AD6/AD10-1 ->  | AH7: =AH6/AH10-1 -> 
A8: 0.2 | B8: =A8-0.101325 -> 0.098675 | C8: 98.675 | F8: T | G8: h | H8: h | I8: h | J8: h
A9: 0.3 | B9: 0.198675 | C9: 198.675 | F9: T°sat °C | G9: 99.63 | H9: 120.23 | I9: 133.55 | J9: 143.63 | K9: 151.86 | L9: 158.85 | M9: 170.43 | N9: 179.91 | O9: 187.99 | P9: 195.07 | Q9: 201.41 | R9: 207.15 | S9: 212.42 | T9: 223.99 | U9: 233.9 | V9: 242.6 | W9: 250.4 | X9: 257.49 | Y9: 263.99 | Z9: 275.64 | AA9: 285.88 | AB9: 295.06 | AC9: 303.4 | AD9: 311.06 | AE9: 327.89 | AF9: 342.24 | AG9: 354.75 | AH9: 365.81
A10: 0.4 | B10: 0.298675 | C10: 298.675 | F10: h Tsat | G10: 2675.5 | H10: 2706.7 | I10: 2725.3 | J10: 2738.6 | K10: 2748.7 | L10: 2756.8 | M10: 2769.1 | N10: 2778.1 | O10: 2784.8 | P10: 2790 | Q10: 2794 | R10: 2797.1 | S10: 2799.5 | T10: 2803.1 | U10: 2804.2 | V10: 2803.4 | W10: 2801.4 | X10: 2798.3 | Y10: 2794.3 | Z10: 2784.3 | AA10: 2838.4 | AB10: 2758 | AC10: 2742.1 | AD10: 2724.7 | AE10: 2673.8 | AF10: 2610.5 | AG10: 2528.8 | AH10: 2409.7
A11: 0.5 | B11: 0.398675 | C11: 398.675 | F11: 100 | G11: 2676.2
A12: 0.6 | B12: 0.498675 | C12: 498.675 | F12: 150 | G12: 2776.4 | H12: 2768.8 | I12: 2761 | J12: 2752.8
A13: 0.8 | B13: 0.698675 | C13: 698.675 | F13: 200 | G13: 2875.3 | H13: 2870.5 | I13: 2865.6 | J13: 2860.5 | K13: 2855.4 | L13: 2850.1 | M13: 2839.3 | N13: 2827.9 | O13: 2815.9 | P13: 2803.3
A14: 1 | B14: 0.898675 | C14: 898.675 | F14: 225 | Q14: 2857.3 | R14: 2849.7 | S14: 2835.8 | T14: 2806.3
A15: 1.2 | B15: 1.098675 | C15: 1098.675 | F15: 250 | G15: 2974.3 | H15: 2971 | I15: 2967.6 | J15: 2964.2 | K15: 2960.7 | L15: 2957.2 | M15: 2950 | N15: 2942.6 | O15: 2935 | P15: 2927.2 | Q15: 2919.2 | R15: 2911 | S15: 2902.5 | T15: 2880.1 | U15: 2855.8 | V15: 2829.2
A16: 1.4 | B16: 1.298675 | C16: 1298.675 | F16: 275 | W16: 2886.2 | X16: 2863.2 | Y16: 2838.3
A17: 1.6 | B17: 1.498675 | C17: 1498.675 | F17: 300 | G17: 3074.3 | H17: 3071.8 | I17: 3069.3 | J17: 3066.8 | K17: 3064.2 | L17: 3061.6 | M17: 3056.5 | N17: 3051.2 | O17: 3045.8 | P17: 3040.4 | Q17: 3034.8 | R17: 3029.2 | S17: 3023.5 | T17: 3008.8 | U17: 2993.5 | V17: 2977.5 | W17: 2960.7 | X17: 2943.1 | Y17: 2924.5 | Z17: 2884.2 | AA17: 2838.4 | AB17: 2785
A18: 1.8 | B18: 1.698675 | C18: 1698.675 | F18: 325 | AC18: 2856 | AD18: 2809.1
A19: 2 | B19: 1.898675 | C19: 1898.675 | F19: 350 | K19: 3167.7 | L19: 3165.7 | M19: 3161.7 | N19: 3157.7 | O19: 3153.6 | P19: 3149.5 | Q19: 3145.4 | R19: 3141.2 | S19: 3137 | T19: 3126.3 | U19: 3115.3 | V19: 3104 | W19: 3092.5 | X19: 3080.6 | Y19: 3068.4 | Z19: 3043 | AA19: 3016 | AB19: 2987.3 | AC19: 2956.6 | AD19: 2923.4 | AE19: 2826.2 | AF19: 2692.4
A20: 2.5 | B20: 2.398675 | C20: 2398.675 | F20: 375 | AI20: 1848
A21: 3 | B21: 2.898675 | C21: 2898.675 | F21: 400 | G21: 3278.2 | H21: 3276.6 | I21: 3275 | J21: 3273.4 | K21: 3271.9 | L21: 3270.3 | M21: 3267.1 | N21: 3263.9 | O21: 3260.7 | P21: 3257.5 | Q21: 3254.2 | R21: 3250.9 | S21: 3247.6 | T21: 3239.3 | U21: 3230.9 | V21: 3222.3 | W21: 3213.6 | X21: 3240.7 | Y21: 3195.7 | Z21: 3177.2 | AA21: 3158.4 | AB21: 3138.3 | AC21: 3117.8 | AD21: 3096.5 | AE21: 3039.3 | AF21: 2975.5 | AG21: 2902.9 | AH21: 2818.1 | AI21: 2580.2
A22: 3.5 | B22: 3.398675 | C22: 3398.675 | F22: 425 | AI22: 2806.3
A23: 4 | B23: 3.898675 | C23: 3898.675 | F23: 450 | T23: 3350.8 | U23: 3344 | V23: 3337.2 | W23: 3330.3 | X23: 3323.3 | Y23: 3316.2 | Z23: 3301.8 | AA23: 3287.1 | AB23: 3272 | AC23: 3256.6 | AD23: 3240.9 | AE23: 3199.8 | AF23: 3156.2 | AG23: 3109.7 | AH23: 3060.1 | AI23: 2949.7
A24: 4.5 | B24: 4.398675 | C24: 4398.675 | F24: 500 | G24: 3488.1 | H24: 3487.1 | I24: 3486 | J24: 3484.9 | K24: 3483.9 | L24: 3482.8 | M24: 3480.6 | N24: 3478.5 | O24: 3476.3 | P24: 3474.1 | Q24: 3472 | R24: 3469.8 | S24: 3467.6 | T24: 3462.1 | U24: 3456.5 | V24: 3450.9 | W24: 3445.3 | X24: 3439.6 | Y24: 3433.8 | Z24: 3422.2 | AA24: 3410.3 | AB24: 3398.3 | AC24: 3386.1 | AD24: 3373.7 | AE24: 3341.8 | AF24: 3308.6 | AG24: 3274.1 | AH24: 3238.2 | AI24: 3162.4
A25: 5 | B25: 4.898675 | C25: 4898.675 | F25: 550 | Z25: 3540.6 | AA25: 3530.9 | AB25: 3521 | AC25: 3511 | AD25: 3500.9 | AE25: 3475.2 | AF25: 3448.6 | AG25: 3421.4 | AH25: 3393.5 | AI25: 3335.6
A26: 6 | B26: 5.898675 | C26: 5898.675 | F26: 600 | G26: 3704.7 | H26: 3704 | I26: 3703.2 | J26: 3702.4 | K26: 3701.7 | L26: 3700.9 | M26: 3699.4 | N26: 3697.9 | O26: 3696.3 | P26: 3694.8 | Q26: 3693.2 | R26: 3691.7 | S26: 3690.1 | T26: 3686.3 | U26: 3682.3 | V26: 3678.8 | W26: 3674.4 | X26: 3670.5 | Y26: 3666.5 | Z26: 3658.4 | AA26: 3650.3 | AB26: 3642 | AC26: 3633.7 | AD26: 3625.3 | AE26: 3604 | AF26: 3582.3 | AG26: 3560.1 | AH26: 3537.6 | AI26: 3491.4
A27: 7 | B27: 6.898675 | C27: 6898.675 | F27: 650 | AC27: 3755.3 | AD27: 3748.2 | AE27: 3730.4 | AF27: 3712.3 | AG27: 3693.9 | AH27: 3675.3 | AI27: 3637.4
A28: 8 | B28: 7.898675 | C28: 7898.675 | F28: 700 | G28: 3928.2 | H28: 3927.6 | I28: 3927.1 | J28: 3926.5 | K28: 3925.9 | L28: 3925.3 | M28: 3924.2 | N28: 3923.1 | O28: 3922 | P28: 3920.8 | Q28: 3919.7 | R28: 3918.5 | S28: 3917.4 | T28: 3914.5 | U28: 3911.7 | V28: 3908.8 | W28: 3905.9 | X28: 3903 | Y28: 3900.1 | Z28: 3894.2 | AA28: 3888.3 | AB28: 3882.4 | AC28: 3876.5 | AD28: 3870.5 | AE28: 3855.3 | AF28: 3840.1 | AG28: 3824.6 | AH28: 3809 | AI28: 3777.5
A29: 9 | B29: 8.898675 | C29: 8898.675 | F29: 800 | G29: 4158.6 | H29: 4158.2 | I29: 4157.8 | J29: 4157.3 | K29: 4156.9 | L29: 4156.5 | M29: 4155.6 | N29: 4154.7 | O29: 4153.8 | P29: 4153.5 | Q29: 4152.1 | R29: 4151.2 | S29: 4150.3 | T29: 4148.2 | U29: 4145.9 | V29: 4146.7 | W29: 4141.5 | X29: 4139.3 | Y29: 4137.1 | Z29: 4132.7 | AA29: 4128.2 | AB29: 4123.8 | AC29: 4119.3 | AD29: 4114.8 | AE29: 4103.6 | AF29: 4092.4 | AG29: 4081.1 | AH29: 4069.7 | AI29: 4047.1
A30: 10 | B30: 9.898675 | C30: 9898.675 | F30: 900 | G30: 4396.1 | H30: 4395.8 | I30: 4395.4 | J30: 4395.1 | K30: 4394.7 | L30: 4394.4 | M30: 4393.7 | N30: 4392.9 | O30: 4392.2 | P30: 4391.5 | Q30: 4390.8 | R30: 4390.1 | S30: 4389.4 | T30: 4387.6 | U30: 4385.9 | V30: 4384.1 | W30: 4382.3 | X30: 4380.6 | Y30: 4378.8 | Z30: 4375.3 | AA30: 4371.8 | AB30: 4368.3 | AC30: 4364.8 | AD30: 4361.2 | AE30: 4352.5 | AF30: 4343.8 | AG30: 4335.1 | AH30: 4326.4 | AI30: 4309.1
A31: 12.5 | B31: 12.398675 | C31: 12398.675 | F31: 1000 | G31: 4640.3 | H31: 4640 | I31: 4639.7 | J31: 4639.4 | K31: 4639.1 | L31: 4638.8 | M31: 4638.2 | N31: 4637.6 | O31: 4637 | P31: 4636.4 | Q31: 4635.8 | R31: 4635.2 | S31: 4634.6 | T31: 4633.1 | U31: 4631.6 | V31: 4630.1 | W31: 4628.7 | X31: 4627.2 | Y31: 4625.7 | Z31: 4622.7 | AA31: 4619.8 | AB31: 4616.9 | AC31: 4614 | AD31: 4611 | AE31: 4603.8 | AF31: 4596.6 | AG31: 4589.5 | AH31: 4582.5 | AI31: 4568.5
A32: 15 | B32: 14.898675 | C32: 14898.675 | F32: 1100 | G32: 4891 | H32: 4890.7 | I32: 4890.4 | J32: 4890.2 | K32: 4889.9 | L32: 4889.6 | M32: 4889.1 | N32: 4888.6 | O32: 4888 | P32: 4887.5 | Q32: 4887 | R32: 4886.4 | S32: 4885.9 | T32: 4884.6 | U32: 4883.3 | V32: 4881.9 | W32: 4880.6 | X32: 4879.3 | Y32: 4878 | Z32: 4875.4 | AA32: 4872.8 | AB32: 4870.3 | AC32: 4867.7 | AD32: 4865.1 | AE32: 4858.8 | AF32: 4852.6 | AG32: 4846.4 | AH32: 4840.2 | AI32: 4828.2
A33: 17.5 | B33: 17.398675 | C33: 17398.675 | F33: 1200 | G33: 5147.6 | H33: 5147.3 | I33: 5147.1 | J33: 5146.8 | K33: 5146.6 | L33: 5146.3 | M33: 5145.9 | N33: 5145.4 | O33: 5144.9 | P33: 5144.4 | Q33: 5143.9 | R33: 5143.4 | S33: 5142.9 | T33: 5147.7 | U33: 5140.5 | V33: 5139.3 | W33: 5138.1 | X33: 5136.9 | Y33: 5135.7 | Z33: 5133.3 | AA33: 5130.9 | AB33: 5128.5 | AC33: 5126.2 | AD33: 5123.8 | AE33: 5118 | AF33: 5112.3 | AG33: 5106.6 | AH33: 5101 | AI33: 5089.9
A34: 20 | B34: 19.898675 | C34: 19898.675 | F34: 1300 | G34: 5409.5 | H34: 5409.3 | I34: 5409 | J34: 5408.8 | K34: 5408.6 | L34: 5408.3 | M34: 5407.9 | N34: 5407.4 | O34: 5407 | P34: 5406.5 | Q34: 5406 | R34: 5405.6 | S34: 5405.1 | T34: 5404 | U34: 5402.8 | V34: 5401.7 | W34: 5400.5 | X34: 5399.4 | Y34: 5398.2 | Z34: 5396 | AA34: 5393.7 | AB34: 5391.5 | AC34: 5389.2 | AD34: 5387 | AE34: 5381.4 | AF34: 5376 | AG34: 5370.5 | AH34: 5365.1 | AI34: 5354.4
A35: 25 | B35: 24.898675 | C35: 24898.675
G41: http://www.spiraxsarco.com/esc/SH_Properties.aspx
AD75: =2.7523*209.91+2378.2 -> 2955.935293

Sheet Tableau complet Vapeur (hidden)
A1: Données vapeur | J1: Conversion: 1 kJ/kg = 0,42993 Btu/lb
A2: Source: Van Wylen et al.
A3: p694 | B3: Enthalpie (kJ/kg) | E3: Enthalpie (Btu/lb)
A4: Pression relative - kPa | B4: Liquide sat (hf) | C4: Évaporation (hgf) | D4: Vapeur sat (hg) | E4: Liquide sat (hf) | F4: Évaporation (hgf) | G4: vapeur sat (hg)
A5: -1.325 | B5: 417.46 | C5: 2258 | D5: 2675.46 | E5: =ROUND(B5*0.42993,2) -> 179.48 | F5: =ROUND(C5*0.42993,2) -> 970.78 | G5: =ROUND(D5*0.42993,2) -> 1150.26
A6: 23.675 | B6: 444.32 | C6: 2241 | D6: 2685.32 | E6: =ROUND(B6*0.42993,2) -> 191.03 | F6: =ROUND(C6*0.42993,2) -> 963.47 | G6: =ROUND(D6*0.42993,2) -> 1154.5
A7: 48.675 | B7: 467.11 | C7: 2226.5 | D7: 2693.61 | E7: 200.82 | F7: 957.24 | G7: 1158.06
A8: 73.675 | B8: 486.99 | C8: 2213.6 | D8: 2700.59 | E8: 209.37 | F8: 951.69 | G8: 1161.06
A9: 98.675 | B9: 504.7 | C9: 2201.9 | D9: 2706.6 | E9: 216.99 | F9: 946.66 | G9: 1163.65
A10: 123.675 | B10: 520.72 | C10: 2191.3 | D10: 2712.02 | E10: 223.87 | F10: 942.11 | G10: 1165.98
A11: 148.675 | B11: 535.37 | C11: 2181.5 | D11: 2716.87 | E11: 230.17 | F11: 937.89 | G11: 1168.06
A12: 173.675 | B12: 548.89 | C12: 2172.4 | D12: 2721.29 | E12: 235.98 | F12: 933.98 | G12: 1169.96
A13: 198.675 | B13: 561.47 | C13: 2163.8 | D13: 2725.27 | E13: 241.39 | F13: 930.28 | G13: 1171.68
A14: 223.675 | B14: 573.25 | C14: 2155.8 | D14: 2729.05 | E14: 246.46 | F14: 926.84 | G14: 1173.3
A15: 248.675 | B15: 584.33 | C15: 2148.1 | D15: 2732.43 | E15: 251.22 | F15: 923.53 | G15: 1174.75
A16: 273.675 | B16: 594.81 | C16: 2140.8 | D16: 2735.61 | E16: 255.73 | F16: 920.39 | G16: 1176.12
A17: 298.675 | B17: 604.74 | C17: 2133.8 | D17: 2738.54 | E17: 260 | F17: 917.38 | G17: 1177.38
A18: 348.675 | B18: 623.25 | C18: 2120.7 | D18: 2743.95 | E18: 267.95 | F18: 911.75 | G18: 1179.71
A19: 398.675 | B19: 640.23 | C19: 2108.5 | D19: 2748.73 | E19: 275.25 | F19: 906.51 | G19: 1181.76
A20: 448.675 | B20: 655.93 | C20: 2097 | D20: 2752.93 | E20: 282 | F20: 901.56 | G20: 1183.57
A21: 498.675 | B21: 670.56 | C21: 2086.3 | D21: 2756.86 | E21: 288.29 | F21: 896.96 | G21: 1185.26
A22: 548.675 | B22: 684.28 | C22: 2076 | D22: 2760.28 | E22: 294.19 | F22: 892.53 | G22: 1186.73
A23: 598.675 | B23: 697.22 | C23: 2066.3 | D23: 2763.52 | E23: 299.76 | F23: 888.36 | G23: 1188.12
A24: 648.675 | B24: 709.47 | C24: 2057 | D24: 2766.47 | E24: 305.02 | F24: 884.37 | G24: 1189.39
A25: 698.675 | B25: 721.11 | C25: 2048 | D25: 2769.11 | E25: 310.03 | F25: 880.5 | G25: 1190.52
A26: 748.675 | B26: 732.22 | C26: 2039.4 | D26: 2771.62 | E26: 314.8 | F26: 876.8 | G26: 1191.6
A27: 798.675 | B27: 742.83 | C27: 2031.1 | D27: 2773.93 | E27: 319.36 | F27: 873.23 | G27: 1192.6
A28: 848.675 | B28: 753.02 | C28: 2023.1 | D28: 2776.12 | E28: 323.75 | F28: 869.79 | G28: 1193.54
A29: 898.675 | B29: 762.81 | C29: 2015.3 | D29: 2778.11 | E29: 327.95 | F29: 866.44 | G29: 1194.39
A30: 998.675 | B30: 781.34 | C30: 2000.4 | D30: 2781.74 | E30: 335.92 | F30: 860.03 | G30: 1195.95
A31: 1098.675 | B31: 798.65 | C31: 1986.2 | D31: 2784.85 | E31: 343.36 | F31: 853.93 | G31: 1197.29
A32: 1198.675 | B32: 814.93 | C32: 1972.7 | D32: 2787.63 | E32: 350.36 | F32: 848.12 | G32: 1198.49
A33: 1298.675 | B33: 830.3 | C33: 1959.7 | D33: 2790 | E33: 356.97 | F33: 842.53 | G33: 1199.5
A34: 1398.675 | B34: 844.89 | C34: 1947.3 | D34: 2792.19 | E34: 363.24 | F34: 837.2 | G34: 1200.45
A35: 1648.675 | B35: 878.5 | C35: 1917.9 | D35: 2796.4 | E35: 377.69 | F35: 824.56 | G35: 1202.26
A36: 1898.675 | B36: 908.79 | C36: 1890.7 | D36: 2799.49 | E36: 390.72 | F36: 812.87 | G36: 1203.58
A37: 2148.675 | B37: 936.49 | C37: 1865.2 | D37: 2801.69 | E37: =ROUND(B37*0.42993,2) -> 402.63 | F37: 801.91 | G37: 1204.53
A38: 2398.675 | B38: 962.11 | C38: 1841 | D38: 2803.11 | E38: 413.64 | F38: 791.5 | G38: 1205.14
A39: 2898.675 | B39: 1008.42 | C39: 1795.7 | D39: 2804.12 | E39: 433.55 | F39: 772.03 | G39: 1205.58
A40: 3398.675 | B40: 1049.75 | C40: 1753.7 | D40: 2803.45 | E40: 451.32 | F40: 753.97 | G40: 1205.29
A41: 3898.675 | B41: 1087.31 | C41: 1714.1 | D41: 2801.41 | E41: 467.47 | F41: 736.94 | G41: 1204.41
A42: 4898.675 | B42: 1154.23 | C42: 1640.1 | D42: 2794.33 | E42: 496.24 | F42: 705.13 | G42: 1201.37
A43: 5898.675 | B43: 1213.35 | C43: 1571 | D43: 2784.35 | E43: 521.66 | F43: 675.42 | G43: 1197.08
A44: 6898.675 | B44: 1267 | C44: 1505.1 | D44: 2772.1 | E44: 544.72 | F44: 647.09 | G44: 1191.81
A45: 7898.675 | B45: 1316.64 | C45: 1441.3 | D45: 2757.94 | E45: 566.06 | F45: 619.66 | G45: 1185.72
A46: 8898.675 | B46: 1363.26 | C46: 1378.9 | D46: 2742.16 | E46: 586.11 | F46: 592.83 | G46: 1178.94
A47: 9898.675 | B47: 1407.56 | C47: 1317.1 | D47: 2724.66 | E47: 605.15 | F47: 566.26 | G47: 1171.41
A48: 10898.675 | B48: 1450.1 | C48: 1255.5 | D48: 2705.6 | E48: 623.44 | F48: 539.78 | G48: 1163.22
A49: 11898.675 | B49: 1491.3 | C49: 1193.6 | D49: 2684.9 | E49: 641.15 | F49: 513.16 | G49: 1154.32
A50: 12898.675 | B50: 1531.5 | C50: 1130.7 | D50: 2662.2 | E50: 658.44 | F50: 486.12 | G50: 1144.56
A51: 13898.675 | B51: 1571.1 | C51: 1066.5 | D51: 2637.6 | E51: 675.46 | F51: 458.52 | G51: 1133.98
A52: 14898.675 | B52: 1610.5 | C52: 1000 | D52: 2610.5 | E52: 692.4 | F52: 429.93 | G52: 1122.33
A53: 15898.675 | B53: 1650.1 | C53: 930.6 | D53: 2580.7 | E53: 709.43 | F53: 400.09 | G53: 1109.52
A54: 16898.675 | B54: 1690.3 | C54: 856.9 | D54: 2547.2 | E54: 726.71 | F54: 368.41 | G54: 1095.12
A55: 17898.675 | B55: 1732 | C55: 777.1 | D55: 2509.1 | E55: 744.64 | F55: 334.1 | G55: 1078.74
A56: 18898.675 | B56: 1776.5 | C56: 688 | D56: 2464.5 | E56: 763.77 | F56: 295.79 | G56: 1059.56
A57: 19898.675 | B57: 1826.3 | C57: 583.4 | D57: 2409.7 | E57: 785.18 | F57: 250.82 | G57: 1036
A58: 20898.675 | B58: 1888.4 | C58: 446.2 | D58: 2334.6 | E58: 811.88 | F58: 191.83 | G58: 1003.71
A59: 21898.675 | B59: 2022.2 | C59: 143.4 | D59: 2165.6 | E59: 869.4 | F59: 61.65 | G59: 931.06
A60: 21988.675 | B60: 2099.3 | C60: 0 | D60: 2099.3 | E60: 902.55 | F60: 0 | G60: 902.55
A66: Source: Van Wilen et Al. "Thernodynamique", 2ème édition
E68: Enthalpie (kJ/kg)
A69: Pression Mpa - Absolu | B69: Pression Mpa -Relative | C69: Pression kpa -Relative arrondi | D69: Pression relative (psig) | E69: Liquide sat (hf) | F69: Évaporation (hgf) | G69: vapeur sat (hg)
A70: 0.1 | B70: =A70-0.101325 -> -0.001325 | C70: =ROUND(B70,3)*1000+1 -> 0 | D70: =B70*145.04 -> -0.192178 | E70: 417.46 | F70: 2258 | G70: =E70+F70 -> 2675.46
A71: 0.125 | B71: =A71-0.101325 -> 0.023675 | C71: =ROUND(B71,3)*1000+1 -> 25 | D71: =B71*145.04 -> 3.433822 | E71: 444.32 | F71: 2241 | G71: =E71+F71 -> 2685.32
A72: 0.15 | B72: 0.048675 | C72: 50 | D72: 7.059822 | E72: 467.11 | F72: 2226.5 | G72: 2693.61
A73: 0.175 | B73: 0.073675 | C73: 75 | D73: 10.685822 | E73: 486.99 | F73: 2213.6 | G73: 2700.59
A74: 0.2 | B74: 0.098675 | C74: 100 | D74: 14.311822 | E74: 504.7 | F74: 2201.9 | G74: 2706.6
A75: 0.225 | B75: 0.123675 | C75: 125 | D75: 17.937822 | E75: 520.72 | F75: 2191.3 | G75: 2712.02
A76: 0.25 | B76: 0.148675 | C76: 150 | D76: 21.563822 | E76: 535.37 | F76: 2181.5 | G76: 2716.87
A77: 0.275 | B77: 0.173675 | C77: 175 | D77: 25.189822 | E77: 548.89 | F77: 2172.4 | G77: 2721.29
A78: 0.3 | B78: 0.198675 | C78: 200 | D78: 28.815822 | E78: 561.47 | F78: 2163.8 | G78: 2725.27
A79: 0.325 | B79: 0.223675 | C79: 225 | D79: 32.441822 | E79: 573.25 | F79: 2155.8 | G79: 2729.05
A80: 0.35 | B80: 0.248675 | C80: 250 | D80: 36.067822 | E80: 584.33 | F80: 2148.1 | G80: 2732.43
A81: 0.375 | B81: 0.273675 | C81: 275 | D81: 39.693822 | E81: 594.81 | F81: 2140.8 | G81: 2735.61
A82: 0.4 | B82: 0.298675 | C82: 300 | D82: 43.319822 | E82: 604.74 | F82: 2133.8 | G82: 2738.54
A83: 0.45 | B83: 0.348675 | C83: 350 | D83: 50.571822 | E83: 623.25 | F83: 2120.7 | G83: 2743.95
A84: 0.5 | B84: 0.398675 | C84: 400 | D84: 57.823822 | E84: 640.23 | F84: 2108.5 | G84: 2748.73
A85: 0.55 | B85: 0.448675 | C85: 450 | D85: 65.075822 | E85: 655.93 | F85: 2097 | G85: 2752.93
A86: 0.6 | B86: 0.498675 | C86: 500 | D86: 72.327822 | E86: 670.56 | F86: 2086.3 | G86: 2756.86
A87: 0.65 | B87: 0.548675 | C87: 550 | D87: 79.579822 | E87: 684.28 | F87: 2076 | G87: 2760.28
A88: 0.7 | B88: 0.598675 | C88: 600 | D88: 86.831822 | E88: 697.22 | F88: 2066.3 | G88: 2763.52
A89: 0.75 | B89: 0.648675 | C89: 650 | D89: 94.083822 | E89: 709.47 | F89: 2057 | G89: =E89+F89 -> 2766.47
A90: 0.8 | B90: 0.698675 | C90: 700 | D90: 101.335822 | E90: 721.11 | F90: 2048 | G90: 2769.11
A91: 0.85 | B91: 0.748675 | C91: 750 | D91: 108.587822 | E91: 732.22 | F91: 2039.4 | G91: 2771.62
A92: 0.9 | B92: 0.798675 | C92: 800 | D92: 115.839822 | E92: 742.83 | F92: 2031.1 | G92: 2773.93
A93: 0.95 | B93: 0.848675 | C93: 850 | D93: 123.091822 | E93: 753.02 | F93: 2023.1 | G93: 2776.12
A94: 1 | B94: 0.898675 | C94: 900 | D94: 130.343822 | E94: 762.81 | F94: 2015.3 | G94: 2778.11
A95: 1.1 | B95: 0.998675 | C95: 1000 | D95: 144.847822 | E95: 781.34 | F95: 2000.4 | G95: 2781.74
A96: 1.2 | B96: 1.098675 | C96: 1100 | D96: 159.351822 | E96: 798.65 | F96: 1986.2 | G96: 2784.85
A97: 1.3 | B97: 1.198675 | C97: 1200 | D97: 173.855822 | E97: 814.93 | F97: 1972.7 | G97: 2787.63
A98: 1.4 | B98: 1.298675 | C98: 1300 | D98: 188.359822 | E98: 830.3 | F98: 1959.7 | G98: 2790
A99: 1.5 | B99: 1.398675 | C99: 1400 | D99: 202.863822 | E99: 844.89 | F99: 1947.3 | G99: 2792.19
A100: 1.75 | B100: 1.648675 | C100: 1650 | D100: 239.123822 | E100: 878.5 | F100: 1917.9 | G100: 2796.4
A101: 2 | B101: 1.898675 | C101: 1900 | D101: 275.383822 | E101: 908.79 | F101: 1890.7 | G101: 2799.49
A102: 2.25 | B102: 2.148675 | C102: 2150 | D102: 311.643822 | E102: 936.49 | F102: 1865.2 | G102: 2801.69
A103: 2.5 | B103: 2.398675 | C103: 2400 | D103: 347.903822 | E103: 962.11 | F103: 1841 | G103: 2803.11
A104: 3 | B104: 2.898675 | C104: 2900 | D104: 420.423822 | E104: 1008.42 | F104: 1795.7 | G104: 2804.12
A105: 3.5 | B105: 3.398675 | C105: 3400 | D105: 492.943822 | E105: 1049.75 | F105: 1753.7 | G105: 2803.45
A106: 4 | B106: 3.898675 | C106: 3900 | D106: 565.463822 | E106: 1087.31 | F106: 1714.1 | G106: 2801.41
A107: 5 | B107: 4.898675 | C107: 4900 | D107: 710.503822 | E107: 1154.23 | F107: 1640.1 | G107: 2794.33
A108: 6 | B108: 5.898675 | C108: 5900 | D108: 855.543822 | E108: 1213.35 | F108: 1571 | G108: 2784.35
A109: 7 | B109: 6.898675 | C109: 6900 | D109: 1000.583822 | E109: 1267 | F109: 1505.1 | G109: 2772.1
A110: 8 | B110: 7.898675 | C110: 7900 | D110: 1145.623822 | E110: 1316.64 | F110: 1441.3 | G110: 2757.94
A111: 9 | B111: 8.898675 | C111: 8900 | D111: 1290.663822 | E111: 1363.26 | F111: 1378.9 | G111: 2742.16
A112: 10 | B112: 9.898675 | C112: 9900 | D112: 1435.703822 | E112: 1407.56 | F112: 1317.1 | G112: 2724.66
A113: 11 | B113: 10.898675 | C113: 10900 | D113: 1580.743822 | E113: 1450.1 | F113: 1255.5 | G113: 2705.6
A114: 12 | B114: 11.898675 | C114: 11900 | D114: 1725.783822 | E114: 1491.3 | F114: 1193.6 | G114: 2684.9
A115: 13 | B115: 12.898675 | C115: 12900 | D115: 1870.823822 | E115: 1531.5 | F115: 1130.7 | G115: 2662.2
A116: 14 | B116: 13.898675 | C116: 13900 | D116: 2015.863822 | E116: 1571.1 | F116: 1066.5 | G116: 2637.6
A117: 15 | B117: 14.898675 | C117: 14900 | D117: 2160.903822 | E117: 1610.5 | F117: 1000 | G117: 2610.5
A118: 16 | B118: 15.898675 | C118: 15900 | D118: 2305.943822 | E118: 1650.1 | F118: 930.6 | G118: 2580.7
A119: 17 | B119: 16.898675 | C119: 16900 | D119: 2450.983822 | E119: 1690.3 | F119: 856.9 | G119: 2547.2
A120: 18 | B120: 17.898675 | C120: 17900 | D120: 2596.023822 | E120: 1732 | F120: 777.1 | G120: 2509.1
A121: 19 | B121: 18.898675 | C121: 18900 | D121: 2741.063822 | E121: 1776.5 | F121: 688 | G121: 2464.5
A122: 20 | B122: 19.898675 | C122: 19900 | D122: 2886.103822 | E122: 1826.3 | F122: 583.4 | G122: 2409.7
A123: 21 | B123: 20.898675 | C123: 20900 | D123: 3031.143822 | E123: 1888.4 | F123: 446.2 | G123: 2334.6
A124: 22 | B124: 21.898675 | C124: 21900 | D124: 3176.183822 | E124: 2022.2 | F124: 143.4 | G124: 2165.6
A125: 22.09 | B125: 21.988675 | C125: 21990 | D125: 3189.237422 | E125: 2099.3 | F125: 0 | G125: 2099.3

Sheet Comb_2 (hidden)
E2: EFFICACITE | F2: % | G2: =1-(G4/(G5+ABS(L28))) -> 0.8275670996
E4: Hout | F4: J / mol gaz | G4: =U28 -> 152567.3137
A5: BILAN THERMIQUE | E5: Hin | F5: J / mol gaz | G5: =O28+R28 -> -822.9332428 | J5: PROPRIÉTÉ DU GAZ | M5: CALCUL ÉNERGIE
J6: GAZ **** | M6: GAZ | P6: AIR | S6: FUMEE
C7: Masse | D7: * Enthalpie (J / mol) | F7: * Chaleur Spécifique (J / mol oC) | J7: M | K7: Densité | L7: PCS ou | M7: T (oC) = | N7: ='Entrée de données'!D37 -> 20 | P7: T (oC) = | Q7: ='Entrée de données'!D35 -> 20 | S7: T (oC) = | T7: ='Entrée de données'!D34 -> 200
C8: Molaire | D8: Formation | E8: Combustion | F8: Cp = a + bTx102 + cT2105 + dT3*109 | J8: Mélange | K8: Mélange | L8: HHV | M8: Débit | N8: Cpmoy | O8: H | P8: Débit | Q8: Cpmoy | R8: H | S8: Débit | T8: Cpmoy | U8: H
A9: État gazeux sauf si indication | C9: g / mol | F9: a | G9: b | H9: c | I9: d | J9: g / mol | K9: kg / m3 | L9: J / mol gaz | M9: mol / mol gaz | N9: J / mol oC | O9: J / mol gaz | P9: mol / mol gaz | Q9: J / mol oC | R9: J / mol gaz | S9: mol / mol gaz | T9: J / mol oC | U9: J / mol gaz
A10: Oxygène | B10: O2 | C10: 32 | D10: 0 | E10: 0 | F10: 29.1 | G10: 1.158 | H10: -0.6076 | I10: 1.311 | J10: =M10*C10 -> 0 | K10: =(101325*(C10/1000))/(8.3144*288.7056)*M10 -> 0 | L10: =M10*E10 -> 0 | M10: =C55/100 -> 0 | N10: =AVERAGE($F10+$G10/100*N$7+$H10/100000*N$7^2+$I10/1000000000*N$7^3,$F10+$G10/100*$B$29+$H10/100000*$B$29^2+$I10/1000000000*$B$29^3) -> 29.35745154 | O10: =M10*N10*(N$7-$B$29) -> 0 | P10: =CD92 -> 0 | Q10: =AVERAGE($F10+$G10/100*Q$7+$H10/100000*Q$7^2+$I10/1000000000*Q$7^3,$F10+$G10/100*$B$29+$H10/100000*$B$29^2+$I10/1000000000*$B$29^3) -> 29.35745154 | R10: =P10*Q10*(Q$7-$B$29) -> 0 | S10: =Comb_2!L84 -> 0.596784 | T10: =AVERAGE($F10+$G10/100*T$7+$H10/100000*T$7^2+$I10/1000000000*T$7^3,$F10+$G10/100*$B$29+$H10/100000*$B$29^2+$I10/1000000000*$B$29^3) -> 30.28458549 | U10: =S10*T10*(T$7-$B$29) -> 3162.837312
A11: Monoxide de carbone | B11: CO | C11: 28.011 | D11: -110520 | E11: -282990 | F11: 28.95 | G11: 0.411 | H11: 0.3548 | I11: -2.22 | J11: 0 | K11: 0 | L11: 0 | M11: =C56/100 -> 0 | N11: =AVERAGE($F11+$G11/100*N$7+$H11/100000*N$7^2+$I11/1000000000*N$7^3,$F11+$G11/100*$B$29+$H11/100000*$B$29^2+$I11/1000000000*$B$29^3) -> 29.04426713 | O11: =M11*N11*(N$7-$B$29) -> 0 | Q11: =AVERAGE($F11+$G11/100*Q$7+$H11/100000*Q$7^2+$I11/1000000000*Q$7^3,$F11+$G11/100*$B$29+$H11/100000*$B$29^2+$I11/1000000000*$B$29^3) -> 29.04426713 | R11: =P11*Q11*(Q$7-$B$29) -> 0 | T11: 29.47554641 | U11: =S11*T11*(T$7-$B$29) -> 0
A12: Dioxide de carbone | B12: CO2 | C12: 44.011 | D12: -393500 | E12: 0 | F12: 36.11 | G12: 4.233 | H12: -2.887 | I12: 7.464 | J12: 0.1496374 | K12: 0.006316414819 | L12: 0 | M12: =C57/100 -> 0.0034 | N12: 37.04771729 | O12: =M12*N12*(N$7-$B$29) -> -0.629811194 | Q12: 37.04771729 | R12: =P12*Q12*(Q$7-$B$29) -> 0 | S12: =Comb_2!L82 -> 1.00386 | T12: 40.31561744 | U12: =S12*T12*(T$7-$B$29) -> 7082.466251
A13: Hydrogène | B13: H2 | C13: 2.016 | D13: 0 | E13: -285840 | F13: 28.84 | G13: 0.00765 | H13: 0.3288 | I13: -0.8698 | J13: 0 | K13: 0 | L13: 0 | M13: =C58/100 -> 0 | N13: 28.84339608 | O13: =M13*N13*(N$7-$B$29) -> 0 | Q13: 28.84339608 | R13: =P13*Q13*(Q$7-$B$29) -> 0 | T13: 28.91190775 | U13: =S13*T13*(T$7-$B$29) -> 0
A14: Eau (v) | B14: H20 (v) | C14: 18.015 | D14: -241830 | E14: 0 | F14: 33.46 | G14: 0.688 | H14: 0.7604 | I14: -3.593 | J14: 0 | K14: 0 | L14: 0 | M14: =C59/100 -> 0 | N14: 33.61865461 | O14: =M14*(V14+N14*(N$7-$B$29)) -> 0 | P14: =D93 -> 0.01093934868 | Q14: 33.61865461 | R14: =P14*(V14+Q14*(Q$7-$B$29)) -> 442.9113289 | S14: =Comb_2!L86-S15 -> 1.988579349 | T14: 34.37405618 | U14: =((S14-G93)*$V$14)+(S14*T14*(T$7-$B$29)) -> 92365.15103 | V14: 40656 | W14: Enthalpie vaporisation (J/mol)
A15: Eau (l) | B15: H2O (l) | C15: 18.015 | D15: -285840 | E15: 0 | F15: 75.4 | G15: 0 | H15: 0 | I15: 0 | J15: 0 | K15: 0 | L15: 0 | M15: 0 | N15: 75.4 | O15: =M15*N15*(N$7-$B$29) -> 0 | Q15: 75.4 | R15: =P15*Q15*(Q$7-$B$29) -> 0 | S15: =Comb_2!L96 -> 0 | T15: 75.4 | U15: =S15*T15*(T$7-$B$29) -> 0
A16: Sulfure d'hydrogène | B16: H2S | C16: 34.076 | D16: -19960 | E16: -562590 | F16: 33.51 | G16: 1.547 | H16: 0.3012 | I16: -3.292 | J16: 0 | K16: 0 | L16: 0 | M16: =C60/100 -> 0 | N16: 33.85957976 | O16: 0 | Q16: 33.85957976 | R16: 0 | T16: 35.29836253 | U16: 0
A17: Méthane | B17: CH4 | C17: 16.043 | D17: -74850 | E17: -890360 | F17: 34.31 | G17: 5.469 | H17: 0.3661 | I17: -11 | J17: 15.32539661 | K17: 0.6469075395 | L17: -850534.1972 | M17: 0.95527 | N17: 35.54227133 | O17: -169.7623276 | Q17: 35.54227133 | R17: 0 | T17: 40.49290312 | U17: 0
A18: Éthane | B18: C2H6 | C18: 30.07 | D18: -84670 | E18: -1559900 | F18: 49.37 | G18: 13.92 | H18: -5.816 | I18: 7.28 | J18: 0.6206448 | K18: 0.02619833018 | L18: -32196.336 | M18: 0.02064 | N18: 52.47227899 | O18: -5.415139192 | Q18: 52.47227899 | R18: 0 | T18: 63.87780187 | U18: 0
A19: Propane | B19: C3H8 | C19: 44.097 | D19: -103800 | E19: -2220000 | F19: 68.032 | G19: 22.59 | H19: -13.11 | I19: 31.71 | J19: 0.05159349 | K19: 0.002177837124 | L19: -2597.4 | M19: 0.00117 | N19: 73.04793582 | O19: -0.4273304246 | Q19: 73.04793582 | R19: 0 | T19: 90.90986898 | U19: 0
A20: Butane | B20: C4H10 | C20: 58.124 | D20: -134500 | E20: -2868800 | F20: 89.46 | G20: 30.13 | H20: -18.91 | I20: 49.87 | J20: 0 | K20: 0 | L20: 0 | M20: 0 | N20: 96.14292534 | O20: 0 | Q20: 96.14292534 | R20: 0 | T20: 119.7150259 | U20: 0
A21: ** i-Butane | B21: C4H10 | C21: 58.124 | D21: =D20 -> -134500 | E21: =E20 -> -2868800 | F21: 89.46 | G21: 30.13 | H21: -18.91 | I21: 49.87 | J21: 0.0029062 | K21: 0.000122674978 | L21: -143.44 | M21: 5e-05 | N21: 96.14292534 | O21: -0.02403573133 | Q21: 96.14292534 | R21: 0 | T21: 119.7150259 | U21: 0
A22: n-Butane | B22: C4H10 | C22: 58.124 | D22: -124700 | E22: -2878500 | F22: 92.3 | G22: 27.88 | H22: -15.47 | I22: 34.98 | J22: 0.0029062 | K22: 0.000122674978 | L22: -143.925 | M22: 5e-05 | N22: 98.49412945 | O22: -0.02462353236 | Q22: 98.49412945 | R22: 0 | T22: 120.6628495 | U22: 0
A23: Pentane | B23: C5H12 | C23: 72.15 | D23: -152000 | E23: -35292000 | F23: 114.8 | G23: 34.09 | H23: -18.99 | I23: 42.26 | J23: 0 | K23: 0 | L23: 0 | M23: =CC67/100 -> 0 | N23: 122.3734254 | O23: 0 | Q23: 122.3734254 | R23: 0 | T23: 149.4632764 | U23: 0
A24: Octane | B24: C8H18 | C24: 114.23 | D24: -208400 | E24: -5512200 | F24: -5.8307 | G24: 4.4541 | H24: -0.4208 | I24: 1.263 | J24: 0 | K24: 0 | L24: 0 | M24: =C68/100 -> 0 | N24: -4.830669181 | O24: 0 | Q24: -4.830669181 | R24: 0 | T24: -0.9002506328 | U24: 0
A25: *** iso-Octane | B25: Ch8H18i | C25: 114.23 | D25: =D24 -> -208400 | E25: =E24 -> -5512200 | F25: -5.8307 | G25: 4.4541 | H25: -0.4208 | I25: 1.263 | J25: 0 | K25: 0 | L25: 0 | M25: =C69/100 -> 0 | N25: -4.830669181 | O25: 0 | Q25: -4.830669181 | R25: 0 | T25: -0.9002506328 | U25: 0
A26: Azote | B26: N2 | C26: 28.013 | D26: 0 | E26: 0 | F26: 29 | G26: 0.2199 | H26: 0.5723 | I26: -2.871 | J26: 0.54401246 | K26: 0.02296356636 | L26: 0 | M26: =C70/100 -> 0.01942 | N26: 29.05237662 | O26: =M26*N26*(N$7-$B$29) -> -2.82098577 | P26: =D91 -> 7.481249003 | Q26: 29.05237662 | R26: -1086.740318 | S26: =Comb_2!L81 -> 9.725623704 | T26: 29.35212951 | U26: =S26*T26*(T$7-$B$29) -> 49956.85914
A27: Hélium | B27: He | C27: 4.00206 | D27: 0 | E27: 0 | F27: 20.8 | G27: 0 | H27: 0 | I27: 0 | J27: 0 | K27: 0 | L27: 0 | M27: =CC71/100 -> 0 | N27: 20.8 | O27: 0 | Q27: 20.8 | R27: 0 | T27: 20.8 | U27: 0
I28: SOMME | J28: =SUM(J10:J27) -> 16.69709716 | K28: =SUM(K10:K27) -> 0.704809038 | L28: =SUM(L10:L27) -> -885615.2982 | M28: =SUM(M10:M27) -> 1 | O28: =SUM(O10:O27) -> -179.1042535 | P28: =SUM(P10:P27) -> 7.492188351 | R28: =SUM(R10:R27) -> -643.8289893 | S28: =SUM(S10:S27) -> 13.31484705 | U28: =SUM(U10:U27) -> 152567.3137
A29: * Référence. Patm, T = | B29: 25 | C29: oC
A30: ** Hyp. Même propriétés que Butane | J30: Pouvoir Calorifique Supérieur
A31: *** Hyp. Même que Octane | K31: =ABS(L28/1000) -> 885.6152982 | L31: kJ / mol
A32: **** À Patm et T = 15.6 oC (14.7 psi et 60 F) | K32: =K31/(J28/1000) -> 53040.07575 | L32: kJ / kg
K33: =(K32/1000)*K28 -> 37.38312476 | L33: MJ / m3
A34: Référence
A35: Elementary Principles of Chemical Processes | K35: =(K33*1000)/1.055*0.02832 -> 1003.497719 | L35: BTU / ft3
A36: Wiley Series in Chemical Engineering, Second Edition | K36: =(K32/1.055)*0.4536 -> 22804.71883 | L36: BTU / lbm
A37: R M Felder et R W Rousseau | K37: =K35/7.4814 -> 134.1323441 | L37: BTU / gal
F42: Constitution de l'air sec
E43: Azote | F43: 0.7899504875
E44: Oxygène | F44: =1-F43 -> 0.2100495125
A45: BILAN MASSIQUE | E45: Autres | F45: 0
A48: CALCUL DE LA COMBUSTION STOÉCHIOMÉTRIQUE | L48: Masse H2 par livre de combustible
C50: COMPOSITION | D50: GAZ DE COMBUSTION STOÉCHIOMÉTRIQUE | M50: Masse d'hydrogène dans une livre de combustible (lb/lb) | Q50: =(4*N53+6*N55+8*N56+10*N57+10*N58)/(N53*O53+N54*O54+N55*O55+N56*O56+N57*O57+N58*O58+N59*O59) -> 0.2368842897
C51: (mol / 100 mol gaz) | D51: CO2 | E51: H2O | F51: SO2 | G51: He | H51: N2 | I51: TOTAL | J51: O2 requis
A52: GAZ (ÉTAT GAZEUX) | M52: Compo | N52: % mol | O52: masse molaire
B53: TOTAL | C53: =SUM(C55:C71) -> 100 | D53: =SUM(D55:D71) -> 1.00386 | E53: 1.97764 | F53: 0 | G53: 0 | H53: 0.01942 | I53: 3.00092 | J53: 1.98928 | M53: CH4 | N53: =C61 -> 95.527 | O53: =C17 -> 16.043
M54: CO2 | N54: =C57 -> 0.34 | O54: =C12 -> 44.011
A55: Oxygène | B55: O2 | C55: 0 | I55: =SUM(D55:H55) -> 0 | J55: =-C55/100 -> 0 | M55: C2H6 | N55: =C62 -> 2.064 | O55: =C18 -> 30.07
A56: Monoxide de carbone | B56: CO | C56: 0 | D56: =C56/100 -> 0 | I56: 0 | J56: =D56+E56/2+F56 -> 0 | M56: C3H8 | N56: =C63 -> 0.117 | O56: =C19 -> 44.097
A57: Dioxide de carbone | B57: CO2 | C57: 0.34 | D57: =C57/100 -> 0.0034 | I57: 0.0034 | J57: 0 | M57: C4H10 | N57: =C65 -> 0.005 | O57: =C21 -> 58.124
A58: Hydrogène | B58: H2 | C58: 0 | E58: =C58/100 -> 0 | I58: 0 | J58: =D58+E58/2+F58 -> 0 | M58: C4H10 | N58: =C66 -> 0.005 | O58: =C22 -> 58.124
A59: Eau (l) | B59: H2O (l) | C59: 0 | E59: =C59/100 -> 0 | I59: 0 | J59: 0 | M59: N2 | N59: =C70 -> 1.942 | O59: =C26 -> 28.013
A60: Sulfure d'hydrogène | B60: H2S | C60: 0 | E60: =C60/100 -> 0 | F60: =C60/100 -> 0 | I60: 0 | J60: 0
A61: Méthane | B61: CH4 | C61: 95.527 | D61: =C61/100 -> 0.95527 | E61: =C61/100*2 -> 1.91054 | I61: 2.86581 | J61: 1.91054
A62: Éthane | B62: C2H6 | C62: 2.064 | D62: =C62*2/100 -> 0.04128 | E62: =C62/100*3 -> 0.06192 | I62: 0.1032 | J62: 0.07224
A63: Propane | B63: C3H8 | C63: 0.117 | D63: =C63*3/100 -> 0.00351 | E63: =C63/100*4 -> 0.00468 | I63: 0.00819 | J63: 0.00585
A64: Butane | B64: C4H10 | C64: 0 | D64: =C64*4/100 -> 0 | E64: =C64/100*5 -> 0 | I64: 0 | J64: 0
A65: ** i-Butane | B65: C4H10 | C65: 0.005 | D65: =C65*4/100 -> 0.0002 | E65: =C65/100*5 -> 0.00025 | I65: 0.00045 | J65: 0.000325
A66: n-Butane | B66: C4H10 | C66: 0.005 | D66: =C66*4/100 -> 0.0002 | E66: =C66/100*5 -> 0.00025 | I66: 0.00045 | J66: 0.000325
A67: Pentane | B67: C5H12 | C67: 0 | D67: =C67*5/100 -> 0 | E67: =C67/100*6 -> 0 | I67: 0 | J67: 0
A68: Octane | B68: C8H18 | C68: 0 | D68: =C68*8/100 -> 0 | E68: =C68/100*9 -> 0 | I68: 0 | J68: 0
A69: *** iso-Octane | B69: Ch8H18i | C69: 0 | D69: =C69*8/100 -> 0 | E69: =C69/100*9 -> 0 | I69: 0 | J69: 0
A70: Azote | B70: N2 | C70: 1.942 | H70: =C70/100 -> 0.01942 | I70: 0.01942 | J70: 0
A71: Hélium | B71: He | C71: 0 | G71: =C71/100 -> 0 | I71: 0 | J71: 0
A74: AIR DE COMBUSTION | I74: FUMÉES
D75: MASSIQUE | L75: MASSIQUE
D76: % O2 | E76: % EA | F76: % CO2 | G76: RÉSULTATS | M76: Proportion (%)
D77: FALSE | E77: TRUE | F77: FALSE | L77: (mol / mol gaz) | M77: Base Hum | N77: Base Sec
D78: =IF(D77,1,"-") -> - | E78: =IF(E77,2,"-") -> 2 | F78: =IF(F77,3,"-") -> - | G78: =AVERAGE(D78:F78) -> 2
A79: Calcul de l'excès d'air (base sèche) | D79: =D87/D84 -> 0 | E79: =Bilan_2!B13 -> 0.3 | F79: =F86/F83 ->  | G79: =INDEX(D79:F79,G$78) -> 0.3 | I79: TOTAL | K79: mol / mol gas | L79: =SUM(L81:L86) -> 13.31484705 | M79: =SUM(M81:M86) -> 1 | N79: =SUM(N81:N86) -> 1
A80: Oxygène dans les fumées (base sèche) | D80: 0 | E80: =E86/(E83*($F$43/$F$44)+I53-E53+E86/$F$44) -> 0.05260007287 | F80: =F86/(F83*($F$43/$F$44)+I53-E53+F86/$F$44) ->  | G80: =INDEX(D80:F80,G$78) -> 0.05260007287
A81: Dioxide de carbone dans les fumées | D81: =$N$82 -> 0.08863113837 | E81: =N82 -> 0.08863113837 | G81: =INDEX(D81:F81,G$78) -> 0.08863113837 | I81: Azote | K81: mol / mol gas | L81: =G91 -> 9.725623704 | M81: =L81/$L$79 -> 0.7304345041 | N81: =L81/($L$79-$L$86) -> 0.8586786008
I82: Dioxide de carbone | K82: mol / mol gas | L82: =D53 -> 1.00386 | M82: 0.07539403164 | N82: =L82/($L$79-$L$86) -> 0.08863113837
A83: Oxygène stoéchiométrique | C83: mol / mol gas | D83: =$J$53 -> 1.98928 | E83: =$J$53 -> 1.98928 | F83: =$J$53 -> 1.98928 | G83: =INDEX(D83:F83,G$78) -> 1.98928 | I83: Dioxide de soufre | K83: mol / mol gas | L83: =F53 -> 0 | M83: 0 | N83: =L83/($L$79-$L$86) -> 0
A84: Air stoéchiométrique | C84: mol / mol gas | D84: =D83/$F$44 -> 9.470529003 | E84: =E83/$F$44 -> 9.470529003 | F84: =F83/$F$44 -> 9.470529003 | G84: =INDEX(D84:F84,G$78) -> 9.470529003 | I84: Oxygène | K84: mol / mol gas | L84: =G86 -> 0.596784 | M84: 0.04482094294 | N84: =L84/($L$79-$L$86) -> 0.05269026087
I85: Hélium | K85: mol / mol gas | L85: =G53 -> 0 | M85: 0 | N85: =L85/($L$79-$L$86) -> 0
A86: Excès oxygène | C86: mol / mol gas | D86: =D80/(1-D80/$F$44)*(($I$53-$E$53)+D83*$F$43/$F$44) -> 0 | E86: =E83*$E$79 -> 0.596784 | F86: =(D53/F81-(I53-E53)-F83*(F43/F44))/(1+F43/F44) ->  | G86: =INDEX(D86:F86,G$78) -> 0.596784 | I86: Eau (liquide et vapeur) | K86: mol / mol gas | L86: =G93+E53 -> 1.988579349 | M86: 0.1493505213 | N86: 0
A87: Excès air | C87: mol / mol gas | D87: =D86/F44 -> 0 | E87: =E84*$E$79 -> 2.841158701 | F87: =F86/F44 ->  | G87: =INDEX(D87:F87,G$78) -> 2.841158701 | I87: Condensation (liquide) | K87: mol / mol gas | L87: =L96 -> 0 | M87: 0 | N87: 1
I88: Molecular weight | K88: g/mol | M88: =M81*28+M82*44+M83*64+M84*32+M86*18 -> 27.89208306
A89: Air de combustion | C89: mol / mol gas | D89: =SUM(D91:D93) -> 9.481468351 | E89: =SUM(E91:E93) -> 12.32262705 | F89: =SUM(F91:F93) ->  | G89: =INDEX(D89:F89,G$78) -> 12.32262705 | I89: Condensation des fumées | L89: =IF(L91<L92,"VRAI","FAUX") -> FAUX
I90: Humidité (sans condensation) | K90: mol / mol fumées | L90: =E53+G93 -> 1.988579349
A91: Azote | C91: mol / mol gas | D91: =D92*($F$43/$F$44) -> 7.481249003 | E91: =E92*($F$43/$F$44) -> 9.725623704 | F91: =F92*($F$43/$F$44) ->  | G91: =INDEX(D91:F91,G$78) -> 9.725623704 | I91: Température des fumées | K91: oC | L91: =T7 -> 200
A92: Oxygène | C92: mol / mol gas | D92: =D83+D86 -> 1.98928 | E92: =E83+E86 -> 2.586064 | F92: =F83+F86 ->  | G92: =INDEX(D92:F92,G$78) -> 2.586064 | I92: Point de rosée | K92: oC | L92: =E135 -> 54.10935499
A93: Vapeur d'eau | C93: mol / mol gas | D93: =E114*Comb_2!D84 -> 0.01093934868 | E93: =E114*Comb_2!E84 -> 0.01093934868 | F93: =E114*Comb_2!F84 -> 0.01093934868 | G93: =INDEX(D93:F93,G$78) -> 0.01093934868 | I93: Flue gas density | K93: lb/cu ft
I94: Saturation (Tfumées) | K94: mol / mol fumées | L94: =E128 -> 0.1755723422 | M94: Fumées sèches
A95: Humidité | I95: Condensation | K95: mol / mol fumées | L95: =E139 -> 0
A96: Humidité relative | D96: 0.05 | K96: mol / mol gas | L96: =E140 -> 0
A97: Point de rosée | C97: oC | D97: =IF(D96<>0,E118,"-") -> 
C102: PRESSION ATMOSPHÉRIQUE | H102: TABLE VAPEUR SATURÉE
C103: Altitude | D103: FASL | E103: 200 | F103: Mtl = 200 | H103: Tsat (oC) | I103: Psat (Pa) | J103: Tsat (oC)
C104: Pression barométrique | D104: po Hg | E104: =29.9269-0.001020817*E103+0.000000011*E103^2-0.0000000000005118678*E103^3 -> 29.72317251 | H104: 0 | I104: 610.4832696 | J104: =H104 -> 0
C105: Pression barométrique | D105: Pa | E105: 101312.5 | F105: =E104*3370 -> 100167.0913 | H105: 2 | I105: 705.8087856 | J105: 2
H106: 4 | I106: 813.3999624 | J106: 4
C107: AIR DE COMBUSTION | H107: 6 | I107: 934.9899912 | J107: 6
C108: Température | D108: oC | E108: =N7 -> 20 | H108: 8 | I108: 1072.578708 | J108: 8
C109: Humidité relative | E109: 0.05 | H109: 10 | I109: 1227.765982 | J109: 10
H110: 12 | I110: 1402.285003 | J110: 12
C111: Pression saturation | D111: Pa | E111: =IF(E108<0,0.09*6895,I196) -> 2337.808284 | H111: 14 | I111: 1598.135609 | J111: 14
C112: Pression vapeur eau | D112: Pa | E112: =E109*E111 -> 116.8904142 | H112: 16 | I112: 1817.717602 | J112: 16
H113: 18 | I113: 2063.430785 | J113: 18
C114: H2O / Air sec | D114: mol / mol | E114: =E112/(E105-E112) -> 0.001155093731 | H114: 20 | I114: 2337.808284 | J114: 20
C115: H2O / Air sec | D115: lb / lb | E115: =E114*18.02/28.95 -> 0.0007189909854 | H115: 22 | I115: 2643.383225 | J115: 22
H116: 24 | I116: 2983.355345 | J116: 24
C117: H2O / Air humide | D117: mol / mol | E117: =E112/E105 -> 0.001153761029 | H117: 26 | I117: 3360.924382 | J117: 26
C118: Température de rosée | D118: oC | E118: =H202 ->  | H118: 28 | I118: 3779.556718 | J118: 28
H119: 30 | I119: 4242.852058 | J119: 30
C120: FUMÉES | H120: 32 | I120: 4754.676751 | J120: 32
C121: Température | D121: oC | E121: =T7 -> 200 | H121: 34 | I121: 5319.297115 | J121: 34
H122: 36 | I122: 5941.246111 | J122: 36
C123: Fumées totales | D123: mol / mol gaz | E123: =L79 -> 13.31484705 | H123: 38 | I123: 6625.056701 | J123: 38
C124: Humidité (H2O) | D124: mol / mol gaz | E124: =L90 -> 1.988579349 | F124: sans condensation | H124: 40 | I124: 7375.928458 | J124: 40
H125: 42 | I125: 8199.3276 | J125: 42
C126: Pression vapeur | D126: Pa | E126: =E131*E105 -> 15131.07469 | H126: 44 | I126: 9100.587024 | J126: 44
H127: 46 | I127: 10085.83956 | J127: 46
C128: H2O / Air sec | D128: mol / mol | E128: =E124/(E123-E124) -> 0.1755723422 | F128: Mair | H128: 48 | I128: 11160.4181 | J128: 48
C129: H2O / Air sec | D129: lb / lb | E129: =E128*18.02/F129 -> 0.112217204 | F129: =(M81*28+M82*48+M83*64+M84*32+M85*4+M86*18) -> 28.19365919 | H129: 50 | I129: 12333.65522 | J129: 50
H130: 55 | I130: 15737.3761 | J130: 55
C131: H2O / Air humide | D131: mol / mol | E131: =E124/E123 -> 0.1493505213 | H131: 60 | I131: 19915.70011 | J131: 60
C132: H2O / mol gas | D132: mol / mol | E132: =E131*E123 -> 1.988579349 | H132: 65 | I132: 25003.2829 | J132: 65
H133: 70 | I133: 31157.44488 | J133: 70
C134: Condensation | E134: =IF(E135>E121,"VRAI","FAUX") -> FAUX | H134: 75 | I134: 38543.50584 | J134: 75
C135: Point de rosée | D135: oC | E135: =H208 -> 54.10935499 | H135: 80 | I135: 47342.78424 | J135: 80
H136: 85 | I136: 57808.59264 | J136: 85
C137: Pression saturation | D137: Pa | E137: =I214 -> 1553800 | H137: 90 | I137: 70095.58502 | J137: 90
C138: Contenu H2O à saturation | D138: mol / mol fumées | E138: =IF(E134="VRAI",E137/E105,"-") -> - | H138: 91 | I138: 72800.69652 | J138: 91
C139: Condensation | D139: mol / mol fumées | E139: =IF(E134="VRAI",E131-E138,0) -> 0 | H139: 92 | I139: 75592.46758 | J139: 92
C140: Condensation | D140: mol / mol gaz | E140: =IF(E134="VRAI",E139*E123,0) -> 0 | H140: 93 | I140: 78473.56464 | J140: 93
C141: Condensation | D141: g / mol gaz | E141: =IF(E134="VRAI",E140*18,0) -> 0 | H141: 94 | I141: 81446.65416 | J141: 94
H142: 95 | I142: 84513.06936 | J142: 95
C143: Humidité Relative des Fumées | E143: =IF(E134="VRAI",1,IF(E121<100,E126/E137,"N / A")) -> N / A | H143: 96 | I143: 87675.47669 | J143: 96
H144: 97 | I144: 90935.20937 | J144: 97
H145: 98 | I145: 94294.93385 | J145: 98
H146: 99 | I146: 97757.31658 | J146: 99
H147: 100 | I147: 101325.024 | J147: 100
H148: 105 | I148: 120820 | J148: 105
H149: 110 | I149: 143270 | J149: 110
H150: 115 | I150: 169060 | J150: 115
H151: 120 | I151: 198530 | J151: 120
H152: 125 | I152: 232100 | J152: 125
H153: 130 | I153: 270100 | J153: 130
H154: 135 | I154: 313000 | J154: 135
H155: 140 | I155: 361300 | J155: 140
H156: 145 | I156: 415400 | J156: 145
H157: 150 | I157: 475800 | J157: 150
H158: 155 | I158: 543100 | J158: 155
H159: 160 | I159: 617800 | J159: 160
H160: 165 | I160: 700500 | J160: 165
H161: 170 | I161: 791700 | J161: 170
H162: 175 | I162: 892000 | J162: 175
H163: 180 | I163: 1002100 | J163: 180
H164: 185 | I164: 1122700 | J164: 185
H165: 190 | I165: 1254400 | J165: 190
H166: 195 | I166: 1397800 | J166: 195
H167: 200 | I167: 1553800 | J167: 200
H168: 205 | I168: 1723000 | J168: =H168 -> 205
H169: 210 | I169: 1906200 | J169: 210
H170: 215 | I170: 2104000 | J170: 215
H171: 220 | I171: 2318000 | J171: 220
H172: 225 | I172: 2548000 | J172: 225
H173: 230 | I173: 2795000 | J173: 230
H174: 235 | I174: 3060000 | J174: 235
H175: 240 | I175: 3344000 | J175: 240
H176: 245 | I176: 3648000 | J176: 245
H177: 250 | I177: 3973000 | J177: 250
H178: 255 | I178: 4319000 | J178: 255
H179: 260 | I179: 4688000 | J179: 260
H180: 265 | I180: 5081000 | J180: 265
H181: 270 | I181: 5499000 | J181: 270
H182: 275 | I182: 5942000 | J182: 275
H183: 280 | I183: 6412000 | J183: 280
H184: 285 | I184: 6909000 | J184: 285
H185: 290 | I185: 7436000 | J185: 290
H186: 295 | I186: 7993000 | J186: 295
H187: 300 | I187: 8581000 | J187: 300
H188: 320 | I188: 11274000 | J188: 320
H189: 340 | I189: 14586000 | J189: 340
H190: 360 | I190: 18651000 | J190: 360
H191: 374.14 | I191: 22090000 | J191: 374.14
H193: Psat AIR COMBUSTION
H194: T | I194: Psat
H195: =VLOOKUP(E108,H104:I191,1) -> 20 | I195: =VLOOKUP(H195,$H$104:$I$191,2) -> 2337.808284 | J195: =MATCH(H195,H104:H191,1) -> 11
H196: =E108 -> 20 | I196: =I195+((H196-H195)/(H197-H195))*(I197-I195) -> 2337.808284
H197: =INDEX(H104:H191,J197) -> 22 | I197: =VLOOKUP(H197,$H$104:$I$191,2) -> 2643.383225 | J197: =J195+1 -> 12
H199: CALCUL ROSÉE AIR COMB
H200: T | I200: Psat
H201: =VLOOKUP(I201,$I$104:$J$191,2) ->  | I201: =VLOOKUP(I202,I104:J191,1) ->  | J201: =MATCH(H201,H104:H191,1) -> 
H202: =H201+(I202-I201)/(I203-I201)*(H203-H201) ->  | I202: =E117*E105 -> 116.8904142
H203: =INDEX(H104:H191,J203) ->  | I203: =VLOOKUP(H203,H104:I191,2) ->  | J203: =J201+1 -> 
H205: TEMP. CONDENSATION FUMÉE
H206: T | I206: Psat
H207: =VLOOKUP(I207,$I$104:$J$191,2) -> 50 | I207: =VLOOKUP(E126,I104:J191,1) -> 12333.65522 | J207: =MATCH(H207,H104:H191,1) -> 26
H208: =H207+(I208-I207)/(I209-I207)*(H209-H207) -> 54.10935499 | I208: =E126 -> 15131.07469
H209: =INDEX(H104:H191,J209) -> 55 | I209: =VLOOKUP(H209,H104:I191,2) -> 15737.3761 | J209: =J207+1 -> 27
H211: CALCUL FUMÉES
H212: T | I212: Psat
H213: =VLOOKUP(H214,H104:I191,1) -> 200 | I213: =VLOOKUP(H213,$H$104:$I$191,2) -> 1553800 | J213: =MATCH(H213,H104:H191,1) -> 64
H214: =E121 -> 200 | I214: =I213+((H214-H213)/(H215-H213))*(I215-I213) -> 1553800
H215: =INDEX(H104:H191,J215) -> 205 | I215: =VLOOKUP(H215,$H$104:$I$191,2) -> 1723000 | J215: =J213+1 -> 65

Sheet Bilan_2 (hidden)
A1: Formulaire de calcul | N1: Unités et paramètres de calculs | Y1: Quantité de purge | Z1: Excès d'air
U2: Numéro correspondant à sélection dans entrée de données | Y2: ='Entrée de données'!D52 -> 1 | Z2: ='Entrée de données'!D36 -> 30 | AA2: ='Entrée de données'!D25 -> 1
B3: Type de chaudière: | C3: =VLOOKUP(AA2,X4:AA7,4) -> Tubes de fumées | O3: Conversion | X3: Numéro | Y3: % Purge | Z3: % Exces d'air | AA3: Type de chaudière
O4: 1kW = | P4: =1000000/293.07 -> 3412.154093 | Q4: Btu/h | X4: 1 | Y4: 0 | Z4: 0.01 | AA4: Tubes de fumées
A5: OUTPUT: | O5: 1 Btu/h = | P5: 0.00029307 | Q5: kW | X5: =X4+1 -> 2 | Y5: 0.01 | Z5: =Z4+0.01 -> 0.02 | AA5: Tubes d'eau
A6: Puissance maximale du brûleur | B6: ='Entrée de données'!D27 -> 0 | C6: kW | D6: Donnée d'entrée | O6: 1 kJ/kg= | P6: 0.42993 | Q6: Btu/lb | X6: =X5+1 -> 3 | Y6: 0.02 | Z6: =Z5+0.01 -> 0.03 | AA6: À serpentin
A7: Puissance maximale de production de vapeur de la chaudière | B7: ='Entrée de données'!D29 -> 0 | C7: kW | D7: Donnée d'entrée | O7: 1 Btu = | P7: 0.001055 | Q7: MJ | X7: =X6+1 -> 4 | Y7: 0.03 | Z7: 0.04 | AA7: Sans tube
A8: Puissance maximale de production de vapeur de la chaudière | B8: =ROUND(B7*P4/1000000,2) -> 0 | C8: millions Btu/h | D8: Simple calcul de conversion des kw en btu/h | O8: 1 MJ = | P8: =1/P7 -> 947.8672986 | Q8: Btu | X8: =X7+1 -> 5 | Y8: 0.04 | Z8: 0.05
A9: Puissance moyenne de production de vapeur de la chaudière en opération | B9: ='Entrée de données'!D32 -> 0 | C9: kW | D9: Donnée d'entrée | E9: ATTENTION: Ce n'est pas juste pour la vapeur dispo. C'est aussi de l'énergie qui sera perdu par les purges | O9: 1 lb = | P9: 0.45359237 | Q9: kg | X9: 6 | Y9: 0.05 | Z9: 0.06
A10: Puissance moyenne de production de vapeur de la chaudière en opération | B10: =ROUND(B9*P4/1000000,2) -> 0 | C10: millions Btu/h | D10: Données entrée converti en btu/h | O10: 1 kg = | P10: =1/P9 -> 2.204622622 | Q10: lb | X10: 7 | Y10: 0.06 | Z10: 0.07
X11: 8 | Y11: 0.07 | Z11: 0.08
A12: INFO POUR CALCUL DE L'EFFICACITÉ | X12: 9 | Y12: 0.08 | Z12: 0.09
A13: Excès d'air | B13: =VLOOKUP(Z2,X4:Z105,3) -> 0.3 | D13: Donnée d'entrée | X13: 10 | Y13: 0.09 | Z13: 0.1
A14: Température des fumées (°F) | B14: =ROUND(('Entrée de données'!D34)*1.8+32,1) -> 392 | C14: °F | D14: Donnée entrée convertie en °F au lieu de °C | S14: Pertes par radiation et convection | X14: 11 | Y14: 0.1 | Z14: 0.11
A15: Température de l'air de combustion (°F) | B15: =ROUND(('Entrée de données'!D35*1.8+32),1) -> 68 | C15: °F | D15: Donnée entrée convertie en °F au lieu de °C | S15: Puissance maximale kW | T15: Puissance maximale millions Btu/h | U15: % de Pertes | V15: à 100% de la charge | X15: 12 | Y15: 0.11 | Z15: 0.12
A16: Température de l'eau d'appoint (°C) | B16: ='Entrée de données'!C48 -> 0 | C16: °C | D16: Donnée d'entrée (idem pour toutes les chaudières de la centrale) | X16: 13 | Y16: 0.12 | Z16: 0.13
R17: Inférieure à 5 millions Btu/h | S17: Inférieure à 1465 | T17: =IF(B8<5,B8, "") -> 0 | U17: =IF($B$8<5,$V$88/($B$10/#REF!),"") ->  | V17: =IF($B$8<5,$V$89,"") -> 0 | X17: 14 | Y17: 0.13 | Z17: 0.14
A18: CALCUL DE L'EFFICACITÉ DE CHAUFFE : 100%-perte fumée - perte radiation | S18: =T18*$P$5*1000000 -> 1465.35 | T18: 5 | U18: =V18/($B$10/T18) ->  | V18: 0.026 | X18: 15 | Y18: 0.14 | Z18: 0.15
A19: 1. Perte par les fumée | B19: =1-Comb_2!G2 -> 0.1724329004 | S19: =T19*$P$5*1000000 -> 2930.7 | T19: 10 | V19: 0.016 | X19: 16 | Y19: 0.15 | Z19: 0.16
A20: 2. Perte par radiation: | S20: 5861.4 | T20: 20 | V20: 0.0105 | X20: 17 | Y20: 0.16 | Z20: 0.17
A21: Pertes par radiation et convection | D21: Interpolation des pertes par radiation et convection | H21: Puissance (millions Btuh) | I21: Pertes à 100% | S21: 8792.1 | T21: 30 | V21: 0.0084 | X21: 18 | Y21: 0.17 | Z21: 0.18
A22: Pertes calculées pour une chaudière de | B22: =IF(B8<T18,T17,B8) -> 0 | C22: millions Btu/h | D22: Puissance en dessous | H22: =IF(B8<5,B8,LOOKUP(B8,T18:T42)) -> 0 | I22: =ROUND(IF(H22<5,V17, VLOOKUP(H24,T18:V42,3,TRUE)),4) -> 0 | S22: 11722.8 | T22: 40 | V22: 0.0073 | X22: 19 | Y22: 0.18 | Z22: 0.19
B23: =I24/(B9/B7) ->  | D23: Puissance au dessus | H23: =IF(B8<T18,B8,INDEX(T18:T42,RANK(LOOKUP(B8,T18:T42),T18:T42,1)+1)) -> 0 | I23: =ROUND(IF(H23<5,V17, VLOOKUP(H23,T18:V42,3,TRUE)),4) -> 0 | S23: 14653.5 | T23: 50 | V23: 0.0066 | X23: 20 | Y23: 0.19 | Z23: 0.2
D24: Valeur pour interpolation | H24: =B8 -> 0 | I24: =ROUND(IF(H22=H23,AVERAGE(I22,I23),FORECAST(H24,I22:I23,H22:H23)),4) -> 0 | S24: 17584.2 | T24: 60 | V24: 0.0062 | X24: 21 | Y24: 0.2 | Z24: 0.21
S25: 20514.9 | T25: 70 | V25: 0.0059 | X25: 22 | Y25: 0.21 | Z25: 0.22
A26: Efficacité de chauffe | B26: =1-B19-B23 ->  | C26: =(B19+B23)-1 ->  | S26: 23445.6 | T26: 80 | V26: 0.0056 | X26: 23 | Y26: 0.22 | Z26: 0.23
S27: 26376.3 | T27: 90 | V27: 0.0054 | X27: 24 | Y27: 0.23 | Z27: 0.24
A28: INPUT | S28: 29307 | T28: 100 | V28: 0.0052 | X28: 25 | Y28: 0.24 | Z28: 0.25
A29: Puissance du brûleur en opération | B29: =B30*1000000*P5 ->  | C29: kW | D29: Convertion de B30 en kw | S29: 35168.4 | T29: 120 | V29: 0.0048 | X29: 26 | Y29: 0.25 | Z29: 0.26
A30: Puissance du brûleur en opération | B30: =B10/B26 ->  | C30: millions Btu/h | D30: Puissance moyenne production vapeur / efficacité | S30: 41029.8 | T30: 140 | V30: 0.0045 | X30: 27 | Y30: 0.26 | Z30: 0.27
A31: Volume de gaz naturel alimenté | B31: =ROUND(B30*10^6/J37,2) ->  | C31: m3/h | D31: Convertion de la puissance en opération du bruleur de kw en m3 de gaz | S31: 46891.2 | T31: 160 | V31: 0.0043 | X31: 28 | Y31: 0.27 | Z31: 0.28
A32: Nombre de moles totales pour le volume de gaz | B32: =ROUND(B31/(8.31451*(273.15+'Entrée de données'!D37)/101325),1) ->  | C32: mol/h | D32: PV=nRT => n=PV/RT | S32: 52752.6 | T32: 180 | V32: 0.004 | X32: 29 | Y32: 0.28 | Z32: 0.29
S33: 58614 | T33: 200 | V33: 0.0038 | X33: 30 | Y33: 0.29 | Z33: 0.3
A34: Quantité de fumées produites | S34: 87921 | T34: 300 | V34: 0.0034 | X34: 31 | Y34: 0.3 | Z34: 0.31
B35: masse molaire (g/mol) | C35: mol | D35: masse(lb/h) | E35: masse (kg/h) | G35: Masse d'hydrogène dans une livre de combustible (lb/lb) | J35: =Comb_2!Q50 -> 0.2368842897 | S35: 117228 | T35: 400 | V35: 0.003 | X35: 32 | Y35: 0.31 | Z35: 0.32
A36: CO2 | B36: =Comb_2!C12 -> 44.011 | C36: =Comb_2!L82*B32 ->  | D36: =ROUND(C36*B36/($P$9*1000),1) ->  | E36: =ROUND(C36*B36/1000,1) ->  | G36: 1m3 gaz naturel (MJ) | J36: 37.89 | S36: 146535 | T36: 500 | V36: 0.0028 | X36: 33 | Y36: 0.32 | Z36: 0.33
A37: H2O | B37: =Comb_2!C14 -> 18.015 | C37: =Comb_2!L86*B32 ->  | D37: =ROUND(C37*B37/($P$9*1000),1) ->  | E37: =ROUND(C37*B37/1000,1) ->  | G37: 1m3 gaz naturel (btu) | J37: =J36*P8 -> 35914.69194 | S37: 293070 | T37: 1000 | V37: 0.0023 | X37: 34 | Y37: 0.33 | Z37: 0.34
A38: O2 | B38: =Comb_2!C10 -> 32 | C38: =Comb_2!L84*Bilan_2!B32 ->  | S38: 586140 | T38: 2000 | V38: 0.00195 | X38: 35 | Y38: 0.34 | Z38: 0.35
A39: N2 | B39: =Comb_2!C26 -> 28.013 | C39: =Comb_2!L81*B32 ->  | S39: 1172280 | T39: 4000 | V39: 0.00175 | X39: 36 | Y39: 0.35 | Z39: 0.36
A40: Total (humide) | C40: =SUM(C36:C39) ->  | D40: =SUM(D36:D39) ->  | E40: =SUM(E36:E39) ->  | S40: 1758420 | T40: 6000 | V40: 0.0016 | X40: 37 | Y40: 0.36 | Z40: 0.37
A41: Total (sec) | C41: =SUM(C36,C38:C39) ->  | D41: =D40-D37 ->  | E41: =SUM(E36,E38:E39) ->  | S41: 2930700 | T41: 10000 | V41: 0.0015 | X41: 38 | Y41: 0.37 | Z41: 0.38
S42: 5861400 | T42: 20000 | V42: 0.0015 | X42: 39 | Y42: 0.38 | Z42: 0.39
A43: CONDENSAT | X43: 40 | Y43: 0.39 | Z43: 0.4
A44: Enthalpie de l'eau d'appoint (kJ/kg) | B44: =ROUND(4.18*(B16),3) -> 0 | C44: kJ/kg | D44: Cp*DT | X44: 41 | Y44: 0.4 | Z44: 0.41
A45: Température du condensat (°C) | B45: =IF(('Entrée de données'!D49=2),"0",('Entrée de données'!D51)) -> 100 | C45: °C | D45: Donnée d'entrée | X45: 42 | Y45: 0.41 | Z45: 0.42
A46: Enthalpie du condensat (kJ/kg) | B46: =IF('Entrée de données'!D49=2,"0",4.18*(B45)) -> 418 | C46: kJ/kg | D46: Cp*DT | X46: 43 | Y46: 0.42 | Z46: 0.43
A47: % de condensat | B47: =IF('Entrée de données'!D49=1,'Entrée de données'!D50,0) -> 0 | D47: Donnée d'entrée | X47: 44 | Y47: 0.43 | Z47: 0.44
A48: T°de l'eau alimentée à la chaudière (°C) | B48: =IF('Entrée de données'!D49=1,(B47*B45+(1-B47)*B16),B16) -> 0 | C48: °C | D48: si retour de condensat: [% condensat * T° du condensat] + [(1-% condensat) * T°de l'eau d'appoint]. Sinon, c'est égale à la T° d'eau d'appoint | X48: 45 | Y48: 0.44 | Z48: 0.45
X49: 46 | Y49: 0.45 | Z49: 0.46
D50: Interpolation des enthalpies | I50: Pression (kPa) | J50: Liquide saturé (kJ/kg) | K50: Enthalpie de vaporisation (kJ/kg) | L50: Vapeur saturée (kJ/kg) | X50: 47 | Y50: 0.46 | Z50: 0.47
D51: Pression en dessous de la valeur entrée par l'utilisateur | I51: =LOOKUP(B56,'Données vapeur'!A5:A60) -> -1.325 | J51: =VLOOKUP(I51,'Données vapeur'!A5:E60,3,FALSE) -> 417.46 | K51: =VLOOKUP(I51,'Données vapeur'!A5:E60,4,FALSE) -> 2258 | L51: =VLOOKUP(I51,'Données vapeur'!A5:E60,5,FALSE) -> 2675.46 | X51: 48 | Y51: 0.47 | Z51: 0.48
D52: Pression au dessus de la valeur entrée par l'utilisateur | I52: =IF((I51-B56)=0,B56,INDEX('Données vapeur'!A5:A60,RANK(LOOKUP(Bilan_2!B56,'Données vapeur'!A5:A60),'Données vapeur'!A5:A60,1)+1)) -> 23.675 | J52: =VLOOKUP(I52,'Données vapeur'!A5:E60,3,FALSE) -> 444.32 | K52: =VLOOKUP(I52,'Données vapeur'!A5:E60,4,FALSE) -> 2241 | L52: =VLOOKUP(I52,'Données vapeur'!A5:E60,5,FALSE) -> 2685.32 | X52: 49 | Y52: 0.48 | Z52: 0.49
D53: Valeur pour interpolation | I53: =B56 -> 0 | J53: =IF(I51=I52,J51,FORECAST(I53,J51:J52,I51:I52)) -> 418.88358 | K53: =IF(I51=I52,K51,FORECAST(I53,K51:K52,I51:I52)) -> 2257.099 | L53: =IF(I51=I52,L51,FORECAST(I53,L51:L52,I51:I52)) -> 2675.98258 | X53: 50 | Y53: 0.49 | Z53: 0.5
A54: ENTHALPIE | X54: 51 | Y54: 0.5 | Z54: 0.51
A55: Enthalpie de l'eau alimentée à la chaudière (kJ/kg) | B55: =ROUND(IF('Entrée de données'!D49=1,(B47*B46+(1-B47)*B44),B44),3) -> 0 | C55: kJ/kg | D55: si retour de condensat: [% condensat * DH du condensat] + [(1-% condensat) * DH de l'eau d'appoint]. Sinon, c'est égale à la DH d'eau d'appoint | X55: 52 | Y55: 0.51 | Z55: 0.52
A56: Pression de la vapeur produite (kPa) | B56: ='Entrée de données'!C43 -> 0 | C56: kPa | D56: Donnée d'entrée | I56: Interpolation de l'enthalpie surchauffée | M56: Pression (kPa) Données saturées | N56: Vapeur surchauffée (kJ/kg) | X56: 53 | Y56: 0.52 | Z56: 0.53
A57: Degré de surchauffe | B57: =IF('Entrée de données'!D44="Non nécessaire",0,'Entrée de données'!D45) -> 0 | C57: °C | D57: Donnée d'entrée | I57: Pression en dessous de la valeur entrée par l'utilisateur | M57: =LOOKUP(B56,'Données vapeur'!$H$6:$H$31) -> -1.325 | N57: =VLOOKUP(M57,'Données vapeur'!$H$6:$M$33,3,FALSE) -> 2679.181185
